Workbook

Sheet Übersicht
D1: Kreisrundenwettkampf | J1: Saison | K1: 2019/2020 | M1: 2. Kreisklasse | P1: Damen
C3: Wettkampftag: | D3: 22.09. | E3: 13.10 | F3: 27.10. | G3: 17.11. | H3: 01.12. | I3: 15.12. | J3: Hinrunde | L3: 12.01. | M3: 26.01. | N3: 09.02. | O3: 23.02. | P3: 08.03. | Q3: 22.03. | R3: Rückrunde | T3: Serie komplett
A4: Pos. | B4: Verein / Gruppe | D4: Börger | E4: Esterwegen | F4: Neuvrees | G4: Lahn | H4: Lahn | I4: Börger | J4: Schnitt | K4: Gesamt | L4: =D4 -> Börger | M4: Esterwegen | N4: Neuvrees | O4: Börger | P4: Lahn | Q4: Lahn | R4: Schnitt | S4: Gesamt | T4: Schnitt | U4: Gesamt | V4: Differenz
A6: 1 | B6: ='Übersicht Gruppen'!B2 -> Esterwegen V | D6: ='Übersicht Gruppen'!C2 -> 931.1 | E6: ='Übersicht Gruppen'!D2 -> 940.1 | F6: ='Übersicht Gruppen'!E2 -> 934.7 | G6: ='Übersicht Gruppen'!F2 -> 934.0 | H6: ='Übersicht Gruppen'!G2 -> 935.8 | I6: ='Übersicht Gruppen'!H2 -> 933.2 | J6: ='Übersicht Gruppen'!I2 -> 934.82 | K6: =SUM(D6:I6) -> 5,608.9 | L6: ='Übersicht Gruppen'!K2 -> 938.1 | M6: ='Übersicht Gruppen'!L2 -> 938.2 | N6: ='Übersicht Gruppen'!M2 -> 932.4 | O6: ='Übersicht Gruppen'!N2 -> 937.8 | P6: ='Übersicht Gruppen'!O2 -> 934.2 | Q6: ='Übersicht Gruppen'!P2 -> 0.0 | R6: =IF(Formelhilfe!O2=0,0,'Übersicht Gruppen'!Q2) -> 936.14 | S6: =SUM(L6:Q6) -> 4,680.7 | T6: ='Übersicht Gruppen'!S2 -> 935.42 | U6: =SUM(S6+K6) -> 10,289.6
A7: 2 | B7: ='Übersicht Gruppen'!B3 -> Lahn III | D7: ='Übersicht Gruppen'!C3 -> 928.5 | E7: ='Übersicht Gruppen'!D3 -> 919.0 | F7: ='Übersicht Gruppen'!E3 -> 922.7 | G7: ='Übersicht Gruppen'!F3 -> 933.4 | H7: ='Übersicht Gruppen'!G3 -> 937.2 | I7: ='Übersicht Gruppen'!H3 -> 923.6 | J7: ='Übersicht Gruppen'!I3 -> 927.40 | K7: 5,564.4 | L7: ='Übersicht Gruppen'!K3 -> 931.5 | M7: ='Übersicht Gruppen'!L3 -> 922.0 | N7: ='Übersicht Gruppen'!M3 -> 921.7 | O7: ='Übersicht Gruppen'!N3 -> 928.8 | P7: ='Übersicht Gruppen'!O3 -> 923.9 | Q7: ='Übersicht Gruppen'!P3 -> 0.0 | R7: =IF(Formelhilfe!O3=0,0,'Übersicht Gruppen'!Q3) -> 925.58 | S7: 4,627.9 | T7: ='Übersicht Gruppen'!S3 -> 926.57 | U7: =SUM(S7+K7) -> 10,192.3 | V7: =(U6-U7)*-1 -> -97.3
A8: 3 | B8: ='Übersicht Gruppen'!B4 -> Lahn IV | D8: ='Übersicht Gruppen'!C4 -> 922.7 | E8: ='Übersicht Gruppen'!D4 -> 919.2 | F8: ='Übersicht Gruppen'!E4 -> 920.1 | G8: ='Übersicht Gruppen'!F4 -> 925.4 | H8: ='Übersicht Gruppen'!G4 -> 930.5 | I8: ='Übersicht Gruppen'!H4 -> 929.6 | J8: ='Übersicht Gruppen'!I4 -> 924.58 | K8: 5,547.5 | L8: ='Übersicht Gruppen'!K4 -> 925.6 | M8: ='Übersicht Gruppen'!L4 -> 924.4 | N8: ='Übersicht Gruppen'!M4 -> 928.4 | O8: ='Übersicht Gruppen'!N4 -> 935.0 | P8: ='Übersicht Gruppen'!O4 -> 925.0 | Q8: ='Übersicht Gruppen'!P4 -> 0.0 | R8: =IF(Formelhilfe!O4=0,0,'Übersicht Gruppen'!Q4) -> 927.68 | S8: 4,638.4 | T8: ='Übersicht Gruppen'!S4 -> 925.99 | U8: 10,185.9 | V8: =(U7-U8)*-1 -> -6.4
A9: 4 | B9: ='Übersicht Gruppen'!B5 -> Neuvrees II | D9: ='Übersicht Gruppen'!C5 -> 919.3 | E9: ='Übersicht Gruppen'!D5 -> 923.3 | F9: ='Übersicht Gruppen'!E5 -> 925.1 | G9: ='Übersicht Gruppen'!F5 -> 925.2 | H9: ='Übersicht Gruppen'!G5 -> 923.2 | I9: ='Übersicht Gruppen'!H5 -> 920.9 | J9: ='Übersicht Gruppen'!I5 -> 922.83 | K9: 5,537.0 | L9: ='Übersicht Gruppen'!K5 -> 922.6 | M9: ='Übersicht Gruppen'!L5 -> 916.3 | N9: ='Übersicht Gruppen'!M5 -> 925.6 | O9: ='Übersicht Gruppen'!N5 -> 924.4 | P9: ='Übersicht Gruppen'!O5 -> 932.8 | Q9: ='Übersicht Gruppen'!P5 -> 0.0 | R9: =IF(Formelhilfe!O5=0,0,'Übersicht Gruppen'!Q5) -> 924.34 | S9: 4,621.7 | T9: ='Übersicht Gruppen'!S5 -> 923.52 | U9: 10,158.7 | V9: -27.2
A10: 5 | B10: ='Übersicht Gruppen'!B6 -> Börger II | D10: ='Übersicht Gruppen'!C6 -> 926.0 | E10: ='Übersicht Gruppen'!D6 -> 916.2 | F10: ='Übersicht Gruppen'!E6 -> 911.7 | G10: ='Übersicht Gruppen'!F6 -> 922.4 | H10: ='Übersicht Gruppen'!G6 -> 925.5 | I10: ='Übersicht Gruppen'!H6 -> 930.4 | J10: ='Übersicht Gruppen'!I6 -> 922.03 | K10: 5,532.2 | L10: ='Übersicht Gruppen'!K6 -> 923.6 | M10: ='Übersicht Gruppen'!L6 -> 923.2 | N10: ='Übersicht Gruppen'!M6 -> 919.6 | O10: ='Übersicht Gruppen'!N6 -> 922.1 | P10: ='Übersicht Gruppen'!O6 -> 929.4 | Q10: ='Übersicht Gruppen'!P6 -> 0.0 | R10: =IF(Formelhilfe!O6=0,0,'Übersicht Gruppen'!Q6) -> 923.58 | S10: 4,617.9 | T10: ='Übersicht Gruppen'!S6 -> 922.74 | U10: 10,150.1 | V10: -8.6
A11: 6 | B11: ='Übersicht Gruppen'!B7 -> Börger III | D11: ='Übersicht Gruppen'!C7 -> 924.8 | E11: ='Übersicht Gruppen'!D7 -> 924.0 | F11: ='Übersicht Gruppen'!E7 -> 910.6 | G11: ='Übersicht Gruppen'!F7 -> 920.3 | H11: ='Übersicht Gruppen'!G7 -> 925.2 | I11: ='Übersicht Gruppen'!H7 -> 917.0 | J11: ='Übersicht Gruppen'!I7 -> 920.32 | K11: 5,521.9 | L11: ='Übersicht Gruppen'!K7 -> 924.8 | M11: ='Übersicht Gruppen'!L7 -> 913.1 | N11: ='Übersicht Gruppen'!M7 -> 925.4 | O11: ='Übersicht Gruppen'!N7 -> 915.2 | P11: ='Übersicht Gruppen'!O7 -> 919.7 | Q11: ='Übersicht Gruppen'!P7 -> 0.0 | R11: =IF(Formelhilfe!O7=0,0,'Übersicht Gruppen'!Q7) -> 919.64 | S11: 4,598.2 | T11: ='Übersicht Gruppen'!S7 -> 920.01 | U11: 10,120.1 | V11: -30.0
C13: Schnitt: | D13: =AVERAGE(D6:D11) -> 925.4 | E13: =AVERAGE(E6:E11) -> 923.6 | F13: 920.8 | G13: 926.8 | H13: 929.6 | I13: 925.8 | J13: 925.33 | K13: =SUM(K6:K11)/6 -> 5,552.0 | L13: 927.7 | M13: 922.9 | N13: 925.5 | O13: 927.2 | P13: 927.5 | Q13: 0.0 | R13: 926.16 | S13: 4630.8 | T13: 925.71 | U13: 10,182.8
J15: Hinrunde | R15: Rückrunde | T15: Serie komplett | V15: Differenz
A16: Pos. | B16: Vorname Name | C16: Verein / Gruppe | J16: Schnitt | K16: Gesamt | R16: Schnitt | S16: Gesamt | T16: Schnitt | U16: Gesamt
A17: 1 | B17: ='Übersicht Schützen'!A2 -> Lindemann, Rita | C17: ='Übersicht Schützen'!B2 -> Esterwegen V | D17: ='Übersicht Schützen'!C2 -> 313.4 | E17: ='Übersicht Schützen'!D2 -> 317.5 | F17: ='Übersicht Schützen'!E2 -> 314.5 | G17: ='Übersicht Schützen'!F2 -> 315.0 | H17: ='Übersicht Schützen'!G2 -> 316.6 | I17: ='Übersicht Schützen'!H2 -> 315.6 | J17: ='Übersicht Schützen'!I2 -> 315.43 | K17: =SUM(D17:I17) -> 1,892.6 | L17: ='Übersicht Schützen'!L2 -> 316.1 | M17: ='Übersicht Schützen'!M2 -> 315.0 | N17: ='Übersicht Schützen'!N2 -> 317.2 | O17: ='Übersicht Schützen'!O2 -> 313.7 | P17: ='Übersicht Schützen'!P2 -> 316.8 | Q17: ='Übersicht Schützen'!Q2 -> 0.0 | R17: 315.76 | S17: =SUM(L17:Q17) -> 1,578.8 | T17: ='Übersicht Schützen'!U2 -> 315.58 | U17: =SUM(K17+S17) -> 3,471.4
A18: 2 | B18: ='Übersicht Schützen'!A3 -> Schlarmann, Lena | C18: ='Übersicht Schützen'!B3 -> Esterwegen V | D18: ='Übersicht Schützen'!C3 -> 311.4 | E18: ='Übersicht Schützen'!D3 -> 312.0 | F18: ='Übersicht Schützen'!E3 -> 309.8 | G18: ='Übersicht Schützen'!F3 -> 310.0 | H18: ='Übersicht Schützen'!G3 -> 311.3 | I18: ='Übersicht Schützen'!H3 -> 311.0 | J18: ='Übersicht Schützen'!I3 -> 310.92 | K18: =SUM(D18:I18) -> 1,865.5 | L18: ='Übersicht Schützen'!L3 -> 311.5 | M18: ='Übersicht Schützen'!M3 -> 312.6 | N18: ='Übersicht Schützen'!N3 -> 304.5 | O18: ='Übersicht Schützen'!O3 -> 312.6 | P18: ='Übersicht Schützen'!P3 -> 309.2 | Q18: ='Übersicht Schützen'!Q3 -> 0.0 | R18: =IF(Formelhilfe!O10=0,0,'Übersicht Schützen'!R3) -> 310.08 | S18: =SUM(L18:Q18) -> 1,550.4 | T18: ='Übersicht Schützen'!U3 -> 310.54 | U18: =SUM(K18+S18) -> 3,415.9 | V18: =(U17-U18)*-1 -> -55.5
A19: 3 | B19: ='Übersicht Schützen'!A4 -> Thien, Marita | C19: ='Übersicht Schützen'!B4 -> Lahn IV | D19: ='Übersicht Schützen'!C4 -> 308.6 | E19: ='Übersicht Schützen'!D4 -> 306.7 | F19: ='Übersicht Schützen'!E4 -> 306.4 | G19: ='Übersicht Schützen'!F4 -> 309.0 | H19: ='Übersicht Schützen'!G4 -> 311.7 | I19: ='Übersicht Schützen'!H4 -> 309.5 | J19: ='Übersicht Schützen'!I4 -> 308.65 | K19: =SUM(D19:I19) -> 1,851.9 | L19: ='Übersicht Schützen'!L4 -> 311.2 | M19: ='Übersicht Schützen'!M4 -> 312.3 | N19: ='Übersicht Schützen'!N4 -> 310.3 | O19: ='Übersicht Schützen'!O4 -> 311.7 | P19: ='Übersicht Schützen'!P4 -> 312.0 | Q19: ='Übersicht Schützen'!Q4 -> 0.0 | R19: =IF(Formelhilfe!O11=0,0,'Übersicht Schützen'!R4) -> 311.50 | S19: 1,557.5 | T19: ='Übersicht Schützen'!U4 -> 309.95 | U19: 3,409.4 | V19: =(U18-U19)*-1 -> -6.5
A20: 4 | B20: ='Übersicht Schützen'!A5 -> Willoh, Henrika | C20: ='Übersicht Schützen'!B5 -> Lahn III | D20: ='Übersicht Schützen'!C5 -> 309.3 | E20: ='Übersicht Schützen'!D5 -> 309.3 | F20: ='Übersicht Schützen'!E5 -> 308.1 | G20: ='Übersicht Schützen'!F5 -> 310.7 | H20: ='Übersicht Schützen'!G5 -> 310.3 | I20: ='Übersicht Schützen'!H5 -> 309.2 | J20: ='Übersicht Schützen'!I5 -> 309.48 | K20: 1,856.9 | L20: ='Übersicht Schützen'!L5 -> 306.4 | M20: ='Übersicht Schützen'!M5 -> 309.8 | N20: ='Übersicht Schützen'!N5 -> 310.4 | O20: ='Übersicht Schützen'!O5 -> 312.2 | P20: ='Übersicht Schützen'!P5 -> 311.1 | Q20: ='Übersicht Schützen'!Q5 -> 0.0 | R20: =IF(Formelhilfe!O12=0,0,'Übersicht Schützen'!R5) -> 309.98 | S20: 1,549.9 | T20: ='Übersicht Schützen'!U5 -> 309.71 | U20: 3,406.8 | V20: -2.6
A21: 5 | B21: ='Übersicht Schützen'!A6 -> Terhalle, Johanna | C21: ='Übersicht Schützen'!B6 -> Börger III | D21: ='Übersicht Schützen'!C6 -> 311.4 | E21: ='Übersicht Schützen'!D6 -> 308.8 | F21: ='Übersicht Schützen'!E6 -> 305.2 | G21: ='Übersicht Schützen'!F6 -> 309.4 | H21: ='Übersicht Schützen'!G6 -> 311.4 | I21: ='Übersicht Schützen'!H6 -> 309.0 | J21: ='Übersicht Schützen'!I6 -> 309.20 | K21: 1,855.2 | L21: ='Übersicht Schützen'!L6 -> 311.9 | M21: ='Übersicht Schützen'!M6 -> 309.3 | N21: ='Übersicht Schützen'!N6 -> 309.1 | O21: ='Übersicht Schützen'!O6 -> 304.5 | P21: ='Übersicht Schützen'!P6 -> 309.4 | Q21: ='Übersicht Schützen'!Q6 -> 0.0 | R21: =IF(Formelhilfe!O13=0,0,'Übersicht Schützen'!R6) -> 308.84 | S21: 1,544.2 | T21: ='Übersicht Schützen'!U6 -> 309.04 | U21: 3,399.4 | V21: -7.4
A22: 6 | B22: ='Übersicht Schützen'!A7 -> Pohlgeers, Margret | C22: ='Übersicht Schützen'!B7 -> Börger II | D22: ='Übersicht Schützen'!C7 -> 307.4 | E22: ='Übersicht Schützen'!D7 -> 307.7 | F22: ='Übersicht Schützen'!E7 -> 308.1 | G22: ='Übersicht Schützen'!F7 -> 307.5 | H22: ='Übersicht Schützen'!G7 -> 309.3 | I22: ='Übersicht Schützen'!H7 -> 312.4 | J22: ='Übersicht Schützen'!I7 -> 308.73 | K22: 1,852.4 | L22: ='Übersicht Schützen'!L7 -> 308.6 | M22: ='Übersicht Schützen'!M7 -> 308.7 | N22: ='Übersicht Schützen'!N7 -> 309.0 | O22: ='Übersicht Schützen'!O7 -> 309.2 | P22: ='Übersicht Schützen'!P7 -> 311.4 | Q22: ='Übersicht Schützen'!Q7 -> 0.0 | R22: 309.38 | S22: 1,546.9 | T22: ='Übersicht Schützen'!U7 -> 309.03 | U22: 3,399.3 | V22: -0.1
A23: 7 | B23: ='Übersicht Schützen'!A8 -> Thunert, Silvia | C23: ='Übersicht Schützen'!B8 -> Neuvrees II | D23: ='Übersicht Schützen'!C8 -> 310.8 | E23: ='Übersicht Schützen'!D8 -> 307.4 | F23: ='Übersicht Schützen'!E8 -> 310.9 | G23: ='Übersicht Schützen'!F8 -> 308.4 | H23: ='Übersicht Schützen'!G8 -> 308.3 | I23: ='Übersicht Schützen'!H8 -> 306.7 | J23: ='Übersicht Schützen'!I8 -> 308.75 | K23: 1,852.5 | L23: ='Übersicht Schützen'!L8 -> 309.5 | M23: ='Übersicht Schützen'!M8 -> 306.6 | N23: ='Übersicht Schützen'!N8 -> 306.9 | O23: ='Übersicht Schützen'!O8 -> 307.9 | P23: ='Übersicht Schützen'!P8 -> 313.9 | Q23: ='Übersicht Schützen'!Q8 -> 0.0 | R23: =IF(Formelhilfe!O15=0,0,'Übersicht Schützen'!R8) -> 308.96 | S23: 1,544.8 | T23: ='Übersicht Schützen'!U8 -> 308.85 | U23: 3,397.3 | V23: -2.0
A24: 8 | B24: ='Übersicht Schützen'!A9 -> Lindemann, Kerstin | C24: ='Übersicht Schützen'!B9 -> Esterwegen V | D24: ='Übersicht Schützen'!C9 -> 306.3 | E24: ='Übersicht Schützen'!D9 -> 310.6 | F24: ='Übersicht Schützen'!E9 -> 310.4 | G24: ='Übersicht Schützen'!F9 -> 309.0 | H24: ='Übersicht Schützen'!G9 -> 307.9 | I24: ='Übersicht Schützen'!H9 -> 306.6 | J24: ='Übersicht Schützen'!I9 -> 308.47 | K24: 1,850.8 | L24: ='Übersicht Schützen'!L9 -> 310.5 | M24: ='Übersicht Schützen'!M9 -> 309.3 | N24: ='Übersicht Schützen'!N9 -> 307.5 | O24: ='Übersicht Schützen'!O9 -> 311.5 | P24: ='Übersicht Schützen'!P9 -> 305.7 | Q24: ='Übersicht Schützen'!Q9 -> 0.0 | R24: =IF(Formelhilfe!O16=0,0,'Übersicht Schützen'!R9) -> 308.90 | S24: 1,544.5 | T24: ='Übersicht Schützen'!U9 -> 308.66 | U24: 3,395.3 | V24: -2.0
A25: 9 | B25: ='Übersicht Schützen'!A10 -> Reinelt, Michaela | C25: ='Übersicht Schützen'!B10 -> Lahn IV | D25: ='Übersicht Schützen'!C10 -> 310.8 | E25: ='Übersicht Schützen'!D10 -> 303.6 | F25: ='Übersicht Schützen'!E10 -> 307.4 | G25: ='Übersicht Schützen'!F10 -> 309.1 | H25: ='Übersicht Schützen'!G10 -> 310.8 | I25: ='Übersicht Schützen'!H10 -> 310.3 | J25: ='Übersicht Schützen'!I10 -> 308.67 | K25: 1,852.0 | L25: ='Übersicht Schützen'!L10 -> 308.2 | M25: ='Übersicht Schützen'!M10 -> 307.7 | N25: ='Übersicht Schützen'!N10 -> 310.2 | O25: ='Übersicht Schützen'!O10 -> 308.8 | P25: ='Übersicht Schützen'!P10 -> 308.2 | Q25: ='Übersicht Schützen'!Q10 -> 0.0 | R25: =IF(Formelhilfe!O17=0,0,'Übersicht Schützen'!R10) -> 308.62 | S25: 1,543.1 | T25: ='Übersicht Schützen'!U10 -> 308.65 | U25: 3,395.1 | V25: -0.2
A26: 10 | B26: ='Übersicht Schützen'!A11 -> Thyen, Christel | C26: ='Übersicht Schützen'!B11 -> Lahn III | D26: ='Übersicht Schützen'!C11 -> 309.9 | E26: ='Übersicht Schützen'!D11 -> 299.0 | F26: ='Übersicht Schützen'!E11 -> 307.2 | G26: ='Übersicht Schützen'!F11 -> 313.0 | H26: ='Übersicht Schützen'!G11 -> 314.8 | I26: ='Übersicht Schützen'!H11 -> 308.1 | J26: ='Übersicht Schützen'!I11 -> 308.67 | K26: 1,852.0 | L26: ='Übersicht Schützen'!L11 -> 313.4 | M26: ='Übersicht Schützen'!M11 -> 306.1 | N26: ='Übersicht Schützen'!N11 -> 305.7 | O26: ='Übersicht Schützen'!O11 -> 308.8 | P26: ='Übersicht Schützen'!P11 -> 305.8 | Q26: ='Übersicht Schützen'!Q11 -> 0.0 | R26: =IF(Formelhilfe!O18=0,0,'Übersicht Schützen'!R11) -> 307.96 | S26: 1,539.8 | T26: ='Übersicht Schützen'!U11 -> 308.35 | U26: 3,391.8 | V26: -3.3
A27: 11 | B27: ='Übersicht Schützen'!A12 -> Robben, Anja | C27: ='Übersicht Schützen'!B12 -> Lahn IV | D27: ='Übersicht Schützen'!C12 -> 308.9 | E27: ='Übersicht Schützen'!D12 -> 307.7 | F27: ='Übersicht Schützen'!E12 -> 306.3 | G27: ='Übersicht Schützen'!F12 -> 307.3 | H27: ='Übersicht Schützen'!G12 -> 308.0 | I27: ='Übersicht Schützen'!H12 -> 309.0 | J27: ='Übersicht Schützen'!I12 -> 307.87 | K27: 1,847.2 | L27: ='Übersicht Schützen'!L12 -> 306.2 | M27: ='Übersicht Schützen'!M12 -> 304.4 | N27: ='Übersicht Schützen'!N12 -> 307.9 | O27: ='Übersicht Schützen'!O12 -> 314.5 | P27: ='Übersicht Schützen'!P12 -> 304.8 | Q27: ='Übersicht Schützen'!Q12 -> 0.0 | R27: =IF(Formelhilfe!O19=0,0,'Übersicht Schützen'!R12) -> 307.56 | S27: 1,537.8 | T27: ='Übersicht Schützen'!U12 -> 307.73 | U27: 3,385.0 | V27: -6.8
A28: 12 | B28: ='Übersicht Schützen'!A13 -> Jansen, Elisabeth | C28: ='Übersicht Schützen'!B13 -> Börger II | D28: ='Übersicht Schützen'!C13 -> 308.4 | E28: ='Übersicht Schützen'!D13 -> 303.7 | F28: ='Übersicht Schützen'!E13 -> 301.8 | G28: ='Übersicht Schützen'!F13 -> 307.5 | H28: ='Übersicht Schützen'!G13 -> 306.7 | I28: ='Übersicht Schützen'!H13 -> 311.6 | J28: ='Übersicht Schützen'!I13 -> 306.62 | K28: 1,839.7 | L28: ='Übersicht Schützen'!L13 -> 306.6 | M28: ='Übersicht Schützen'!M13 -> 308.9 | N28: ='Übersicht Schützen'!N13 -> 307.3 | O28: ='Übersicht Schützen'!O13 -> 306.6 | P28: ='Übersicht Schützen'!P13 -> 306.7 | Q28: ='Übersicht Schützen'!Q13 -> 0.0 | R28: 307.22 | S28: 1,536.1 | T28: ='Übersicht Schützen'!U13 -> 306.89 | U28: 3,375.8 | V28: -9.2
A29: 13 | B29: ='Übersicht Schützen'!A14 -> Kuchta, Gertrud | C29: ='Übersicht Schützen'!B14 -> Börger III | D29: ='Übersicht Schützen'!C14 -> 311.3 | E29: ='Übersicht Schützen'!D14 -> 308.9 | F29: ='Übersicht Schützen'!E14 -> 305.0 | G29: ='Übersicht Schützen'!F14 -> 299.6 | H29: ='Übersicht Schützen'!G14 -> 306.5 | I29: ='Übersicht Schützen'!H14 -> 304.3 | J29: ='Übersicht Schützen'!I14 -> 305.93 | K29: 1,835.6 | L29: ='Übersicht Schützen'!L14 -> 306.7 | M29: ='Übersicht Schützen'!M14 -> 303.4 | N29: ='Übersicht Schützen'!N14 -> 311.1 | O29: ='Übersicht Schützen'!O14 -> 307.0 | P29: ='Übersicht Schützen'!P14 -> 308.4 | Q29: ='Übersicht Schützen'!Q14 -> 0.0 | R29: =IF(Formelhilfe!O21=0,0,'Übersicht Schützen'!R14) -> 307.32 | S29: 1,536.6 | T29: ='Übersicht Schützen'!U14 -> 306.56 | U29: 3,372.2 | V29: -3.6
A30: 14 | B30: ='Übersicht Schützen'!A15 -> Wilken, Elena | C30: ='Übersicht Schützen'!B15 -> Lahn III | D30: ='Übersicht Schützen'!C15 -> 310.9 | E30: ='Übersicht Schützen'!D15 -> 304.6 | F30: ='Übersicht Schützen'!E15 -> 302.2 | G30: ='Übersicht Schützen'!F15 -> 309.7 | H30: ='Übersicht Schützen'!G15 -> 306.8 | I30: ='Übersicht Schützen'!H15 -> 304.1 | J30: ='Übersicht Schützen'!I15 -> 306.38 | K30: 1,838.3 | L30: ='Übersicht Schützen'!L15 -> 311.7 | M30: ='Übersicht Schützen'!M15 -> 305.0 | N30: ='Übersicht Schützen'!N15 -> 308.5 | O30: ='Übersicht Schützen'!O15 -> 301.4 | P30: ='Übersicht Schützen'!P15 -> 307.0 | Q30: ='Übersicht Schützen'!Q15 -> 0.0 | R30: =IF(Formelhilfe!O22=0,0,'Übersicht Schützen'!R15) -> 306.72 | S30: 1,533.6 | T30: ='Übersicht Schützen'!U15 -> 306.54 | U30: 3,371.9 | V30: -0.3
A31: 15 | B31: ='Übersicht Schützen'!A16 -> Pohlgeers, Silvia | C31: ='Übersicht Schützen'!B16 -> Börger II | D31: ='Übersicht Schützen'!C16 -> 302.3 | E31: ='Übersicht Schützen'!D16 -> 305.9 | F31: ='Übersicht Schützen'!E16 -> 302.6 | G31: ='Übersicht Schützen'!F16 -> 310.9 | H31: ='Übersicht Schützen'!G16 -> 308.4 | I31: ='Übersicht Schützen'!H16 -> 306.4 | J31: ='Übersicht Schützen'!I16 -> 306.08 | K31: 1,836.5 | L31: ='Übersicht Schützen'!L16 -> 308.4 | M31: ='Übersicht Schützen'!M16 -> 305.6 | N31: ='Übersicht Schützen'!N16 -> 303.3 | O31: ='Übersicht Schützen'!O16 -> 306.3 | P31: ='Übersicht Schützen'!P16 -> 311.3 | Q31: ='Übersicht Schützen'!Q16 -> 0.0 | R31: =IF(Formelhilfe!O23=0,0,'Übersicht Schützen'!R16) -> 306.98 | S31: 1,534.9 | T31: ='Übersicht Schützen'!U16 -> 306.49 | U31: 3,371.4 | V31: -0.5
A32: 16 | B32: ='Übersicht Schützen'!A17 -> Hackstette, Lena | C32: ='Übersicht Schützen'!B17 -> Lahn III | D32: ='Übersicht Schützen'!C17 -> 308.9 | E32: ='Übersicht Schützen'!D17 -> 303.8 | F32: ='Übersicht Schützen'!E17 -> 310.2 | G32: ='Übersicht Schützen'!F17 -> 301.9 | H32: ='Übersicht Schützen'!G17 -> 307.4 | I32: ='Übersicht Schützen'!H17 -> 306.0 | J32: ='Übersicht Schützen'!I17 -> 306.37 | K32: 1,838.2 | L32: ='Übersicht Schützen'!L17 -> 301.9 | M32: ='Übersicht Schützen'!M17 -> 309.4 | N32: ='Übersicht Schützen'!N17 -> 305.6 | O32: ='Übersicht Schützen'!O17 -> 307.8 | P32: ='Übersicht Schützen'!P17 -> 304.6 | Q32: ='Übersicht Schützen'!Q17 -> 0.0 | R32: =IF(Formelhilfe!O24=0,0,'Übersicht Schützen'!R17) -> 305.86 | S32: 1,529.3 | T32: ='Übersicht Schützen'!U17 -> 306.14 | U32: 3,367.5 | V32: -3.9
A33: 17 | B33: ='Übersicht Schützen'!A18 -> Pohlmann, Margret | C33: ='Übersicht Schützen'!B18 -> Neuvrees II | D33: ='Übersicht Schützen'!C18 -> 297.0 | E33: ='Übersicht Schützen'!D18 -> 305.5 | F33: ='Übersicht Schützen'!E18 -> 303.5 | G33: ='Übersicht Schützen'!F18 -> 307.8 | H33: ='Übersicht Schützen'!G18 -> 309.1 | I33: ='Übersicht Schützen'!H18 -> 303.0 | J33: ='Übersicht Schützen'!I18 -> 304.32 | K33: 1,825.9 | L33: ='Übersicht Schützen'!L18 -> 309.9 | M33: ='Übersicht Schützen'!M18 -> 305.1 | N33: ='Übersicht Schützen'!N18 -> 308.4 | O33: ='Übersicht Schützen'!O18 -> 308.6 | P33: ='Übersicht Schützen'!P18 -> 306.4 | Q33: ='Übersicht Schützen'!Q18 -> 0.0 | R33: =IF(Formelhilfe!O25=0,0,'Übersicht Schützen'!R18) -> 307.68 | S33: 1,538.4 | T33: ='Übersicht Schützen'!U18 -> 305.85 | U33: 3,364.3 | V33: -3.2
A34: 18 | B34: ='Übersicht Schützen'!A19 -> Ostermann, Hildegard | C34: ='Übersicht Schützen'!B19 -> Lahn III | D34: ='Übersicht Schützen'!C19 -> 309.3 | E34: ='Übersicht Schützen'!D19 -> 305.1 | F34: ='Übersicht Schützen'!E19 -> 307.4 | G34: ='Übersicht Schützen'!F19 -> 309.7 | H34: ='Übersicht Schützen'!G19 -> 312.1 | I34: ='Übersicht Schützen'!H19 -> 306.3 | J34: ='Übersicht Schützen'!I19 -> 308.32 | K34: 1,849.9 | L34: ='Übersicht Schützen'!L19 -> 299.3 | M34: ='Übersicht Schützen'!M19 -> 306.1 | N34: ='Übersicht Schützen'!N19 -> 301.4 | O34: ='Übersicht Schützen'!O19 -> 302.8 | P34: ='Übersicht Schützen'!P19 -> 302.7 | Q34: ='Übersicht Schützen'!Q19 -> 0.0 | R34: =IF(Formelhilfe!O26=0,0,'Übersicht Schützen'!R19) -> 302.46 | S34: 1,512.3 | T34: ='Übersicht Schützen'!U19 -> 305.65 | U34: 3,362.2 | V34: -2.1
A35: 19 | B35: ='Übersicht Schützen'!A20 -> Hanneken, Doris | C35: ='Übersicht Schützen'!B20 -> Lahn IV | D35: ='Übersicht Schützen'!C20 -> 305.2 | E35: ='Übersicht Schützen'!D20 -> 304.8 | F35: ='Übersicht Schützen'!E20 -> 305.7 | G35: ='Übersicht Schützen'!F20 -> 307.0 | H35: ='Übersicht Schützen'!G20 -> 307.5 | I35: ='Übersicht Schützen'!H20 -> 309.8 | J35: ='Übersicht Schützen'!I20 -> 306.67 | K35: 1,840.0 | L35: ='Übersicht Schützen'!L20 -> 300.0 | M35: ='Übersicht Schützen'!M20 -> 302.8 | N35: ='Übersicht Schützen'!N20 -> 303.9 | O35: ='Übersicht Schützen'!O20 -> 296.9 | P35: ='Übersicht Schützen'!P20 -> 303.4 | Q35: ='Übersicht Schützen'!Q20 -> 0.0 | R35: =IF(Formelhilfe!O27=0,0,'Übersicht Schützen'!R20) -> 301.40 | S35: 1,507.0 | T35: ='Übersicht Schützen'!U20 -> 304.27 | U35: 3,347.0 | V35: -15.2
A36: 20 | B36: ='Übersicht Schützen'!A21 -> Müller, Anita | C36: ='Übersicht Schützen'!B21 -> Lahn III | D36: ='Übersicht Schützen'!C21 -> 306.6 | E36: ='Übersicht Schützen'!D21 -> 298.5 | F36: ='Übersicht Schützen'!E21 -> 299.5 | G36: ='Übersicht Schützen'!F21 -> 305.3 | H36: ='Übersicht Schützen'!G21 -> 305.4 | I36: ='Übersicht Schützen'!H21 -> 304.0 | J36: ='Übersicht Schützen'!I21 -> 303.22 | K36: 1,819.3 | L36: ='Übersicht Schützen'!L21 -> 301.3 | M36: ='Übersicht Schützen'!M21 -> 306.6 | N36: ='Übersicht Schützen'!N21 -> 304.0 | O36: ='Übersicht Schützen'!O21 -> 305.1 | P36: ='Übersicht Schützen'!P21 -> 305.7 | Q36: ='Übersicht Schützen'!Q21 -> 0.0 | R36: =IF(Formelhilfe!O28=0,0,'Übersicht Schützen'!R21) -> 304.54 | S36: 1,522.7 | T36: ='Übersicht Schützen'!U21 -> 303.82 | U36: 3,342.0 | V36: -5.0
A37: 21 | B37: ='Übersicht Schützen'!A22 -> Büter, Daniela | C37: ='Übersicht Schützen'!B22 -> Esterwegen V | D37: ='Übersicht Schützen'!C22 -> 297.2 | E37: ='Übersicht Schützen'!D22 -> 302.8 | F37: ='Übersicht Schützen'!E22 -> 303.4 | G37: ='Übersicht Schützen'!F22 -> 309.3 | H37: ='Übersicht Schützen'!G22 -> 306.5 | I37: ='Übersicht Schützen'!H22 -> 300.6 | J37: ='Übersicht Schützen'!I22 -> 303.30 | K37: 1,819.8 | L37: ='Übersicht Schützen'!L22 -> 303.6 | M37: ='Übersicht Schützen'!M22 -> 308.5 | N37: ='Übersicht Schützen'!N22 -> 295.8 | O37: ='Übersicht Schützen'!O22 -> 304.4 | P37: ='Übersicht Schützen'!P22 -> 308.2 | Q37: ='Übersicht Schützen'!Q22 -> 0.0 | R37: =IF(Formelhilfe!O29=0,0,'Übersicht Schützen'!R22) -> 304.10 | S37: 1,520.5 | T37: ='Übersicht Schützen'!U22 -> 303.66 | U37: 3,340.3 | V37: -1.7
A38: 22 | B38: ='Übersicht Schützen'!A23 -> Geers, Christa | C38: ='Übersicht Schützen'!B23 -> Börger III | D38: ='Übersicht Schützen'!C23 -> 304.5 | E38: ='Übersicht Schützen'!D23 -> 297.1 | F38: ='Übersicht Schützen'!E23 -> 302.1 | G38: ='Übersicht Schützen'!F23 -> 311.0 | H38: ='Übersicht Schützen'!G23 -> 307.3 | I38: ='Übersicht Schützen'!H23 -> 303.7 | J38: ='Übersicht Schützen'!I23 -> 304.28 | K38: 1,825.7 | L38: ='Übersicht Schützen'!L23 -> 306.2 | M38: ='Übersicht Schützen'!M23 -> 299.1 | N38: ='Übersicht Schützen'!N23 -> 305.2 | O38: ='Übersicht Schützen'!O23 -> 296.4 | P38: ='Übersicht Schützen'!P23 -> 301.9 | Q38: ='Übersicht Schützen'!Q23 -> 0.0 | R38: =IF(Formelhilfe!O30=0,0,'Übersicht Schützen'!R23) -> 301.76 | S38: 1,508.8 | T38: ='Übersicht Schützen'!U23 -> 303.14 | U38: 3,334.5 | V38: -5.8
A39: 23 | B39: ='Übersicht Schützen'!A24 -> Jungsthöfel, Sabine | C39: ='Übersicht Schützen'!B24 -> Börger III | D39: ='Übersicht Schützen'!C24 -> 306.7 | E39: ='Übersicht Schützen'!D24 -> 306.3 | F39: ='Übersicht Schützen'!E24 -> 300.4 | G39: ='Übersicht Schützen'!F24 -> 299.9 | H39: ='Übersicht Schützen'!G24 -> 304.8 | I39: ='Übersicht Schützen'!H24 -> 299.2 | J39: ='Übersicht Schützen'!I24 -> 302.88 | K39: 1,817.3 | L39: ='Übersicht Schützen'!L24 -> 307.4 | M39: ='Übersicht Schützen'!M24 -> 300.4 | N39: ='Übersicht Schützen'!N24 -> 298.1 | O39: ='Übersicht Schützen'!O24 -> 303.7 | P39: ='Übersicht Schützen'!P24 -> 296.4 | Q39: ='Übersicht Schützen'!Q24 -> 0.0 | R39: =IF(Formelhilfe!O31=0,0,'Übersicht Schützen'!R24) -> 301.20 | S39: 1,506.0 | T39: ='Übersicht Schützen'!U24 -> 302.12 | U39: 3,323.3 | V39: -11.2
A40: 24 | B40: ='Übersicht Schützen'!A25 -> Evers, Claudia | C40: ='Übersicht Schützen'!B25 -> Neuvrees II | D40: ='Übersicht Schützen'!C25 -> 300.8 | E40: ='Übersicht Schützen'!D25 -> 306.3 | F40: ='Übersicht Schützen'!E25 -> 303.3 | G40: ='Übersicht Schützen'!F25 -> 299.9 | H40: ='Übersicht Schützen'!G25 -> 303.2 | I40: ='Übersicht Schützen'!H25 -> 300.9 | J40: ='Übersicht Schützen'!I25 -> 302.40 | K40: 1,814.4 | L40: ='Übersicht Schützen'!L25 -> 301.3 | M40: ='Übersicht Schützen'!M25 -> 297.9 | N40: ='Übersicht Schützen'!N25 -> 302.6 | O40: ='Übersicht Schützen'!O25 -> 301.2 | P40: ='Übersicht Schützen'!P25 -> 303.7 | Q40: ='Übersicht Schützen'!Q25 -> 0.0 | R40: =IF(Formelhilfe!O32=0,0,'Übersicht Schützen'!R25) -> 301.34 | S40: 1,506.7 | T40: ='Übersicht Schützen'!U25 -> 301.92 | U40: 3,321.1 | V40: -2.2
A41: 25 | B41: ='Übersicht Schützen'!A26 -> Oldopp, Maria | C41: ='Übersicht Schützen'!B26 -> Lahn IV | D41: ='Übersicht Schützen'!C26 -> 298.6 | E41: ='Übersicht Schützen'!D26 -> 301.0 | F41: ='Übersicht Schützen'!E26 -> 301.2 | G41: ='Übersicht Schützen'!F26 -> 299.6 | H41: ='Übersicht Schützen'!G26 -> 297.2 | I41: ='Übersicht Schützen'!H26 -> 299.0 | J41: ='Übersicht Schützen'!I26 -> 299.43 | K41: 1,796.6 | L41: ='Übersicht Schützen'!L26 -> 300.2 | M41: ='Übersicht Schützen'!M26 -> 299.1 | N41: ='Übersicht Schützen'!N26 -> 302.0 | O41: ='Übersicht Schützen'!O26 -> 300.7 | P41: ='Übersicht Schützen'!P26 -> 298.2 | Q41: ='Übersicht Schützen'!Q26 -> 0.0 | R41: =IF(Formelhilfe!O33=0,0,'Übersicht Schützen'!R26) -> 300.04 | S41: 1,500.2 | T41: ='Übersicht Schützen'!U26 -> 299.71 | U41: 3,296.8 | V41: -24.3
A42: 26 | B42: ='Übersicht Schützen'!A27 -> Krömer, Monika | C42: ='Übersicht Schützen'!B27 -> Börger II | D42: ='Übersicht Schützen'!C27 -> 302.4 | E42: ='Übersicht Schützen'!D27 -> 302.2 | F42: ='Übersicht Schützen'!E27 -> 301.8 | G42: ='Übersicht Schützen'!F27 -> 297.8 | H42: ='Übersicht Schützen'!G27 -> 294.7 | I42: ='Übersicht Schützen'!H27 -> 301.0 | J42: ='Übersicht Schützen'!I27 -> 299.98 | K42: 1,799.9 | L42: ='Übersicht Schützen'!L27 -> 299.7 | M42: ='Übersicht Schützen'!M27 -> 292.8 | N42: ='Übersicht Schützen'!N27 -> 290.4 | O42: ='Übersicht Schützen'!O27 -> 292.8 | P42: ='Übersicht Schützen'!P27 -> 298.7 | Q42: ='Übersicht Schützen'!Q27 -> 0.0 | R42: =IF(Formelhilfe!O34=0,0,'Übersicht Schützen'!R27) -> 294.88 | S42: 1,474.4 | T42: ='Übersicht Schützen'!U27 -> 297.66 | U42: 3,274.3 | V42: -22.5
A43: 27 | B43: ='Übersicht Schützen'!A28 -> Junge, Silvia | C43: ='Übersicht Schützen'!B28 -> Neuvrees II | D43: ='Übersicht Schützen'!C28 -> 290.6 | E43: ='Übersicht Schützen'!D28 -> 302.2 | F43: ='Übersicht Schützen'!E28 -> 295.7 | G43: ='Übersicht Schützen'!F28 -> 279.3 | H43: ='Übersicht Schützen'!G28 -> 295.1 | I43: ='Übersicht Schützen'!H28 -> 298.9 | J43: ='Übersicht Schützen'!I28 -> 293.63 | K43: 1,761.8 | L43: ='Übersicht Schützen'!L28 -> 292.8 | M43: ='Übersicht Schützen'!M28 -> 287.4 | N43: ='Übersicht Schützen'!N28 -> 305.4 | O43: ='Übersicht Schützen'!O28 -> 287.2 | P43: ='Übersicht Schützen'!P28 -> 292.0 | Q43: ='Übersicht Schützen'!Q28 -> 0.0 | R43: =IF(Formelhilfe!O35=0,0,'Übersicht Schützen'!R28) -> 292.96 | S43: 1,464.8 | T43: ='Übersicht Schützen'!U28 -> 293.33 | U43: 3,226.6 | V43: -47.7
A44: 28 | B44: ='Übersicht Schützen'!A29 -> Lindemann, Stefanie | C44: ='Übersicht Schützen'!B29 -> Esterwegen V | D44: ='Übersicht Schützen'!C29 -> 306.1 | E44: ='Übersicht Schützen'!D29 -> 305.3 | F44: ='Übersicht Schützen'!E29 -> 308.4 | G44: ='Übersicht Schützen'!F29 -> 298.4 | H44: ='Übersicht Schützen'!G29 -> 303.1 | I44: ='Übersicht Schützen'!H29 -> 306.8 | J44: ='Übersicht Schützen'!I29 -> 304.68 | K44: 1,828.1 | L44: ='Übersicht Schützen'!L29 -> 306.6 | M44: ='Übersicht Schützen'!M29 -> 310.6 | N44: ='Übersicht Schützen'!N29 -> 307.7 | O44: ='Übersicht Schützen'!O29 -> 300.9 | P44: ='Übersicht Schützen'!P29 -> 0.0 | Q44: ='Übersicht Schützen'!Q29 -> 0.0 | R44: =IF(Formelhilfe!O36=0,0,'Übersicht Schützen'!R29) -> 306.45 | S44: 1,225.8 | T44: ='Übersicht Schützen'!U29 -> 305.39 | U44: 3,053.9 | V44: -172.7
A45: 29 | B45: ='Übersicht Schützen'!A30 -> Schwarte, Gundula | C45: ='Übersicht Schützen'!B30 -> Börger III | D45: ='Übersicht Schützen'!C30 -> 306.8 | E45: ='Übersicht Schützen'!D30 -> 304.3 | F45: ='Übersicht Schützen'!E30 -> 299.7 | G45: ='Übersicht Schützen'!F30 -> 0.0 | H45: ='Übersicht Schützen'!G30 -> 300.8 | I45: ='Übersicht Schützen'!H30 -> 302.4 | J45: ='Übersicht Schützen'!I30 -> 302.80 | K45: 1,514.0 | L45: ='Übersicht Schützen'!L30 -> 300.6 | M45: ='Übersicht Schützen'!M30 -> 306.5 | N45: ='Übersicht Schützen'!N30 -> 301.9 | O45: ='Übersicht Schützen'!O30 -> 299.4 | P45: ='Übersicht Schützen'!P30 -> 303.8 | Q45: ='Übersicht Schützen'!Q30 -> 0.0 | R45: =IF(Formelhilfe!O37=0,0,'Übersicht Schützen'!R30) -> 302.44 | S45: 1,512.2 | T45: ='Übersicht Schützen'!U30 -> 302.62 | U45: 3,026.2 | V45: -27.7
A46: 30 | B46: ='Übersicht Schützen'!A31 -> Remmers, Tanja | C46: ='Übersicht Schützen'!B31 -> Börger III | D46: ='Übersicht Schützen'!C31 -> 292.9 | E46: ='Übersicht Schützen'!D31 -> 294.5 | F46: ='Übersicht Schützen'!E31 -> 275.8 | G46: ='Übersicht Schützen'!F31 -> 290.6 | H46: ='Übersicht Schützen'!G31 -> 289.2 | I46: ='Übersicht Schützen'!H31 -> 0.0 | J46: ='Übersicht Schützen'!I31 -> 288.60 | K46: 1,443.0 | L46: ='Übersicht Schützen'!L31 -> 290.7 | M46: ='Übersicht Schützen'!M31 -> 286.0 | N46: ='Übersicht Schützen'!N31 -> 301.8 | O46: ='Übersicht Schützen'!O31 -> 297.0 | P46: ='Übersicht Schützen'!P31 -> 297.2 | Q46: ='Übersicht Schützen'!Q31 -> 0.0 | R46: =IF(Formelhilfe!O38=0,0,'Übersicht Schützen'!R31) -> 294.54 | S46: 1,472.7 | T46: ='Übersicht Schützen'!U31 -> 291.57 | U46: 2,915.7 | V46: -110.5
A47: 31 | B47: ='Übersicht Schützen'!A32 -> Preut, Susanne | C47: ='Übersicht Schützen'!B32 -> Neuvrees II | D47: ='Übersicht Schützen'!C32 -> 299.3 | E47: ='Übersicht Schützen'!D32 -> 304.9 | F47: ='Übersicht Schützen'!E32 -> 304.5 | G47: ='Übersicht Schützen'!F32 -> 308.4 | H47: ='Übersicht Schützen'!G32 -> 0.0 | I47: ='Übersicht Schützen'!H32 -> 300.4 | J47: ='Übersicht Schützen'!I32 -> 303.50 | K47: 1,517.5 | L47: ='Übersicht Schützen'!L32 -> 303.2 | M47: ='Übersicht Schützen'!M32 -> 304.6 | N47: ='Übersicht Schützen'!N32 -> 0.0 | O47: ='Übersicht Schützen'!O32 -> 307.9 | P47: ='Übersicht Schützen'!P32 -> 297.8 | Q47: ='Übersicht Schützen'!Q32 -> 0.0 | R47: =IF(Formelhilfe!O39=0,0,'Übersicht Schützen'!R32) -> 303.38 | S47: 1,213.5 | T47: ='Übersicht Schützen'!U32 -> 303.44 | U47: 2,731.0 | V47: =(U46-U47)*-1 -> -184.7
A48: 32 | B48: ='Übersicht Schützen'!A33 -> Eilermann, Saskia | C48: ='Übersicht Schützen'!B33 -> Neuvrees II | D48: ='Übersicht Schützen'!C33 -> 309.2 | E48: ='Übersicht Schützen'!D33 -> 310.2 | F48: ='Übersicht Schützen'!E33 -> 309.7 | G48: ='Übersicht Schützen'!F33 -> 0.0 | H48: ='Übersicht Schützen'!G33 -> 0.0 | I48: ='Übersicht Schützen'!H33 -> 311.2 | J48: ='Übersicht Schützen'!I33 -> 310.08 | K48: 1,240.3 | L48: ='Übersicht Schützen'!L33 -> 0.0 | M48: ='Übersicht Schützen'!M33 -> 0.0 | N48: ='Übersicht Schützen'!N33 -> 310.3 | O48: ='Übersicht Schützen'!O33 -> 0.0 | P48: ='Übersicht Schützen'!P33 -> 312.5 | Q48: ='Übersicht Schützen'!Q33 -> 0.0 | R48: =IF(Formelhilfe!O40=0,0,'Übersicht Schützen'!R33) -> 311.40 | S48: 622.8 | T48: ='Übersicht Schützen'!U33 -> 310.52 | U48: 1,863.1 | V48: -867.9
A49: 33 | B49: ='Übersicht Schützen'!A34 -> Schulte, Christina | C49: ='Übersicht Schützen'!B34 -> Neuvrees II | D49: ='Übersicht Schützen'!C34 -> 310.4 | E49: ='Übersicht Schützen'!D34 -> 305.7 | F49: ='Übersicht Schützen'!E34 -> 304.3 | G49: ='Übersicht Schützen'!F34 -> 308.4 | H49: ='Übersicht Schützen'!G34 -> 305.8 | I49: ='Übersicht Schützen'!H34 -> 0.0 | J49: ='Übersicht Schützen'!I34 -> 306.92 | K49: 1,534.6 | L49: ='Übersicht Schützen'!L34 -> 303.1 | M49: ='Übersicht Schützen'!M34 -> 0.0 | N49: ='Übersicht Schützen'!N34 -> 0.0 | O49: ='Übersicht Schützen'!O34 -> 0.0 | P49: ='Übersicht Schützen'!P34 -> 0.0 | Q49: ='Übersicht Schützen'!Q34 -> 0.0 | R49: =IF(Formelhilfe!O41=0,0,'Übersicht Schützen'!R34) -> 303.10 | S49: 303.1 | T49: ='Übersicht Schützen'!U34 -> 306.28 | U49: 1,837.7 | V49: -25.4
A50: 34 | B50: ='Übersicht Schützen'!A35 -> Kossenjans, Annegret | C50: ='Übersicht Schützen'!B35 -> Börger II | D50: ='Übersicht Schützen'!C35 -> 310.2 | E50: ='Übersicht Schützen'!D35 -> 304.8 | F50: ='Übersicht Schützen'!E35 -> 298.6 | G50: ='Übersicht Schützen'!F35 -> 307.4 | H50: ='Übersicht Schützen'!G35 -> 307.8 | I50: ='Übersicht Schützen'!H35 -> 301.9 | J50: ='Übersicht Schützen'!I35 -> 305.12 | K50: 1,830.7 | L50: ='Übersicht Schützen'!L35 -> 0.0 | M50: ='Übersicht Schützen'!M35 -> 0.0 | N50: ='Übersicht Schützen'!N35 -> 0.0 | O50: ='Übersicht Schützen'!O35 -> 0.0 | P50: ='Übersicht Schützen'!P35 -> 0.0 | Q50: ='Übersicht Schützen'!Q35 -> 0.0 | R50: 0.00 | S50: 0.0 | T50: ='Übersicht Schützen'!U35 -> 305.12 | U50: 1,830.7 | V50: -7.0
A51: 35 | B51: ='Übersicht Schützen'!A36 -> Lindemann, Annemarie | C51: ='Übersicht Schützen'!B36 -> Esterwegen V | D51: ='Übersicht Schützen'!C36 -> 297.9 | E51: ='Übersicht Schützen'!D36 -> 302.8 | F51: ='Übersicht Schützen'!E36 -> 302.7 | G51: ='Übersicht Schützen'!F36 -> 305.5 | H51: ='Übersicht Schützen'!G36 -> 306.3 | I51: ='Übersicht Schützen'!H36 -> 0.0 | J51: ='Übersicht Schützen'!I36 -> 303.04 | K51: 1,515.2 | L51: ='Übersicht Schützen'!L36 -> 0.0 | M51: ='Übersicht Schützen'!M36 -> 0.0 | N51: ='Übersicht Schützen'!N36 -> 0.0 | O51: ='Übersicht Schützen'!O36 -> 0.0 | P51: ='Übersicht Schützen'!P36 -> 0.0 | Q51: ='Übersicht Schützen'!Q36 -> 0.0 | R51: 0.00 | S51: 0.0 | T51: ='Übersicht Schützen'!U36 -> 303.04 | U51: 1,515.2 | V51: =(U50-U51)*-1 -> -315.5
A52: 36 | B52: ='Übersicht Schützen'!A37 -> Schwarte, Annette | C52: ='Übersicht Schützen'!B37 -> Börger II | D52: ='Übersicht Schützen'!C37 -> 0.0 | E52: ='Übersicht Schützen'!D37 -> 0.0 | F52: ='Übersicht Schützen'!E37 -> 0.0 | G52: ='Übersicht Schützen'!F37 -> 0.0 | H52: ='Übersicht Schützen'!G37 -> 0.0 | I52: ='Übersicht Schützen'!H37 -> 0.0 | J52: 0.00 | K52: 0.0 | L52: ='Übersicht Schützen'!L37 -> 0.0 | M52: ='Übersicht Schützen'!M37 -> 0.0 | N52: ='Übersicht Schützen'!N37 -> 0.0 | O52: ='Übersicht Schützen'!O37 -> 0.0 | P52: ='Übersicht Schützen'!P37 -> 0.0 | Q52: ='Übersicht Schützen'!Q37 -> 0.0 | R52: 0.00 | S52: 0.0 | T52: 0.00 | U52: 0.0 | V52: -1,515.2
C54: Schnitt: | D54: =SUM(D17:D52)/Formelhilfe!B45 -> 305.8 | E54: =SUM(E17:E52)/Formelhilfe!C45 -> 305.2 | F54: =SUM(F17:F52)/Formelhilfe!D45 -> 304.1 | G54: =SUM(G17:G52)/Formelhilfe!E45 -> 305.6 | H54: =SUM(H17:H52)/Formelhilfe!F45 -> 306.4 | I54: =SUM(I17:I52)/Formelhilfe!G45 -> 305.9 | J54: =AVERAGE(J17:J52) -> 296.93 | K54: =AVERAGE(K17:K52) -> 1722.54 | L54: =SUM(L17:L52)/Formelhilfe!I45 -> 305.5 | M54: =SUM(M17:M52)/Formelhilfe!J45 -> 304.8 | N54: =SUM(N17:N52)/Formelhilfe!K45 -> 305.6 | O54: =SUM(O17:O52)/Formelhilfe!L45 -> 304.8 | P54: =SUM(P17:P52)/Formelhilfe!M45 -> 305.6 | Q54: =SUM(Q17:Q52)/Formelhilfe!N45 ->  | R54: =AVERAGE(R17:R52) -> 279.87 | S54: =AVERAGE(S17:S52) -> 1322.78 | T54: =AVERAGE(T17:T52) -> 296.88 | U54: =(K54+S54) -> 3,045.32

Sheet Wettkampf 1
B1: Verein / Gruppe | D1: Ergebnisse | X1: Austragungsort: | Y1: =Übersicht!D4 -> Börger
A2: 1 | B2: Börger II | D2: =G46 -> 926.0 | E2: =IF(H46>4,"Es sind zu viele Schützen in Wertung!"," ") ->  | X2: Wettkampftag: | Y2: =Übersicht!D3 -> 22.09.
A3: 2 | B3: Esterwegen V | D3: =I46 -> 931.1 | E3: =IF(J46>4,"Es sind zu viele Schützen in Wertung!"," ") -> 
A4: 3 | B4: Neuvrees II | D4: =K46 -> 919.3 | E4: =IF(L46>4,"Es sind zu viele Schützen in Wertung!"," ") ->  | Z4: Ansprechpartner für Rückfragen:
A5: 4 | B5: Lahn IV | D5: =M46 -> 922.7 | E5: =IF(N46>4,"Es sind zu viele Schützen in Wertung!"," ") ->  | X5: Name: | Y5: Pohlgeers, Margret
A6: 5 | B6: Börger III | D6: =O46 -> 924.8 | E6: =IF(P46>4,"Es sind zu viele Schützen in Wertung!"," ") ->  | X6: Tel: | Y6: 059538976
A7: 6 | B7: Lahn III | D7: =Q46 -> 928.5 | E7: =IF(R46>4,"Es sind zu viele Schützen in Wertung!"," ") ->  | X7: Standaufsicht: | Y7: Pohlgeers, Margret
B9: Einzelergebnisse: | C9: Verein/Gruppe (per Dropdown-Feld einzutragen) | D9: Ergebnisse | E9: AW? Dann x eintippen | G9: Verein 1 | I9: Verein 2 | K9: Verein 3 | M9: Verein 4 | O9: Verein 5 | Q9: Verein 6 | U9: Geburtsdatum | W9: Proberechnung bei Streifen:
A10: 1 | B10: Kossenjans, Annegret | C10: =B2 -> Börger II | D10: 310.2 | F10: =IF(E10="x","0",D10) -> 310.2 | G10: =IF(C10=$B$2,F10,0) -> 310.2 | H10: =(IF(AND($E10="",$C10=$B$2),1,0)) -> 1 | I10: =IF($C10=$B$3,F10,0) -> 0 | J10: =(IF(AND($E10="",$C10=$B$3),1,0)) -> 0 | K10: =IF($C10=$B$4,F10,0) -> 0 | L10: =(IF(AND($E10="",$C10=$B$4),1,0)) -> 0 | M10: =IF($C10=$B$5,F10,0) -> 0 | N10: =(IF(AND($E10="",$C10=$B$5),1,0)) -> 0 | O10: =IF($C10=$B$6,F10,0) -> 0 | P10: =(IF(AND($E10="",$C10=$B$6),1,0)) -> 0 | Q10: =IF($C10=$B$7,F10,0) -> 0 | R10: =(IF(AND($E10="",$C10=$B$7),1,0)) -> 0 | Z10: =W10+X10+Y10 -> 0.0 | AA10: =IF(Z10=D10,1,0) -> 0 | AB10: =IF(Z10=0,0,1) -> 0 | AC10: =IF(AA10+AB10=2,"Korrekt","") -> 
A11: 2 | B11: Jansen, Elisabeth | C11: =B2 -> Börger II | D11: 308.4 | F11: =IF(E11="x","0",D11) -> 308.4 | G11: =IF(C11=$B$2,F11,0) -> 308.4 | H11: =(IF(AND($E11="",$C11=$B$2),1,0)) -> 1 | I11: =IF($C11=$B$3,F11,0) -> 0 | J11: =(IF(AND($E11="",$C11=$B$3),1,0)) -> 0 | K11: =IF($C11=$B$4,F11,0) -> 0 | L11: =(IF(AND($E11="",$C11=$B$4),1,0)) -> 0 | M11: =IF($C11=$B$5,F11,0) -> 0 | N11: =(IF(AND($E11="",$C11=$B$5),1,0)) -> 0 | O11: =IF($C11=$B$6,F11,0) -> 0 | P11: =(IF(AND($E11="",$C11=$B$6),1,0)) -> 0 | Q11: =IF($C11=$B$7,F11,0) -> 0 | R11: =(IF(AND($E11="",$C11=$B$7),1,0)) -> 0 | Z11: =W11+X11+Y11 -> 0.0 | AA11: =IF(Z11=D11,1,0) -> 0 | AB11: =IF(Z11=0,0,1) -> 0 | AC11: =IF(AA11+AB11=2,"Korrekt","") -> 
A12: 3 | B12: Krömer, Monika | C12: =B2 -> Börger II | D12: 302.4 | F12: 302.4 | G12: 302.4 | H12: 1 | I12: 0 | J12: 0 | K12: 0 | L12: 0 | M12: 0 | N12: 0 | O12: 0 | P12: 0 | Q12: 0 | R12: 0 | Z12: 0.0 | AA12: 0 | AB12: 0
A13: 4 | B13: Pohlgeers, Margret | C13: =B2 -> Börger II | D13: 307.4 | F13: 307.4 | G13: 307.4 | H13: 1 | I13: 0 | J13: 0 | K13: 0 | L13: 0 | M13: 0 | N13: 0 | O13: 0 | P13: 0 | Q13: 0 | R13: 0 | Z13: 0.0 | AA13: 0 | AB13: 0
A14: 5 | B14: Pohlgeers, Silvia | C14: =B2 -> Börger II | D14: 302.3 | E14: x | F14: 0 | G14: 0 | H14: 0 | I14: 0 | J14: 0 | K14: 0 | L14: 0 | M14: 0 | N14: 0 | O14: 0 | P14: 0 | Q14: 0 | R14: 0 | Z14: 0.0 | AA14: 0 | AB14: 0
A15: 6 | B15: Schwarte, Annette | C15: =B2 -> Börger II | E15: x | F15: 0 | G15: 0 | H15: 0 | I15: 0 | J15: 0 | K15: 0 | L15: 0 | M15: 0 | N15: 0 | O15: 0 | P15: 0 | Q15: 0 | R15: 0 | Z15: 0.0 | AA15: 1 | AB15: 0
A16: 7 | B16: Lindemann, Kerstin | C16: =B3 -> Esterwegen V | D16: 306.3 | F16: 306.3 | G16: 0 | H16: 0 | I16: 306.3 | J16: 1 | K16: 0 | L16: 0 | M16: 0 | N16: 0 | O16: 0 | P16: 0 | Q16: 0 | R16: 0 | Z16: 0.0 | AA16: 0 | AB16: 0
A17: 8 | B17: Schlarmann, Lena | C17: =B3 -> Esterwegen V | D17: 311.4 | F17: 311.4 | G17: 0 | H17: 0 | I17: 311.4 | J17: 1 | K17: 0 | L17: 0 | M17: 0 | N17: 0 | O17: 0 | P17: 0 | Q17: 0 | R17: 0 | Z17: 0.0 | AA17: 0 | AB17: 0
A18: 9 | B18: Lindemann, Stefanie | C18: =B3 -> Esterwegen V | D18: 306.1 | F18: 306.1 | G18: 0 | H18: 0 | I18: 306.1 | J18: 1 | K18: 0 | L18: 0 | M18: 0 | N18: 0 | O18: 0 | P18: 0 | Q18: 0 | R18: 0 | Z18: 0.0 | AA18: 0 | AB18: 0
A19: 10 | B19: Lindemann, Rita | C19: =B3 -> Esterwegen V | D19: 313.4 | F19: 313.4 | G19: 0 | H19: 0 | I19: 313.4 | J19: 1 | K19: 0 | L19: 0 | M19: 0 | N19: 0 | O19: 0 | P19: 0 | Q19: 0 | R19: 0 | Z19: 0.0 | AA19: 0 | AB19: 0
A20: 11 | B20: Büter, Daniela | C20: =B3 -> Esterwegen V | D20: 297.2 | E20: x | F20: 0 | G20: 0 | H20: 0 | I20: 0 | J20: 0 | K20: 0 | L20: 0 | M20: 0 | N20: 0 | O20: 0 | P20: 0 | Q20: 0 | R20: 0 | Z20: 0.0 | AA20: 0 | AB20: 0
A21: 12 | B21: Lindemann, Annemarie | C21: =B3 -> Esterwegen V | D21: 297.9 | E21: x | F21: 0 | G21: 0 | H21: 0 | I21: 0 | J21: 0 | K21: 0 | L21: 0 | M21: 0 | N21: 0 | O21: 0 | P21: 0 | Q21: 0 | R21: 0 | Z21: 0.0 | AA21: 0 | AB21: 0
A22: 13 | B22: Preut, Susanne | C22: =B4 -> Neuvrees II | D22: 299.3 | F22: 299.3 | G22: 0 | H22: 0 | I22: 0 | J22: 0 | K22: 299.3 | L22: 1 | M22: 0 | N22: 0 | O22: 0 | P22: 0 | Q22: 0 | R22: 0 | Z22: 0.0 | AA22: 0 | AB22: 0
A23: 14 | B23: Thunert, Silvia | C23: =B4 -> Neuvrees II | D23: 310.8 | F23: 310.8 | G23: 0 | H23: 0 | I23: 0 | J23: 0 | K23: 310.8 | L23: 1 | M23: 0 | N23: 0 | O23: 0 | P23: 0 | Q23: 0 | R23: 0 | Z23: 0.0 | AA23: 0 | AB23: 0
A24: 15 | B24: Pohlmann, Margret | C24: =B4 -> Neuvrees II | D24: 297.0 | F24: 297 | G24: 0 | H24: 0 | I24: 0 | J24: 0 | K24: 297 | L24: 1 | M24: 0 | N24: 0 | O24: 0 | P24: 0 | Q24: 0 | R24: 0 | Z24: 0.0 | AA24: 0 | AB24: 0
A25: 16 | B25: Eilermann, Saskia | C25: =B4 -> Neuvrees II | D25: 309.2 | F25: 309.2 | G25: 0 | H25: 0 | I25: 0 | J25: 0 | K25: 309.2 | L25: 1 | M25: 0 | N25: 0 | O25: 0 | P25: 0 | Q25: 0 | R25: 0 | Z25: 0.0 | AA25: 0 | AB25: 0
A26: 17 | B26: Junge, Silvia | C26: =B4 -> Neuvrees II | D26: 290.6 | E26: x | F26: 0 | G26: 0 | H26: 0 | I26: 0 | J26: 0 | K26: 0 | L26: 0 | M26: 0 | N26: 0 | O26: 0 | P26: 0 | Q26: 0 | R26: 0 | Z26: 0.0 | AA26: 0 | AB26: 0
A27: 18 | B27: Evers, Claudia | C27: =B4 -> Neuvrees II | D27: 300.8 | E27: x | F27: 0 | G27: 0 | H27: 0 | I27: 0 | J27: 0 | K27: 0 | L27: 0 | M27: 0 | N27: 0 | O27: 0 | P27: 0 | Q27: 0 | R27: 0 | Z27: 0.0 | AA27: 0 | AB27: 0
A28: 19 | B28: Schulte, Christina | C28: Neuvrees II | D28: 310.4 | E28: x | F28: 0 | G28: 0 | H28: 0 | I28: 0 | J28: 0 | K28: 0 | L28: 0 | M28: 0 | N28: 0 | O28: 0 | P28: 0 | Q28: 0 | R28: 0 | Z28: 0.0 | AA28: 0 | AB28: 0
A29: 20 | B29: Reinelt, Michaela | C29: Lahn IV | D29: 310.8 | E29: x | F29: 0 | G29: 0 | H29: 0 | I29: 0 | J29: 0 | K29: 0 | L29: 0 | M29: 0 | N29: 0 | O29: 0 | P29: 0 | Q29: 0 | R29: 0 | Z29: 0.0 | AA29: 0 | AB29: 0
A30: 21 | B30: Thien, Marita | C30: =B5 -> Lahn IV | D30: 308.6 | F30: 308.6 | G30: 0 | H30: 0 | I30: 0 | J30: 0 | K30: 0 | L30: 0 | M30: 308.6 | N30: 1 | O30: 0 | P30: 0 | Q30: 0 | R30: 0 | Z30: 0.0 | AA30: 0 | AB30: 0
A31: 22 | B31: Robben, Anja | C31: =B5 -> Lahn IV | D31: 308.9 | F31: 308.9 | G31: 0 | H31: 0 | I31: 0 | J31: 0 | K31: 0 | L31: 0 | M31: 308.9 | N31: 1 | O31: 0 | P31: 0 | Q31: 0 | R31: 0 | Z31: 0.0 | AA31: 0 | AB31: 0
A32: 23 | B32: Oldopp, Maria | C32: =B5 -> Lahn IV | D32: 298.6 | F32: 298.6 | G32: 0 | H32: 0 | I32: 0 | J32: 0 | K32: 0 | L32: 0 | M32: 298.6 | N32: 1 | O32: 0 | P32: 0 | Q32: 0 | R32: 0 | Z32: 0.0 | AA32: 0 | AB32: 0
A33: 24 | B33: Hanneken, Doris | C33: =B5 -> Lahn IV | D33: 305.2 | F33: 305.2 | G33: 0 | H33: 0 | I33: 0 | J33: 0 | K33: 0 | L33: 0 | M33: 305.2 | N33: 1 | O33: 0 | P33: 0 | Q33: 0 | R33: 0 | Z33: 0.0 | AA33: 0 | AB33: 0
A34: 25 | B34: Kuchta, Gertrud | C34: =B6 -> Börger III | D34: 311.3 | F34: 311.3 | G34: 0 | H34: 0 | I34: 0 | J34: 0 | K34: 0 | L34: 0 | M34: 0 | N34: 0 | O34: 311.3 | P34: 1 | Q34: 0 | R34: 0 | Z34: 0.0 | AA34: 0 | AB34: 0
A35: 26 | B35: Jungsthöfel, Sabine | C35: =B6 -> Börger III | D35: 306.7 | F35: 306.7 | G35: 0 | H35: 0 | I35: 0 | J35: 0 | K35: 0 | L35: 0 | M35: 0 | N35: 0 | O35: 306.7 | P35: 1 | Q35: 0 | R35: 0 | Z35: 0.0 | AA35: 0 | AB35: 0
A36: 27 | B36: Schwarte, Gundula | C36: =B6 -> Börger III | D36: 306.8 | F36: 306.8 | G36: 0 | H36: 0 | I36: 0 | J36: 0 | K36: 0 | L36: 0 | M36: 0 | N36: 0 | O36: 306.8 | P36: 1 | Q36: 0 | R36: 0 | Z36: 0.0 | AA36: 0 | AB36: 0
A37: 28 | B37: Geers, Christa | C37: =B6 -> Börger III | D37: 304.5 | F37: 304.5 | G37: 0 | H37: 0 | I37: 0 | J37: 0 | K37: 0 | L37: 0 | M37: 0 | N37: 0 | O37: 304.5 | P37: 1 | Q37: 0 | R37: 0 | Z37: 0.0 | AA37: 0 | AB37: 0
A38: 29 | B38: Remmers, Tanja | C38: =B6 -> Börger III | D38: 292.9 | E38: x | F38: 0 | G38: 0 | H38: 0 | I38: 0 | J38: 0 | K38: 0 | L38: 0 | M38: 0 | N38: 0 | O38: 0 | P38: 0 | Q38: 0 | R38: 0 | Z38: 0.0 | AA38: 0 | AB38: 0
A39: 30 | B39: Terhalle, Johanna | C39: =B6 -> Börger III | D39: 311.4 | E39: x | F39: 0 | G39: 0 | H39: 0 | I39: 0 | J39: 0 | K39: 0 | L39: 0 | M39: 0 | N39: 0 | O39: 0 | P39: 0 | Q39: 0 | R39: 0 | Z39: 0.0 | AA39: 0 | AB39: 0
A40: 31 | B40: Hackstette, Lena | C40: =B7 -> Lahn III | D40: 308.9 | F40: 308.9 | G40: 0 | H40: 0 | I40: 0 | J40: 0 | K40: 0 | L40: 0 | M40: 0 | N40: 0 | O40: 0 | P40: 0 | Q40: 308.9 | R40: 1 | Z40: =W40+X40+Y40 -> 0.0 | AA40: =IF(Z40=D40,1,0) -> 0 | AB40: =IF(Z40=0,0,1) -> 0 | AC40: =IF(AA40+AB40=2,"Korrekt","") -> 
A41: 32 | B41: Thyen, Christel | C41: =B7 -> Lahn III | D41: 309.9 | F41: 309.9 | G41: 0 | H41: 0 | I41: 0 | J41: 0 | K41: 0 | L41: 0 | M41: 0 | N41: 0 | O41: 0 | P41: 0 | Q41: 309.9 | R41: 1 | Z41: 0.0 | AA41: 0 | AB41: 0
A42: 33 | B42: Ostermann, Hildegard | C42: =B7 -> Lahn III | D42: 309.3 | F42: 309.3 | G42: 0 | H42: 0 | I42: 0 | J42: 0 | K42: 0 | L42: 0 | M42: 0 | N42: 0 | O42: 0 | P42: 0 | Q42: 309.3 | R42: 1 | Z42: 0.0 | AA42: 0 | AB42: 0
A43: 34 | B43: Willoh, Henrika | C43: =B7 -> Lahn III | D43: 309.3 | F43: 309.3 | G43: 0 | H43: 0 | I43: 0 | J43: 0 | K43: 0 | L43: 0 | M43: 0 | N43: 0 | O43: 0 | P43: 0 | Q43: 309.3 | R43: 1 | Z43: 0.0 | AA43: 0 | AB43: 0
A44: 35 | B44: Müller, Anita | C44: =B7 -> Lahn III | D44: 306.6 | E44: x | F44: 0 | G44: 0 | H44: 0 | I44: 0 | J44: 0 | K44: 0 | L44: 0 | M44: 0 | N44: 0 | O44: 0 | P44: 0 | Q44: 0 | R44: 0 | Z44: 0.0 | AA44: 0 | AB44: 0
A45: 36 | B45: Wilken, Elena | C45: =B7 -> Lahn III | D45: 310.9 | E45: x | F45: 0 | G45: 0 | H45: 0 | I45: 0 | J45: 0 | K45: 0 | L45: 0 | M45: 0 | N45: 0 | O45: 0 | P45: 0 | Q45: 0 | R45: 0 | Z45: =W45+X45+Y45 -> 0.0 | AA45: =IF(Z45=D45,1,0) -> 0 | AB45: =IF(Z45=0,0,1) -> 0 | AC45: =IF(AA45+AB45=2,"Korrekt","") -> 
G46: =LARGE(G10:G45,1)+LARGE(G10:G45,2)+LARGE(G10:G45,3) -> 926 | H46: =SUM(H10:H45) -> 4 | I46: =LARGE(I10:I45,1)+LARGE(I10:I45,2)+LARGE(I10:I45,3) -> 931.1 | J46: =SUM(J10:J45) -> 4 | K46: =LARGE(K10:K45,1)+LARGE(K10:K45,2)+LARGE(K10:K45,3) -> 919.3 | L46: =SUM(L10:L45) -> 4 | M46: =LARGE(M10:M45,1)+LARGE(M10:M45,2)+LARGE(M10:M45,3) -> 922.7 | N46: =SUM(N10:N45) -> 4 | O46: =LARGE(O10:O45,1)+LARGE(O10:O45,2)+LARGE(O10:O45,3) -> 924.8 | P46: =SUM(P10:P45) -> 4 | Q46: =LARGE(Q10:Q45,1)+LARGE(Q10:Q45,2)+LARGE(Q10:Q45,3) -> 928.5 | R46: =SUM(R10:S45) -> 4
C47: per Email an: sk-huemmling@gmx.de

Sheet 2
B1: Verein / Gruppe | D1: Ergebnisse | V1: Austragungsort: | W1: =Übersicht!E4 -> Esterwegen
A2: 1 | B2: ='Wettkampf 1'!B2 -> Börger II | D2: =G46 -> 916.2 | E2: =IF(H46>4,"Es sind zu viele Schützen in Wertung!"," ") ->  | V2: Wettkampftag: | W2: =Übersicht!E3 -> 13.10
A3: 2 | B3: ='Wettkampf 1'!B3 -> Esterwegen V | D3: =I46 -> 940.1 | E3: =IF(J46>4,"Es sind zu viele Schützen in Wertung!"," ") -> 
A4: 3 | B4: ='Wettkampf 1'!B4 -> Neuvrees II | D4: =K46 -> 923.3 | E4: =IF(L46>4,"Es sind zu viele Schützen in Wertung!"," ") ->  | X4: Ansprechpartner für Rückfragen:
A5: 4 | B5: ='Wettkampf 1'!B5 -> Lahn IV | D5: =M46 -> 919.2 | E5: =IF(N46>4,"Es sind zu viele Schützen in Wertung!"," ") ->  | V5: Name: | W5: Rita Lindemann
A6: 5 | B6: ='Wettkampf 1'!B6 -> Börger III | D6: =O46 -> 924.0 | E6: =IF(P46>4,"Es sind zu viele Schützen in Wertung!"," ") ->  | V6: Tel: | W6: 01737565170
A7: 6 | B7: ='Wettkampf 1'!B7 -> Lahn III | D7: =Q46 -> 919.0 | E7: =IF(R46>4,"Es sind zu viele Schützen in Wertung!"," ") ->  | V7: Standaufsicht: | W7: Klaus Lindemann
B9: Einzelergebnisse: | C9: Verein / Gruppe | D9: Ergebnisse (mindestens 0 eintragen) | E9: AW? Dann x eintippen | G9: Verein 1 | I9: Verein 2 | K9: Verein 3 | M9: Verein 4 | O9: Verein 5 | Q9: Verein 6 | U9: Proberechnung bei Streifen:
A10: 1 | B10: ='Wettkampf 1'!B10 -> Kossenjans, Annegret | C10: ='Wettkampf 1'!C10 -> Börger II | D10: 304.8 | F10: =IF(E10="x","0",D10) -> 304.8 | G10: =IF(C10=$B$2,F10,0) -> 304.8 | H10: =(IF(AND($E10="",$C10=$B$2),1,0)) -> 1 | I10: =IF($C10=$B$3,F10,0) -> 0 | J10: =(IF(AND($E10="",$C10=$B$3),1,0)) -> 0 | K10: =IF($C10=$B$4,F10,0) -> 0 | L10: =(IF(AND($E10="",$C10=$B$4),1,0)) -> 0 | M10: =IF($C10=$B$5,F10,0) -> 0 | N10: =(IF(AND($E10="",$C10=$B$5),1,0)) -> 0 | O10: =IF($C10=$B$6,F10,0) -> 0 | P10: =(IF(AND($E10="",$C10=$B$6),1,0)) -> 0 | Q10: =IF($C10=$B$7,F10,0) -> 0 | R10: =(IF(AND($E10="",$C10=$B$7),1,0)) -> 0 | X10: =U10+V10+W10 -> 0.0 | Y10: =IF(X10=D10,1,0) -> 0 | Z10: =IF(X10=0,0,1) -> 0 | AA10: =IF(Y10+Z10=2,"Korrekt","") -> 
A11: 2 | B11: ='Wettkampf 1'!B11 -> Jansen, Elisabeth | C11: ='Wettkampf 1'!C11 -> Börger II | D11: 303.7 | F11: =IF(E11="x","0",D11) -> 303.7 | G11: =IF(C11=$B$2,F11,0) -> 303.7 | H11: =(IF(AND($E11="",$C11=$B$2),1,0)) -> 1 | I11: =IF($C11=$B$3,F11,0) -> 0 | J11: =(IF(AND($E11="",$C11=$B$3),1,0)) -> 0 | K11: =IF($C11=$B$4,F11,0) -> 0 | L11: =(IF(AND($E11="",$C11=$B$4),1,0)) -> 0 | M11: =IF($C11=$B$5,F11,0) -> 0 | N11: =(IF(AND($E11="",$C11=$B$5),1,0)) -> 0 | O11: =IF($C11=$B$6,F11,0) -> 0 | P11: =(IF(AND($E11="",$C11=$B$6),1,0)) -> 0 | Q11: =IF($C11=$B$7,F11,0) -> 0 | R11: =(IF(AND($E11="",$C11=$B$7),1,0)) -> 0 | X11: =U11+V11+W11 -> 0.0 | Y11: =IF(X11=D11,1,0) -> 0 | Z11: =IF(X11=0,0,1) -> 0 | AA11: =IF(Y11+Z11=2,"Korrekt","") -> 
A12: 3 | B12: ='Wettkampf 1'!B12 -> Krömer, Monika | C12: ='Wettkampf 1'!C12 -> Börger II | D12: 302.2 | F12: 302.2 | G12: 302.2 | H12: 1 | I12: 0 | J12: 0 | K12: 0 | L12: 0 | M12: 0 | N12: 0 | O12: 0 | P12: 0 | Q12: 0 | R12: 0 | X12: 0.0 | Y12: 0 | Z12: 0
A13: 4 | B13: ='Wettkampf 1'!B13 -> Pohlgeers, Margret | C13: ='Wettkampf 1'!C13 -> Börger II | D13: 307.7 | F13: 307.7 | G13: 307.7 | H13: 1 | I13: 0 | J13: 0 | K13: 0 | L13: 0 | M13: 0 | N13: 0 | O13: 0 | P13: 0 | Q13: 0 | R13: 0 | X13: 0.0 | Y13: 0 | Z13: 0
A14: 5 | B14: ='Wettkampf 1'!B14 -> Pohlgeers, Silvia | C14: ='Wettkampf 1'!C14 -> Börger II | D14: 305.9 | E14: x | F14: 0 | G14: 0 | H14: 0 | I14: 0 | J14: 0 | K14: 0 | L14: 0 | M14: 0 | N14: 0 | O14: 0 | P14: 0 | Q14: 0 | R14: 0 | X14: 0.0 | Y14: 0 | Z14: 0
A15: 6 | B15: ='Wettkampf 1'!B15 -> Schwarte, Annette | C15: ='Wettkampf 1'!C15 -> Börger II | D15: 0.0 | E15: x | F15: 0 | G15: 0 | H15: 0 | I15: 0 | J15: 0 | K15: 0 | L15: 0 | M15: 0 | N15: 0 | O15: 0 | P15: 0 | Q15: 0 | R15: 0 | X15: 0.0 | Y15: 1 | Z15: 0
A16: 7 | B16: ='Wettkampf 1'!B16 -> Lindemann, Kerstin | C16: ='Wettkampf 1'!C16 -> Esterwegen V | D16: 310.6 | F16: 310.6 | G16: 0 | H16: 0 | I16: 310.6 | J16: 1 | K16: 0 | L16: 0 | M16: 0 | N16: 0 | O16: 0 | P16: 0 | Q16: 0 | R16: 0 | X16: 0.0 | Y16: 0 | Z16: 0
A17: 8 | B17: ='Wettkampf 1'!B17 -> Schlarmann, Lena | C17: ='Wettkampf 1'!C17 -> Esterwegen V | D17: 312.0 | F17: 312.0 | G17: 0 | H17: 0 | I17: 312 | J17: 1 | K17: 0 | L17: 0 | M17: 0 | N17: 0 | O17: 0 | P17: 0 | Q17: 0 | R17: 0 | X17: 0.0 | Y17: 0 | Z17: 0
A18: 9 | B18: ='Wettkampf 1'!B18 -> Lindemann, Stefanie | C18: ='Wettkampf 1'!C18 -> Esterwegen V | D18: 305.3 | F18: 305.3 | G18: 0 | H18: 0 | I18: 305.3 | J18: 1 | K18: 0 | L18: 0 | M18: 0 | N18: 0 | O18: 0 | P18: 0 | Q18: 0 | R18: 0 | X18: 0.0 | Y18: 0 | Z18: 0
A19: 10 | B19: ='Wettkampf 1'!B19 -> Lindemann, Rita | C19: ='Wettkampf 1'!C19 -> Esterwegen V | D19: 317.5 | F19: 317.5 | G19: 0 | H19: 0 | I19: 317.5 | J19: 1 | K19: 0 | L19: 0 | M19: 0 | N19: 0 | O19: 0 | P19: 0 | Q19: 0 | R19: 0 | X19: 0.0 | Y19: 0 | Z19: 0
A20: 11 | B20: ='Wettkampf 1'!B20 -> Büter, Daniela | C20: ='Wettkampf 1'!C20 -> Esterwegen V | D20: 302.8 | E20: x | F20: 0 | G20: 0 | H20: 0 | I20: 0 | J20: 0 | K20: 0 | L20: 0 | M20: 0 | N20: 0 | O20: 0 | P20: 0 | Q20: 0 | R20: 0 | X20: 0.0 | Y20: 0 | Z20: 0
A21: 12 | B21: ='Wettkampf 1'!B21 -> Lindemann, Annemarie | C21: ='Wettkampf 1'!C21 -> Esterwegen V | D21: 302.8 | E21: x | F21: 0 | G21: 0 | H21: 0 | I21: 0 | J21: 0 | K21: 0 | L21: 0 | M21: 0 | N21: 0 | O21: 0 | P21: 0 | Q21: 0 | R21: 0 | X21: 0.0 | Y21: 0 | Z21: 0
A22: 13 | B22: ='Wettkampf 1'!B22 -> Preut, Susanne | C22: ='Wettkampf 1'!C22 -> Neuvrees II | D22: 304.9 | F22: 304.9 | G22: 0 | H22: 0 | I22: 0 | J22: 0 | K22: 304.9 | L22: 1 | M22: 0 | N22: 0 | O22: 0 | P22: 0 | Q22: 0 | R22: 0 | X22: 0.0 | Y22: 0 | Z22: 0
A23: 14 | B23: ='Wettkampf 1'!B23 -> Thunert, Silvia | C23: ='Wettkampf 1'!C23 -> Neuvrees II | D23: 307.4 | F23: 307.4 | G23: 0 | H23: 0 | I23: 0 | J23: 0 | K23: 307.4 | L23: 1 | M23: 0 | N23: 0 | O23: 0 | P23: 0 | Q23: 0 | R23: 0 | X23: 0.0 | Y23: 0 | Z23: 0
A24: 15 | B24: ='Wettkampf 1'!B24 -> Pohlmann, Margret | C24: ='Wettkampf 1'!C24 -> Neuvrees II | D24: 305.5 | E24: x | F24: 0 | G24: 0 | H24: 0 | I24: 0 | J24: 0 | K24: 0 | L24: 0 | M24: 0 | N24: 0 | O24: 0 | P24: 0 | Q24: 0 | R24: 0 | X24: 0.0 | Y24: 0 | Z24: 0
A25: 16 | B25: ='Wettkampf 1'!B25 -> Eilermann, Saskia | C25: ='Wettkampf 1'!C25 -> Neuvrees II | D25: 310.2 | F25: 310.2 | G25: 0 | H25: 0 | I25: 0 | J25: 0 | K25: 310.2 | L25: 1 | M25: 0 | N25: 0 | O25: 0 | P25: 0 | Q25: 0 | R25: 0 | X25: 0.0 | Y25: 0 | Z25: 0
A26: 17 | B26: ='Wettkampf 1'!B26 -> Junge, Silvia | C26: ='Wettkampf 1'!C26 -> Neuvrees II | D26: 302.2 | E26: x | F26: 0 | G26: 0 | H26: 0 | I26: 0 | J26: 0 | K26: 0 | L26: 0 | M26: 0 | N26: 0 | O26: 0 | P26: 0 | Q26: 0 | R26: 0 | X26: 0.0 | Y26: 0 | Z26: 0
A27: 18 | B27: ='Wettkampf 1'!B27 -> Evers, Claudia | C27: ='Wettkampf 1'!C27 -> Neuvrees II | D27: 306.3 | E27: x | F27: 0 | G27: 0 | H27: 0 | I27: 0 | J27: 0 | K27: 0 | L27: 0 | M27: 0 | N27: 0 | O27: 0 | P27: 0 | Q27: 0 | R27: 0 | X27: 0.0 | Y27: 0 | Z27: 0
A28: 19 | B28: ='Wettkampf 1'!B28 -> Schulte, Christina | C28: ='Wettkampf 1'!C28 -> Neuvrees II | D28: 305.7 | F28: 305.7 | G28: 0 | H28: 0 | I28: 0 | J28: 0 | K28: 305.7 | L28: 1 | M28: 0 | N28: 0 | O28: 0 | P28: 0 | Q28: 0 | R28: 0 | X28: 0.0 | Y28: 0 | Z28: 0
A29: 20 | B29: ='Wettkampf 1'!B29 -> Reinelt, Michaela | C29: ='Wettkampf 1'!C29 -> Lahn IV | D29: 303.6 | F29: 303.6 | G29: 0 | H29: 0 | I29: 0 | J29: 0 | K29: 0 | L29: 0 | M29: 303.6 | N29: 1 | O29: 0 | P29: 0 | Q29: 0 | R29: 0 | X29: 0.0 | Y29: 0 | Z29: 0
A30: 21 | B30: ='Wettkampf 1'!B30 -> Thien, Marita | C30: ='Wettkampf 1'!C30 -> Lahn IV | D30: 306.7 | F30: 306.7 | G30: 0 | H30: 0 | I30: 0 | J30: 0 | K30: 0 | L30: 0 | M30: 306.7 | N30: 1 | O30: 0 | P30: 0 | Q30: 0 | R30: 0 | X30: 0.0 | Y30: 0 | Z30: 0
A31: 22 | B31: ='Wettkampf 1'!B31 -> Robben, Anja | C31: ='Wettkampf 1'!C31 -> Lahn IV | D31: 307.7 | F31: 307.7 | G31: 0 | H31: 0 | I31: 0 | J31: 0 | K31: 0 | L31: 0 | M31: 307.7 | N31: 1 | O31: 0 | P31: 0 | Q31: 0 | R31: 0 | X31: 0.0 | Y31: 0 | Z31: 0
A32: 23 | B32: ='Wettkampf 1'!B32 -> Oldopp, Maria | C32: ='Wettkampf 1'!C32 -> Lahn IV | D32: 301.0 | E32: x | F32: 0 | G32: 0 | H32: 0 | I32: 0 | J32: 0 | K32: 0 | L32: 0 | M32: 0 | N32: 0 | O32: 0 | P32: 0 | Q32: 0 | R32: 0 | X32: 0.0 | Y32: 0 | Z32: 0
A33: 24 | B33: ='Wettkampf 1'!B33 -> Hanneken, Doris | C33: ='Wettkampf 1'!C33 -> Lahn IV | D33: 304.8 | F33: 304.8 | G33: 0 | H33: 0 | I33: 0 | J33: 0 | K33: 0 | L33: 0 | M33: 304.8 | N33: 1 | O33: 0 | P33: 0 | Q33: 0 | R33: 0 | X33: 0.0 | Y33: 0 | Z33: 0
A34: 25 | B34: ='Wettkampf 1'!B34 -> Kuchta, Gertrud | C34: ='Wettkampf 1'!C34 -> Börger III | D34: 308.9 | F34: 308.9 | G34: 0 | H34: 0 | I34: 0 | J34: 0 | K34: 0 | L34: 0 | M34: 0 | N34: 0 | O34: 308.9 | P34: 1 | Q34: 0 | R34: 0 | X34: 0.0 | Y34: 0 | Z34: 0
A35: 26 | B35: ='Wettkampf 1'!B35 -> Jungsthöfel, Sabine | C35: ='Wettkampf 1'!C35 -> Börger III | D35: 306.3 | F35: 306.3 | G35: 0 | H35: 0 | I35: 0 | J35: 0 | K35: 0 | L35: 0 | M35: 0 | N35: 0 | O35: 306.3 | P35: 1 | Q35: 0 | R35: 0 | X35: 0.0 | Y35: 0 | Z35: 0
A36: 27 | B36: ='Wettkampf 1'!B36 -> Schwarte, Gundula | C36: ='Wettkampf 1'!C36 -> Börger III | D36: 304.3 | F36: 304.3 | G36: 0 | H36: 0 | I36: 0 | J36: 0 | K36: 0 | L36: 0 | M36: 0 | N36: 0 | O36: 304.3 | P36: 1 | Q36: 0 | R36: 0 | X36: 0.0 | Y36: 0 | Z36: 0
A37: 28 | B37: ='Wettkampf 1'!B37 -> Geers, Christa | C37: ='Wettkampf 1'!C37 -> Börger III | D37: 297.1 | E37: x | F37: 0 | G37: 0 | H37: 0 | I37: 0 | J37: 0 | K37: 0 | L37: 0 | M37: 0 | N37: 0 | O37: 0 | P37: 0 | Q37: 0 | R37: 0 | X37: 0.0 | Y37: 0 | Z37: 0
A38: 29 | B38: ='Wettkampf 1'!B38 -> Remmers, Tanja | C38: ='Wettkampf 1'!C38 -> Börger III | D38: 294.5 | E38: x | F38: 0 | G38: 0 | H38: 0 | I38: 0 | J38: 0 | K38: 0 | L38: 0 | M38: 0 | N38: 0 | O38: 0 | P38: 0 | Q38: 0 | R38: 0 | X38: 0.0 | Y38: 0 | Z38: 0
A39: 30 | B39: ='Wettkampf 1'!B39 -> Terhalle, Johanna | C39: ='Wettkampf 1'!C39 -> Börger III | D39: 308.8 | F39: 308.8 | G39: 0 | H39: 0 | I39: 0 | J39: 0 | K39: 0 | L39: 0 | M39: 0 | N39: 0 | O39: 308.8 | P39: 1 | Q39: 0 | R39: 0 | X39: 0.0 | Y39: 0 | Z39: 0
A40: 31 | B40: ='Wettkampf 1'!B40 -> Hackstette, Lena | C40: ='Wettkampf 1'!C40 -> Lahn III | D40: 303.8 | E40: x | F40: 0 | G40: 0 | H40: 0 | I40: 0 | J40: 0 | K40: 0 | L40: 0 | M40: 0 | N40: 0 | O40: 0 | P40: 0 | Q40: 0 | R40: 0 | X40: =U40+V40+W40 -> 0.0 | Y40: =IF(X40=D40,1,0) -> 0 | Z40: =IF(X40=0,0,1) -> 0 | AA40: =IF(Y40+Z40=2,"Korrekt","") -> 
A41: 32 | B41: ='Wettkampf 1'!B41 -> Thyen, Christel | C41: ='Wettkampf 1'!C41 -> Lahn III | D41: 299.0 | F41: 299.0 | G41: 0 | H41: 0 | I41: 0 | J41: 0 | K41: 0 | L41: 0 | M41: 0 | N41: 0 | O41: 0 | P41: 0 | Q41: 299 | R41: 1 | X41: 0.0 | Y41: 0 | Z41: 0
A42: 33 | B42: ='Wettkampf 1'!B42 -> Ostermann, Hildegard | C42: ='Wettkampf 1'!C42 -> Lahn III | D42: 305.1 | F42: 305.1 | G42: 0 | H42: 0 | I42: 0 | J42: 0 | K42: 0 | L42: 0 | M42: 0 | N42: 0 | O42: 0 | P42: 0 | Q42: 305.1 | R42: 1 | X42: 0.0 | Y42: 0 | Z42: 0
A43: 34 | B43: ='Wettkampf 1'!B43 -> Willoh, Henrika | C43: ='Wettkampf 1'!C43 -> Lahn III | D43: 309.3 | F43: 309.3 | G43: 0 | H43: 0 | I43: 0 | J43: 0 | K43: 0 | L43: 0 | M43: 0 | N43: 0 | O43: 0 | P43: 0 | Q43: 309.3 | R43: 1 | X43: 0.0 | Y43: 0 | Z43: 0
A44: 35 | B44: ='Wettkampf 1'!B44 -> Müller, Anita | C44: ='Wettkampf 1'!C44 -> Lahn III | D44: 298.5 | E44: x | F44: 0 | G44: 0 | H44: 0 | I44: 0 | J44: 0 | K44: 0 | L44: 0 | M44: 0 | N44: 0 | O44: 0 | P44: 0 | Q44: 0 | R44: 0 | X44: 0.0 | Y44: 0 | Z44: 0
A45: 36 | B45: ='Wettkampf 1'!B45 -> Wilken, Elena | C45: ='Wettkampf 1'!C45 -> Lahn III | D45: 304.6 | F45: 304.6 | G45: 0 | H45: 0 | I45: 0 | J45: 0 | K45: 0 | L45: 0 | M45: 0 | N45: 0 | O45: 0 | P45: 0 | Q45: 304.6 | R45: 1 | X45: =U45+V45+W45 -> 0.0 | Y45: =IF(X45=D45,1,0) -> 0 | Z45: =IF(X45=0,0,1) -> 0 | AA45: =IF(Y45+Z45=2,"Korrekt","") -> 
G46: =LARGE(G10:G45,1)+LARGE(G10:G45,2)+LARGE(G10:G45,3) -> 916.2 | H46: =SUM(H10:H45) -> 4 | I46: =LARGE(I10:I45,1)+LARGE(I10:I45,2)+LARGE(I10:I45,3) -> 940.1 | J46: =SUM(J10:J45) -> 4 | K46: =LARGE(K10:K45,1)+LARGE(K10:K45,2)+LARGE(K10:K45,3) -> 923.3 | L46: =SUM(L10:L45) -> 4 | M46: =LARGE(M10:M45,1)+LARGE(M10:M45,2)+LARGE(M10:M45,3) -> 919.2 | N46: =SUM(N10:N45) -> 4 | O46: =LARGE(O10:O45,1)+LARGE(O10:O45,2)+LARGE(O10:O45,3) -> 924 | P46: =SUM(P10:P45) -> 4 | Q46: =LARGE(Q10:Q45,1)+LARGE(Q10:Q45,2)+LARGE(Q10:Q45,3) -> 919 | R46: =SUM(R10:S45) -> 4
C47: per Email an: sk-huemmling@gmx.de

Sheet 3
B1: Verein / Gruppe | D1: Ergebnisse | V1: Austragungsort: | W1: =Übersicht!F4 -> Neuvrees
A2: 1 | B2: ='Wettkampf 1'!B2 -> Börger II | D2: =G46 -> 911.7 | E2: =IF(H46>4,"Es sind zu viele Schützen in Wertung!"," ") ->  | V2: Wettkampftag: | W2: =Übersicht!F3 -> 27.10.
A3: 2 | B3: ='Wettkampf 1'!B3 -> Esterwegen V | D3: =I46 -> 934.7 | E3: =IF(J46>4,"Es sind zu viele Schützen in Wertung!"," ") -> 
A4: 3 | B4: ='Wettkampf 1'!B4 -> Neuvrees II | D4: =K46 -> 925.1 | E4: =IF(L46>4,"Es sind zu viele Schützen in Wertung!"," ") ->  | X4: Ansprechpartner für Rückfragen:
A5: 4 | B5: ='Wettkampf 1'!B5 -> Lahn IV | D5: =M46 -> 920.1 | E5: =IF(N46>4,"Es sind zu viele Schützen in Wertung!"," ") ->  | V5: Name: | W5: Silvia Thunert
A6: 5 | B6: ='Wettkampf 1'!B6 -> Börger III | D6: =O46 -> 910.6 | E6: =IF(P46>4,"Es sind zu viele Schützen in Wertung!"," ") ->  | V6: Tel: | W6: 04493-998686
A7: 6 | B7: ='Wettkampf 1'!B7 -> Lahn III | D7: =Q46 -> 922.7 | E7: =IF(R46>4,"Es sind zu viele Schützen in Wertung!"," ") ->  | V7: Standaufsicht: | W7: Silvia Thunert
B9: Einzelergebnisse: | C9: Verein / Gruppe | D9: Ergebnisse (mindestens 0 eintragen) | E9: AW? Dann x eintippen | G9: Verein 1 | I9: Verein 2 | K9: Verein 3 | M9: Verein 4 | O9: Verein 5 | Q9: Verein 6 | U9: Proberechnung bei Streifen:
A10: 1 | B10: ='Wettkampf 1'!B10 -> Kossenjans, Annegret | C10: ='Wettkampf 1'!C10 -> Börger II | D10: 298.6 | F10: =IF(E10="x","0",D10) -> 298.6 | G10: =IF(C10=$B$2,F10,0) -> 298.6 | H10: =(IF(AND($E10="",$C10=$B$2),1,0)) -> 1 | I10: =IF($C10=$B$3,F10,0) -> 0 | J10: =(IF(AND($E10="",$C10=$B$3),1,0)) -> 0 | K10: =IF($C10=$B$4,F10,0) -> 0 | L10: =(IF(AND($E10="",$C10=$B$4),1,0)) -> 0 | M10: =IF($C10=$B$5,F10,0) -> 0 | N10: =(IF(AND($E10="",$C10=$B$5),1,0)) -> 0 | O10: =IF($C10=$B$6,F10,0) -> 0 | P10: =(IF(AND($E10="",$C10=$B$6),1,0)) -> 0 | Q10: =IF($C10=$B$7,F10,0) -> 0 | R10: =(IF(AND($E10="",$C10=$B$7),1,0)) -> 0 | X10: =U10+V10+W10 -> 0.0 | Y10: =IF(X10=D10,1,0) -> 0 | Z10: =IF(X10=0,0,1) -> 0 | AA10: =IF(Y10+Z10=2,"Korrekt","") -> 
A11: 2 | B11: ='Wettkampf 1'!B11 -> Jansen, Elisabeth | C11: ='Wettkampf 1'!C11 -> Börger II | D11: 301.8 | F11: =IF(E11="x","0",D11) -> 301.8 | G11: =IF(C11=$B$2,F11,0) -> 301.8 | H11: =(IF(AND($E11="",$C11=$B$2),1,0)) -> 1 | I11: =IF($C11=$B$3,F11,0) -> 0 | J11: =(IF(AND($E11="",$C11=$B$3),1,0)) -> 0 | K11: =IF($C11=$B$4,F11,0) -> 0 | L11: =(IF(AND($E11="",$C11=$B$4),1,0)) -> 0 | M11: =IF($C11=$B$5,F11,0) -> 0 | N11: =(IF(AND($E11="",$C11=$B$5),1,0)) -> 0 | O11: =IF($C11=$B$6,F11,0) -> 0 | P11: =(IF(AND($E11="",$C11=$B$6),1,0)) -> 0 | Q11: =IF($C11=$B$7,F11,0) -> 0 | R11: =(IF(AND($E11="",$C11=$B$7),1,0)) -> 0 | X11: =U11+V11+W11 -> 0.0 | Y11: =IF(X11=D11,1,0) -> 0 | Z11: =IF(X11=0,0,1) -> 0 | AA11: =IF(Y11+Z11=2,"Korrekt","") -> 
A12: 3 | B12: ='Wettkampf 1'!B12 -> Krömer, Monika | C12: ='Wettkampf 1'!C12 -> Börger II | D12: 301.8 | F12: 301.8 | G12: 301.8 | H12: 1 | I12: 0 | J12: 0 | K12: 0 | L12: 0 | M12: 0 | N12: 0 | O12: 0 | P12: 0 | Q12: 0 | R12: 0 | X12: 0.0 | Y12: 0 | Z12: 0
A13: 4 | B13: ='Wettkampf 1'!B13 -> Pohlgeers, Margret | C13: ='Wettkampf 1'!C13 -> Börger II | D13: 308.1 | F13: 308.1 | G13: 308.1 | H13: 1 | I13: 0 | J13: 0 | K13: 0 | L13: 0 | M13: 0 | N13: 0 | O13: 0 | P13: 0 | Q13: 0 | R13: 0 | X13: 0.0 | Y13: 0 | Z13: 0
A14: 5 | B14: ='Wettkampf 1'!B14 -> Pohlgeers, Silvia | C14: ='Wettkampf 1'!C14 -> Börger II | D14: 302.6 | E14: x | F14: 0 | G14: 0 | H14: 0 | I14: 0 | J14: 0 | K14: 0 | L14: 0 | M14: 0 | N14: 0 | O14: 0 | P14: 0 | Q14: 0 | R14: 0 | X14: 0.0 | Y14: 0 | Z14: 0
A15: 6 | B15: ='Wettkampf 1'!B15 -> Schwarte, Annette | C15: ='Wettkampf 1'!C15 -> Börger II | E15: x | F15: 0 | G15: 0 | H15: 0 | I15: 0 | J15: 0 | K15: 0 | L15: 0 | M15: 0 | N15: 0 | O15: 0 | P15: 0 | Q15: 0 | R15: 0 | X15: 0.0 | Y15: 1 | Z15: 0
A16: 7 | B16: ='Wettkampf 1'!B16 -> Lindemann, Kerstin | C16: ='Wettkampf 1'!C16 -> Esterwegen V | D16: 310.4 | F16: 310.4 | G16: 0 | H16: 0 | I16: 310.4 | J16: 1 | K16: 0 | L16: 0 | M16: 0 | N16: 0 | O16: 0 | P16: 0 | Q16: 0 | R16: 0 | X16: 0.0 | Y16: 0 | Z16: 0
A17: 8 | B17: ='Wettkampf 1'!B17 -> Schlarmann, Lena | C17: ='Wettkampf 1'!C17 -> Esterwegen V | D17: 309.8 | F17: 309.8 | G17: 0 | H17: 0 | I17: 309.8 | J17: 1 | K17: 0 | L17: 0 | M17: 0 | N17: 0 | O17: 0 | P17: 0 | Q17: 0 | R17: 0 | X17: 0.0 | Y17: 0 | Z17: 0
A18: 9 | B18: ='Wettkampf 1'!B18 -> Lindemann, Stefanie | C18: ='Wettkampf 1'!C18 -> Esterwegen V | D18: 308.4 | F18: 308.4 | G18: 0 | H18: 0 | I18: 308.4 | J18: 1 | K18: 0 | L18: 0 | M18: 0 | N18: 0 | O18: 0 | P18: 0 | Q18: 0 | R18: 0 | X18: 0.0 | Y18: 0 | Z18: 0
A19: 10 | B19: ='Wettkampf 1'!B19 -> Lindemann, Rita | C19: ='Wettkampf 1'!C19 -> Esterwegen V | D19: 314.5 | F19: 314.5 | G19: 0 | H19: 0 | I19: 314.5 | J19: 1 | K19: 0 | L19: 0 | M19: 0 | N19: 0 | O19: 0 | P19: 0 | Q19: 0 | R19: 0 | X19: 0.0 | Y19: 0 | Z19: 0
A20: 11 | B20: ='Wettkampf 1'!B20 -> Büter, Daniela | C20: ='Wettkampf 1'!C20 -> Esterwegen V | D20: 303.4 | E20: x | F20: 0 | G20: 0 | H20: 0 | I20: 0 | J20: 0 | K20: 0 | L20: 0 | M20: 0 | N20: 0 | O20: 0 | P20: 0 | Q20: 0 | R20: 0 | X20: 0.0 | Y20: 0 | Z20: 0
A21: 12 | B21: ='Wettkampf 1'!B21 -> Lindemann, Annemarie | C21: ='Wettkampf 1'!C21 -> Esterwegen V | D21: 302.7 | E21: x | F21: 0 | G21: 0 | H21: 0 | I21: 0 | J21: 0 | K21: 0 | L21: 0 | M21: 0 | N21: 0 | O21: 0 | P21: 0 | Q21: 0 | R21: 0 | X21: 0.0 | Y21: 0 | Z21: 0
A22: 13 | B22: ='Wettkampf 1'!B22 -> Preut, Susanne | C22: ='Wettkampf 1'!C22 -> Neuvrees II | D22: 304.5 | F22: 304.5 | G22: 0 | H22: 0 | I22: 0 | J22: 0 | K22: 304.5 | L22: 1 | M22: 0 | N22: 0 | O22: 0 | P22: 0 | Q22: 0 | R22: 0 | X22: 0.0 | Y22: 0 | Z22: 0
A23: 14 | B23: ='Wettkampf 1'!B23 -> Thunert, Silvia | C23: ='Wettkampf 1'!C23 -> Neuvrees II | D23: 310.9 | F23: 310.9 | G23: 0 | H23: 0 | I23: 0 | J23: 0 | K23: 310.9 | L23: 1 | M23: 0 | N23: 0 | O23: 0 | P23: 0 | Q23: 0 | R23: 0 | X23: 0.0 | Y23: 0 | Z23: 0
A24: 15 | B24: ='Wettkampf 1'!B24 -> Pohlmann, Margret | C24: ='Wettkampf 1'!C24 -> Neuvrees II | D24: 303.5 | E24: x | F24: 0 | G24: 0 | H24: 0 | I24: 0 | J24: 0 | K24: 0 | L24: 0 | M24: 0 | N24: 0 | O24: 0 | P24: 0 | Q24: 0 | R24: 0 | X24: 0.0 | Y24: 0 | Z24: 0
A25: 16 | B25: ='Wettkampf 1'!B25 -> Eilermann, Saskia | C25: ='Wettkampf 1'!C25 -> Neuvrees II | D25: 309.7 | F25: 309.7 | G25: 0 | H25: 0 | I25: 0 | J25: 0 | K25: 309.7 | L25: 1 | M25: 0 | N25: 0 | O25: 0 | P25: 0 | Q25: 0 | R25: 0 | X25: 0.0 | Y25: 0 | Z25: 0
A26: 17 | B26: ='Wettkampf 1'!B26 -> Junge, Silvia | C26: ='Wettkampf 1'!C26 -> Neuvrees II | D26: 295.7 | E26: x | F26: 0 | G26: 0 | H26: 0 | I26: 0 | J26: 0 | K26: 0 | L26: 0 | M26: 0 | N26: 0 | O26: 0 | P26: 0 | Q26: 0 | R26: 0 | X26: 0.0 | Y26: 0 | Z26: 0
A27: 18 | B27: ='Wettkampf 1'!B27 -> Evers, Claudia | C27: ='Wettkampf 1'!C27 -> Neuvrees II | D27: 303.3 | E27: x | F27: 0 | G27: 0 | H27: 0 | I27: 0 | J27: 0 | K27: 0 | L27: 0 | M27: 0 | N27: 0 | O27: 0 | P27: 0 | Q27: 0 | R27: 0 | X27: 0.0 | Y27: 0 | Z27: 0
A28: 19 | B28: ='Wettkampf 1'!B28 -> Schulte, Christina | C28: ='Wettkampf 1'!C28 -> Neuvrees II | D28: 304.3 | F28: 304.3 | G28: 0 | H28: 0 | I28: 0 | J28: 0 | K28: 304.3 | L28: 1 | M28: 0 | N28: 0 | O28: 0 | P28: 0 | Q28: 0 | R28: 0 | X28: 0.0 | Y28: 0 | Z28: 0
A29: 20 | B29: ='Wettkampf 1'!B29 -> Reinelt, Michaela | C29: ='Wettkampf 1'!C29 -> Lahn IV | D29: 307.4 | F29: 307.4 | G29: 0 | H29: 0 | I29: 0 | J29: 0 | K29: 0 | L29: 0 | M29: 307.4 | N29: 1 | O29: 0 | P29: 0 | Q29: 0 | R29: 0 | X29: 0.0 | Y29: 0 | Z29: 0
A30: 21 | B30: ='Wettkampf 1'!B30 -> Thien, Marita | C30: ='Wettkampf 1'!C30 -> Lahn IV | D30: 306.4 | F30: 306.4 | G30: 0 | H30: 0 | I30: 0 | J30: 0 | K30: 0 | L30: 0 | M30: 306.4 | N30: 1 | O30: 0 | P30: 0 | Q30: 0 | R30: 0 | X30: 0.0 | Y30: 0 | Z30: 0
A31: 22 | B31: ='Wettkampf 1'!B31 -> Robben, Anja | C31: ='Wettkampf 1'!C31 -> Lahn IV | D31: 306.3 | F31: 306.3 | G31: 0 | H31: 0 | I31: 0 | J31: 0 | K31: 0 | L31: 0 | M31: 306.3 | N31: 1 | O31: 0 | P31: 0 | Q31: 0 | R31: 0 | X31: 0.0 | Y31: 0 | Z31: 0
A32: 23 | B32: ='Wettkampf 1'!B32 -> Oldopp, Maria | C32: ='Wettkampf 1'!C32 -> Lahn IV | D32: 301.2 | E32: x | F32: 0 | G32: 0 | H32: 0 | I32: 0 | J32: 0 | K32: 0 | L32: 0 | M32: 0 | N32: 0 | O32: 0 | P32: 0 | Q32: 0 | R32: 0 | X32: 0.0 | Y32: 0 | Z32: 0
A33: 24 | B33: ='Wettkampf 1'!B33 -> Hanneken, Doris | C33: ='Wettkampf 1'!C33 -> Lahn IV | D33: 305.7 | F33: 305.7 | G33: 0 | H33: 0 | I33: 0 | J33: 0 | K33: 0 | L33: 0 | M33: 305.7 | N33: 1 | O33: 0 | P33: 0 | Q33: 0 | R33: 0 | X33: 0.0 | Y33: 0 | Z33: 0
A34: 25 | B34: ='Wettkampf 1'!B34 -> Kuchta, Gertrud | C34: ='Wettkampf 1'!C34 -> Börger III | D34: 305.0 | F34: 305.0 | G34: 0 | H34: 0 | I34: 0 | J34: 0 | K34: 0 | L34: 0 | M34: 0 | N34: 0 | O34: 305 | P34: 1 | Q34: 0 | R34: 0 | X34: 0.0 | Y34: 0 | Z34: 0
A35: 26 | B35: ='Wettkampf 1'!B35 -> Jungsthöfel, Sabine | C35: ='Wettkampf 1'!C35 -> Börger III | D35: 300.4 | F35: 300.4 | G35: 0 | H35: 0 | I35: 0 | J35: 0 | K35: 0 | L35: 0 | M35: 0 | N35: 0 | O35: 300.4 | P35: 1 | Q35: 0 | R35: 0 | X35: 0.0 | Y35: 0 | Z35: 0
A36: 27 | B36: ='Wettkampf 1'!B36 -> Schwarte, Gundula | C36: ='Wettkampf 1'!C36 -> Börger III | D36: 299.7 | F36: 299.7 | G36: 0 | H36: 0 | I36: 0 | J36: 0 | K36: 0 | L36: 0 | M36: 0 | N36: 0 | O36: 299.7 | P36: 1 | Q36: 0 | R36: 0 | X36: 0.0 | Y36: 0 | Z36: 0
A37: 28 | B37: ='Wettkampf 1'!B37 -> Geers, Christa | C37: ='Wettkampf 1'!C37 -> Börger III | D37: 302.1 | E37: x | F37: 0 | G37: 0 | H37: 0 | I37: 0 | J37: 0 | K37: 0 | L37: 0 | M37: 0 | N37: 0 | O37: 0 | P37: 0 | Q37: 0 | R37: 0 | X37: 0.0 | Y37: 0 | Z37: 0
A38: 29 | B38: ='Wettkampf 1'!B38 -> Remmers, Tanja | C38: ='Wettkampf 1'!C38 -> Börger III | D38: 275.8 | E38: x | F38: 0 | G38: 0 | H38: 0 | I38: 0 | J38: 0 | K38: 0 | L38: 0 | M38: 0 | N38: 0 | O38: 0 | P38: 0 | Q38: 0 | R38: 0 | X38: 0.0 | Y38: 0 | Z38: 0
A39: 30 | B39: ='Wettkampf 1'!B39 -> Terhalle, Johanna | C39: ='Wettkampf 1'!C39 -> Börger III | D39: 305.2 | F39: 305.2 | G39: 0 | H39: 0 | I39: 0 | J39: 0 | K39: 0 | L39: 0 | M39: 0 | N39: 0 | O39: 305.2 | P39: 1 | Q39: 0 | R39: 0 | X39: 0.0 | Y39: 0 | Z39: 0
A40: 31 | B40: ='Wettkampf 1'!B40 -> Hackstette, Lena | C40: ='Wettkampf 1'!C40 -> Lahn III | D40: 310.2 | E40: x | F40: 0 | G40: 0 | H40: 0 | I40: 0 | J40: 0 | K40: 0 | L40: 0 | M40: 0 | N40: 0 | O40: 0 | P40: 0 | Q40: 0 | R40: 0 | X40: 0.0 | Y40: 0 | Z40: 0
A41: 32 | B41: ='Wettkampf 1'!B41 -> Thyen, Christel | C41: ='Wettkampf 1'!C41 -> Lahn III | D41: 307.2 | F41: 307.2 | G41: 0 | H41: 0 | I41: 0 | J41: 0 | K41: 0 | L41: 0 | M41: 0 | N41: 0 | O41: 0 | P41: 0 | Q41: 307.2 | R41: 1 | X41: 0.0 | Y41: 0 | Z41: 0
A42: 33 | B42: ='Wettkampf 1'!B42 -> Ostermann, Hildegard | C42: ='Wettkampf 1'!C42 -> Lahn III | D42: 307.4 | F42: 307.4 | G42: 0 | H42: 0 | I42: 0 | J42: 0 | K42: 0 | L42: 0 | M42: 0 | N42: 0 | O42: 0 | P42: 0 | Q42: 307.4 | R42: 1 | X42: 0.0 | Y42: 0 | Z42: 0
A43: 34 | B43: ='Wettkampf 1'!B43 -> Willoh, Henrika | C43: ='Wettkampf 1'!C43 -> Lahn III | D43: 308.1 | F43: 308.1 | G43: 0 | H43: 0 | I43: 0 | J43: 0 | K43: 0 | L43: 0 | M43: 0 | N43: 0 | O43: 0 | P43: 0 | Q43: 308.1 | R43: 1 | X43: 0.0 | Y43: 0 | Z43: 0
A44: 35 | B44: ='Wettkampf 1'!B44 -> Müller, Anita | C44: ='Wettkampf 1'!C44 -> Lahn III | D44: 299.5 | E44: x | F44: 0 | G44: 0 | H44: 0 | I44: 0 | J44: 0 | K44: 0 | L44: 0 | M44: 0 | N44: 0 | O44: 0 | P44: 0 | Q44: 0 | R44: 0 | X44: 0.0 | Y44: 0 | Z44: 0
A45: 36 | B45: ='Wettkampf 1'!B45 -> Wilken, Elena | C45: ='Wettkampf 1'!C45 -> Lahn III | D45: 302.2 | F45: 302.2 | G45: 0 | H45: 0 | I45: 0 | J45: 0 | K45: 0 | L45: 0 | M45: 0 | N45: 0 | O45: 0 | P45: 0 | Q45: 302.2 | R45: 1 | X45: 0.0 | Y45: 0 | Z45: 0
G46: =LARGE(G10:G45,1)+LARGE(G10:G45,2)+LARGE(G10:G45,3) -> 911.7 | H46: =SUM(H10:H45) -> 4 | I46: =LARGE(I10:I45,1)+LARGE(I10:I45,2)+LARGE(I10:I45,3) -> 934.7 | J46: =SUM(J10:J45) -> 4 | K46: =LARGE(K10:K45,1)+LARGE(K10:K45,2)+LARGE(K10:K45,3) -> 925.1 | L46: =SUM(L10:L45) -> 4 | M46: =LARGE(M10:M45,1)+LARGE(M10:M45,2)+LARGE(M10:M45,3) -> 920.1 | N46: =SUM(N10:N45) -> 4 | O46: =LARGE(O10:O45,1)+LARGE(O10:O45,2)+LARGE(O10:O45,3) -> 910.6 | P46: =SUM(P10:P45) -> 4 | Q46: =LARGE(Q10:Q45,1)+LARGE(Q10:Q45,2)+LARGE(Q10:Q45,3) -> 922.7 | R46: =SUM(R10:S45) -> 4
C47: per Email an: sk-huemmling@gmx.de

Sheet 4
B1: Verein / Gruppe | D1: Ergebnisse | V1: Austragungsort: | W1: =Übersicht!G4 -> Lahn
A2: 1 | B2: ='Wettkampf 1'!B2 -> Börger II | D2: =G46 -> 922.4 | E2: =IF(H46>4,"Es sind zu viele Schützen in Wertung!"," ") ->  | V2: Wettkampftag: | W2: =Übersicht!G3 -> 17.11.
A3: 2 | B3: ='Wettkampf 1'!B3 -> Esterwegen V | D3: =I46 -> 934.0 | E3: =IF(J46>4,"Es sind zu viele Schützen in Wertung!"," ") -> 
A4: 3 | B4: ='Wettkampf 1'!B4 -> Neuvrees II | D4: =K46 -> 925.2 | E4: =IF(L46>4,"Es sind zu viele Schützen in Wertung!"," ") ->  | X4: Ansprechpartner für Rückfragen:
A5: 4 | B5: ='Wettkampf 1'!B5 -> Lahn IV | D5: =M46 -> 925.4 | E5: =IF(N46>4,"Es sind zu viele Schützen in Wertung!"," ") ->  | V5: Name: | W5: Doris Hanneken
A6: 5 | B6: ='Wettkampf 1'!B6 -> Börger III | D6: =O46 -> 920.3 | E6: =IF(P46>4,"Es sind zu viele Schützen in Wertung!"," ") ->  | V6: Tel: | W6: 0176-42215241
A7: 6 | B7: ='Wettkampf 1'!B7 -> Lahn III | D7: =Q46 -> 933.4 | E7: =IF(R46>4,"Es sind zu viele Schützen in Wertung!"," ") ->  | V7: Standaufsicht: | W7: Doris Hanneken
B9: Einzelergebnisse: | C9: Verein / Gruppe | D9: Ergebnisse (mindestens 0 eintragen) | E9: AW? Dann x eintippen | G9: Verein 1 | I9: Verein 2 | K9: Verein 3 | M9: Verein 4 | O9: Verein 5 | Q9: Verein 6 | U9: Proberechnung bei Streifen:
A10: 1 | B10: ='Wettkampf 1'!B10 -> Kossenjans, Annegret | C10: ='Wettkampf 1'!C10 -> Börger II | D10: 307.4 | F10: =IF(E10="x","0",D10) -> 307.4 | G10: =IF(C10=$B$2,F10,0) -> 307.4 | H10: =(IF(AND($E10="",$C10=$B$2),1,0)) -> 1 | I10: =IF($C10=$B$3,F10,0) -> 0 | J10: =(IF(AND($E10="",$C10=$B$3),1,0)) -> 0 | K10: =IF($C10=$B$4,F10,0) -> 0 | L10: =(IF(AND($E10="",$C10=$B$4),1,0)) -> 0 | M10: =IF($C10=$B$5,F10,0) -> 0 | N10: =(IF(AND($E10="",$C10=$B$5),1,0)) -> 0 | O10: =IF($C10=$B$6,F10,0) -> 0 | P10: =(IF(AND($E10="",$C10=$B$6),1,0)) -> 0 | Q10: =IF($C10=$B$7,F10,0) -> 0 | R10: =(IF(AND($E10="",$C10=$B$7),1,0)) -> 0 | U10: 101.9 | V10: 100.1 | W10: 105.4 | X10: =U10+V10+W10 -> 307.4 | Y10: =IF(X10=D10,1,0) -> 1 | Z10: =IF(X10=0,0,1) -> 1 | AA10: =IF(Y10+Z10=2,"Korrekt","") -> Korrekt
A11: 2 | B11: ='Wettkampf 1'!B11 -> Jansen, Elisabeth | C11: ='Wettkampf 1'!C11 -> Börger II | D11: 307.5 | F11: =IF(E11="x","0",D11) -> 307.5 | G11: =IF(C11=$B$2,F11,0) -> 307.5 | H11: =(IF(AND($E11="",$C11=$B$2),1,0)) -> 1 | I11: =IF($C11=$B$3,F11,0) -> 0 | J11: =(IF(AND($E11="",$C11=$B$3),1,0)) -> 0 | K11: =IF($C11=$B$4,F11,0) -> 0 | L11: =(IF(AND($E11="",$C11=$B$4),1,0)) -> 0 | M11: =IF($C11=$B$5,F11,0) -> 0 | N11: =(IF(AND($E11="",$C11=$B$5),1,0)) -> 0 | O11: =IF($C11=$B$6,F11,0) -> 0 | P11: =(IF(AND($E11="",$C11=$B$6),1,0)) -> 0 | Q11: =IF($C11=$B$7,F11,0) -> 0 | R11: =(IF(AND($E11="",$C11=$B$7),1,0)) -> 0 | U11: 102.8 | V11: 102.3 | W11: 102.4 | X11: =U11+V11+W11 -> 307.5 | Y11: =IF(X11=D11,1,0) -> 1 | Z11: =IF(X11=0,0,1) -> 1 | AA11: =IF(Y11+Z11=2,"Korrekt","") -> Korrekt
A12: 3 | B12: ='Wettkampf 1'!B12 -> Krömer, Monika | C12: ='Wettkampf 1'!C12 -> Börger II | D12: 297.8 | F12: 297.8 | G12: 297.8 | H12: 1 | I12: 0 | J12: 0 | K12: 0 | L12: 0 | M12: 0 | N12: 0 | O12: 0 | P12: 0 | Q12: 0 | R12: 0 | U12: 102.1 | V12: 98.6 | W12: 97.1 | X12: 297.8 | Y12: 1 | Z12: 1 | AA12: Korrekt
A13: 4 | B13: ='Wettkampf 1'!B13 -> Pohlgeers, Margret | C13: ='Wettkampf 1'!C13 -> Börger II | D13: 307.5 | F13: 307.5 | G13: 307.5 | H13: 1 | I13: 0 | J13: 0 | K13: 0 | L13: 0 | M13: 0 | N13: 0 | O13: 0 | P13: 0 | Q13: 0 | R13: 0 | U13: 102.0 | V13: 102.2 | W13: 103.3 | X13: 307.5 | Y13: 1 | Z13: 1 | AA13: Korrekt
A14: 5 | B14: ='Wettkampf 1'!B14 -> Pohlgeers, Silvia | C14: ='Wettkampf 1'!C14 -> Börger II | D14: 310.9 | E14: x | F14: 0 | G14: 0 | H14: 0 | I14: 0 | J14: 0 | K14: 0 | L14: 0 | M14: 0 | N14: 0 | O14: 0 | P14: 0 | Q14: 0 | R14: 0 | U14: 102.3 | V14: 105.0 | W14: 103.6 | X14: 310.9 | Y14: 1 | Z14: 1 | AA14: Korrekt
A15: 6 | B15: ='Wettkampf 1'!B15 -> Schwarte, Annette | C15: ='Wettkampf 1'!C15 -> Börger II | D15: 0.0 | E15: x | F15: 0 | G15: 0 | H15: 0 | I15: 0 | J15: 0 | K15: 0 | L15: 0 | M15: 0 | N15: 0 | O15: 0 | P15: 0 | Q15: 0 | R15: 0 | U15: 0.0 | V15: 0.0 | W15: 0.0 | X15: 0.0 | Y15: 1 | Z15: 0
A16: 7 | B16: ='Wettkampf 1'!B16 -> Lindemann, Kerstin | C16: ='Wettkampf 1'!C16 -> Esterwegen V | D16: 309.0 | F16: 309.0 | G16: 0 | H16: 0 | I16: 309 | J16: 1 | K16: 0 | L16: 0 | M16: 0 | N16: 0 | O16: 0 | P16: 0 | Q16: 0 | R16: 0 | U16: 102.7 | V16: 103.6 | W16: 102.7 | X16: 309.0 | Y16: 1 | Z16: 1 | AA16: Korrekt
A17: 8 | B17: ='Wettkampf 1'!B17 -> Schlarmann, Lena | C17: ='Wettkampf 1'!C17 -> Esterwegen V | D17: 310.0 | F17: 310.0 | G17: 0 | H17: 0 | I17: 310 | J17: 1 | K17: 0 | L17: 0 | M17: 0 | N17: 0 | O17: 0 | P17: 0 | Q17: 0 | R17: 0 | U17: 102.8 | V17: 103.4 | W17: 103.8 | X17: 310.0 | Y17: 1 | Z17: 1 | AA17: Korrekt
A18: 9 | B18: ='Wettkampf 1'!B18 -> Lindemann, Stefanie | C18: ='Wettkampf 1'!C18 -> Esterwegen V | D18: 298.4 | F18: 298.4 | G18: 0 | H18: 0 | I18: 298.4 | J18: 1 | K18: 0 | L18: 0 | M18: 0 | N18: 0 | O18: 0 | P18: 0 | Q18: 0 | R18: 0 | U18: 103.8 | V18: 98.3 | W18: 96.3 | X18: 298.4 | Y18: 1 | Z18: 1 | AA18: Korrekt
A19: 10 | B19: ='Wettkampf 1'!B19 -> Lindemann, Rita | C19: ='Wettkampf 1'!C19 -> Esterwegen V | D19: 315.0 | F19: 315.0 | G19: 0 | H19: 0 | I19: 315 | J19: 1 | K19: 0 | L19: 0 | M19: 0 | N19: 0 | O19: 0 | P19: 0 | Q19: 0 | R19: 0 | U19: 104.7 | V19: 105.8 | W19: 104.5 | X19: 315.0 | Y19: 1 | Z19: 1 | AA19: Korrekt
A20: 11 | B20: ='Wettkampf 1'!B20 -> Büter, Daniela | C20: ='Wettkampf 1'!C20 -> Esterwegen V | D20: 309.3 | E20: x | F20: 0 | G20: 0 | H20: 0 | I20: 0 | J20: 0 | K20: 0 | L20: 0 | M20: 0 | N20: 0 | O20: 0 | P20: 0 | Q20: 0 | R20: 0 | U20: 103.2 | V20: 102.2 | W20: 103.9 | X20: 309.3 | Y20: 1 | Z20: 1 | AA20: Korrekt
A21: 12 | B21: ='Wettkampf 1'!B21 -> Lindemann, Annemarie | C21: ='Wettkampf 1'!C21 -> Esterwegen V | D21: 305.5 | E21: x | F21: 0 | G21: 0 | H21: 0 | I21: 0 | J21: 0 | K21: 0 | L21: 0 | M21: 0 | N21: 0 | O21: 0 | P21: 0 | Q21: 0 | R21: 0 | U21: 100.8 | V21: 102.6 | W21: 102.1 | X21: 305.5 | Y21: 1 | Z21: 1 | AA21: Korrekt
A22: 13 | B22: ='Wettkampf 1'!B22 -> Preut, Susanne | C22: ='Wettkampf 1'!C22 -> Neuvrees II | D22: 308.4 | F22: 308.4 | G22: 0 | H22: 0 | I22: 0 | J22: 0 | K22: 308.4 | L22: 1 | M22: 0 | N22: 0 | O22: 0 | P22: 0 | Q22: 0 | R22: 0 | U22: 101.5 | V22: 103.2 | W22: 103.7 | X22: 308.4 | Y22: 1 | Z22: 1 | AA22: Korrekt
A23: 14 | B23: ='Wettkampf 1'!B23 -> Thunert, Silvia | C23: ='Wettkampf 1'!C23 -> Neuvrees II | D23: 308.4 | F23: 308.4 | G23: 0 | H23: 0 | I23: 0 | J23: 0 | K23: 308.4 | L23: 1 | M23: 0 | N23: 0 | O23: 0 | P23: 0 | Q23: 0 | R23: 0 | U23: 103.2 | V23: 101.5 | W23: 103.7 | X23: 308.4 | Y23: 1 | Z23: 1 | AA23: Korrekt
A24: 15 | B24: ='Wettkampf 1'!B24 -> Pohlmann, Margret | C24: ='Wettkampf 1'!C24 -> Neuvrees II | D24: 307.8 | E24: x | F24: 0 | G24: 0 | H24: 0 | I24: 0 | J24: 0 | K24: 0 | L24: 0 | M24: 0 | N24: 0 | O24: 0 | P24: 0 | Q24: 0 | R24: 0 | U24: 102.8 | V24: 101.1 | W24: 103.9 | X24: 307.8 | Y24: 1 | Z24: 1 | AA24: Korrekt
A25: 16 | B25: ='Wettkampf 1'!B25 -> Eilermann, Saskia | C25: ='Wettkampf 1'!C25 -> Neuvrees II | D25: 0.0 | E25: x | F25: 0 | G25: 0 | H25: 0 | I25: 0 | J25: 0 | K25: 0 | L25: 0 | M25: 0 | N25: 0 | O25: 0 | P25: 0 | Q25: 0 | R25: 0 | U25: 0.0 | V25: 0.0 | W25: 0.0 | X25: 0.0 | Y25: 1 | Z25: 0
A26: 17 | B26: ='Wettkampf 1'!B26 -> Junge, Silvia | C26: ='Wettkampf 1'!C26 -> Neuvrees II | D26: 279.3 | E26: x | F26: 0 | G26: 0 | H26: 0 | I26: 0 | J26: 0 | K26: 0 | L26: 0 | M26: 0 | N26: 0 | O26: 0 | P26: 0 | Q26: 0 | R26: 0 | U26: 91.3 | V26: 92.9 | W26: 95.1 | X26: 279.3 | Y26: 1 | Z26: 1 | AA26: Korrekt
A27: 18 | B27: ='Wettkampf 1'!B27 -> Evers, Claudia | C27: ='Wettkampf 1'!C27 -> Neuvrees II | D27: 299.9 | E27: x | F27: 0 | G27: 0 | H27: 0 | I27: 0 | J27: 0 | K27: 0 | L27: 0 | M27: 0 | N27: 0 | O27: 0 | P27: 0 | Q27: 0 | R27: 0 | U27: 99.6 | V27: 97.5 | W27: 102.8 | X27: 299.9 | Y27: 1 | Z27: 1 | AA27: Korrekt
A28: 19 | B28: ='Wettkampf 1'!B28 -> Schulte, Christina | C28: ='Wettkampf 1'!C28 -> Neuvrees II | D28: 308.4 | F28: 308.4 | G28: 0 | H28: 0 | I28: 0 | J28: 0 | K28: 308.4 | L28: 1 | M28: 0 | N28: 0 | O28: 0 | P28: 0 | Q28: 0 | R28: 0 | U28: 103.2 | V28: 102.2 | W28: 103.0 | X28: 308.4 | Y28: 1 | Z28: 1 | AA28: Korrekt
A29: 20 | B29: ='Wettkampf 1'!B29 -> Reinelt, Michaela | C29: ='Wettkampf 1'!C29 -> Lahn IV | D29: 309.1 | F29: 309.1 | G29: 0 | H29: 0 | I29: 0 | J29: 0 | K29: 0 | L29: 0 | M29: 309.1 | N29: 1 | O29: 0 | P29: 0 | Q29: 0 | R29: 0 | U29: 102.6 | V29: 103.3 | W29: 103.2 | X29: 309.1 | Y29: 1 | Z29: 1 | AA29: Korrekt
A30: 21 | B30: ='Wettkampf 1'!B30 -> Thien, Marita | C30: ='Wettkampf 1'!C30 -> Lahn IV | D30: 309.0 | F30: 309.0 | G30: 0 | H30: 0 | I30: 0 | J30: 0 | K30: 0 | L30: 0 | M30: 309 | N30: 1 | O30: 0 | P30: 0 | Q30: 0 | R30: 0 | U30: 102.8 | V30: 104.5 | W30: 101.7 | X30: 309.0 | Y30: 1 | Z30: 1 | AA30: Korrekt
A31: 22 | B31: ='Wettkampf 1'!B31 -> Robben, Anja | C31: ='Wettkampf 1'!C31 -> Lahn IV | D31: 307.3 | F31: 307.3 | G31: 0 | H31: 0 | I31: 0 | J31: 0 | K31: 0 | L31: 0 | M31: 307.3 | N31: 1 | O31: 0 | P31: 0 | Q31: 0 | R31: 0 | U31: 102.1 | V31: 102.9 | W31: 102.3 | X31: 307.3 | Y31: 1 | Z31: 1 | AA31: Korrekt
A32: 23 | B32: ='Wettkampf 1'!B32 -> Oldopp, Maria | C32: ='Wettkampf 1'!C32 -> Lahn IV | D32: 299.6 | E32: x | F32: 0 | G32: 0 | H32: 0 | I32: 0 | J32: 0 | K32: 0 | L32: 0 | M32: 0 | N32: 0 | O32: 0 | P32: 0 | Q32: 0 | R32: 0 | U32: 100.1 | V32: 100.1 | W32: 99.4 | X32: 299.6 | Y32: 1 | Z32: 1 | AA32: Korrekt
A33: 24 | B33: ='Wettkampf 1'!B33 -> Hanneken, Doris | C33: ='Wettkampf 1'!C33 -> Lahn IV | D33: 307.0 | F33: 307.0 | G33: 0 | H33: 0 | I33: 0 | J33: 0 | K33: 0 | L33: 0 | M33: 307 | N33: 1 | O33: 0 | P33: 0 | Q33: 0 | R33: 0 | U33: 101.9 | V33: 102.9 | W33: 102.2 | X33: 307.0 | Y33: 1 | Z33: 1 | AA33: Korrekt
A34: 25 | B34: ='Wettkampf 1'!B34 -> Kuchta, Gertrud | C34: ='Wettkampf 1'!C34 -> Börger III | D34: 299.6 | F34: 299.6 | G34: 0 | H34: 0 | I34: 0 | J34: 0 | K34: 0 | L34: 0 | M34: 0 | N34: 0 | O34: 299.6 | P34: 1 | Q34: 0 | R34: 0 | U34: 102.1 | V34: 104.1 | W34: 93.4 | X34: 299.6 | Y34: 1 | Z34: 1 | AA34: Korrekt
A35: 26 | B35: ='Wettkampf 1'!B35 -> Jungsthöfel, Sabine | C35: ='Wettkampf 1'!C35 -> Börger III | D35: 299.9 | F35: 299.9 | G35: 0 | H35: 0 | I35: 0 | J35: 0 | K35: 0 | L35: 0 | M35: 0 | N35: 0 | O35: 299.9 | P35: 1 | Q35: 0 | R35: 0 | U35: 98.9 | V35: 100.5 | W35: 100.5 | X35: 299.9 | Y35: 1 | Z35: 1 | AA35: Korrekt
A36: 27 | B36: ='Wettkampf 1'!B36 -> Schwarte, Gundula | C36: ='Wettkampf 1'!C36 -> Börger III | D36: 0.0 | E36: x | F36: 0 | G36: 0 | H36: 0 | I36: 0 | J36: 0 | K36: 0 | L36: 0 | M36: 0 | N36: 0 | O36: 0 | P36: 0 | Q36: 0 | R36: 0 | U36: 0.0 | V36: 0.0 | W36: 0.0 | X36: 0.0 | Y36: 1 | Z36: 0
A37: 28 | B37: ='Wettkampf 1'!B37 -> Geers, Christa | C37: ='Wettkampf 1'!C37 -> Börger III | D37: 311.0 | F37: 311.0 | G37: 0 | H37: 0 | I37: 0 | J37: 0 | K37: 0 | L37: 0 | M37: 0 | N37: 0 | O37: 311 | P37: 1 | Q37: 0 | R37: 0 | U37: 103.5 | V37: 103.5 | W37: 104.0 | X37: 311.0 | Y37: 1 | Z37: 1 | AA37: Korrekt
A38: 29 | B38: ='Wettkampf 1'!B38 -> Remmers, Tanja | C38: ='Wettkampf 1'!C38 -> Börger III | D38: 290.6 | E38: x | F38: 0 | G38: 0 | H38: 0 | I38: 0 | J38: 0 | K38: 0 | L38: 0 | M38: 0 | N38: 0 | O38: 0 | P38: 0 | Q38: 0 | R38: 0 | U38: 98.7 | V38: 99.8 | W38: 92.1 | X38: 290.6 | Y38: 1 | Z38: 1 | AA38: Korrekt
A39: 30 | B39: ='Wettkampf 1'!B39 -> Terhalle, Johanna | C39: ='Wettkampf 1'!C39 -> Börger III | D39: 309.4 | F39: 309.4 | G39: 0 | H39: 0 | I39: 0 | J39: 0 | K39: 0 | L39: 0 | M39: 0 | N39: 0 | O39: 309.4 | P39: 1 | Q39: 0 | R39: 0 | U39: 102.4 | V39: 104.1 | W39: 102.9 | X39: 309.4 | Y39: 1 | Z39: 1 | AA39: Korrekt
A40: 31 | B40: ='Wettkampf 1'!B40 -> Hackstette, Lena | C40: ='Wettkampf 1'!C40 -> Lahn III | D40: 301.9 | F40: 301.9 | G40: 0 | H40: 0 | I40: 0 | J40: 0 | K40: 0 | L40: 0 | M40: 0 | N40: 0 | O40: 0 | P40: 0 | Q40: 301.9 | R40: 1 | U40: 99.6 | V40: 101.8 | W40: 100.5 | X40: 301.9 | Y40: 1 | Z40: 1 | AA40: Korrekt
A41: 32 | B41: ='Wettkampf 1'!B41 -> Thyen, Christel | C41: ='Wettkampf 1'!C41 -> Lahn III | D41: 313.0 | F41: 313.0 | G41: 0 | H41: 0 | I41: 0 | J41: 0 | K41: 0 | L41: 0 | M41: 0 | N41: 0 | O41: 0 | P41: 0 | Q41: 313 | R41: 1 | U41: 104.6 | V41: 103.1 | W41: 105.3 | X41: 313.0 | Y41: 1 | Z41: 1 | AA41: Korrekt
A42: 33 | B42: ='Wettkampf 1'!B42 -> Ostermann, Hildegard | C42: ='Wettkampf 1'!C42 -> Lahn III | D42: 309.7 | F42: 309.7 | G42: 0 | H42: 0 | I42: 0 | J42: 0 | K42: 0 | L42: 0 | M42: 0 | N42: 0 | O42: 0 | P42: 0 | Q42: 309.7 | R42: 1 | U42: 104.0 | V42: 102.4 | W42: 103.3 | X42: 309.7 | Y42: 1 | Z42: 1 | AA42: Korrekt
A43: 34 | B43: ='Wettkampf 1'!B43 -> Willoh, Henrika | C43: ='Wettkampf 1'!C43 -> Lahn III | D43: 310.7 | F43: 310.7 | G43: 0 | H43: 0 | I43: 0 | J43: 0 | K43: 0 | L43: 0 | M43: 0 | N43: 0 | O43: 0 | P43: 0 | Q43: 310.7 | R43: 1 | U43: 102.4 | V43: 103.9 | W43: 104.4 | X43: 310.7 | Y43: 1 | Z43: 1 | AA43: Korrekt
A44: 35 | B44: ='Wettkampf 1'!B44 -> Müller, Anita | C44: ='Wettkampf 1'!C44 -> Lahn III | D44: 305.3 | E44: x | F44: 0 | G44: 0 | H44: 0 | I44: 0 | J44: 0 | K44: 0 | L44: 0 | M44: 0 | N44: 0 | O44: 0 | P44: 0 | Q44: 0 | R44: 0 | U44: 100.0 | V44: 100.9 | W44: 104.4 | X44: 305.3 | Y44: 1 | Z44: 1 | AA44: Korrekt
A45: 36 | B45: ='Wettkampf 1'!B45 -> Wilken, Elena | C45: ='Wettkampf 1'!C45 -> Lahn III | D45: 309.7 | E45: x | F45: 0 | G45: 0 | H45: 0 | I45: 0 | J45: 0 | K45: 0 | L45: 0 | M45: 0 | N45: 0 | O45: 0 | P45: 0 | Q45: 0 | R45: 0 | U45: 104.9 | V45: 102.2 | W45: 102.6 | X45: 309.7 | Y45: 1 | Z45: 1 | AA45: Korrekt
G46: =LARGE(G10:G45,1)+LARGE(G10:G45,2)+LARGE(G10:G45,3) -> 922.4 | H46: =SUM(H10:H45) -> 4 | I46: =LARGE(I10:I45,1)+LARGE(I10:I45,2)+LARGE(I10:I45,3) -> 934 | J46: =SUM(J10:J45) -> 4 | K46: =LARGE(K10:K45,1)+LARGE(K10:K45,2)+LARGE(K10:K45,3) -> 925.2 | L46: =SUM(L10:L45) -> 3 | M46: =LARGE(M10:M45,1)+LARGE(M10:M45,2)+LARGE(M10:M45,3) -> 925.4 | N46: =SUM(N10:N45) -> 4 | O46: =LARGE(O10:O45,1)+LARGE(O10:O45,2)+LARGE(O10:O45,3) -> 920.3 | P46: =SUM(P10:P45) -> 4 | Q46: =LARGE(Q10:Q45,1)+LARGE(Q10:Q45,2)+LARGE(Q10:Q45,3) -> 933.4 | R46: =SUM(R10:S45) -> 4
C47: per Email an: sk-huemmling@gmx.de

Sheet 5
B1: Verein / Gruppe | D1: Ergebnisse | V1: Austragungsort: | W1: =Übersicht!H4 -> Lahn
A2: 1 | B2: ='Wettkampf 1'!B2 -> Börger II | D2: =G46 -> 925.5 | E2: =IF(H46>4,"Es sind zu viele Schützen in Wertung!"," ") ->  | V2: Wettkampftag: | W2: =Übersicht!H3 -> 01.12.
A3: 2 | B3: ='Wettkampf 1'!B3 -> Esterwegen V | D3: =I46 -> 935.8 | E3: =IF(J46>4,"Es sind zu viele Schützen in Wertung!"," ") -> 
A4: 3 | B4: ='Wettkampf 1'!B4 -> Neuvrees II | D4: =K46 -> 923.2 | E4: =IF(L46>4,"Es sind zu viele Schützen in Wertung!"," ") ->  | X4: Ansprechpartner für Rückfragen:
A5: 4 | B5: ='Wettkampf 1'!B5 -> Lahn IV | D5: =M46 -> 930.5 | E5: =IF(N46>4,"Es sind zu viele Schützen in Wertung!"," ") ->  | V5: Name: | W5: Hildegard Ostermann
A6: 5 | B6: ='Wettkampf 1'!B6 -> Börger III | D6: =O46 -> 925.2 | E6: =IF(P46>4,"Es sind zu viele Schützen in Wertung!"," ") ->  | V6: Tel:
A7: 6 | B7: ='Wettkampf 1'!B7 -> Lahn III | D7: =Q46 -> 937.2 | E7: =IF(R46>4,"Es sind zu viele Schützen in Wertung!"," ") ->  | V7: Standaufsicht: | W7: Hildegard Ostermann
B9: Einzelergebnisse: | C9: Verein / Gruppe | D9: Ergebnisse (mindestens 0 eintragen) | E9: AW? Dann x eintippen | G9: Verein 1 | I9: Verein 2 | K9: Verein 3 | M9: Verein 4 | O9: Verein 5 | Q9: Verein 6 | U9: Proberechnung bei Streifen:
A10: 1 | B10: ='Wettkampf 1'!B10 -> Kossenjans, Annegret | C10: ='Wettkampf 1'!C10 -> Börger II | D10: 307.8 | F10: =IF(E10="x","0",D10) -> 307.8 | G10: =IF(C10=$B$2,F10,0) -> 307.8 | H10: =(IF(AND($E10="",$C10=$B$2),1,0)) -> 1 | I10: =IF($C10=$B$3,F10,0) -> 0 | J10: =(IF(AND($E10="",$C10=$B$3),1,0)) -> 0 | K10: =IF($C10=$B$4,F10,0) -> 0 | L10: =(IF(AND($E10="",$C10=$B$4),1,0)) -> 0 | M10: =IF($C10=$B$5,F10,0) -> 0 | N10: =(IF(AND($E10="",$C10=$B$5),1,0)) -> 0 | O10: =IF($C10=$B$6,F10,0) -> 0 | P10: =(IF(AND($E10="",$C10=$B$6),1,0)) -> 0 | Q10: =IF($C10=$B$7,F10,0) -> 0 | R10: =(IF(AND($E10="",$C10=$B$7),1,0)) -> 0 | X10: =U10+V10+W10 -> 0.0 | Y10: =IF(X10=D10,1,0) -> 0 | Z10: =IF(X10=0,0,1) -> 0 | AA10: =IF(Y10+Z10=2,"Korrekt","") -> 
A11: 2 | B11: ='Wettkampf 1'!B11 -> Jansen, Elisabeth | C11: ='Wettkampf 1'!C11 -> Börger II | D11: 306.7 | E11: x | F11: =IF(E11="x","0",D11) -> 0 | G11: =IF(C11=$B$2,F11,0) -> 0 | H11: =(IF(AND($E11="",$C11=$B$2),1,0)) -> 0 | I11: =IF($C11=$B$3,F11,0) -> 0 | J11: =(IF(AND($E11="",$C11=$B$3),1,0)) -> 0 | K11: =IF($C11=$B$4,F11,0) -> 0 | L11: =(IF(AND($E11="",$C11=$B$4),1,0)) -> 0 | M11: =IF($C11=$B$5,F11,0) -> 0 | N11: =(IF(AND($E11="",$C11=$B$5),1,0)) -> 0 | O11: =IF($C11=$B$6,F11,0) -> 0 | P11: =(IF(AND($E11="",$C11=$B$6),1,0)) -> 0 | Q11: =IF($C11=$B$7,F11,0) -> 0 | R11: =(IF(AND($E11="",$C11=$B$7),1,0)) -> 0 | X11: =U11+V11+W11 -> 0.0 | Y11: =IF(X11=D11,1,0) -> 0 | Z11: =IF(X11=0,0,1) -> 0 | AA11: =IF(Y11+Z11=2,"Korrekt","") -> 
A12: 3 | B12: ='Wettkampf 1'!B12 -> Krömer, Monika | C12: ='Wettkampf 1'!C12 -> Börger II | D12: 294.7 | F12: 294.7 | G12: 294.7 | H12: 1 | I12: 0 | J12: 0 | K12: 0 | L12: 0 | M12: 0 | N12: 0 | O12: 0 | P12: 0 | Q12: 0 | R12: 0 | X12: 0.0 | Y12: 0 | Z12: 0
A13: 4 | B13: ='Wettkampf 1'!B13 -> Pohlgeers, Margret | C13: ='Wettkampf 1'!C13 -> Börger II | D13: 309.3 | F13: 309.3 | G13: 309.3 | H13: 1 | I13: 0 | J13: 0 | K13: 0 | L13: 0 | M13: 0 | N13: 0 | O13: 0 | P13: 0 | Q13: 0 | R13: 0 | X13: 0.0 | Y13: 0 | Z13: 0
A14: 5 | B14: ='Wettkampf 1'!B14 -> Pohlgeers, Silvia | C14: ='Wettkampf 1'!C14 -> Börger II | D14: 308.4 | F14: 308.4 | G14: 308.4 | H14: 1 | I14: 0 | J14: 0 | K14: 0 | L14: 0 | M14: 0 | N14: 0 | O14: 0 | P14: 0 | Q14: 0 | R14: 0 | X14: 0.0 | Y14: 0 | Z14: 0
A15: 6 | B15: ='Wettkampf 1'!B15 -> Schwarte, Annette | C15: ='Wettkampf 1'!C15 -> Börger II | E15: x | F15: 0 | G15: 0 | H15: 0 | I15: 0 | J15: 0 | K15: 0 | L15: 0 | M15: 0 | N15: 0 | O15: 0 | P15: 0 | Q15: 0 | R15: 0 | X15: 0.0 | Y15: 1 | Z15: 0
A16: 7 | B16: ='Wettkampf 1'!B16 -> Lindemann, Kerstin | C16: ='Wettkampf 1'!C16 -> Esterwegen V | D16: 307.9 | F16: 307.9 | G16: 0 | H16: 0 | I16: 307.9 | J16: 1 | K16: 0 | L16: 0 | M16: 0 | N16: 0 | O16: 0 | P16: 0 | Q16: 0 | R16: 0 | X16: 0.0 | Y16: 0 | Z16: 0
A17: 8 | B17: ='Wettkampf 1'!B17 -> Schlarmann, Lena | C17: ='Wettkampf 1'!C17 -> Esterwegen V | D17: 311.3 | F17: 311.3 | G17: 0 | H17: 0 | I17: 311.3 | J17: 1 | K17: 0 | L17: 0 | M17: 0 | N17: 0 | O17: 0 | P17: 0 | Q17: 0 | R17: 0 | X17: 0.0 | Y17: 0 | Z17: 0
A18: 9 | B18: ='Wettkampf 1'!B18 -> Lindemann, Stefanie | C18: ='Wettkampf 1'!C18 -> Esterwegen V | D18: 303.1 | E18: x | F18: 0 | G18: 0 | H18: 0 | I18: 0 | J18: 0 | K18: 0 | L18: 0 | M18: 0 | N18: 0 | O18: 0 | P18: 0 | Q18: 0 | R18: 0 | X18: 0.0 | Y18: 0 | Z18: 0
A19: 10 | B19: ='Wettkampf 1'!B19 -> Lindemann, Rita | C19: ='Wettkampf 1'!C19 -> Esterwegen V | D19: 316.6 | F19: 316.6 | G19: 0 | H19: 0 | I19: 316.6 | J19: 1 | K19: 0 | L19: 0 | M19: 0 | N19: 0 | O19: 0 | P19: 0 | Q19: 0 | R19: 0 | X19: 0.0 | Y19: 0 | Z19: 0
A20: 11 | B20: ='Wettkampf 1'!B20 -> Büter, Daniela | C20: ='Wettkampf 1'!C20 -> Esterwegen V | D20: 306.5 | F20: 306.5 | G20: 0 | H20: 0 | I20: 306.5 | J20: 1 | K20: 0 | L20: 0 | M20: 0 | N20: 0 | O20: 0 | P20: 0 | Q20: 0 | R20: 0 | X20: 0.0 | Y20: 0 | Z20: 0
A21: 12 | B21: ='Wettkampf 1'!B21 -> Lindemann, Annemarie | C21: ='Wettkampf 1'!C21 -> Esterwegen V | D21: 306.3 | E21: x | F21: 0 | G21: 0 | H21: 0 | I21: 0 | J21: 0 | K21: 0 | L21: 0 | M21: 0 | N21: 0 | O21: 0 | P21: 0 | Q21: 0 | R21: 0 | X21: 0.0 | Y21: 0 | Z21: 0
A22: 13 | B22: ='Wettkampf 1'!B22 -> Preut, Susanne | C22: ='Wettkampf 1'!C22 -> Neuvrees II | E22: x | F22: 0 | G22: 0 | H22: 0 | I22: 0 | J22: 0 | K22: 0 | L22: 0 | M22: 0 | N22: 0 | O22: 0 | P22: 0 | Q22: 0 | R22: 0 | X22: 0.0 | Y22: 1 | Z22: 0
A23: 14 | B23: ='Wettkampf 1'!B23 -> Thunert, Silvia | C23: ='Wettkampf 1'!C23 -> Neuvrees II | D23: 308.3 | F23: 308.3 | G23: 0 | H23: 0 | I23: 0 | J23: 0 | K23: 308.3 | L23: 1 | M23: 0 | N23: 0 | O23: 0 | P23: 0 | Q23: 0 | R23: 0 | X23: 0.0 | Y23: 0 | Z23: 0
A24: 15 | B24: ='Wettkampf 1'!B24 -> Pohlmann, Margret | C24: ='Wettkampf 1'!C24 -> Neuvrees II | D24: 309.1 | F24: 309.1 | G24: 0 | H24: 0 | I24: 0 | J24: 0 | K24: 309.1 | L24: 1 | M24: 0 | N24: 0 | O24: 0 | P24: 0 | Q24: 0 | R24: 0 | X24: 0.0 | Y24: 0 | Z24: 0
A25: 16 | B25: ='Wettkampf 1'!B25 -> Eilermann, Saskia | C25: ='Wettkampf 1'!C25 -> Neuvrees II | E25: x | F25: 0 | G25: 0 | H25: 0 | I25: 0 | J25: 0 | K25: 0 | L25: 0 | M25: 0 | N25: 0 | O25: 0 | P25: 0 | Q25: 0 | R25: 0 | X25: 0.0 | Y25: 1 | Z25: 0
A26: 17 | B26: ='Wettkampf 1'!B26 -> Junge, Silvia | C26: ='Wettkampf 1'!C26 -> Neuvrees II | D26: 295.1 | E26: x | F26: 0 | G26: 0 | H26: 0 | I26: 0 | J26: 0 | K26: 0 | L26: 0 | M26: 0 | N26: 0 | O26: 0 | P26: 0 | Q26: 0 | R26: 0 | X26: 0.0 | Y26: 0 | Z26: 0
A27: 18 | B27: ='Wettkampf 1'!B27 -> Evers, Claudia | C27: ='Wettkampf 1'!C27 -> Neuvrees II | D27: 303.2 | F27: 303.2 | G27: 0 | H27: 0 | I27: 0 | J27: 0 | K27: 303.2 | L27: 1 | M27: 0 | N27: 0 | O27: 0 | P27: 0 | Q27: 0 | R27: 0 | X27: 0.0 | Y27: 0 | Z27: 0
A28: 19 | B28: ='Wettkampf 1'!B28 -> Schulte, Christina | C28: ='Wettkampf 1'!C28 -> Neuvrees II | D28: 305.8 | F28: 305.8 | G28: 0 | H28: 0 | I28: 0 | J28: 0 | K28: 305.8 | L28: 1 | M28: 0 | N28: 0 | O28: 0 | P28: 0 | Q28: 0 | R28: 0 | X28: 0.0 | Y28: 0 | Z28: 0
A29: 20 | B29: ='Wettkampf 1'!B29 -> Reinelt, Michaela | C29: ='Wettkampf 1'!C29 -> Lahn IV | D29: 310.8 | F29: 310.8 | G29: 0 | H29: 0 | I29: 0 | J29: 0 | K29: 0 | L29: 0 | M29: 310.8 | N29: 1 | O29: 0 | P29: 0 | Q29: 0 | R29: 0 | X29: 0.0 | Y29: 0 | Z29: 0
A30: 21 | B30: ='Wettkampf 1'!B30 -> Thien, Marita | C30: ='Wettkampf 1'!C30 -> Lahn IV | D30: 311.7 | F30: 311.7 | G30: 0 | H30: 0 | I30: 0 | J30: 0 | K30: 0 | L30: 0 | M30: 311.7 | N30: 1 | O30: 0 | P30: 0 | Q30: 0 | R30: 0 | X30: 0.0 | Y30: 0 | Z30: 0
A31: 22 | B31: ='Wettkampf 1'!B31 -> Robben, Anja | C31: ='Wettkampf 1'!C31 -> Lahn IV | D31: 308.0 | F31: 308.0 | G31: 0 | H31: 0 | I31: 0 | J31: 0 | K31: 0 | L31: 0 | M31: 308 | N31: 1 | O31: 0 | P31: 0 | Q31: 0 | R31: 0 | X31: 0.0 | Y31: 0 | Z31: 0
A32: 23 | B32: ='Wettkampf 1'!B32 -> Oldopp, Maria | C32: ='Wettkampf 1'!C32 -> Lahn IV | D32: 297.2 | E32: x | F32: 0 | G32: 0 | H32: 0 | I32: 0 | J32: 0 | K32: 0 | L32: 0 | M32: 0 | N32: 0 | O32: 0 | P32: 0 | Q32: 0 | R32: 0 | X32: 0.0 | Y32: 0 | Z32: 0
A33: 24 | B33: ='Wettkampf 1'!B33 -> Hanneken, Doris | C33: ='Wettkampf 1'!C33 -> Lahn IV | D33: 307.5 | F33: 307.5 | G33: 0 | H33: 0 | I33: 0 | J33: 0 | K33: 0 | L33: 0 | M33: 307.5 | N33: 1 | O33: 0 | P33: 0 | Q33: 0 | R33: 0 | X33: 0.0 | Y33: 0 | Z33: 0
A34: 25 | B34: ='Wettkampf 1'!B34 -> Kuchta, Gertrud | C34: ='Wettkampf 1'!C34 -> Börger III | D34: 306.5 | F34: 306.5 | G34: 0 | H34: 0 | I34: 0 | J34: 0 | K34: 0 | L34: 0 | M34: 0 | N34: 0 | O34: 306.5 | P34: 1 | Q34: 0 | R34: 0 | X34: 0.0 | Y34: 0 | Z34: 0
A35: 26 | B35: ='Wettkampf 1'!B35 -> Jungsthöfel, Sabine | C35: ='Wettkampf 1'!C35 -> Börger III | D35: 304.8 | E35: x | F35: 0 | G35: 0 | H35: 0 | I35: 0 | J35: 0 | K35: 0 | L35: 0 | M35: 0 | N35: 0 | O35: 0 | P35: 0 | Q35: 0 | R35: 0 | X35: 0.0 | Y35: 0 | Z35: 0
A36: 27 | B36: ='Wettkampf 1'!B36 -> Schwarte, Gundula | C36: ='Wettkampf 1'!C36 -> Börger III | D36: 300.8 | F36: 300.8 | G36: 0 | H36: 0 | I36: 0 | J36: 0 | K36: 0 | L36: 0 | M36: 0 | N36: 0 | O36: 300.8 | P36: 1 | Q36: 0 | R36: 0 | X36: 0.0 | Y36: 0 | Z36: 0
A37: 28 | B37: ='Wettkampf 1'!B37 -> Geers, Christa | C37: ='Wettkampf 1'!C37 -> Börger III | D37: 307.3 | F37: 307.3 | G37: 0 | H37: 0 | I37: 0 | J37: 0 | K37: 0 | L37: 0 | M37: 0 | N37: 0 | O37: 307.3 | P37: 1 | Q37: 0 | R37: 0 | X37: 0.0 | Y37: 0 | Z37: 0
A38: 29 | B38: ='Wettkampf 1'!B38 -> Remmers, Tanja | C38: ='Wettkampf 1'!C38 -> Börger III | D38: 289.2 | E38: x | F38: 0 | G38: 0 | H38: 0 | I38: 0 | J38: 0 | K38: 0 | L38: 0 | M38: 0 | N38: 0 | O38: 0 | P38: 0 | Q38: 0 | R38: 0 | X38: 0.0 | Y38: 0 | Z38: 0
A39: 30 | B39: ='Wettkampf 1'!B39 -> Terhalle, Johanna | C39: ='Wettkampf 1'!C39 -> Börger III | D39: 311.4 | F39: 311.4 | G39: 0 | H39: 0 | I39: 0 | J39: 0 | K39: 0 | L39: 0 | M39: 0 | N39: 0 | O39: 311.4 | P39: 1 | Q39: 0 | R39: 0 | X39: 0.0 | Y39: 0 | Z39: 0
A40: 31 | B40: ='Wettkampf 1'!B40 -> Hackstette, Lena | C40: ='Wettkampf 1'!C40 -> Lahn III | D40: 307.4 | E40: x | F40: 0 | G40: 0 | H40: 0 | I40: 0 | J40: 0 | K40: 0 | L40: 0 | M40: 0 | N40: 0 | O40: 0 | P40: 0 | Q40: 0 | R40: 0 | X40: 0.0 | Y40: 0 | Z40: 0
A41: 32 | B41: ='Wettkampf 1'!B41 -> Thyen, Christel | C41: ='Wettkampf 1'!C41 -> Lahn III | D41: 314.8 | F41: 314.8 | G41: 0 | H41: 0 | I41: 0 | J41: 0 | K41: 0 | L41: 0 | M41: 0 | N41: 0 | O41: 0 | P41: 0 | Q41: 314.8 | R41: 1 | X41: 0.0 | Y41: 0 | Z41: 0
A42: 33 | B42: ='Wettkampf 1'!B42 -> Ostermann, Hildegard | C42: ='Wettkampf 1'!C42 -> Lahn III | D42: 312.1 | F42: 312.1 | G42: 0 | H42: 0 | I42: 0 | J42: 0 | K42: 0 | L42: 0 | M42: 0 | N42: 0 | O42: 0 | P42: 0 | Q42: 312.1 | R42: 1 | X42: 0.0 | Y42: 0 | Z42: 0
A43: 34 | B43: ='Wettkampf 1'!B43 -> Willoh, Henrika | C43: ='Wettkampf 1'!C43 -> Lahn III | D43: 310.3 | F43: 310.3 | G43: 0 | H43: 0 | I43: 0 | J43: 0 | K43: 0 | L43: 0 | M43: 0 | N43: 0 | O43: 0 | P43: 0 | Q43: 310.3 | R43: 1 | X43: 0.0 | Y43: 0 | Z43: 0
A44: 35 | B44: ='Wettkampf 1'!B44 -> Müller, Anita | C44: ='Wettkampf 1'!C44 -> Lahn III | D44: 305.4 | E44: x | F44: 0 | G44: 0 | H44: 0 | I44: 0 | J44: 0 | K44: 0 | L44: 0 | M44: 0 | N44: 0 | O44: 0 | P44: 0 | Q44: 0 | R44: 0 | X44: 0.0 | Y44: 0 | Z44: 0
A45: 36 | B45: ='Wettkampf 1'!B45 -> Wilken, Elena | C45: ='Wettkampf 1'!C45 -> Lahn III | D45: 306.8 | F45: 306.8 | G45: 0 | H45: 0 | I45: 0 | J45: 0 | K45: 0 | L45: 0 | M45: 0 | N45: 0 | O45: 0 | P45: 0 | Q45: 306.8 | R45: 1 | X45: 0.0 | Y45: 0 | Z45: 0
G46: =LARGE(G10:G45,1)+LARGE(G10:G45,2)+LARGE(G10:G45,3) -> 925.5 | H46: =SUM(H10:H45) -> 4 | I46: =LARGE(I10:I45,1)+LARGE(I10:I45,2)+LARGE(I10:I45,3) -> 935.8 | J46: =SUM(J10:J45) -> 4 | K46: =LARGE(K10:K45,1)+LARGE(K10:K45,2)+LARGE(K10:K45,3) -> 923.2 | L46: =SUM(L10:L45) -> 4 | M46: =LARGE(M10:M45,1)+LARGE(M10:M45,2)+LARGE(M10:M45,3) -> 930.5 | N46: =SUM(N10:N45) -> 4 | O46: =LARGE(O10:O45,1)+LARGE(O10:O45,2)+LARGE(O10:O45,3) -> 925.2 | P46: =SUM(P10:P45) -> 4 | Q46: =LARGE(Q10:Q45,1)+LARGE(Q10:Q45,2)+LARGE(Q10:Q45,3) -> 937.2 | R46: =SUM(R10:S45) -> 4
C47: per Email an: sk-huemmling@gmx.de

Sheet 6
B1: Verein / Gruppe | D1: Ergebnisse | V1: Austragungsort: | W1: =Übersicht!I4 -> Börger
A2: 1 | B2: ='Wettkampf 1'!B2 -> Börger II | D2: =G46 -> 930.4 | E2: =IF(H46>4,"Es sind zu viele Schützen in Wertung!"," ") ->  | V2: Wettkampftag: | W2: =Übersicht!I3 -> 15.12.
A3: 2 | B3: ='Wettkampf 1'!B3 -> Esterwegen V | D3: =I46 -> 933.2 | E3: =IF(J46>4,"Es sind zu viele Schützen in Wertung!"," ") -> 
A4: 3 | B4: ='Wettkampf 1'!B4 -> Neuvrees II | D4: =K46 -> 920.9 | E4: =IF(L46>4,"Es sind zu viele Schützen in Wertung!"," ") ->  | X4: Ansprechpartner für Rückfragen:
A5: 4 | B5: ='Wettkampf 1'!B5 -> Lahn IV | D5: =M46 -> 929.6 | E5: =IF(N46>4,"Es sind zu viele Schützen in Wertung!"," ") ->  | V5: Name: | W5: Geers
A6: 5 | B6: ='Wettkampf 1'!B6 -> Börger III | D6: =O46 -> 917.0 | E6: =IF(P46>4,"Es sind zu viele Schützen in Wertung!"," ") ->  | V6: Tel: | W6: 05953431
A7: 6 | B7: ='Wettkampf 1'!B7 -> Lahn III | D7: =Q46 -> 923.6 | E7: =IF(R46>4,"Es sind zu viele Schützen in Wertung!"," ") ->  | V7: Standaufsicht: | W7: Christa Geers
B9: Einzelergebnisse: | C9: Verein / Gruppe | D9: Ergebnisse (mindestens 0 eintragen) | E9: AW? Dann x eintippen | G9: Verein 1 | I9: Verein 2 | K9: Verein 3 | M9: Verein 4 | O9: Verein 5 | Q9: Verein 6 | U9: Proberechnung bei Streifen:
A10: 1 | B10: ='Wettkampf 1'!B10 -> Kossenjans, Annegret | C10: ='Wettkampf 1'!C10 -> Börger II | D10: 301.9 | F10: =IF(E10="x","0",D10) -> 301.9 | G10: =IF(C10=$B$2,F10,0) -> 301.9 | H10: =(IF(AND($E10="",$C10=$B$2),1,0)) -> 1 | I10: =IF($C10=$B$3,F10,0) -> 0 | J10: =(IF(AND($E10="",$C10=$B$3),1,0)) -> 0 | K10: =IF($C10=$B$4,F10,0) -> 0 | L10: =(IF(AND($E10="",$C10=$B$4),1,0)) -> 0 | M10: =IF($C10=$B$5,F10,0) -> 0 | N10: =(IF(AND($E10="",$C10=$B$5),1,0)) -> 0 | O10: =IF($C10=$B$6,F10,0) -> 0 | P10: =(IF(AND($E10="",$C10=$B$6),1,0)) -> 0 | Q10: =IF($C10=$B$7,F10,0) -> 0 | R10: =(IF(AND($E10="",$C10=$B$7),1,0)) -> 0 | X10: =U10+V10+W10 -> 0.0 | Y10: =IF(X10=D10,1,0) -> 0 | Z10: =IF(X10=0,0,1) -> 0 | AA10: =IF(Y10+Z10=2,"Korrekt","") -> 
A11: 2 | B11: ='Wettkampf 1'!B11 -> Jansen, Elisabeth | C11: ='Wettkampf 1'!C11 -> Börger II | D11: 311.6 | F11: =IF(E11="x","0",D11) -> 311.6 | G11: =IF(C11=$B$2,F11,0) -> 311.6 | H11: =(IF(AND($E11="",$C11=$B$2),1,0)) -> 1 | I11: =IF($C11=$B$3,F11,0) -> 0 | J11: =(IF(AND($E11="",$C11=$B$3),1,0)) -> 0 | K11: =IF($C11=$B$4,F11,0) -> 0 | L11: =(IF(AND($E11="",$C11=$B$4),1,0)) -> 0 | M11: =IF($C11=$B$5,F11,0) -> 0 | N11: =(IF(AND($E11="",$C11=$B$5),1,0)) -> 0 | O11: =IF($C11=$B$6,F11,0) -> 0 | P11: =(IF(AND($E11="",$C11=$B$6),1,0)) -> 0 | Q11: =IF($C11=$B$7,F11,0) -> 0 | R11: =(IF(AND($E11="",$C11=$B$7),1,0)) -> 0 | X11: =U11+V11+W11 -> 0.0 | Y11: =IF(X11=D11,1,0) -> 0 | Z11: =IF(X11=0,0,1) -> 0 | AA11: =IF(Y11+Z11=2,"Korrekt","") -> 
A12: 3 | B12: ='Wettkampf 1'!B12 -> Krömer, Monika | C12: ='Wettkampf 1'!C12 -> Börger II | D12: 301.0 | E12: x | F12: 0 | G12: 0 | H12: 0 | I12: 0 | J12: 0 | K12: 0 | L12: 0 | M12: 0 | N12: 0 | O12: 0 | P12: 0 | Q12: 0 | R12: 0 | X12: 0.0 | Y12: 0 | Z12: 0
A13: 4 | B13: ='Wettkampf 1'!B13 -> Pohlgeers, Margret | C13: ='Wettkampf 1'!C13 -> Börger II | D13: 312.4 | F13: 312.4 | G13: 312.4 | H13: 1 | I13: 0 | J13: 0 | K13: 0 | L13: 0 | M13: 0 | N13: 0 | O13: 0 | P13: 0 | Q13: 0 | R13: 0 | X13: 0.0 | Y13: 0 | Z13: 0
A14: 5 | B14: ='Wettkampf 1'!B14 -> Pohlgeers, Silvia | C14: ='Wettkampf 1'!C14 -> Börger II | D14: 306.4 | F14: 306.4 | G14: 306.4 | H14: 1 | I14: 0 | J14: 0 | K14: 0 | L14: 0 | M14: 0 | N14: 0 | O14: 0 | P14: 0 | Q14: 0 | R14: 0 | X14: 0.0 | Y14: 0 | Z14: 0
A15: 6 | B15: ='Wettkampf 1'!B15 -> Schwarte, Annette | C15: ='Wettkampf 1'!C15 -> Börger II | D15: 0.0 | E15: x | F15: 0 | G15: 0 | H15: 0 | I15: 0 | J15: 0 | K15: 0 | L15: 0 | M15: 0 | N15: 0 | O15: 0 | P15: 0 | Q15: 0 | R15: 0 | X15: 0.0 | Y15: 1 | Z15: 0
A16: 7 | B16: ='Wettkampf 1'!B16 -> Lindemann, Kerstin | C16: ='Wettkampf 1'!C16 -> Esterwegen V | D16: 306.6 | F16: 306.6 | G16: 0 | H16: 0 | I16: 306.6 | J16: 1 | K16: 0 | L16: 0 | M16: 0 | N16: 0 | O16: 0 | P16: 0 | Q16: 0 | R16: 0 | X16: 0.0 | Y16: 0 | Z16: 0
A17: 8 | B17: ='Wettkampf 1'!B17 -> Schlarmann, Lena | C17: ='Wettkampf 1'!C17 -> Esterwegen V | D17: 311.0 | F17: 311.0 | G17: 0 | H17: 0 | I17: 311 | J17: 1 | K17: 0 | L17: 0 | M17: 0 | N17: 0 | O17: 0 | P17: 0 | Q17: 0 | R17: 0 | X17: 0.0 | Y17: 0 | Z17: 0
A18: 9 | B18: ='Wettkampf 1'!B18 -> Lindemann, Stefanie | C18: ='Wettkampf 1'!C18 -> Esterwegen V | D18: 306.8 | E18: x | F18: 0 | G18: 0 | H18: 0 | I18: 0 | J18: 0 | K18: 0 | L18: 0 | M18: 0 | N18: 0 | O18: 0 | P18: 0 | Q18: 0 | R18: 0 | X18: 0.0 | Y18: 0 | Z18: 0
A19: 10 | B19: ='Wettkampf 1'!B19 -> Lindemann, Rita | C19: ='Wettkampf 1'!C19 -> Esterwegen V | D19: 315.6 | F19: 315.6 | G19: 0 | H19: 0 | I19: 315.6 | J19: 1 | K19: 0 | L19: 0 | M19: 0 | N19: 0 | O19: 0 | P19: 0 | Q19: 0 | R19: 0 | X19: 0.0 | Y19: 0 | Z19: 0
A20: 11 | B20: ='Wettkampf 1'!B20 -> Büter, Daniela | C20: ='Wettkampf 1'!C20 -> Esterwegen V | D20: 300.6 | F20: 300.6 | G20: 0 | H20: 0 | I20: 300.6 | J20: 1 | K20: 0 | L20: 0 | M20: 0 | N20: 0 | O20: 0 | P20: 0 | Q20: 0 | R20: 0 | X20: 0.0 | Y20: 0 | Z20: 0
A21: 12 | B21: ='Wettkampf 1'!B21 -> Lindemann, Annemarie | C21: ='Wettkampf 1'!C21 -> Esterwegen V | D21: 0.0 | E21: x | F21: 0 | G21: 0 | H21: 0 | I21: 0 | J21: 0 | K21: 0 | L21: 0 | M21: 0 | N21: 0 | O21: 0 | P21: 0 | Q21: 0 | R21: 0 | X21: 0.0 | Y21: 1 | Z21: 0
A22: 13 | B22: ='Wettkampf 1'!B22 -> Preut, Susanne | C22: ='Wettkampf 1'!C22 -> Neuvrees II | D22: 300.4 | F22: 300.4 | G22: 0 | H22: 0 | I22: 0 | J22: 0 | K22: 300.4 | L22: 1 | M22: 0 | N22: 0 | O22: 0 | P22: 0 | Q22: 0 | R22: 0 | X22: 0.0 | Y22: 0 | Z22: 0
A23: 14 | B23: ='Wettkampf 1'!B23 -> Thunert, Silvia | C23: ='Wettkampf 1'!C23 -> Neuvrees II | D23: 306.7 | F23: 306.7 | G23: 0 | H23: 0 | I23: 0 | J23: 0 | K23: 306.7 | L23: 1 | M23: 0 | N23: 0 | O23: 0 | P23: 0 | Q23: 0 | R23: 0 | X23: 0.0 | Y23: 0 | Z23: 0
A24: 15 | B24: ='Wettkampf 1'!B24 -> Pohlmann, Margret | C24: ='Wettkampf 1'!C24 -> Neuvrees II | D24: 303.0 | F24: 303.0 | G24: 0 | H24: 0 | I24: 0 | J24: 0 | K24: 303 | L24: 1 | M24: 0 | N24: 0 | O24: 0 | P24: 0 | Q24: 0 | R24: 0 | X24: 0.0 | Y24: 0 | Z24: 0
A25: 16 | B25: ='Wettkampf 1'!B25 -> Eilermann, Saskia | C25: ='Wettkampf 1'!C25 -> Neuvrees II | D25: 311.2 | F25: 311.2 | G25: 0 | H25: 0 | I25: 0 | J25: 0 | K25: 311.2 | L25: 1 | M25: 0 | N25: 0 | O25: 0 | P25: 0 | Q25: 0 | R25: 0 | X25: 0.0 | Y25: 0 | Z25: 0
A26: 17 | B26: ='Wettkampf 1'!B26 -> Junge, Silvia | C26: ='Wettkampf 1'!C26 -> Neuvrees II | D26: 298.9 | E26: x | F26: 0 | G26: 0 | H26: 0 | I26: 0 | J26: 0 | K26: 0 | L26: 0 | M26: 0 | N26: 0 | O26: 0 | P26: 0 | Q26: 0 | R26: 0 | X26: 0.0 | Y26: 0 | Z26: 0
A27: 18 | B27: ='Wettkampf 1'!B27 -> Evers, Claudia | C27: ='Wettkampf 1'!C27 -> Neuvrees II | D27: 300.9 | E27: x | F27: 0 | G27: 0 | H27: 0 | I27: 0 | J27: 0 | K27: 0 | L27: 0 | M27: 0 | N27: 0 | O27: 0 | P27: 0 | Q27: 0 | R27: 0 | X27: 0.0 | Y27: 0 | Z27: 0
A28: 19 | B28: ='Wettkampf 1'!B28 -> Schulte, Christina | C28: ='Wettkampf 1'!C28 -> Neuvrees II | D28: 0.0 | E28: x | F28: 0 | G28: 0 | H28: 0 | I28: 0 | J28: 0 | K28: 0 | L28: 0 | M28: 0 | N28: 0 | O28: 0 | P28: 0 | Q28: 0 | R28: 0 | X28: 0.0 | Y28: 1 | Z28: 0
A29: 20 | B29: ='Wettkampf 1'!B29 -> Reinelt, Michaela | C29: ='Wettkampf 1'!C29 -> Lahn IV | D29: 310.3 | F29: 310.3 | G29: 0 | H29: 0 | I29: 0 | J29: 0 | K29: 0 | L29: 0 | M29: 310.3 | N29: 1 | O29: 0 | P29: 0 | Q29: 0 | R29: 0 | X29: 0.0 | Y29: 0 | Z29: 0
A30: 21 | B30: ='Wettkampf 1'!B30 -> Thien, Marita | C30: ='Wettkampf 1'!C30 -> Lahn IV | D30: 309.5 | F30: 309.5 | G30: 0 | H30: 0 | I30: 0 | J30: 0 | K30: 0 | L30: 0 | M30: 309.5 | N30: 1 | O30: 0 | P30: 0 | Q30: 0 | R30: 0 | X30: 0.0 | Y30: 0 | Z30: 0
A31: 22 | B31: ='Wettkampf 1'!B31 -> Robben, Anja | C31: ='Wettkampf 1'!C31 -> Lahn IV | D31: 309.0 | F31: 309.0 | G31: 0 | H31: 0 | I31: 0 | J31: 0 | K31: 0 | L31: 0 | M31: 309 | N31: 1 | O31: 0 | P31: 0 | Q31: 0 | R31: 0 | X31: 0.0 | Y31: 0 | Z31: 0
A32: 23 | B32: ='Wettkampf 1'!B32 -> Oldopp, Maria | C32: ='Wettkampf 1'!C32 -> Lahn IV | D32: 299.0 | E32: x | F32: 0 | G32: 0 | H32: 0 | I32: 0 | J32: 0 | K32: 0 | L32: 0 | M32: 0 | N32: 0 | O32: 0 | P32: 0 | Q32: 0 | R32: 0 | X32: 0.0 | Y32: 0 | Z32: 0
A33: 24 | B33: ='Wettkampf 1'!B33 -> Hanneken, Doris | C33: ='Wettkampf 1'!C33 -> Lahn IV | D33: 309.8 | F33: 309.8 | G33: 0 | H33: 0 | I33: 0 | J33: 0 | K33: 0 | L33: 0 | M33: 309.8 | N33: 1 | O33: 0 | P33: 0 | Q33: 0 | R33: 0 | X33: 0.0 | Y33: 0 | Z33: 0
A34: 25 | B34: ='Wettkampf 1'!B34 -> Kuchta, Gertrud | C34: ='Wettkampf 1'!C34 -> Börger III | D34: 304.3 | F34: 304.3 | G34: 0 | H34: 0 | I34: 0 | J34: 0 | K34: 0 | L34: 0 | M34: 0 | N34: 0 | O34: 304.3 | P34: 1 | Q34: 0 | R34: 0 | X34: 0.0 | Y34: 0 | Z34: 0
A35: 26 | B35: ='Wettkampf 1'!B35 -> Jungsthöfel, Sabine | C35: ='Wettkampf 1'!C35 -> Börger III | D35: 299.2 | F35: 299.2 | G35: 0 | H35: 0 | I35: 0 | J35: 0 | K35: 0 | L35: 0 | M35: 0 | N35: 0 | O35: 299.2 | P35: 1 | Q35: 0 | R35: 0 | X35: 0.0 | Y35: 0 | Z35: 0
A36: 27 | B36: ='Wettkampf 1'!B36 -> Schwarte, Gundula | C36: ='Wettkampf 1'!C36 -> Börger III | D36: 302.4 | E36: x | F36: 0 | G36: 0 | H36: 0 | I36: 0 | J36: 0 | K36: 0 | L36: 0 | M36: 0 | N36: 0 | O36: 0 | P36: 0 | Q36: 0 | R36: 0 | X36: 0.0 | Y36: 0 | Z36: 0
A37: 28 | B37: ='Wettkampf 1'!B37 -> Geers, Christa | C37: ='Wettkampf 1'!C37 -> Börger III | D37: 303.7 | F37: 303.7 | G37: 0 | H37: 0 | I37: 0 | J37: 0 | K37: 0 | L37: 0 | M37: 0 | N37: 0 | O37: 303.7 | P37: 1 | Q37: 0 | R37: 0 | X37: 0.0 | Y37: 0 | Z37: 0
A38: 29 | B38: ='Wettkampf 1'!B38 -> Remmers, Tanja | C38: ='Wettkampf 1'!C38 -> Börger III | D38: 0.0 | E38: x | F38: 0 | G38: 0 | H38: 0 | I38: 0 | J38: 0 | K38: 0 | L38: 0 | M38: 0 | N38: 0 | O38: 0 | P38: 0 | Q38: 0 | R38: 0 | X38: 0.0 | Y38: 1 | Z38: 0
A39: 30 | B39: ='Wettkampf 1'!B39 -> Terhalle, Johanna | C39: ='Wettkampf 1'!C39 -> Börger III | D39: 309.0 | F39: 309.0 | G39: 0 | H39: 0 | I39: 0 | J39: 0 | K39: 0 | L39: 0 | M39: 0 | N39: 0 | O39: 309 | P39: 1 | Q39: 0 | R39: 0 | X39: 0.0 | Y39: 0 | Z39: 0
A40: 31 | B40: ='Wettkampf 1'!B40 -> Hackstette, Lena | C40: ='Wettkampf 1'!C40 -> Lahn III | D40: 306.0 | F40: 306.0 | G40: 0 | H40: 0 | I40: 0 | J40: 0 | K40: 0 | L40: 0 | M40: 0 | N40: 0 | O40: 0 | P40: 0 | Q40: 306 | R40: 1 | X40: 0.0 | Y40: 0 | Z40: 0
A41: 32 | B41: ='Wettkampf 1'!B41 -> Thyen, Christel | C41: ='Wettkampf 1'!C41 -> Lahn III | D41: 308.1 | F41: 308.1 | G41: 0 | H41: 0 | I41: 0 | J41: 0 | K41: 0 | L41: 0 | M41: 0 | N41: 0 | O41: 0 | P41: 0 | Q41: 308.1 | R41: 1 | X41: 0.0 | Y41: 0 | Z41: 0
A42: 33 | B42: ='Wettkampf 1'!B42 -> Ostermann, Hildegard | C42: ='Wettkampf 1'!C42 -> Lahn III | D42: 306.3 | F42: 306.3 | G42: 0 | H42: 0 | I42: 0 | J42: 0 | K42: 0 | L42: 0 | M42: 0 | N42: 0 | O42: 0 | P42: 0 | Q42: 306.3 | R42: 1 | X42: 0.0 | Y42: 0 | Z42: 0
A43: 34 | B43: ='Wettkampf 1'!B43 -> Willoh, Henrika | C43: ='Wettkampf 1'!C43 -> Lahn III | D43: 309.2 | F43: 309.2 | G43: 0 | H43: 0 | I43: 0 | J43: 0 | K43: 0 | L43: 0 | M43: 0 | N43: 0 | O43: 0 | P43: 0 | Q43: 309.2 | R43: 1 | X43: 0.0 | Y43: 0 | Z43: 0
A44: 35 | B44: ='Wettkampf 1'!B44 -> Müller, Anita | C44: ='Wettkampf 1'!C44 -> Lahn III | D44: 304.0 | E44: x | F44: 0 | G44: 0 | H44: 0 | I44: 0 | J44: 0 | K44: 0 | L44: 0 | M44: 0 | N44: 0 | O44: 0 | P44: 0 | Q44: 0 | R44: 0 | X44: 0.0 | Y44: 0 | Z44: 0
A45: 36 | B45: ='Wettkampf 1'!B45 -> Wilken, Elena | C45: ='Wettkampf 1'!C45 -> Lahn III | D45: 304.1 | E45: x | F45: 0 | G45: 0 | H45: 0 | I45: 0 | J45: 0 | K45: 0 | L45: 0 | M45: 0 | N45: 0 | O45: 0 | P45: 0 | Q45: 0 | R45: 0 | X45: 0.0 | Y45: 0 | Z45: 0
G46: =LARGE(G10:G45,1)+LARGE(G10:G45,2)+LARGE(G10:G45,3) -> 930.4 | H46: =SUM(H10:H45) -> 4 | I46: =LARGE(I10:I45,1)+LARGE(I10:I45,2)+LARGE(I10:I45,3) -> 933.2 | J46: =SUM(J10:J45) -> 4 | K46: =LARGE(K10:K45,1)+LARGE(K10:K45,2)+LARGE(K10:K45,3) -> 920.9 | L46: =SUM(L10:L45) -> 4 | M46: =LARGE(M10:M45,1)+LARGE(M10:M45,2)+LARGE(M10:M45,3) -> 929.6 | N46: =SUM(N10:N45) -> 4 | O46: =LARGE(O10:O45,1)+LARGE(O10:O45,2)+LARGE(O10:O45,3) -> 917 | P46: =SUM(P10:P45) -> 4 | Q46: =LARGE(Q10:Q45,1)+LARGE(Q10:Q45,2)+LARGE(Q10:Q45,3) -> 923.6 | R46: =SUM(R10:S45) -> 4
C47: per Email an: sk-huemmling@gmx.de

Sheet 7
B1: Verein / Gruppe | D1: Ergebnisse | V1: Austragungsort: | W1: =Übersicht!L4 -> Börger
A2: 1 | B2: ='Wettkampf 1'!B2 -> Börger II | D2: =G46 -> 923.6 | E2: =IF(H46>4,"Es sind zu viele Schützen in Wertung!"," ") ->  | V2: Wettkampftag: | W2: =Übersicht!L3 -> 12.01.
A3: 2 | B3: ='Wettkampf 1'!B3 -> Esterwegen V | D3: =I46 -> 938.1 | E3: =IF(J46>4,"Es sind zu viele Schützen in Wertung!"," ") -> 
A4: 3 | B4: ='Wettkampf 1'!B4 -> Neuvrees II | D4: =K46 -> 922.6 | E4: =IF(L46>4,"Es sind zu viele Schützen in Wertung!"," ") ->  | X4: Ansprechpartner für Rückfragen:
A5: 4 | B5: ='Wettkampf 1'!B5 -> Lahn IV | D5: =M46 -> 925.6 | E5: =IF(N46>4,"Es sind zu viele Schützen in Wertung!"," ") ->  | V5: Name: | W5: Doris Hanneken
A6: 5 | B6: ='Wettkampf 1'!B6 -> Börger III | D6: =O46 -> 924.8 | E6: =IF(P46>4,"Es sind zu viele Schützen in Wertung!"," ") ->  | V6: Tel: | W6: 017-42215241
A7: 6 | B7: ='Wettkampf 1'!B7 -> Lahn III | D7: =Q46 -> 931.5 | E7: =IF(R46>4,"Es sind zu viele Schützen in Wertung!"," ") ->  | V7: Standaufsicht: | W7: Doris Hanneken
B9: Einzelergebnisse: | C9: Verein / Gruppe | D9: Ergebnisse (mindestens 0 eintragen) | E9: AW? Dann x eintippen | G9: Verein 1 | I9: Verein 2 | K9: Verein 3 | M9: Verein 4 | O9: Verein 5 | Q9: Verein 6 | U9: Proberechnung bei Streifen:
A10: 1 | B10: ='Wettkampf 1'!B10 -> Kossenjans, Annegret | C10: ='Wettkampf 1'!C10 -> Börger II | D10: 0.0 | E10: x | F10: =IF(E10="x","0",D10) -> 0 | G10: =IF(C10=$B$2,F10,0) -> 0 | H10: =(IF(AND($E10="",$C10=$B$2),1,0)) -> 0 | I10: =IF($C10=$B$3,F10,0) -> 0 | J10: =(IF(AND($E10="",$C10=$B$3),1,0)) -> 0 | K10: =IF($C10=$B$4,F10,0) -> 0 | L10: =(IF(AND($E10="",$C10=$B$4),1,0)) -> 0 | M10: =IF($C10=$B$5,F10,0) -> 0 | N10: =(IF(AND($E10="",$C10=$B$5),1,0)) -> 0 | O10: =IF($C10=$B$6,F10,0) -> 0 | P10: =(IF(AND($E10="",$C10=$B$6),1,0)) -> 0 | Q10: =IF($C10=$B$7,F10,0) -> 0 | R10: =(IF(AND($E10="",$C10=$B$7),1,0)) -> 0 | U10: 0.0 | V10: 0.0 | W10: 0.0 | X10: =U10+V10+W10 -> 0.0 | Y10: =IF(X10=D10,1,0) -> 1 | Z10: =IF(X10=0,0,1) -> 0 | AA10: =IF(Y10+Z10=2,"Korrekt","") -> 
A11: 2 | B11: ='Wettkampf 1'!B11 -> Jansen, Elisabeth | C11: ='Wettkampf 1'!C11 -> Börger II | D11: 306.6 | F11: =IF(E11="x","0",D11) -> 306.6 | G11: =IF(C11=$B$2,F11,0) -> 306.6 | H11: =(IF(AND($E11="",$C11=$B$2),1,0)) -> 1 | I11: =IF($C11=$B$3,F11,0) -> 0 | J11: =(IF(AND($E11="",$C11=$B$3),1,0)) -> 0 | K11: =IF($C11=$B$4,F11,0) -> 0 | L11: =(IF(AND($E11="",$C11=$B$4),1,0)) -> 0 | M11: =IF($C11=$B$5,F11,0) -> 0 | N11: =(IF(AND($E11="",$C11=$B$5),1,0)) -> 0 | O11: =IF($C11=$B$6,F11,0) -> 0 | P11: =(IF(AND($E11="",$C11=$B$6),1,0)) -> 0 | Q11: =IF($C11=$B$7,F11,0) -> 0 | R11: =(IF(AND($E11="",$C11=$B$7),1,0)) -> 0 | U11: 103.2 | V11: 102.3 | W11: 101.1 | X11: =U11+V11+W11 -> 306.6 | Y11: =IF(X11=D11,1,0) -> 1 | Z11: =IF(X11=0,0,1) -> 1 | AA11: =IF(Y11+Z11=2,"Korrekt","") -> Korrekt
A12: 3 | B12: ='Wettkampf 1'!B12 -> Krömer, Monika | C12: ='Wettkampf 1'!C12 -> Börger II | D12: 299.7 | F12: 299.7 | G12: 299.7 | H12: 1 | I12: 0 | J12: 0 | K12: 0 | L12: 0 | M12: 0 | N12: 0 | O12: 0 | P12: 0 | Q12: 0 | R12: 0 | U12: 99.5 | V12: 102.0 | W12: 98.2 | X12: 299.7 | Y12: 1 | Z12: 1 | AA12: Korrekt
A13: 4 | B13: ='Wettkampf 1'!B13 -> Pohlgeers, Margret | C13: ='Wettkampf 1'!C13 -> Börger II | D13: 308.6 | F13: 308.6 | G13: 308.6 | H13: 1 | I13: 0 | J13: 0 | K13: 0 | L13: 0 | M13: 0 | N13: 0 | O13: 0 | P13: 0 | Q13: 0 | R13: 0 | U13: 103.2 | V13: 102.3 | W13: 103.1 | X13: 308.6 | Y13: 1 | Z13: 1 | AA13: Korrekt
A14: 5 | B14: ='Wettkampf 1'!B14 -> Pohlgeers, Silvia | C14: ='Wettkampf 1'!C14 -> Börger II | D14: 308.4 | F14: 308.4 | G14: 308.4 | H14: 1 | I14: 0 | J14: 0 | K14: 0 | L14: 0 | M14: 0 | N14: 0 | O14: 0 | P14: 0 | Q14: 0 | R14: 0 | U14: 100.5 | V14: 104.1 | W14: 103.8 | X14: 308.4 | Y14: 1 | Z14: 1 | AA14: Korrekt
A15: 6 | B15: ='Wettkampf 1'!B15 -> Schwarte, Annette | C15: ='Wettkampf 1'!C15 -> Börger II | D15: 0.0 | E15: x | F15: 0 | G15: 0 | H15: 0 | I15: 0 | J15: 0 | K15: 0 | L15: 0 | M15: 0 | N15: 0 | O15: 0 | P15: 0 | Q15: 0 | R15: 0 | U15: 0.0 | V15: 0.0 | W15: 0.0 | X15: 0.0 | Y15: 1 | Z15: 0
A16: 7 | B16: ='Wettkampf 1'!B16 -> Lindemann, Kerstin | C16: ='Wettkampf 1'!C16 -> Esterwegen V | D16: 310.5 | F16: 310.5 | G16: 0 | H16: 0 | I16: 310.5 | J16: 1 | K16: 0 | L16: 0 | M16: 0 | N16: 0 | O16: 0 | P16: 0 | Q16: 0 | R16: 0 | U16: 102.2 | V16: 104.7 | W16: 103.6 | X16: 310.5 | Y16: 1 | Z16: 1 | AA16: Korrekt
A17: 8 | B17: ='Wettkampf 1'!B17 -> Schlarmann, Lena | C17: ='Wettkampf 1'!C17 -> Esterwegen V | D17: 311.5 | F17: 311.5 | G17: 0 | H17: 0 | I17: 311.5 | J17: 1 | K17: 0 | L17: 0 | M17: 0 | N17: 0 | O17: 0 | P17: 0 | Q17: 0 | R17: 0 | U17: 103.0 | V17: 104.7 | W17: 103.8 | X17: 311.5 | Y17: 1 | Z17: 1 | AA17: Korrekt
A18: 9 | B18: ='Wettkampf 1'!B18 -> Lindemann, Stefanie | C18: ='Wettkampf 1'!C18 -> Esterwegen V | D18: 306.6 | F18: 306.6 | G18: 0 | H18: 0 | I18: 306.6 | J18: 1 | K18: 0 | L18: 0 | M18: 0 | N18: 0 | O18: 0 | P18: 0 | Q18: 0 | R18: 0 | U18: 104.0 | V18: 100.2 | W18: 102.4 | X18: 306.6 | Y18: 1 | Z18: 1 | AA18: Korrekt
A19: 10 | B19: ='Wettkampf 1'!B19 -> Lindemann, Rita | C19: ='Wettkampf 1'!C19 -> Esterwegen V | D19: 316.1 | F19: 316.1 | G19: 0 | H19: 0 | I19: 316.1 | J19: 1 | K19: 0 | L19: 0 | M19: 0 | N19: 0 | O19: 0 | P19: 0 | Q19: 0 | R19: 0 | U19: 105.0 | V19: 106.3 | W19: 104.8 | X19: 316.1 | Y19: 1 | Z19: 1 | AA19: Korrekt
A20: 11 | B20: ='Wettkampf 1'!B20 -> Büter, Daniela | C20: ='Wettkampf 1'!C20 -> Esterwegen V | D20: 303.6 | E20: x | F20: 0 | G20: 0 | H20: 0 | I20: 0 | J20: 0 | K20: 0 | L20: 0 | M20: 0 | N20: 0 | O20: 0 | P20: 0 | Q20: 0 | R20: 0 | U20: 101.4 | V20: 99.9 | W20: 102.3 | X20: 303.6 | Y20: 1 | Z20: 1 | AA20: Korrekt
A21: 12 | B21: ='Wettkampf 1'!B21 -> Lindemann, Annemarie | C21: ='Wettkampf 1'!C21 -> Esterwegen V | D21: 0.0 | E21: x | F21: 0 | G21: 0 | H21: 0 | I21: 0 | J21: 0 | K21: 0 | L21: 0 | M21: 0 | N21: 0 | O21: 0 | P21: 0 | Q21: 0 | R21: 0 | U21: 0.0 | V21: 0.0 | W21: 0.0 | X21: 0.0 | Y21: 1 | Z21: 0
A22: 13 | B22: ='Wettkampf 1'!B22 -> Preut, Susanne | C22: ='Wettkampf 1'!C22 -> Neuvrees II | D22: 303.2 | F22: 303.2 | G22: 0 | H22: 0 | I22: 0 | J22: 0 | K22: 303.2 | L22: 1 | M22: 0 | N22: 0 | O22: 0 | P22: 0 | Q22: 0 | R22: 0 | U22: 99.4 | V22: 99.6 | W22: 104.2 | X22: 303.2 | Y22: 1 | Z22: 1 | AA22: Korrekt
A23: 14 | B23: ='Wettkampf 1'!B23 -> Thunert, Silvia | C23: ='Wettkampf 1'!C23 -> Neuvrees II | D23: 309.5 | F23: 309.5 | G23: 0 | H23: 0 | I23: 0 | J23: 0 | K23: 309.5 | L23: 1 | M23: 0 | N23: 0 | O23: 0 | P23: 0 | Q23: 0 | R23: 0 | U23: 103.8 | V23: 102.3 | W23: 103.4 | X23: 309.5 | Y23: 1 | Z23: 1 | AA23: Korrekt
A24: 15 | B24: ='Wettkampf 1'!B24 -> Pohlmann, Margret | C24: ='Wettkampf 1'!C24 -> Neuvrees II | D24: 309.9 | F24: 309.9 | G24: 0 | H24: 0 | I24: 0 | J24: 0 | K24: 309.9 | L24: 1 | M24: 0 | N24: 0 | O24: 0 | P24: 0 | Q24: 0 | R24: 0 | U24: 103.9 | V24: 102.9 | W24: 103.1 | X24: 309.9 | Y24: 1 | Z24: 1 | AA24: Korrekt
A25: 16 | B25: ='Wettkampf 1'!B25 -> Eilermann, Saskia | C25: ='Wettkampf 1'!C25 -> Neuvrees II | D25: 0.0 | E25: x | F25: 0 | G25: 0 | H25: 0 | I25: 0 | J25: 0 | K25: 0 | L25: 0 | M25: 0 | N25: 0 | O25: 0 | P25: 0 | Q25: 0 | R25: 0 | U25: 0.0 | V25: 0.0 | W25: 0.0 | X25: 0.0 | Y25: 1 | Z25: 0
A26: 17 | B26: ='Wettkampf 1'!B26 -> Junge, Silvia | C26: ='Wettkampf 1'!C26 -> Neuvrees II | D26: 292.8 | E26: x | F26: 0 | G26: 0 | H26: 0 | I26: 0 | J26: 0 | K26: 0 | L26: 0 | M26: 0 | N26: 0 | O26: 0 | P26: 0 | Q26: 0 | R26: 0 | U26: 99.7 | V26: 98.9 | W26: 94.2 | X26: 292.8 | Y26: 1 | Z26: 1 | AA26: Korrekt
A27: 18 | B27: ='Wettkampf 1'!B27 -> Evers, Claudia | C27: ='Wettkampf 1'!C27 -> Neuvrees II | D27: 301.3 | E27: x | F27: 0 | G27: 0 | H27: 0 | I27: 0 | J27: 0 | K27: 0 | L27: 0 | M27: 0 | N27: 0 | O27: 0 | P27: 0 | Q27: 0 | R27: 0 | U27: 98.0 | V27: 101.1 | W27: 102.2 | X27: 301.3 | Y27: 1 | Z27: 1 | AA27: Korrekt
A28: 19 | B28: ='Wettkampf 1'!B28 -> Schulte, Christina | C28: ='Wettkampf 1'!C28 -> Neuvrees II | D28: 303.1 | F28: 303.1 | G28: 0 | H28: 0 | I28: 0 | J28: 0 | K28: 303.1 | L28: 1 | M28: 0 | N28: 0 | O28: 0 | P28: 0 | Q28: 0 | R28: 0 | U28: 99.2 | V28: 101.8 | W28: 102.1 | X28: 303.1 | Y28: 1 | Z28: 1 | AA28: Korrekt
A29: 20 | B29: ='Wettkampf 1'!B29 -> Reinelt, Michaela | C29: ='Wettkampf 1'!C29 -> Lahn IV | D29: 308.2 | F29: 308.2 | G29: 0 | H29: 0 | I29: 0 | J29: 0 | K29: 0 | L29: 0 | M29: 308.2 | N29: 1 | O29: 0 | P29: 0 | Q29: 0 | R29: 0 | U29: 102.4 | V29: 103.5 | W29: 102.3 | X29: 308.2 | Y29: 1 | Z29: 1 | AA29: Korrekt
A30: 21 | B30: ='Wettkampf 1'!B30 -> Thien, Marita | C30: ='Wettkampf 1'!C30 -> Lahn IV | D30: 311.2 | F30: 311.2 | G30: 0 | H30: 0 | I30: 0 | J30: 0 | K30: 0 | L30: 0 | M30: 311.2 | N30: 1 | O30: 0 | P30: 0 | Q30: 0 | R30: 0 | U30: 103.1 | V30: 103.3 | W30: 104.8 | X30: 311.2 | Y30: 1 | Z30: 1 | AA30: Korrekt
A31: 22 | B31: ='Wettkampf 1'!B31 -> Robben, Anja | C31: ='Wettkampf 1'!C31 -> Lahn IV | D31: 306.2 | F31: 306.2 | G31: 0 | H31: 0 | I31: 0 | J31: 0 | K31: 0 | L31: 0 | M31: 306.2 | N31: 1 | O31: 0 | P31: 0 | Q31: 0 | R31: 0 | U31: 100.8 | V31: 102.6 | W31: 102.8 | X31: 306.2 | Y31: 1 | Z31: 1 | AA31: Korrekt
A32: 23 | B32: ='Wettkampf 1'!B32 -> Oldopp, Maria | C32: ='Wettkampf 1'!C32 -> Lahn IV | D32: 300.2 | E32: x | F32: 0 | G32: 0 | H32: 0 | I32: 0 | J32: 0 | K32: 0 | L32: 0 | M32: 0 | N32: 0 | O32: 0 | P32: 0 | Q32: 0 | R32: 0 | U32: 97.1 | V32: 102.8 | W32: 100.3 | X32: 300.2 | Y32: 1 | Z32: 1 | AA32: Korrekt
A33: 24 | B33: ='Wettkampf 1'!B33 -> Hanneken, Doris | C33: ='Wettkampf 1'!C33 -> Lahn IV | D33: 300.0 | F33: 300.0 | G33: 0 | H33: 0 | I33: 0 | J33: 0 | K33: 0 | L33: 0 | M33: 300 | N33: 1 | O33: 0 | P33: 0 | Q33: 0 | R33: 0 | U33: 101.2 | V33: 98.7 | W33: 100.1 | X33: 300.0 | Y33: 1 | Z33: 1 | AA33: Korrekt
A34: 25 | B34: ='Wettkampf 1'!B34 -> Kuchta, Gertrud | C34: ='Wettkampf 1'!C34 -> Börger III | D34: 306.7 | F34: 306.7 | G34: 0 | H34: 0 | I34: 0 | J34: 0 | K34: 0 | L34: 0 | M34: 0 | N34: 0 | O34: 306.7 | P34: 1 | Q34: 0 | R34: 0 | U34: 102.3 | V34: 102.1 | W34: 102.3 | X34: 306.7 | Y34: 1 | Z34: 1 | AA34: Korrekt
A35: 26 | B35: ='Wettkampf 1'!B35 -> Jungsthöfel, Sabine | C35: ='Wettkampf 1'!C35 -> Börger III | D35: 307.4 | E35: x | F35: 0 | G35: 0 | H35: 0 | I35: 0 | J35: 0 | K35: 0 | L35: 0 | M35: 0 | N35: 0 | O35: 0 | P35: 0 | Q35: 0 | R35: 0 | U35: 102.0 | V35: 103.6 | W35: 101.8 | X35: 307.4 | Y35: 1 | Z35: 1 | AA35: Korrekt
A36: 27 | B36: ='Wettkampf 1'!B36 -> Schwarte, Gundula | C36: ='Wettkampf 1'!C36 -> Börger III | D36: 300.6 | F36: 300.6 | G36: 0 | H36: 0 | I36: 0 | J36: 0 | K36: 0 | L36: 0 | M36: 0 | N36: 0 | O36: 300.6 | P36: 1 | Q36: 0 | R36: 0 | U36: 100.4 | V36: 99.2 | W36: 101.0 | X36: 300.6 | Y36: 1 | Z36: 1 | AA36: Korrekt
A37: 28 | B37: ='Wettkampf 1'!B37 -> Geers, Christa | C37: ='Wettkampf 1'!C37 -> Börger III | D37: 306.2 | F37: 306.2 | G37: 0 | H37: 0 | I37: 0 | J37: 0 | K37: 0 | L37: 0 | M37: 0 | N37: 0 | O37: 306.2 | P37: 1 | Q37: 0 | R37: 0 | U37: 103.7 | V37: 102.5 | W37: 100.0 | X37: 306.2 | Y37: 1 | Z37: 1 | AA37: Korrekt
A38: 29 | B38: ='Wettkampf 1'!B38 -> Remmers, Tanja | C38: ='Wettkampf 1'!C38 -> Börger III | D38: 290.7 | E38: x | F38: 0 | G38: 0 | H38: 0 | I38: 0 | J38: 0 | K38: 0 | L38: 0 | M38: 0 | N38: 0 | O38: 0 | P38: 0 | Q38: 0 | R38: 0 | U38: 96.6 | V38: 99.6 | W38: 94.5 | X38: 290.7 | Y38: 1 | Z38: 1 | AA38: Korrekt
A39: 30 | B39: ='Wettkampf 1'!B39 -> Terhalle, Johanna | C39: ='Wettkampf 1'!C39 -> Börger III | D39: 311.9 | F39: 311.9 | G39: 0 | H39: 0 | I39: 0 | J39: 0 | K39: 0 | L39: 0 | M39: 0 | N39: 0 | O39: 311.9 | P39: 1 | Q39: 0 | R39: 0 | U39: 103.4 | V39: 104.2 | W39: 104.3 | X39: 311.9 | Y39: 1 | Z39: 1 | AA39: Korrekt
A40: 31 | B40: ='Wettkampf 1'!B40 -> Hackstette, Lena | C40: ='Wettkampf 1'!C40 -> Lahn III | D40: 301.9 | E40: x | F40: 0 | G40: 0 | H40: 0 | I40: 0 | J40: 0 | K40: 0 | L40: 0 | M40: 0 | N40: 0 | O40: 0 | P40: 0 | Q40: 0 | R40: 0 | U40: 101.9 | V40: 97.6 | W40: 102.4 | X40: 301.9 | Y40: 1 | Z40: 1 | AA40: Korrekt
A41: 32 | B41: ='Wettkampf 1'!B41 -> Thyen, Christel | C41: ='Wettkampf 1'!C41 -> Lahn III | D41: 313.4 | F41: 313.4 | G41: 0 | H41: 0 | I41: 0 | J41: 0 | K41: 0 | L41: 0 | M41: 0 | N41: 0 | O41: 0 | P41: 0 | Q41: 313.4 | R41: 1 | U41: 105.8 | V41: 103.2 | W41: 104.4 | X41: 313.4 | Y41: 1 | Z41: 1 | AA41: Korrekt
A42: 33 | B42: ='Wettkampf 1'!B42 -> Ostermann, Hildegard | C42: ='Wettkampf 1'!C42 -> Lahn III | D42: 299.3 | F42: 299.3 | G42: 0 | H42: 0 | I42: 0 | J42: 0 | K42: 0 | L42: 0 | M42: 0 | N42: 0 | O42: 0 | P42: 0 | Q42: 299.3 | R42: 1 | U42: 99.7 | V42: 99.6 | W42: 100.0 | X42: 299.3 | Y42: 1 | Z42: 1 | AA42: Korrekt
A43: 34 | B43: ='Wettkampf 1'!B43 -> Willoh, Henrika | C43: ='Wettkampf 1'!C43 -> Lahn III | D43: 306.4 | F43: 306.4 | G43: 0 | H43: 0 | I43: 0 | J43: 0 | K43: 0 | L43: 0 | M43: 0 | N43: 0 | O43: 0 | P43: 0 | Q43: 306.4 | R43: 1 | U43: 102.6 | V43: 101.7 | W43: 102.1 | X43: 306.4 | Y43: 1 | Z43: 1 | AA43: Korrekt
A44: 35 | B44: ='Wettkampf 1'!B44 -> Müller, Anita | C44: ='Wettkampf 1'!C44 -> Lahn III | D44: 301.3 | E44: x | F44: 0 | G44: 0 | H44: 0 | I44: 0 | J44: 0 | K44: 0 | L44: 0 | M44: 0 | N44: 0 | O44: 0 | P44: 0 | Q44: 0 | R44: 0 | U44: 101.7 | V44: 96.6 | W44: 103.0 | X44: 301.3 | Y44: 1 | Z44: 1 | AA44: Korrekt
A45: 36 | B45: ='Wettkampf 1'!B45 -> Wilken, Elena | C45: ='Wettkampf 1'!C45 -> Lahn III | D45: 311.7 | F45: 311.7 | G45: 0 | H45: 0 | I45: 0 | J45: 0 | K45: 0 | L45: 0 | M45: 0 | N45: 0 | O45: 0 | P45: 0 | Q45: 311.7 | R45: 1 | U45: 104.8 | V45: 104.5 | W45: 102.4 | X45: 311.7 | Y45: 1 | Z45: 1 | AA45: Korrekt
G46: =LARGE(G10:G45,1)+LARGE(G10:G45,2)+LARGE(G10:G45,3) -> 923.6 | H46: =SUM(H10:H45) -> 4 | I46: =LARGE(I10:I45,1)+LARGE(I10:I45,2)+LARGE(I10:I45,3) -> 938.1 | J46: =SUM(J10:J45) -> 4 | K46: =LARGE(K10:K45,1)+LARGE(K10:K45,2)+LARGE(K10:K45,3) -> 922.6 | L46: =SUM(L10:L45) -> 4 | M46: =LARGE(M10:M45,1)+LARGE(M10:M45,2)+LARGE(M10:M45,3) -> 925.6 | N46: =SUM(N10:N45) -> 4 | O46: =LARGE(O10:O45,1)+LARGE(O10:O45,2)+LARGE(O10:O45,3) -> 924.8 | P46: =SUM(P10:P45) -> 4 | Q46: =LARGE(Q10:Q45,1)+LARGE(Q10:Q45,2)+LARGE(Q10:Q45,3) -> 931.5 | R46: =SUM(R10:S45) -> 4
C47: per Email an: sk-huemmling@gmx.de

Sheet 8
B1: Verein / Gruppe | D1: Ergebnisse | V1: Austragungsort: | W1: =Übersicht!M4 -> Esterwegen
A2: 1 | B2: ='Wettkampf 1'!B2 -> Börger II | D2: =G46 -> 923.2 | E2: =IF(H46>4,"Es sind zu viele Schützen in Wertung!"," ") ->  | V2: Wettkampftag: | W2: =Übersicht!M3 -> 26.01.
A3: 2 | B3: ='Wettkampf 1'!B3 -> Esterwegen V | D3: =I46 -> 938.2 | E3: =IF(J46>4,"Es sind zu viele Schützen in Wertung!"," ") -> 
A4: 3 | B4: ='Wettkampf 1'!B4 -> Neuvrees II | D4: =K46 -> 916.3 | E4: =IF(L46>4,"Es sind zu viele Schützen in Wertung!"," ") ->  | X4: Ansprechpartner für Rückfragen:
A5: 4 | B5: ='Wettkampf 1'!B5 -> Lahn IV | D5: =M46 -> 924.4 | E5: =IF(N46>4,"Es sind zu viele Schützen in Wertung!"," ") ->  | V5: Name: | W5: Rita Lindemann
A6: 5 | B6: ='Wettkampf 1'!B6 -> Börger III | D6: =O46 -> 913.1 | E6: =IF(P46>4,"Es sind zu viele Schützen in Wertung!"," ") ->  | V6: Tel: | W6: 01737565170
A7: 6 | B7: ='Wettkampf 1'!B7 -> Lahn III | D7: =Q46 -> 922.0 | E7: =IF(R46>4,"Es sind zu viele Schützen in Wertung!"," ") ->  | V7: Standaufsicht: | W7: Klaus Lindemann
B9: Einzelergebnisse: | C9: Verein / Gruppe | D9: Ergebnisse (mindestens 0 eintragen) | E9: AW? Dann x eintippen | G9: Verein 1 | I9: Verein 2 | K9: Verein 3 | M9: Verein 4 | O9: Verein 5 | Q9: Verein 6 | U9: Proberechnung bei Streifen:
A10: 1 | B10: ='Wettkampf 1'!B10 -> Kossenjans, Annegret | C10: ='Wettkampf 1'!C10 -> Börger II | D10: 0.0 | E10: x | F10: =IF(E10="x","0",D10) -> 0 | G10: =IF(C10=$B$2,F10,0) -> 0 | H10: =(IF(AND($E10="",$C10=$B$2),1,0)) -> 0 | I10: =IF($C10=$B$3,F10,0) -> 0 | J10: =(IF(AND($E10="",$C10=$B$3),1,0)) -> 0 | K10: =IF($C10=$B$4,F10,0) -> 0 | L10: =(IF(AND($E10="",$C10=$B$4),1,0)) -> 0 | M10: =IF($C10=$B$5,F10,0) -> 0 | N10: =(IF(AND($E10="",$C10=$B$5),1,0)) -> 0 | O10: =IF($C10=$B$6,F10,0) -> 0 | P10: =(IF(AND($E10="",$C10=$B$6),1,0)) -> 0 | Q10: =IF($C10=$B$7,F10,0) -> 0 | R10: =(IF(AND($E10="",$C10=$B$7),1,0)) -> 0 | X10: =U10+V10+W10 -> 0.0 | Y10: =IF(X10=D10,1,0) -> 1 | Z10: =IF(X10=0,0,1) -> 0 | AA10: =IF(Y10+Z10=2,"Korrekt","") -> 
A11: 2 | B11: ='Wettkampf 1'!B11 -> Jansen, Elisabeth | C11: ='Wettkampf 1'!C11 -> Börger II | D11: 308.9 | F11: =IF(E11="x","0",D11) -> 308.9 | G11: =IF(C11=$B$2,F11,0) -> 308.9 | H11: =(IF(AND($E11="",$C11=$B$2),1,0)) -> 1 | I11: =IF($C11=$B$3,F11,0) -> 0 | J11: =(IF(AND($E11="",$C11=$B$3),1,0)) -> 0 | K11: =IF($C11=$B$4,F11,0) -> 0 | L11: =(IF(AND($E11="",$C11=$B$4),1,0)) -> 0 | M11: =IF($C11=$B$5,F11,0) -> 0 | N11: =(IF(AND($E11="",$C11=$B$5),1,0)) -> 0 | O11: =IF($C11=$B$6,F11,0) -> 0 | P11: =(IF(AND($E11="",$C11=$B$6),1,0)) -> 0 | Q11: =IF($C11=$B$7,F11,0) -> 0 | R11: =(IF(AND($E11="",$C11=$B$7),1,0)) -> 0 | X11: =U11+V11+W11 -> 0.0 | Y11: =IF(X11=D11,1,0) -> 0 | Z11: =IF(X11=0,0,1) -> 0 | AA11: =IF(Y11+Z11=2,"Korrekt","") -> 
A12: 3 | B12: ='Wettkampf 1'!B12 -> Krömer, Monika | C12: ='Wettkampf 1'!C12 -> Börger II | D12: 292.8 | F12: 292.8 | G12: 292.8 | H12: 1 | I12: 0 | J12: 0 | K12: 0 | L12: 0 | M12: 0 | N12: 0 | O12: 0 | P12: 0 | Q12: 0 | R12: 0 | X12: 0.0 | Y12: 0 | Z12: 0
A13: 4 | B13: ='Wettkampf 1'!B13 -> Pohlgeers, Margret | C13: ='Wettkampf 1'!C13 -> Börger II | D13: 308.7 | F13: 308.7 | G13: 308.7 | H13: 1 | I13: 0 | J13: 0 | K13: 0 | L13: 0 | M13: 0 | N13: 0 | O13: 0 | P13: 0 | Q13: 0 | R13: 0 | X13: 0.0 | Y13: 0 | Z13: 0
A14: 5 | B14: ='Wettkampf 1'!B14 -> Pohlgeers, Silvia | C14: ='Wettkampf 1'!C14 -> Börger II | D14: 305.6 | F14: 305.6 | G14: 305.6 | H14: 1 | I14: 0 | J14: 0 | K14: 0 | L14: 0 | M14: 0 | N14: 0 | O14: 0 | P14: 0 | Q14: 0 | R14: 0 | X14: 0.0 | Y14: 0 | Z14: 0
A15: 6 | B15: ='Wettkampf 1'!B15 -> Schwarte, Annette | C15: ='Wettkampf 1'!C15 -> Börger II | D15: 0.0 | E15: x | F15: 0 | G15: 0 | H15: 0 | I15: 0 | J15: 0 | K15: 0 | L15: 0 | M15: 0 | N15: 0 | O15: 0 | P15: 0 | Q15: 0 | R15: 0 | X15: 0.0 | Y15: 1 | Z15: 0
A16: 7 | B16: ='Wettkampf 1'!B16 -> Lindemann, Kerstin | C16: ='Wettkampf 1'!C16 -> Esterwegen V | D16: 309.3 | F16: 309.3 | G16: 0 | H16: 0 | I16: 309.3 | J16: 1 | K16: 0 | L16: 0 | M16: 0 | N16: 0 | O16: 0 | P16: 0 | Q16: 0 | R16: 0 | X16: 0.0 | Y16: 0 | Z16: 0
A17: 8 | B17: ='Wettkampf 1'!B17 -> Schlarmann, Lena | C17: ='Wettkampf 1'!C17 -> Esterwegen V | D17: 312.6 | F17: 312.6 | G17: 0 | H17: 0 | I17: 312.6 | J17: 1 | K17: 0 | L17: 0 | M17: 0 | N17: 0 | O17: 0 | P17: 0 | Q17: 0 | R17: 0 | X17: 0.0 | Y17: 0 | Z17: 0
A18: 9 | B18: ='Wettkampf 1'!B18 -> Lindemann, Stefanie | C18: ='Wettkampf 1'!C18 -> Esterwegen V | D18: 310.6 | F18: 310.6 | G18: 0 | H18: 0 | I18: 310.6 | J18: 1 | K18: 0 | L18: 0 | M18: 0 | N18: 0 | O18: 0 | P18: 0 | Q18: 0 | R18: 0 | X18: 0.0 | Y18: 0 | Z18: 0
A19: 10 | B19: ='Wettkampf 1'!B19 -> Lindemann, Rita | C19: ='Wettkampf 1'!C19 -> Esterwegen V | D19: 315.0 | F19: 315.0 | G19: 0 | H19: 0 | I19: 315 | J19: 1 | K19: 0 | L19: 0 | M19: 0 | N19: 0 | O19: 0 | P19: 0 | Q19: 0 | R19: 0 | X19: 0.0 | Y19: 0 | Z19: 0
A20: 11 | B20: ='Wettkampf 1'!B20 -> Büter, Daniela | C20: ='Wettkampf 1'!C20 -> Esterwegen V | D20: 308.5 | E20: x | F20: 0 | G20: 0 | H20: 0 | I20: 0 | J20: 0 | K20: 0 | L20: 0 | M20: 0 | N20: 0 | O20: 0 | P20: 0 | Q20: 0 | R20: 0 | X20: 0.0 | Y20: 0 | Z20: 0
A21: 12 | B21: ='Wettkampf 1'!B21 -> Lindemann, Annemarie | C21: ='Wettkampf 1'!C21 -> Esterwegen V | D21: 0.0 | E21: x | F21: 0 | G21: 0 | H21: 0 | I21: 0 | J21: 0 | K21: 0 | L21: 0 | M21: 0 | N21: 0 | O21: 0 | P21: 0 | Q21: 0 | R21: 0 | X21: 0.0 | Y21: 1 | Z21: 0
A22: 13 | B22: ='Wettkampf 1'!B22 -> Preut, Susanne | C22: ='Wettkampf 1'!C22 -> Neuvrees II | D22: 304.6 | F22: 304.6 | G22: 0 | H22: 0 | I22: 0 | J22: 0 | K22: 304.6 | L22: 1 | M22: 0 | N22: 0 | O22: 0 | P22: 0 | Q22: 0 | R22: 0 | X22: 0.0 | Y22: 0 | Z22: 0
A23: 14 | B23: ='Wettkampf 1'!B23 -> Thunert, Silvia | C23: ='Wettkampf 1'!C23 -> Neuvrees II | D23: 306.6 | F23: 306.6 | G23: 0 | H23: 0 | I23: 0 | J23: 0 | K23: 306.6 | L23: 1 | M23: 0 | N23: 0 | O23: 0 | P23: 0 | Q23: 0 | R23: 0 | X23: 0.0 | Y23: 0 | Z23: 0
A24: 15 | B24: ='Wettkampf 1'!B24 -> Pohlmann, Margret | C24: ='Wettkampf 1'!C24 -> Neuvrees II | D24: 305.1 | F24: 305.1 | G24: 0 | H24: 0 | I24: 0 | J24: 0 | K24: 305.1 | L24: 1 | M24: 0 | N24: 0 | O24: 0 | P24: 0 | Q24: 0 | R24: 0 | X24: 0.0 | Y24: 0 | Z24: 0
A25: 16 | B25: ='Wettkampf 1'!B25 -> Eilermann, Saskia | C25: ='Wettkampf 1'!C25 -> Neuvrees II | D25: 0.0 | E25: x | F25: 0 | G25: 0 | H25: 0 | I25: 0 | J25: 0 | K25: 0 | L25: 0 | M25: 0 | N25: 0 | O25: 0 | P25: 0 | Q25: 0 | R25: 0 | X25: 0.0 | Y25: 1 | Z25: 0
A26: 17 | B26: ='Wettkampf 1'!B26 -> Junge, Silvia | C26: ='Wettkampf 1'!C26 -> Neuvrees II | D26: 287.4 | E26: x | F26: 0 | G26: 0 | H26: 0 | I26: 0 | J26: 0 | K26: 0 | L26: 0 | M26: 0 | N26: 0 | O26: 0 | P26: 0 | Q26: 0 | R26: 0 | X26: 0.0 | Y26: 0 | Z26: 0
A27: 18 | B27: ='Wettkampf 1'!B27 -> Evers, Claudia | C27: ='Wettkampf 1'!C27 -> Neuvrees II | D27: 297.9 | F27: 297.9 | G27: 0 | H27: 0 | I27: 0 | J27: 0 | K27: 297.9 | L27: 1 | M27: 0 | N27: 0 | O27: 0 | P27: 0 | Q27: 0 | R27: 0 | X27: 0.0 | Y27: 0 | Z27: 0
A28: 19 | B28: ='Wettkampf 1'!B28 -> Schulte, Christina | C28: ='Wettkampf 1'!C28 -> Neuvrees II | D28: 0.0 | E28: x | F28: 0 | G28: 0 | H28: 0 | I28: 0 | J28: 0 | K28: 0 | L28: 0 | M28: 0 | N28: 0 | O28: 0 | P28: 0 | Q28: 0 | R28: 0 | X28: 0.0 | Y28: 1 | Z28: 0
A29: 20 | B29: ='Wettkampf 1'!B29 -> Reinelt, Michaela | C29: ='Wettkampf 1'!C29 -> Lahn IV | D29: 307.7 | F29: 307.7 | G29: 0 | H29: 0 | I29: 0 | J29: 0 | K29: 0 | L29: 0 | M29: 307.7 | N29: 1 | O29: 0 | P29: 0 | Q29: 0 | R29: 0 | X29: 0.0 | Y29: 0 | Z29: 0
A30: 21 | B30: ='Wettkampf 1'!B30 -> Thien, Marita | C30: ='Wettkampf 1'!C30 -> Lahn IV | D30: 312.3 | F30: 312.3 | G30: 0 | H30: 0 | I30: 0 | J30: 0 | K30: 0 | L30: 0 | M30: 312.3 | N30: 1 | O30: 0 | P30: 0 | Q30: 0 | R30: 0 | X30: 0.0 | Y30: 0 | Z30: 0
A31: 22 | B31: ='Wettkampf 1'!B31 -> Robben, Anja | C31: ='Wettkampf 1'!C31 -> Lahn IV | D31: 304.4 | F31: 304.4 | G31: 0 | H31: 0 | I31: 0 | J31: 0 | K31: 0 | L31: 0 | M31: 304.4 | N31: 1 | O31: 0 | P31: 0 | Q31: 0 | R31: 0 | X31: 0.0 | Y31: 0 | Z31: 0
A32: 23 | B32: ='Wettkampf 1'!B32 -> Oldopp, Maria | C32: ='Wettkampf 1'!C32 -> Lahn IV | D32: 299.1 | E32: x | F32: 0 | G32: 0 | H32: 0 | I32: 0 | J32: 0 | K32: 0 | L32: 0 | M32: 0 | N32: 0 | O32: 0 | P32: 0 | Q32: 0 | R32: 0 | X32: 0.0 | Y32: 0 | Z32: 0
A33: 24 | B33: ='Wettkampf 1'!B33 -> Hanneken, Doris | C33: ='Wettkampf 1'!C33 -> Lahn IV | D33: 302.8 | F33: 302.8 | G33: 0 | H33: 0 | I33: 0 | J33: 0 | K33: 0 | L33: 0 | M33: 302.8 | N33: 1 | O33: 0 | P33: 0 | Q33: 0 | R33: 0 | X33: 0.0 | Y33: 0 | Z33: 0
A34: 25 | B34: ='Wettkampf 1'!B34 -> Kuchta, Gertrud | C34: ='Wettkampf 1'!C34 -> Börger III | D34: 303.4 | F34: 303.4 | G34: 0 | H34: 0 | I34: 0 | J34: 0 | K34: 0 | L34: 0 | M34: 0 | N34: 0 | O34: 303.4 | P34: 1 | Q34: 0 | R34: 0 | X34: 0.0 | Y34: 0 | Z34: 0
A35: 26 | B35: ='Wettkampf 1'!B35 -> Jungsthöfel, Sabine | C35: ='Wettkampf 1'!C35 -> Börger III | D35: 300.4 | F35: 300.4 | G35: 0 | H35: 0 | I35: 0 | J35: 0 | K35: 0 | L35: 0 | M35: 0 | N35: 0 | O35: 300.4 | P35: 1 | Q35: 0 | R35: 0 | X35: 0.0 | Y35: 0 | Z35: 0
A36: 27 | B36: ='Wettkampf 1'!B36 -> Schwarte, Gundula | C36: ='Wettkampf 1'!C36 -> Börger III | D36: 306.5 | E36: x | F36: 0 | G36: 0 | H36: 0 | I36: 0 | J36: 0 | K36: 0 | L36: 0 | M36: 0 | N36: 0 | O36: 0 | P36: 0 | Q36: 0 | R36: 0 | X36: 0.0 | Y36: 0 | Z36: 0
A37: 28 | B37: ='Wettkampf 1'!B37 -> Geers, Christa | C37: ='Wettkampf 1'!C37 -> Börger III | D37: 299.1 | F37: 299.1 | G37: 0 | H37: 0 | I37: 0 | J37: 0 | K37: 0 | L37: 0 | M37: 0 | N37: 0 | O37: 299.1 | P37: 1 | Q37: 0 | R37: 0 | X37: 0.0 | Y37: 0 | Z37: 0
A38: 29 | B38: ='Wettkampf 1'!B38 -> Remmers, Tanja | C38: ='Wettkampf 1'!C38 -> Börger III | D38: 286.0 | E38: x | F38: 0 | G38: 0 | H38: 0 | I38: 0 | J38: 0 | K38: 0 | L38: 0 | M38: 0 | N38: 0 | O38: 0 | P38: 0 | Q38: 0 | R38: 0 | X38: 0.0 | Y38: 0 | Z38: 0
A39: 30 | B39: ='Wettkampf 1'!B39 -> Terhalle, Johanna | C39: ='Wettkampf 1'!C39 -> Börger III | D39: 309.3 | F39: 309.3 | G39: 0 | H39: 0 | I39: 0 | J39: 0 | K39: 0 | L39: 0 | M39: 0 | N39: 0 | O39: 309.3 | P39: 1 | Q39: 0 | R39: 0 | X39: 0.0 | Y39: 0 | Z39: 0
A40: 31 | B40: ='Wettkampf 1'!B40 -> Hackstette, Lena | C40: ='Wettkampf 1'!C40 -> Lahn III | D40: 309.4 | E40: x | F40: 0 | G40: 0 | H40: 0 | I40: 0 | J40: 0 | K40: 0 | L40: 0 | M40: 0 | N40: 0 | O40: 0 | P40: 0 | Q40: 0 | R40: 0 | X40: 0.0 | Y40: 0 | Z40: 0
A41: 32 | B41: ='Wettkampf 1'!B41 -> Thyen, Christel | C41: ='Wettkampf 1'!C41 -> Lahn III | D41: 306.1 | F41: 306.1 | G41: 0 | H41: 0 | I41: 0 | J41: 0 | K41: 0 | L41: 0 | M41: 0 | N41: 0 | O41: 0 | P41: 0 | Q41: 306.1 | R41: 1 | X41: 0.0 | Y41: 0 | Z41: 0
A42: 33 | B42: ='Wettkampf 1'!B42 -> Ostermann, Hildegard | C42: ='Wettkampf 1'!C42 -> Lahn III | D42: 306.1 | F42: 306.1 | G42: 0 | H42: 0 | I42: 0 | J42: 0 | K42: 0 | L42: 0 | M42: 0 | N42: 0 | O42: 0 | P42: 0 | Q42: 306.1 | R42: 1 | X42: 0.0 | Y42: 0 | Z42: 0
A43: 34 | B43: ='Wettkampf 1'!B43 -> Willoh, Henrika | C43: ='Wettkampf 1'!C43 -> Lahn III | D43: 309.8 | F43: 309.8 | G43: 0 | H43: 0 | I43: 0 | J43: 0 | K43: 0 | L43: 0 | M43: 0 | N43: 0 | O43: 0 | P43: 0 | Q43: 309.8 | R43: 1 | X43: 0.0 | Y43: 0 | Z43: 0
A44: 35 | B44: ='Wettkampf 1'!B44 -> Müller, Anita | C44: ='Wettkampf 1'!C44 -> Lahn III | D44: 306.6 | E44: x | F44: 0 | G44: 0 | H44: 0 | I44: 0 | J44: 0 | K44: 0 | L44: 0 | M44: 0 | N44: 0 | O44: 0 | P44: 0 | Q44: 0 | R44: 0 | X44: 0.0 | Y44: 0 | Z44: 0
A45: 36 | B45: ='Wettkampf 1'!B45 -> Wilken, Elena | C45: ='Wettkampf 1'!C45 -> Lahn III | D45: 305.0 | F45: 305.0 | G45: 0 | H45: 0 | I45: 0 | J45: 0 | K45: 0 | L45: 0 | M45: 0 | N45: 0 | O45: 0 | P45: 0 | Q45: 305 | R45: 1 | X45: 0.0 | Y45: 0 | Z45: 0
G46: =LARGE(G10:G45,1)+LARGE(G10:G45,2)+LARGE(G10:G45,3) -> 923.2 | H46: =SUM(H10:H45) -> 4 | I46: =LARGE(I10:I45,1)+LARGE(I10:I45,2)+LARGE(I10:I45,3) -> 938.2 | J46: =SUM(J10:J45) -> 4 | K46: =LARGE(K10:K45,1)+LARGE(K10:K45,2)+LARGE(K10:K45,3) -> 916.3 | L46: =SUM(L10:L45) -> 4 | M46: =LARGE(M10:M45,1)+LARGE(M10:M45,2)+LARGE(M10:M45,3) -> 924.4 | N46: =SUM(N10:N45) -> 4 | O46: =LARGE(O10:O45,1)+LARGE(O10:O45,2)+LARGE(O10:O45,3) -> 913.1 | P46: =SUM(P10:P45) -> 4 | Q46: =LARGE(Q10:Q45,1)+LARGE(Q10:Q45,2)+LARGE(Q10:Q45,3) -> 922 | R46: =SUM(R10:S45) -> 4
C47: per Email an: sk-huemmling@gmx.de

Sheet 9
B1: Verein / Gruppe | D1: Ergebnisse | V1: Austragungsort: | W1: =Übersicht!N4 -> Neuvrees
A2: 1 | B2: ='Wettkampf 1'!B2 -> Börger II | D2: =G46 -> 919.6 | E2: =IF(H46>4,"Es sind zu viele Schützen in Wertung!"," ") ->  | V2: Wettkampftag: | W2: =Übersicht!N3 -> 09.02.
A3: 2 | B3: ='Wettkampf 1'!B3 -> Esterwegen V | D3: =I46 -> 932.4 | E3: =IF(J46>4,"Es sind zu viele Schützen in Wertung!"," ") -> 
A4: 3 | B4: ='Wettkampf 1'!B4 -> Neuvrees II | D4: =K46 -> 925.6 | E4: =IF(L46>4,"Es sind zu viele Schützen in Wertung!"," ") ->  | X4: Ansprechpartner für Rückfragen:
A5: 4 | B5: ='Wettkampf 1'!B5 -> Lahn IV | D5: =M46 -> 928.4 | E5: =IF(N46>4,"Es sind zu viele Schützen in Wertung!"," ") ->  | V5: Name: | W5: Silvia Thunert
A6: 5 | B6: ='Wettkampf 1'!B6 -> Börger III | D6: =O46 -> 925.4 | E6: =IF(P46>4,"Es sind zu viele Schützen in Wertung!"," ") ->  | V6: Tel: | W6: 04493-998686
A7: 6 | B7: ='Wettkampf 1'!B7 -> Lahn III | D7: =Q46 -> 921.7 | E7: =IF(R46>4,"Es sind zu viele Schützen in Wertung!"," ") ->  | V7: Standaufsicht: | W7: Silvia Thunert
B9: Einzelergebnisse: | C9: Verein / Gruppe | D9: Ergebnisse (mindestens 0 eintragen) | E9: AW? Dann x eintippen | G9: Verein 1 | I9: Verein 2 | K9: Verein 3 | M9: Verein 4 | O9: Verein 5 | Q9: Verein 6 | U9: Proberechnung bei Streifen:
A10: 1 | B10: ='Wettkampf 1'!B10 -> Kossenjans, Annegret | C10: ='Wettkampf 1'!C10 -> Börger II | E10: x | F10: =IF(E10="x","0",D10) -> 0 | G10: =IF(C10=$B$2,F10,0) -> 0 | H10: =(IF(AND($E10="",$C10=$B$2),1,0)) -> 0 | I10: =IF($C10=$B$3,F10,0) -> 0 | J10: =(IF(AND($E10="",$C10=$B$3),1,0)) -> 0 | K10: =IF($C10=$B$4,F10,0) -> 0 | L10: =(IF(AND($E10="",$C10=$B$4),1,0)) -> 0 | M10: =IF($C10=$B$5,F10,0) -> 0 | N10: =(IF(AND($E10="",$C10=$B$5),1,0)) -> 0 | O10: =IF($C10=$B$6,F10,0) -> 0 | P10: =(IF(AND($E10="",$C10=$B$6),1,0)) -> 0 | Q10: =IF($C10=$B$7,F10,0) -> 0 | R10: =(IF(AND($E10="",$C10=$B$7),1,0)) -> 0 | X10: =U10+V10+W10 -> 0.0 | Y10: =IF(X10=D10,1,0) -> 1 | Z10: =IF(X10=0,0,1) -> 0 | AA10: =IF(Y10+Z10=2,"Korrekt","") -> 
A11: 2 | B11: ='Wettkampf 1'!B11 -> Jansen, Elisabeth | C11: ='Wettkampf 1'!C11 -> Börger II | D11: 307.3 | F11: =IF(E11="x","0",D11) -> 307.3 | G11: =IF(C11=$B$2,F11,0) -> 307.3 | H11: =(IF(AND($E11="",$C11=$B$2),1,0)) -> 1 | I11: =IF($C11=$B$3,F11,0) -> 0 | J11: =(IF(AND($E11="",$C11=$B$3),1,0)) -> 0 | K11: =IF($C11=$B$4,F11,0) -> 0 | L11: =(IF(AND($E11="",$C11=$B$4),1,0)) -> 0 | M11: =IF($C11=$B$5,F11,0) -> 0 | N11: =(IF(AND($E11="",$C11=$B$5),1,0)) -> 0 | O11: =IF($C11=$B$6,F11,0) -> 0 | P11: =(IF(AND($E11="",$C11=$B$6),1,0)) -> 0 | Q11: =IF($C11=$B$7,F11,0) -> 0 | R11: =(IF(AND($E11="",$C11=$B$7),1,0)) -> 0 | X11: =U11+V11+W11 -> 0.0 | Y11: =IF(X11=D11,1,0) -> 0 | Z11: =IF(X11=0,0,1) -> 0 | AA11: =IF(Y11+Z11=2,"Korrekt","") -> 
A12: 3 | B12: ='Wettkampf 1'!B12 -> Krömer, Monika | C12: ='Wettkampf 1'!C12 -> Börger II | D12: 290.4 | F12: 290.4 | G12: 290.4 | H12: 1 | I12: 0 | J12: 0 | K12: 0 | L12: 0 | M12: 0 | N12: 0 | O12: 0 | P12: 0 | Q12: 0 | R12: 0 | X12: 0.0 | Y12: 0 | Z12: 0
A13: 4 | B13: ='Wettkampf 1'!B13 -> Pohlgeers, Margret | C13: ='Wettkampf 1'!C13 -> Börger II | D13: 309.0 | F13: 309.0 | G13: 309 | H13: 1 | I13: 0 | J13: 0 | K13: 0 | L13: 0 | M13: 0 | N13: 0 | O13: 0 | P13: 0 | Q13: 0 | R13: 0 | X13: 0.0 | Y13: 0 | Z13: 0
A14: 5 | B14: ='Wettkampf 1'!B14 -> Pohlgeers, Silvia | C14: ='Wettkampf 1'!C14 -> Börger II | D14: 303.3 | F14: 303.3 | G14: 303.3 | H14: 1 | I14: 0 | J14: 0 | K14: 0 | L14: 0 | M14: 0 | N14: 0 | O14: 0 | P14: 0 | Q14: 0 | R14: 0 | X14: 0.0 | Y14: 0 | Z14: 0
A15: 6 | B15: ='Wettkampf 1'!B15 -> Schwarte, Annette | C15: ='Wettkampf 1'!C15 -> Börger II | E15: x | F15: 0 | G15: 0 | H15: 0 | I15: 0 | J15: 0 | K15: 0 | L15: 0 | M15: 0 | N15: 0 | O15: 0 | P15: 0 | Q15: 0 | R15: 0 | X15: 0.0 | Y15: 1 | Z15: 0
A16: 7 | B16: ='Wettkampf 1'!B16 -> Lindemann, Kerstin | C16: ='Wettkampf 1'!C16 -> Esterwegen V | D16: 307.5 | F16: 307.5 | G16: 0 | H16: 0 | I16: 307.5 | J16: 1 | K16: 0 | L16: 0 | M16: 0 | N16: 0 | O16: 0 | P16: 0 | Q16: 0 | R16: 0 | X16: 0.0 | Y16: 0 | Z16: 0
A17: 8 | B17: ='Wettkampf 1'!B17 -> Schlarmann, Lena | C17: ='Wettkampf 1'!C17 -> Esterwegen V | D17: 304.5 | F17: 304.5 | G17: 0 | H17: 0 | I17: 304.5 | J17: 1 | K17: 0 | L17: 0 | M17: 0 | N17: 0 | O17: 0 | P17: 0 | Q17: 0 | R17: 0 | X17: 0.0 | Y17: 0 | Z17: 0
A18: 9 | B18: ='Wettkampf 1'!B18 -> Lindemann, Stefanie | C18: ='Wettkampf 1'!C18 -> Esterwegen V | D18: 307.7 | F18: 307.7 | G18: 0 | H18: 0 | I18: 307.7 | J18: 1 | K18: 0 | L18: 0 | M18: 0 | N18: 0 | O18: 0 | P18: 0 | Q18: 0 | R18: 0 | X18: 0.0 | Y18: 0 | Z18: 0
A19: 10 | B19: ='Wettkampf 1'!B19 -> Lindemann, Rita | C19: ='Wettkampf 1'!C19 -> Esterwegen V | D19: 317.2 | F19: 317.2 | G19: 0 | H19: 0 | I19: 317.2 | J19: 1 | K19: 0 | L19: 0 | M19: 0 | N19: 0 | O19: 0 | P19: 0 | Q19: 0 | R19: 0 | X19: 0.0 | Y19: 0 | Z19: 0
A20: 11 | B20: ='Wettkampf 1'!B20 -> Büter, Daniela | C20: ='Wettkampf 1'!C20 -> Esterwegen V | D20: 295.8 | E20: x | F20: 0 | G20: 0 | H20: 0 | I20: 0 | J20: 0 | K20: 0 | L20: 0 | M20: 0 | N20: 0 | O20: 0 | P20: 0 | Q20: 0 | R20: 0 | X20: 0.0 | Y20: 0 | Z20: 0
A21: 12 | B21: ='Wettkampf 1'!B21 -> Lindemann, Annemarie | C21: ='Wettkampf 1'!C21 -> Esterwegen V | E21: x | F21: 0 | G21: 0 | H21: 0 | I21: 0 | J21: 0 | K21: 0 | L21: 0 | M21: 0 | N21: 0 | O21: 0 | P21: 0 | Q21: 0 | R21: 0 | X21: 0.0 | Y21: 1 | Z21: 0
A22: 13 | B22: ='Wettkampf 1'!B22 -> Preut, Susanne | C22: ='Wettkampf 1'!C22 -> Neuvrees II | F22: 0.0 | G22: 0 | H22: 0 | I22: 0 | J22: 0 | K22: 0 | L22: 1 | M22: 0 | N22: 0 | O22: 0 | P22: 0 | Q22: 0 | R22: 0 | X22: 0.0 | Y22: 1 | Z22: 0
A23: 14 | B23: ='Wettkampf 1'!B23 -> Thunert, Silvia | C23: ='Wettkampf 1'!C23 -> Neuvrees II | D23: 306.9 | F23: 306.9 | G23: 0 | H23: 0 | I23: 0 | J23: 0 | K23: 306.9 | L23: 1 | M23: 0 | N23: 0 | O23: 0 | P23: 0 | Q23: 0 | R23: 0 | X23: 0.0 | Y23: 0 | Z23: 0
A24: 15 | B24: ='Wettkampf 1'!B24 -> Pohlmann, Margret | C24: ='Wettkampf 1'!C24 -> Neuvrees II | D24: 308.4 | F24: 308.4 | G24: 0 | H24: 0 | I24: 0 | J24: 0 | K24: 308.4 | L24: 1 | M24: 0 | N24: 0 | O24: 0 | P24: 0 | Q24: 0 | R24: 0 | X24: 0.0 | Y24: 0 | Z24: 0
A25: 16 | B25: ='Wettkampf 1'!B25 -> Eilermann, Saskia | C25: ='Wettkampf 1'!C25 -> Neuvrees II | D25: 310.3 | F25: 310.3 | G25: 0 | H25: 0 | I25: 0 | J25: 0 | K25: 310.3 | L25: 1 | M25: 0 | N25: 0 | O25: 0 | P25: 0 | Q25: 0 | R25: 0 | X25: 0.0 | Y25: 0 | Z25: 0
A26: 17 | B26: ='Wettkampf 1'!B26 -> Junge, Silvia | C26: ='Wettkampf 1'!C26 -> Neuvrees II | D26: 305.4 | E26: x | F26: 0 | G26: 0 | H26: 0 | I26: 0 | J26: 0 | K26: 0 | L26: 0 | M26: 0 | N26: 0 | O26: 0 | P26: 0 | Q26: 0 | R26: 0 | X26: 0.0 | Y26: 0 | Z26: 0
A27: 18 | B27: ='Wettkampf 1'!B27 -> Evers, Claudia | C27: ='Wettkampf 1'!C27 -> Neuvrees II | D27: 302.6 | E27: x | F27: 0 | G27: 0 | H27: 0 | I27: 0 | J27: 0 | K27: 0 | L27: 0 | M27: 0 | N27: 0 | O27: 0 | P27: 0 | Q27: 0 | R27: 0 | X27: 0.0 | Y27: 0 | Z27: 0
A28: 19 | B28: ='Wettkampf 1'!B28 -> Schulte, Christina | C28: ='Wettkampf 1'!C28 -> Neuvrees II | E28: x | F28: 0 | G28: 0 | H28: 0 | I28: 0 | J28: 0 | K28: 0 | L28: 0 | M28: 0 | N28: 0 | O28: 0 | P28: 0 | Q28: 0 | R28: 0 | X28: 0.0 | Y28: 1 | Z28: 0
A29: 20 | B29: ='Wettkampf 1'!B29 -> Reinelt, Michaela | C29: ='Wettkampf 1'!C29 -> Lahn IV | D29: 310.2 | F29: 310.2 | G29: 0 | H29: 0 | I29: 0 | J29: 0 | K29: 0 | L29: 0 | M29: 310.2 | N29: 1 | O29: 0 | P29: 0 | Q29: 0 | R29: 0 | X29: 0.0 | Y29: 0 | Z29: 0
A30: 21 | B30: ='Wettkampf 1'!B30 -> Thien, Marita | C30: ='Wettkampf 1'!C30 -> Lahn IV | D30: 310.3 | F30: 310.3 | G30: 0 | H30: 0 | I30: 0 | J30: 0 | K30: 0 | L30: 0 | M30: 310.3 | N30: 1 | O30: 0 | P30: 0 | Q30: 0 | R30: 0 | X30: 0.0 | Y30: 0 | Z30: 0
A31: 22 | B31: ='Wettkampf 1'!B31 -> Robben, Anja | C31: ='Wettkampf 1'!C31 -> Lahn IV | D31: 307.9 | F31: 307.9 | G31: 0 | H31: 0 | I31: 0 | J31: 0 | K31: 0 | L31: 0 | M31: 307.9 | N31: 1 | O31: 0 | P31: 0 | Q31: 0 | R31: 0 | X31: 0.0 | Y31: 0 | Z31: 0
A32: 23 | B32: ='Wettkampf 1'!B32 -> Oldopp, Maria | C32: ='Wettkampf 1'!C32 -> Lahn IV | D32: 302.0 | E32: x | F32: 0 | G32: 0 | H32: 0 | I32: 0 | J32: 0 | K32: 0 | L32: 0 | M32: 0 | N32: 0 | O32: 0 | P32: 0 | Q32: 0 | R32: 0 | X32: 0.0 | Y32: 0 | Z32: 0
A33: 24 | B33: ='Wettkampf 1'!B33 -> Hanneken, Doris | C33: ='Wettkampf 1'!C33 -> Lahn IV | D33: 303.9 | F33: 303.9 | G33: 0 | H33: 0 | I33: 0 | J33: 0 | K33: 0 | L33: 0 | M33: 303.9 | N33: 1 | O33: 0 | P33: 0 | Q33: 0 | R33: 0 | X33: 0.0 | Y33: 0 | Z33: 0
A34: 25 | B34: ='Wettkampf 1'!B34 -> Kuchta, Gertrud | C34: ='Wettkampf 1'!C34 -> Börger III | D34: 311.1 | F34: 311.1 | G34: 0 | H34: 0 | I34: 0 | J34: 0 | K34: 0 | L34: 0 | M34: 0 | N34: 0 | O34: 311.1 | P34: 1 | Q34: 0 | R34: 0 | X34: 0.0 | Y34: 0 | Z34: 0
A35: 26 | B35: ='Wettkampf 1'!B35 -> Jungsthöfel, Sabine | C35: ='Wettkampf 1'!C35 -> Börger III | D35: 298.1 | E35: x | F35: 0 | G35: 0 | H35: 0 | I35: 0 | J35: 0 | K35: 0 | L35: 0 | M35: 0 | N35: 0 | O35: 0 | P35: 0 | Q35: 0 | R35: 0 | X35: 0.0 | Y35: 0 | Z35: 0
A36: 27 | B36: ='Wettkampf 1'!B36 -> Schwarte, Gundula | C36: ='Wettkampf 1'!C36 -> Börger III | D36: 301.9 | F36: 301.9 | G36: 0 | H36: 0 | I36: 0 | J36: 0 | K36: 0 | L36: 0 | M36: 0 | N36: 0 | O36: 301.9 | P36: 1 | Q36: 0 | R36: 0 | X36: 0.0 | Y36: 0 | Z36: 0
A37: 28 | B37: ='Wettkampf 1'!B37 -> Geers, Christa | C37: ='Wettkampf 1'!C37 -> Börger III | D37: 305.2 | F37: 305.2 | G37: 0 | H37: 0 | I37: 0 | J37: 0 | K37: 0 | L37: 0 | M37: 0 | N37: 0 | O37: 305.2 | P37: 1 | Q37: 0 | R37: 0 | X37: 0.0 | Y37: 0 | Z37: 0
A38: 29 | B38: ='Wettkampf 1'!B38 -> Remmers, Tanja | C38: ='Wettkampf 1'!C38 -> Börger III | D38: 301.8 | E38: x | F38: 0 | G38: 0 | H38: 0 | I38: 0 | J38: 0 | K38: 0 | L38: 0 | M38: 0 | N38: 0 | O38: 0 | P38: 0 | Q38: 0 | R38: 0 | X38: 0.0 | Y38: 0 | Z38: 0
A39: 30 | B39: ='Wettkampf 1'!B39 -> Terhalle, Johanna | C39: ='Wettkampf 1'!C39 -> Börger III | D39: 309.1 | F39: 309.1 | G39: 0 | H39: 0 | I39: 0 | J39: 0 | K39: 0 | L39: 0 | M39: 0 | N39: 0 | O39: 309.1 | P39: 1 | Q39: 0 | R39: 0 | X39: 0.0 | Y39: 0 | Z39: 0
A40: 31 | B40: ='Wettkampf 1'!B40 -> Hackstette, Lena | C40: ='Wettkampf 1'!C40 -> Lahn III | D40: 305.6 | F40: 305.6 | G40: 0 | H40: 0 | I40: 0 | J40: 0 | K40: 0 | L40: 0 | M40: 0 | N40: 0 | O40: 0 | P40: 0 | Q40: 305.6 | R40: 1 | X40: 0.0 | Y40: 0 | Z40: 0
A41: 32 | B41: ='Wettkampf 1'!B41 -> Thyen, Christel | C41: ='Wettkampf 1'!C41 -> Lahn III | D41: 305.7 | F41: 305.7 | G41: 0 | H41: 0 | I41: 0 | J41: 0 | K41: 0 | L41: 0 | M41: 0 | N41: 0 | O41: 0 | P41: 0 | Q41: 305.7 | R41: 1 | X41: 0.0 | Y41: 0 | Z41: 0
A42: 33 | B42: ='Wettkampf 1'!B42 -> Ostermann, Hildegard | C42: ='Wettkampf 1'!C42 -> Lahn III | D42: 301.4 | F42: 301.4 | G42: 0 | H42: 0 | I42: 0 | J42: 0 | K42: 0 | L42: 0 | M42: 0 | N42: 0 | O42: 0 | P42: 0 | Q42: 301.4 | R42: 1 | X42: 0.0 | Y42: 0 | Z42: 0
A43: 34 | B43: ='Wettkampf 1'!B43 -> Willoh, Henrika | C43: ='Wettkampf 1'!C43 -> Lahn III | D43: 310.4 | F43: 310.4 | G43: 0 | H43: 0 | I43: 0 | J43: 0 | K43: 0 | L43: 0 | M43: 0 | N43: 0 | O43: 0 | P43: 0 | Q43: 310.4 | R43: 1 | X43: 0.0 | Y43: 0 | Z43: 0
A44: 35 | B44: ='Wettkampf 1'!B44 -> Müller, Anita | C44: ='Wettkampf 1'!C44 -> Lahn III | D44: 304.0 | E44: x | F44: 0 | G44: 0 | H44: 0 | I44: 0 | J44: 0 | K44: 0 | L44: 0 | M44: 0 | N44: 0 | O44: 0 | P44: 0 | Q44: 0 | R44: 0 | X44: 0.0 | Y44: 0 | Z44: 0
A45: 36 | B45: ='Wettkampf 1'!B45 -> Wilken, Elena | C45: ='Wettkampf 1'!C45 -> Lahn III | D45: 308.5 | E45: x | F45: 0 | G45: 0 | H45: 0 | I45: 0 | J45: 0 | K45: 0 | L45: 0 | M45: 0 | N45: 0 | O45: 0 | P45: 0 | Q45: 0 | R45: 0 | X45: 0.0 | Y45: 0 | Z45: 0
G46: =LARGE(G10:G45,1)+LARGE(G10:G45,2)+LARGE(G10:G45,3) -> 919.6 | H46: =SUM(H10:H45) -> 4 | I46: =LARGE(I10:I45,1)+LARGE(I10:I45,2)+LARGE(I10:I45,3) -> 932.4 | J46: =SUM(J10:J45) -> 4 | K46: =LARGE(K10:K45,1)+LARGE(K10:K45,2)+LARGE(K10:K45,3) -> 925.6 | L46: =SUM(L10:L45) -> 4 | M46: =LARGE(M10:M45,1)+LARGE(M10:M45,2)+LARGE(M10:M45,3) -> 928.4 | N46: =SUM(N10:N45) -> 4 | O46: =LARGE(O10:O45,1)+LARGE(O10:O45,2)+LARGE(O10:O45,3) -> 925.4 | P46: =SUM(P10:P45) -> 4 | Q46: =LARGE(Q10:Q45,1)+LARGE(Q10:Q45,2)+LARGE(Q10:Q45,3) -> 921.7 | R46: =SUM(R10:S45) -> 4
C47: per Email an: sk-huemmling@gmx.de

Sheet 10
B1: Verein / Gruppe | D1: Ergebnisse | V1: Austragungsort: | W1: =Übersicht!O4 -> Börger
A2: 1 | B2: ='Wettkampf 1'!B2 -> Börger II | D2: =G46 -> 922.1 | E2: =IF(H46>4,"Es sind zu viele Schützen in Wertung!"," ") ->  | V2: Wettkampftag: | W2: =Übersicht!O3 -> 23.02.
A3: 2 | B3: ='Wettkampf 1'!B3 -> Esterwegen V | D3: =I46 -> 937.8 | E3: =IF(J46>4,"Es sind zu viele Schützen in Wertung!"," ") -> 
A4: 3 | B4: ='Wettkampf 1'!B4 -> Neuvrees II | D4: =K46 -> 924.4 | E4: =IF(L46>4,"Es sind zu viele Schützen in Wertung!"," ") ->  | X4: Ansprechpartner für Rückfragen:
A5: 4 | B5: ='Wettkampf 1'!B5 -> Lahn IV | D5: =M46 -> 935.0 | E5: =IF(N46>4,"Es sind zu viele Schützen in Wertung!"," ") ->  | V5: Name: | W5: Margret Pohlgeers
A6: 5 | B6: ='Wettkampf 1'!B6 -> Börger III | D6: =O46 -> 915.2 | E6: =IF(P46>4,"Es sind zu viele Schützen in Wertung!"," ") ->  | V6: Tel: | W6: 059538976
A7: 6 | B7: ='Wettkampf 1'!B7 -> Lahn III | D7: =Q46 -> 928.8 | E7: =IF(R46>4,"Es sind zu viele Schützen in Wertung!"," ") ->  | V7: Standaufsicht: | W7: Pohlgeers Geers
B9: Einzelergebnisse: | C9: Verein / Gruppe | D9: Ergebnisse (mindestens 0 eintragen) | E9: AW? Dann x eintippen | G9: Verein 1 | I9: Verein 2 | K9: Verein 3 | M9: Verein 4 | O9: Verein 5 | Q9: Verein 6 | U9: Proberechnung bei Streifen:
A10: 1 | B10: ='Wettkampf 1'!B10 -> Kossenjans, Annegret | C10: ='Wettkampf 1'!C10 -> Börger II | D10: 0.0 | E10: x | F10: =IF(E10="x","0",D10) -> 0 | G10: =IF(C10=$B$2,F10,0) -> 0 | H10: =(IF(AND($E10="",$C10=$B$2),1,0)) -> 0 | I10: =IF($C10=$B$3,F10,0) -> 0 | J10: =(IF(AND($E10="",$C10=$B$3),1,0)) -> 0 | K10: =IF($C10=$B$4,F10,0) -> 0 | L10: =(IF(AND($E10="",$C10=$B$4),1,0)) -> 0 | M10: =IF($C10=$B$5,F10,0) -> 0 | N10: =(IF(AND($E10="",$C10=$B$5),1,0)) -> 0 | O10: =IF($C10=$B$6,F10,0) -> 0 | P10: =(IF(AND($E10="",$C10=$B$6),1,0)) -> 0 | Q10: =IF($C10=$B$7,F10,0) -> 0 | R10: =(IF(AND($E10="",$C10=$B$7),1,0)) -> 0 | X10: =U10+V10+W10 -> 0.0 | Y10: =IF(X10=D10,1,0) -> 1 | Z10: =IF(X10=0,0,1) -> 0 | AA10: =IF(Y10+Z10=2,"Korrekt","") -> 
A11: 2 | B11: ='Wettkampf 1'!B11 -> Jansen, Elisabeth | C11: ='Wettkampf 1'!C11 -> Börger II | D11: 306.6 | F11: =IF(E11="x","0",D11) -> 306.6 | G11: =IF(C11=$B$2,F11,0) -> 306.6 | H11: =(IF(AND($E11="",$C11=$B$2),1,0)) -> 1 | I11: =IF($C11=$B$3,F11,0) -> 0 | J11: =(IF(AND($E11="",$C11=$B$3),1,0)) -> 0 | K11: =IF($C11=$B$4,F11,0) -> 0 | L11: =(IF(AND($E11="",$C11=$B$4),1,0)) -> 0 | M11: =IF($C11=$B$5,F11,0) -> 0 | N11: =(IF(AND($E11="",$C11=$B$5),1,0)) -> 0 | O11: =IF($C11=$B$6,F11,0) -> 0 | P11: =(IF(AND($E11="",$C11=$B$6),1,0)) -> 0 | Q11: =IF($C11=$B$7,F11,0) -> 0 | R11: =(IF(AND($E11="",$C11=$B$7),1,0)) -> 0 | X11: =U11+V11+W11 -> 0.0 | Y11: =IF(X11=D11,1,0) -> 0 | Z11: =IF(X11=0,0,1) -> 0 | AA11: =IF(Y11+Z11=2,"Korrekt","") -> 
A12: 3 | B12: ='Wettkampf 1'!B12 -> Krömer, Monika | C12: ='Wettkampf 1'!C12 -> Börger II | D12: 292.8 | F12: 292.8 | G12: 292.8 | H12: 1 | I12: 0 | J12: 0 | K12: 0 | L12: 0 | M12: 0 | N12: 0 | O12: 0 | P12: 0 | Q12: 0 | R12: 0 | X12: 0.0 | Y12: 0 | Z12: 0
A13: 4 | B13: ='Wettkampf 1'!B13 -> Pohlgeers, Margret | C13: ='Wettkampf 1'!C13 -> Börger II | D13: 309.2 | F13: 309.2 | G13: 309.2 | H13: 1 | I13: 0 | J13: 0 | K13: 0 | L13: 0 | M13: 0 | N13: 0 | O13: 0 | P13: 0 | Q13: 0 | R13: 0 | X13: 0.0 | Y13: 0 | Z13: 0
A14: 5 | B14: ='Wettkampf 1'!B14 -> Pohlgeers, Silvia | C14: ='Wettkampf 1'!C14 -> Börger II | D14: 306.3 | F14: 306.3 | G14: 306.3 | H14: 1 | I14: 0 | J14: 0 | K14: 0 | L14: 0 | M14: 0 | N14: 0 | O14: 0 | P14: 0 | Q14: 0 | R14: 0 | X14: 0.0 | Y14: 0 | Z14: 0
A15: 6 | B15: ='Wettkampf 1'!B15 -> Schwarte, Annette | C15: ='Wettkampf 1'!C15 -> Börger II | D15: 0.0 | E15: x | F15: 0 | G15: 0 | H15: 0 | I15: 0 | J15: 0 | K15: 0 | L15: 0 | M15: 0 | N15: 0 | O15: 0 | P15: 0 | Q15: 0 | R15: 0 | X15: 0.0 | Y15: 1 | Z15: 0
A16: 7 | B16: ='Wettkampf 1'!B16 -> Lindemann, Kerstin | C16: ='Wettkampf 1'!C16 -> Esterwegen V | D16: 311.5 | F16: 311.5 | G16: 0 | H16: 0 | I16: 311.5 | J16: 1 | K16: 0 | L16: 0 | M16: 0 | N16: 0 | O16: 0 | P16: 0 | Q16: 0 | R16: 0 | X16: 0.0 | Y16: 0 | Z16: 0
A17: 8 | B17: ='Wettkampf 1'!B17 -> Schlarmann, Lena | C17: ='Wettkampf 1'!C17 -> Esterwegen V | D17: 312.6 | F17: 312.6 | G17: 0 | H17: 0 | I17: 312.6 | J17: 1 | K17: 0 | L17: 0 | M17: 0 | N17: 0 | O17: 0 | P17: 0 | Q17: 0 | R17: 0 | X17: 0.0 | Y17: 0 | Z17: 0
A18: 9 | B18: ='Wettkampf 1'!B18 -> Lindemann, Stefanie | C18: ='Wettkampf 1'!C18 -> Esterwegen V | D18: 300.9 | F18: 300.9 | G18: 0 | H18: 0 | I18: 300.9 | J18: 1 | K18: 0 | L18: 0 | M18: 0 | N18: 0 | O18: 0 | P18: 0 | Q18: 0 | R18: 0 | X18: 0.0 | Y18: 0 | Z18: 0
A19: 10 | B19: ='Wettkampf 1'!B19 -> Lindemann, Rita | C19: ='Wettkampf 1'!C19 -> Esterwegen V | D19: 313.7 | F19: 313.7 | G19: 0 | H19: 0 | I19: 313.7 | J19: 1 | K19: 0 | L19: 0 | M19: 0 | N19: 0 | O19: 0 | P19: 0 | Q19: 0 | R19: 0 | X19: 0.0 | Y19: 0 | Z19: 0
A20: 11 | B20: ='Wettkampf 1'!B20 -> Büter, Daniela | C20: ='Wettkampf 1'!C20 -> Esterwegen V | D20: 304.4 | E20: x | F20: 0 | G20: 0 | H20: 0 | I20: 0 | J20: 0 | K20: 0 | L20: 0 | M20: 0 | N20: 0 | O20: 0 | P20: 0 | Q20: 0 | R20: 0 | X20: 0.0 | Y20: 0 | Z20: 0
A21: 12 | B21: ='Wettkampf 1'!B21 -> Lindemann, Annemarie | C21: ='Wettkampf 1'!C21 -> Esterwegen V | D21: 0.0 | E21: x | F21: 0 | G21: 0 | H21: 0 | I21: 0 | J21: 0 | K21: 0 | L21: 0 | M21: 0 | N21: 0 | O21: 0 | P21: 0 | Q21: 0 | R21: 0 | X21: 0.0 | Y21: 1 | Z21: 0
A22: 13 | B22: ='Wettkampf 1'!B22 -> Preut, Susanne | C22: ='Wettkampf 1'!C22 -> Neuvrees II | D22: 307.9 | F22: 307.9 | G22: 0 | H22: 0 | I22: 0 | J22: 0 | K22: 307.9 | L22: 1 | M22: 0 | N22: 0 | O22: 0 | P22: 0 | Q22: 0 | R22: 0 | X22: 0.0 | Y22: 0 | Z22: 0
A23: 14 | B23: ='Wettkampf 1'!B23 -> Thunert, Silvia | C23: ='Wettkampf 1'!C23 -> Neuvrees II | D23: 307.9 | F23: 307.9 | G23: 0 | H23: 0 | I23: 0 | J23: 0 | K23: 307.9 | L23: 1 | M23: 0 | N23: 0 | O23: 0 | P23: 0 | Q23: 0 | R23: 0 | X23: 0.0 | Y23: 0 | Z23: 0
A24: 15 | B24: ='Wettkampf 1'!B24 -> Pohlmann, Margret | C24: ='Wettkampf 1'!C24 -> Neuvrees II | D24: 308.6 | F24: 308.6 | G24: 0 | H24: 0 | I24: 0 | J24: 0 | K24: 308.6 | L24: 1 | M24: 0 | N24: 0 | O24: 0 | P24: 0 | Q24: 0 | R24: 0 | X24: 0.0 | Y24: 0 | Z24: 0
A25: 16 | B25: ='Wettkampf 1'!B25 -> Eilermann, Saskia | C25: ='Wettkampf 1'!C25 -> Neuvrees II | D25: 0.0 | E25: x | F25: 0 | G25: 0 | H25: 0 | I25: 0 | J25: 0 | K25: 0 | L25: 0 | M25: 0 | N25: 0 | O25: 0 | P25: 0 | Q25: 0 | R25: 0 | X25: 0.0 | Y25: 1 | Z25: 0
A26: 17 | B26: ='Wettkampf 1'!B26 -> Junge, Silvia | C26: ='Wettkampf 1'!C26 -> Neuvrees II | D26: 287.2 | F26: 287.2 | G26: 0 | H26: 0 | I26: 0 | J26: 0 | K26: 287.2 | L26: 1 | M26: 0 | N26: 0 | O26: 0 | P26: 0 | Q26: 0 | R26: 0 | X26: 0.0 | Y26: 0 | Z26: 0
A27: 18 | B27: ='Wettkampf 1'!B27 -> Evers, Claudia | C27: ='Wettkampf 1'!C27 -> Neuvrees II | D27: 301.2 | E27: x | F27: 0 | G27: 0 | H27: 0 | I27: 0 | J27: 0 | K27: 0 | L27: 0 | M27: 0 | N27: 0 | O27: 0 | P27: 0 | Q27: 0 | R27: 0 | X27: 0.0 | Y27: 0 | Z27: 0
A28: 19 | B28: ='Wettkampf 1'!B28 -> Schulte, Christina | C28: ='Wettkampf 1'!C28 -> Neuvrees II | D28: 0.0 | E28: x | F28: 0 | G28: 0 | H28: 0 | I28: 0 | J28: 0 | K28: 0 | L28: 0 | M28: 0 | N28: 0 | O28: 0 | P28: 0 | Q28: 0 | R28: 0 | X28: 0.0 | Y28: 1 | Z28: 0
A29: 20 | B29: ='Wettkampf 1'!B29 -> Reinelt, Michaela | C29: ='Wettkampf 1'!C29 -> Lahn IV | D29: 308.8 | F29: 308.8 | G29: 0 | H29: 0 | I29: 0 | J29: 0 | K29: 0 | L29: 0 | M29: 308.8 | N29: 1 | O29: 0 | P29: 0 | Q29: 0 | R29: 0 | X29: 0.0 | Y29: 0 | Z29: 0
A30: 21 | B30: ='Wettkampf 1'!B30 -> Thien, Marita | C30: ='Wettkampf 1'!C30 -> Lahn IV | D30: 311.7 | F30: 311.7 | G30: 0 | H30: 0 | I30: 0 | J30: 0 | K30: 0 | L30: 0 | M30: 311.7 | N30: 1 | O30: 0 | P30: 0 | Q30: 0 | R30: 0 | X30: 0.0 | Y30: 0 | Z30: 0
A31: 22 | B31: ='Wettkampf 1'!B31 -> Robben, Anja | C31: ='Wettkampf 1'!C31 -> Lahn IV | D31: 314.5 | F31: 314.5 | G31: 0 | H31: 0 | I31: 0 | J31: 0 | K31: 0 | L31: 0 | M31: 314.5 | N31: 1 | O31: 0 | P31: 0 | Q31: 0 | R31: 0 | X31: 0.0 | Y31: 0 | Z31: 0
A32: 23 | B32: ='Wettkampf 1'!B32 -> Oldopp, Maria | C32: ='Wettkampf 1'!C32 -> Lahn IV | D32: 300.7 | E32: x | F32: 0 | G32: 0 | H32: 0 | I32: 0 | J32: 0 | K32: 0 | L32: 0 | M32: 0 | N32: 0 | O32: 0 | P32: 0 | Q32: 0 | R32: 0 | X32: 0.0 | Y32: 0 | Z32: 0
A33: 24 | B33: ='Wettkampf 1'!B33 -> Hanneken, Doris | C33: ='Wettkampf 1'!C33 -> Lahn IV | D33: 296.9 | F33: 296.9 | G33: 0 | H33: 0 | I33: 0 | J33: 0 | K33: 0 | L33: 0 | M33: 296.9 | N33: 1 | O33: 0 | P33: 0 | Q33: 0 | R33: 0 | X33: 0.0 | Y33: 0 | Z33: 0
A34: 25 | B34: ='Wettkampf 1'!B34 -> Kuchta, Gertrud | C34: ='Wettkampf 1'!C34 -> Börger III | D34: 307.0 | F34: 307.0 | G34: 0 | H34: 0 | I34: 0 | J34: 0 | K34: 0 | L34: 0 | M34: 0 | N34: 0 | O34: 307 | P34: 1 | Q34: 0 | R34: 0 | X34: 0.0 | Y34: 0 | Z34: 0
A35: 26 | B35: ='Wettkampf 1'!B35 -> Jungsthöfel, Sabine | C35: ='Wettkampf 1'!C35 -> Börger III | D35: 303.7 | F35: 303.7 | G35: 0 | H35: 0 | I35: 0 | J35: 0 | K35: 0 | L35: 0 | M35: 0 | N35: 0 | O35: 303.7 | P35: 1 | Q35: 0 | R35: 0 | X35: 0.0 | Y35: 0 | Z35: 0
A36: 27 | B36: ='Wettkampf 1'!B36 -> Schwarte, Gundula | C36: ='Wettkampf 1'!C36 -> Börger III | D36: 299.4 | E36: x | F36: 0 | G36: 0 | H36: 0 | I36: 0 | J36: 0 | K36: 0 | L36: 0 | M36: 0 | N36: 0 | O36: 0 | P36: 0 | Q36: 0 | R36: 0 | X36: 0.0 | Y36: 0 | Z36: 0
A37: 28 | B37: ='Wettkampf 1'!B37 -> Geers, Christa | C37: ='Wettkampf 1'!C37 -> Börger III | D37: 296.4 | F37: 296.4 | G37: 0 | H37: 0 | I37: 0 | J37: 0 | K37: 0 | L37: 0 | M37: 0 | N37: 0 | O37: 296.4 | P37: 1 | Q37: 0 | R37: 0 | X37: 0.0 | Y37: 0 | Z37: 0
A38: 29 | B38: ='Wettkampf 1'!B38 -> Remmers, Tanja | C38: ='Wettkampf 1'!C38 -> Börger III | D38: 297.0 | E38: x | F38: 0 | G38: 0 | H38: 0 | I38: 0 | J38: 0 | K38: 0 | L38: 0 | M38: 0 | N38: 0 | O38: 0 | P38: 0 | Q38: 0 | R38: 0 | X38: 0.0 | Y38: 0 | Z38: 0
A39: 30 | B39: ='Wettkampf 1'!B39 -> Terhalle, Johanna | C39: ='Wettkampf 1'!C39 -> Börger III | D39: 304.5 | F39: 304.5 | G39: 0 | H39: 0 | I39: 0 | J39: 0 | K39: 0 | L39: 0 | M39: 0 | N39: 0 | O39: 304.5 | P39: 1 | Q39: 0 | R39: 0 | X39: 0.0 | Y39: 0 | Z39: 0
A40: 31 | B40: ='Wettkampf 1'!B40 -> Hackstette, Lena | C40: ='Wettkampf 1'!C40 -> Lahn III | D40: 307.8 | F40: 307.8 | G40: 0 | H40: 0 | I40: 0 | J40: 0 | K40: 0 | L40: 0 | M40: 0 | N40: 0 | O40: 0 | P40: 0 | Q40: 307.8 | R40: 1 | X40: 0.0 | Y40: 0 | Z40: 0
A41: 32 | B41: ='Wettkampf 1'!B41 -> Thyen, Christel | C41: ='Wettkampf 1'!C41 -> Lahn III | D41: 308.8 | F41: 308.8 | G41: 0 | H41: 0 | I41: 0 | J41: 0 | K41: 0 | L41: 0 | M41: 0 | N41: 0 | O41: 0 | P41: 0 | Q41: 308.8 | R41: 1 | X41: 0.0 | Y41: 0 | Z41: 0
A42: 33 | B42: ='Wettkampf 1'!B42 -> Ostermann, Hildegard | C42: ='Wettkampf 1'!C42 -> Lahn III | D42: 302.8 | E42: x | F42: 0 | G42: 0 | H42: 0 | I42: 0 | J42: 0 | K42: 0 | L42: 0 | M42: 0 | N42: 0 | O42: 0 | P42: 0 | Q42: 0 | R42: 0 | X42: 0.0 | Y42: 0 | Z42: 0
A43: 34 | B43: ='Wettkampf 1'!B43 -> Willoh, Henrika | C43: ='Wettkampf 1'!C43 -> Lahn III | D43: 312.2 | F43: 312.2 | G43: 0 | H43: 0 | I43: 0 | J43: 0 | K43: 0 | L43: 0 | M43: 0 | N43: 0 | O43: 0 | P43: 0 | Q43: 312.2 | R43: 1 | X43: 0.0 | Y43: 0 | Z43: 0
A44: 35 | B44: ='Wettkampf 1'!B44 -> Müller, Anita | C44: ='Wettkampf 1'!C44 -> Lahn III | D44: 305.1 | E44: x | F44: 0 | G44: 0 | H44: 0 | I44: 0 | J44: 0 | K44: 0 | L44: 0 | M44: 0 | N44: 0 | O44: 0 | P44: 0 | Q44: 0 | R44: 0 | X44: 0.0 | Y44: 0 | Z44: 0
A45: 36 | B45: ='Wettkampf 1'!B45 -> Wilken, Elena | C45: ='Wettkampf 1'!C45 -> Lahn III | D45: 301.4 | F45: 301.4 | G45: 0 | H45: 0 | I45: 0 | J45: 0 | K45: 0 | L45: 0 | M45: 0 | N45: 0 | O45: 0 | P45: 0 | Q45: 301.4 | R45: 1 | X45: 0.0 | Y45: 0 | Z45: 0
G46: =LARGE(G10:G45,1)+LARGE(G10:G45,2)+LARGE(G10:G45,3) -> 922.1 | H46: =SUM(H10:H45) -> 4 | I46: =LARGE(I10:I45,1)+LARGE(I10:I45,2)+LARGE(I10:I45,3) -> 937.8 | J46: =SUM(J10:J45) -> 4 | K46: =LARGE(K10:K45,1)+LARGE(K10:K45,2)+LARGE(K10:K45,3) -> 924.4 | L46: =SUM(L10:L45) -> 4 | M46: =LARGE(M10:M45,1)+LARGE(M10:M45,2)+LARGE(M10:M45,3) -> 935 | N46: =SUM(N10:N45) -> 4 | O46: =LARGE(O10:O45,1)+LARGE(O10:O45,2)+LARGE(O10:O45,3) -> 915.2 | P46: =SUM(P10:P45) -> 4 | Q46: =LARGE(Q10:Q45,1)+LARGE(Q10:Q45,2)+LARGE(Q10:Q45,3) -> 928.8 | R46: =SUM(R10:S45) -> 4
C47: per Email an: sk-huemmling@gmx.de

Sheet 11
B1: Verein / Gruppe | D1: Ergebnisse | V1: Austragungsort: | W1: =Übersicht!P4 -> Lahn
A2: 1 | B2: ='Wettkampf 1'!B2 -> Börger II | D2: =G46 -> 929.4 | E2: =IF(H46>4,"Es sind zu viele Schützen in Wertung!"," ") ->  | V2: Wettkampftag: | W2: =Übersicht!P3 -> 08.03.
A3: 2 | B3: ='Wettkampf 1'!B3 -> Esterwegen V | D3: =I46 -> 934.2 | E3: =IF(J46>4,"Es sind zu viele Schützen in Wertung!"," ") -> 
A4: 3 | B4: ='Wettkampf 1'!B4 -> Neuvrees II | D4: =K46 -> 932.8 | E4: =IF(L46>4,"Es sind zu viele Schützen in Wertung!"," ") ->  | X4: Ansprechpartner für Rückfragen:
A5: 4 | B5: ='Wettkampf 1'!B5 -> Lahn IV | D5: =M46 -> 925.0 | E5: =IF(N46>4,"Es sind zu viele Schützen in Wertung!"," ") ->  | V5: Name: | W5: Hildegard Ostermann
A6: 5 | B6: ='Wettkampf 1'!B6 -> Börger III | D6: =O46 -> 919.7 | E6: =IF(P46>4,"Es sind zu viele Schützen in Wertung!"," ") ->  | V6: Tel:
A7: 6 | B7: ='Wettkampf 1'!B7 -> Lahn III | D7: =Q46 -> 923.9 | E7: =IF(R46>4,"Es sind zu viele Schützen in Wertung!"," ") ->  | V7: Standaufsicht: | W7: Hildegard Ostermann
B9: Einzelergebnisse: | C9: Verein / Gruppe | D9: Ergebnisse (mindestens 0 eintragen) | E9: AW? Dann x eintippen | G9: Verein 1 | I9: Verein 2 | K9: Verein 3 | M9: Verein 4 | O9: Verein 5 | Q9: Verein 6 | U9: Proberechnung bei Streifen:
A10: 1 | B10: ='Wettkampf 1'!B10 -> Kossenjans, Annegret | C10: ='Wettkampf 1'!C10 -> Börger II | E10: x | F10: =IF(E10="x","0",D10) -> 0 | G10: =IF(C10=$B$2,F10,0) -> 0 | H10: =(IF(AND($E10="",$C10=$B$2),1,0)) -> 0 | I10: =IF($C10=$B$3,F10,0) -> 0 | J10: =(IF(AND($E10="",$C10=$B$3),1,0)) -> 0 | K10: =IF($C10=$B$4,F10,0) -> 0 | L10: =(IF(AND($E10="",$C10=$B$4),1,0)) -> 0 | M10: =IF($C10=$B$5,F10,0) -> 0 | N10: =(IF(AND($E10="",$C10=$B$5),1,0)) -> 0 | O10: =IF($C10=$B$6,F10,0) -> 0 | P10: =(IF(AND($E10="",$C10=$B$6),1,0)) -> 0 | Q10: =IF($C10=$B$7,F10,0) -> 0 | R10: =(IF(AND($E10="",$C10=$B$7),1,0)) -> 0 | X10: =U10+V10+W10 -> 0.0 | Y10: =IF(X10=D10,1,0) -> 1 | Z10: =IF(X10=0,0,1) -> 0 | AA10: =IF(Y10+Z10=2,"Korrekt","") -> 
A11: 2 | B11: ='Wettkampf 1'!B11 -> Jansen, Elisabeth | C11: ='Wettkampf 1'!C11 -> Börger II | D11: 306.7 | F11: =IF(E11="x","0",D11) -> 306.7 | G11: =IF(C11=$B$2,F11,0) -> 306.7 | H11: =(IF(AND($E11="",$C11=$B$2),1,0)) -> 1 | I11: =IF($C11=$B$3,F11,0) -> 0 | J11: =(IF(AND($E11="",$C11=$B$3),1,0)) -> 0 | K11: =IF($C11=$B$4,F11,0) -> 0 | L11: =(IF(AND($E11="",$C11=$B$4),1,0)) -> 0 | M11: =IF($C11=$B$5,F11,0) -> 0 | N11: =(IF(AND($E11="",$C11=$B$5),1,0)) -> 0 | O11: =IF($C11=$B$6,F11,0) -> 0 | P11: =(IF(AND($E11="",$C11=$B$6),1,0)) -> 0 | Q11: =IF($C11=$B$7,F11,0) -> 0 | R11: =(IF(AND($E11="",$C11=$B$7),1,0)) -> 0 | X11: =U11+V11+W11 -> 0.0 | Y11: =IF(X11=D11,1,0) -> 0 | Z11: =IF(X11=0,0,1) -> 0 | AA11: =IF(Y11+Z11=2,"Korrekt","") -> 
A12: 3 | B12: ='Wettkampf 1'!B12 -> Krömer, Monika | C12: ='Wettkampf 1'!C12 -> Börger II | D12: 298.7 | F12: 298.7 | G12: 298.7 | H12: 1 | I12: 0 | J12: 0 | K12: 0 | L12: 0 | M12: 0 | N12: 0 | O12: 0 | P12: 0 | Q12: 0 | R12: 0 | X12: 0.0 | Y12: 0 | Z12: 0
A13: 4 | B13: ='Wettkampf 1'!B13 -> Pohlgeers, Margret | C13: ='Wettkampf 1'!C13 -> Börger II | D13: 311.4 | F13: 311.4 | G13: 311.4 | H13: 1 | I13: 0 | J13: 0 | K13: 0 | L13: 0 | M13: 0 | N13: 0 | O13: 0 | P13: 0 | Q13: 0 | R13: 0 | X13: 0.0 | Y13: 0 | Z13: 0
A14: 5 | B14: ='Wettkampf 1'!B14 -> Pohlgeers, Silvia | C14: ='Wettkampf 1'!C14 -> Börger II | D14: 311.3 | F14: 311.3 | G14: 311.3 | H14: 1 | I14: 0 | J14: 0 | K14: 0 | L14: 0 | M14: 0 | N14: 0 | O14: 0 | P14: 0 | Q14: 0 | R14: 0 | X14: 0.0 | Y14: 0 | Z14: 0
A15: 6 | B15: ='Wettkampf 1'!B15 -> Schwarte, Annette | C15: ='Wettkampf 1'!C15 -> Börger II | E15: x | F15: 0 | G15: 0 | H15: 0 | I15: 0 | J15: 0 | K15: 0 | L15: 0 | M15: 0 | N15: 0 | O15: 0 | P15: 0 | Q15: 0 | R15: 0 | X15: 0.0 | Y15: 1 | Z15: 0
A16: 7 | B16: ='Wettkampf 1'!B16 -> Lindemann, Kerstin | C16: ='Wettkampf 1'!C16 -> Esterwegen V | D16: 305.7 | F16: 305.7 | G16: 0 | H16: 0 | I16: 305.7 | J16: 1 | K16: 0 | L16: 0 | M16: 0 | N16: 0 | O16: 0 | P16: 0 | Q16: 0 | R16: 0 | X16: 0.0 | Y16: 0 | Z16: 0
A17: 8 | B17: ='Wettkampf 1'!B17 -> Schlarmann, Lena | C17: ='Wettkampf 1'!C17 -> Esterwegen V | D17: 309.2 | F17: 309.2 | G17: 0 | H17: 0 | I17: 309.2 | J17: 1 | K17: 0 | L17: 0 | M17: 0 | N17: 0 | O17: 0 | P17: 0 | Q17: 0 | R17: 0 | X17: 0.0 | Y17: 0 | Z17: 0
A18: 9 | B18: ='Wettkampf 1'!B18 -> Lindemann, Stefanie | C18: ='Wettkampf 1'!C18 -> Esterwegen V | E18: x | F18: 0 | G18: 0 | H18: 0 | I18: 0 | J18: 0 | K18: 0 | L18: 0 | M18: 0 | N18: 0 | O18: 0 | P18: 0 | Q18: 0 | R18: 0 | X18: 0.0 | Y18: 1 | Z18: 0
A19: 10 | B19: ='Wettkampf 1'!B19 -> Lindemann, Rita | C19: ='Wettkampf 1'!C19 -> Esterwegen V | D19: 316.8 | F19: 316.8 | G19: 0 | H19: 0 | I19: 316.8 | J19: 1 | K19: 0 | L19: 0 | M19: 0 | N19: 0 | O19: 0 | P19: 0 | Q19: 0 | R19: 0 | X19: 0.0 | Y19: 0 | Z19: 0
A20: 11 | B20: ='Wettkampf 1'!B20 -> Büter, Daniela | C20: ='Wettkampf 1'!C20 -> Esterwegen V | D20: 308.2 | F20: 308.2 | G20: 0 | H20: 0 | I20: 308.2 | J20: 1 | K20: 0 | L20: 0 | M20: 0 | N20: 0 | O20: 0 | P20: 0 | Q20: 0 | R20: 0 | X20: 0.0 | Y20: 0 | Z20: 0
A21: 12 | B21: ='Wettkampf 1'!B21 -> Lindemann, Annemarie | C21: ='Wettkampf 1'!C21 -> Esterwegen V | E21: x | F21: 0 | G21: 0 | H21: 0 | I21: 0 | J21: 0 | K21: 0 | L21: 0 | M21: 0 | N21: 0 | O21: 0 | P21: 0 | Q21: 0 | R21: 0 | X21: 0.0 | Y21: 1 | Z21: 0
A22: 13 | B22: ='Wettkampf 1'!B22 -> Preut, Susanne | C22: ='Wettkampf 1'!C22 -> Neuvrees II | D22: 297.8 | F22: 297.8 | G22: 0 | H22: 0 | I22: 0 | J22: 0 | K22: 297.8 | L22: 1 | M22: 0 | N22: 0 | O22: 0 | P22: 0 | Q22: 0 | R22: 0 | X22: 0.0 | Y22: 0 | Z22: 0
A23: 14 | B23: ='Wettkampf 1'!B23 -> Thunert, Silvia | C23: ='Wettkampf 1'!C23 -> Neuvrees II | D23: 313.9 | F23: 313.9 | G23: 0 | H23: 0 | I23: 0 | J23: 0 | K23: 313.9 | L23: 1 | M23: 0 | N23: 0 | O23: 0 | P23: 0 | Q23: 0 | R23: 0 | X23: 0.0 | Y23: 0 | Z23: 0
A24: 15 | B24: ='Wettkampf 1'!B24 -> Pohlmann, Margret | C24: ='Wettkampf 1'!C24 -> Neuvrees II | D24: 306.4 | F24: 306.4 | G24: 0 | H24: 0 | I24: 0 | J24: 0 | K24: 306.4 | L24: 1 | M24: 0 | N24: 0 | O24: 0 | P24: 0 | Q24: 0 | R24: 0 | X24: 0.0 | Y24: 0 | Z24: 0
A25: 16 | B25: ='Wettkampf 1'!B25 -> Eilermann, Saskia | C25: ='Wettkampf 1'!C25 -> Neuvrees II | D25: 312.5 | F25: 312.5 | G25: 0 | H25: 0 | I25: 0 | J25: 0 | K25: 312.5 | L25: 1 | M25: 0 | N25: 0 | O25: 0 | P25: 0 | Q25: 0 | R25: 0 | X25: 0.0 | Y25: 0 | Z25: 0
A26: 17 | B26: ='Wettkampf 1'!B26 -> Junge, Silvia | C26: ='Wettkampf 1'!C26 -> Neuvrees II | D26: 292.0 | E26: x | F26: 0 | G26: 0 | H26: 0 | I26: 0 | J26: 0 | K26: 0 | L26: 0 | M26: 0 | N26: 0 | O26: 0 | P26: 0 | Q26: 0 | R26: 0 | X26: 0.0 | Y26: 0 | Z26: 0
A27: 18 | B27: ='Wettkampf 1'!B27 -> Evers, Claudia | C27: ='Wettkampf 1'!C27 -> Neuvrees II | D27: 303.7 | E27: x | F27: 0 | G27: 0 | H27: 0 | I27: 0 | J27: 0 | K27: 0 | L27: 0 | M27: 0 | N27: 0 | O27: 0 | P27: 0 | Q27: 0 | R27: 0 | X27: 0.0 | Y27: 0 | Z27: 0
A28: 19 | B28: ='Wettkampf 1'!B28 -> Schulte, Christina | C28: ='Wettkampf 1'!C28 -> Neuvrees II | E28: x | F28: 0 | G28: 0 | H28: 0 | I28: 0 | J28: 0 | K28: 0 | L28: 0 | M28: 0 | N28: 0 | O28: 0 | P28: 0 | Q28: 0 | R28: 0 | X28: 0.0 | Y28: 1 | Z28: 0
A29: 20 | B29: ='Wettkampf 1'!B29 -> Reinelt, Michaela | C29: ='Wettkampf 1'!C29 -> Lahn IV | D29: 308.2 | F29: 308.2 | G29: 0 | H29: 0 | I29: 0 | J29: 0 | K29: 0 | L29: 0 | M29: 308.2 | N29: 1 | O29: 0 | P29: 0 | Q29: 0 | R29: 0 | X29: 0.0 | Y29: 0 | Z29: 0
A30: 21 | B30: ='Wettkampf 1'!B30 -> Thien, Marita | C30: ='Wettkampf 1'!C30 -> Lahn IV | D30: 312.0 | F30: 312.0 | G30: 0 | H30: 0 | I30: 0 | J30: 0 | K30: 0 | L30: 0 | M30: 312 | N30: 1 | O30: 0 | P30: 0 | Q30: 0 | R30: 0 | X30: 0.0 | Y30: 0 | Z30: 0
A31: 22 | B31: ='Wettkampf 1'!B31 -> Robben, Anja | C31: ='Wettkampf 1'!C31 -> Lahn IV | D31: 304.8 | F31: 304.8 | G31: 0 | H31: 0 | I31: 0 | J31: 0 | K31: 0 | L31: 0 | M31: 304.8 | N31: 1 | O31: 0 | P31: 0 | Q31: 0 | R31: 0 | X31: 0.0 | Y31: 0 | Z31: 0
A32: 23 | B32: ='Wettkampf 1'!B32 -> Oldopp, Maria | C32: ='Wettkampf 1'!C32 -> Lahn IV | D32: 298.2 | E32: x | F32: 0 | G32: 0 | H32: 0 | I32: 0 | J32: 0 | K32: 0 | L32: 0 | M32: 0 | N32: 0 | O32: 0 | P32: 0 | Q32: 0 | R32: 0 | X32: 0.0 | Y32: 0 | Z32: 0
A33: 24 | B33: ='Wettkampf 1'!B33 -> Hanneken, Doris | C33: ='Wettkampf 1'!C33 -> Lahn IV | D33: 303.4 | F33: 303.4 | G33: 0 | H33: 0 | I33: 0 | J33: 0 | K33: 0 | L33: 0 | M33: 303.4 | N33: 1 | O33: 0 | P33: 0 | Q33: 0 | R33: 0 | X33: 0.0 | Y33: 0 | Z33: 0
A34: 25 | B34: ='Wettkampf 1'!B34 -> Kuchta, Gertrud | C34: ='Wettkampf 1'!C34 -> Börger III | D34: 308.4 | F34: 308.4 | G34: 0 | H34: 0 | I34: 0 | J34: 0 | K34: 0 | L34: 0 | M34: 0 | N34: 0 | O34: 308.4 | P34: 1 | Q34: 0 | R34: 0 | X34: 0.0 | Y34: 0 | Z34: 0
A35: 26 | B35: ='Wettkampf 1'!B35 -> Jungsthöfel, Sabine | C35: ='Wettkampf 1'!C35 -> Börger III | D35: 296.4 | F35: 296.4 | G35: 0 | H35: 0 | I35: 0 | J35: 0 | K35: 0 | L35: 0 | M35: 0 | N35: 0 | O35: 296.4 | P35: 1 | Q35: 0 | R35: 0 | X35: 0.0 | Y35: 0 | Z35: 0
A36: 27 | B36: ='Wettkampf 1'!B36 -> Schwarte, Gundula | C36: ='Wettkampf 1'!C36 -> Börger III | D36: 303.8 | E36: x | F36: 0 | G36: 0 | H36: 0 | I36: 0 | J36: 0 | K36: 0 | L36: 0 | M36: 0 | N36: 0 | O36: 0 | P36: 0 | Q36: 0 | R36: 0 | X36: 0.0 | Y36: 0 | Z36: 0
A37: 28 | B37: ='Wettkampf 1'!B37 -> Geers, Christa | C37: ='Wettkampf 1'!C37 -> Börger III | D37: 301.9 | F37: 301.9 | G37: 0 | H37: 0 | I37: 0 | J37: 0 | K37: 0 | L37: 0 | M37: 0 | N37: 0 | O37: 301.9 | P37: 1 | Q37: 0 | R37: 0 | X37: 0.0 | Y37: 0 | Z37: 0
A38: 29 | B38: ='Wettkampf 1'!B38 -> Remmers, Tanja | C38: ='Wettkampf 1'!C38 -> Börger III | D38: 297.2 | E38: x | F38: 0 | G38: 0 | H38: 0 | I38: 0 | J38: 0 | K38: 0 | L38: 0 | M38: 0 | N38: 0 | O38: 0 | P38: 0 | Q38: 0 | R38: 0 | X38: 0.0 | Y38: 0 | Z38: 0
A39: 30 | B39: ='Wettkampf 1'!B39 -> Terhalle, Johanna | C39: ='Wettkampf 1'!C39 -> Börger III | D39: 309.4 | F39: 309.4 | G39: 0 | H39: 0 | I39: 0 | J39: 0 | K39: 0 | L39: 0 | M39: 0 | N39: 0 | O39: 309.4 | P39: 1 | Q39: 0 | R39: 0 | X39: 0.0 | Y39: 0 | Z39: 0
A40: 31 | B40: ='Wettkampf 1'!B40 -> Hackstette, Lena | C40: ='Wettkampf 1'!C40 -> Lahn III | D40: 304.6 | F40: 304.6 | G40: 0 | H40: 0 | I40: 0 | J40: 0 | K40: 0 | L40: 0 | M40: 0 | N40: 0 | O40: 0 | P40: 0 | Q40: 304.6 | R40: 1 | X40: 0.0 | Y40: 0 | Z40: 0
A41: 32 | B41: ='Wettkampf 1'!B41 -> Thyen, Christel | C41: ='Wettkampf 1'!C41 -> Lahn III | D41: 305.8 | F41: 305.8 | G41: 0 | H41: 0 | I41: 0 | J41: 0 | K41: 0 | L41: 0 | M41: 0 | N41: 0 | O41: 0 | P41: 0 | Q41: 305.8 | R41: 1 | X41: 0.0 | Y41: 0 | Z41: 0
A42: 33 | B42: ='Wettkampf 1'!B42 -> Ostermann, Hildegard | C42: ='Wettkampf 1'!C42 -> Lahn III | D42: 302.7 | E42: x | F42: 0 | G42: 0 | H42: 0 | I42: 0 | J42: 0 | K42: 0 | L42: 0 | M42: 0 | N42: 0 | O42: 0 | P42: 0 | Q42: 0 | R42: 0 | X42: 0.0 | Y42: 0 | Z42: 0
A43: 34 | B43: ='Wettkampf 1'!B43 -> Willoh, Henrika | C43: ='Wettkampf 1'!C43 -> Lahn III | D43: 311.1 | F43: 311.1 | G43: 0 | H43: 0 | I43: 0 | J43: 0 | K43: 0 | L43: 0 | M43: 0 | N43: 0 | O43: 0 | P43: 0 | Q43: 311.1 | R43: 1 | X43: 0.0 | Y43: 0 | Z43: 0
A44: 35 | B44: ='Wettkampf 1'!B44 -> Müller, Anita | C44: ='Wettkampf 1'!C44 -> Lahn III | D44: 305.7 | E44: x | F44: 0 | G44: 0 | H44: 0 | I44: 0 | J44: 0 | K44: 0 | L44: 0 | M44: 0 | N44: 0 | O44: 0 | P44: 0 | Q44: 0 | R44: 0 | X44: 0.0 | Y44: 0 | Z44: 0
A45: 36 | B45: ='Wettkampf 1'!B45 -> Wilken, Elena | C45: ='Wettkampf 1'!C45 -> Lahn III | D45: 307.0 | F45: 307.0 | G45: 0 | H45: 0 | I45: 0 | J45: 0 | K45: 0 | L45: 0 | M45: 0 | N45: 0 | O45: 0 | P45: 0 | Q45: 307 | R45: 1 | X45: 0.0 | Y45: 0 | Z45: 0
G46: =LARGE(G10:G45,1)+LARGE(G10:G45,2)+LARGE(G10:G45,3) -> 929.4 | H46: =SUM(H10:H45) -> 4 | I46: =LARGE(I10:I45,1)+LARGE(I10:I45,2)+LARGE(I10:I45,3) -> 934.2 | J46: =SUM(J10:J45) -> 4 | K46: =LARGE(K10:K45,1)+LARGE(K10:K45,2)+LARGE(K10:K45,3) -> 932.8 | L46: =SUM(L10:L45) -> 4 | M46: =LARGE(M10:M45,1)+LARGE(M10:M45,2)+LARGE(M10:M45,3) -> 925 | N46: =SUM(N10:N45) -> 4 | O46: =LARGE(O10:O45,1)+LARGE(O10:O45,2)+LARGE(O10:O45,3) -> 919.7 | P46: =SUM(P10:P45) -> 4 | Q46: =LARGE(Q10:Q45,1)+LARGE(Q10:Q45,2)+LARGE(Q10:Q45,3) -> 923.9 | R46: =SUM(R10:S45) -> 4
C47: per Email an: sk-huemmling@gmx.de

Sheet 12
B1: Verein / Gruppe | D1: Ergebnisse | V1: Austragungsort: | W1: =Übersicht!Q4 -> Lahn
A2: 1 | B2: ='Wettkampf 1'!B2 -> Börger II | D2: =G46 -> 0.0 | E2: =IF(H46>4,"Es sind zu viele Schützen in Wertung!"," ") ->  | V2: Wettkampftag: | W2: =Übersicht!Q3 -> 22.03.
A3: 2 | B3: ='Wettkampf 1'!B3 -> Esterwegen V | D3: =I46 -> 0.0 | E3: =IF(J46>4,"Es sind zu viele Schützen in Wertung!"," ") -> 
A4: 3 | B4: ='Wettkampf 1'!B4 -> Neuvrees II | D4: =K46 -> 0.0 | E4: =IF(L46>4,"Es sind zu viele Schützen in Wertung!"," ") -> Es sind zu viele Schützen in Wertung! | X4: Ansprechpartner für Rückfragen:
A5: 4 | B5: ='Wettkampf 1'!B5 -> Lahn IV | D5: =M46 -> 0.0 | E5: =IF(N46>4,"Es sind zu viele Schützen in Wertung!"," ") ->  | V5: Name:
A6: 5 | B6: ='Wettkampf 1'!B6 -> Börger III | D6: =O46 -> 0.0 | E6: =IF(P46>4,"Es sind zu viele Schützen in Wertung!"," ") ->  | V6: Tel:
A7: 6 | B7: ='Wettkampf 1'!B7 -> Lahn III | D7: =Q46 -> 0.0 | E7: =IF(R46>4,"Es sind zu viele Schützen in Wertung!"," ") ->  | V7: Standaufsicht:
B9: Einzelergebnisse: | C9: Verein / Gruppe | D9: Ergebnisse (mindestens 0 eintragen) | E9: AW? Dann x eintippen | G9: Verein 1 | I9: Verein 2 | K9: Verein 3 | M9: Verein 4 | O9: Verein 5 | Q9: Verein 6 | U9: Proberechnung bei Streifen:
A10: 1 | B10: ='Wettkampf 1'!B10 -> Kossenjans, Annegret | C10: ='Wettkampf 1'!C10 -> Börger II | F10: =IF(E10="x","0",D10) -> 0.0 | G10: =IF(C10=$B$2,F10,0) -> 0 | H10: =(IF(AND($E10="",$C10=$B$2),1,0)) -> 1 | I10: =IF($C10=$B$3,F10,0) -> 0 | J10: =(IF(AND($E10="",$C10=$B$3),1,0)) -> 0 | K10: =IF($C10=$B$4,F10,0) -> 0 | L10: =(IF(AND($E10="",$C10=$B$4),1,0)) -> 0 | M10: =IF($C10=$B$5,F10,0) -> 0 | N10: =(IF(AND($E10="",$C10=$B$5),1,0)) -> 0 | O10: =IF($C10=$B$6,F10,0) -> 0 | P10: =(IF(AND($E10="",$C10=$B$6),1,0)) -> 0 | Q10: =IF($C10=$B$7,F10,0) -> 0 | R10: =(IF(AND($E10="",$C10=$B$7),1,0)) -> 0 | X10: =U10+V10+W10 -> 0.0 | Y10: =IF(X10=D10,1,0) -> 1 | Z10: =IF(X10=0,0,1) -> 0 | AA10: =IF(Y10+Z10=2,"Korrekt","") -> 
A11: 2 | B11: ='Wettkampf 1'!B11 -> Jansen, Elisabeth | C11: ='Wettkampf 1'!C11 -> Börger II | F11: =IF(E11="x","0",D11) -> 0.0 | G11: =IF(C11=$B$2,F11,0) -> 0 | H11: =(IF(AND($E11="",$C11=$B$2),1,0)) -> 1 | I11: =IF($C11=$B$3,F11,0) -> 0 | J11: =(IF(AND($E11="",$C11=$B$3),1,0)) -> 0 | K11: =IF($C11=$B$4,F11,0) -> 0 | L11: =(IF(AND($E11="",$C11=$B$4),1,0)) -> 0 | M11: =IF($C11=$B$5,F11,0) -> 0 | N11: =(IF(AND($E11="",$C11=$B$5),1,0)) -> 0 | O11: =IF($C11=$B$6,F11,0) -> 0 | P11: =(IF(AND($E11="",$C11=$B$6),1,0)) -> 0 | Q11: =IF($C11=$B$7,F11,0) -> 0 | R11: =(IF(AND($E11="",$C11=$B$7),1,0)) -> 0 | X11: =U11+V11+W11 -> 0.0 | Y11: =IF(X11=D11,1,0) -> 1 | Z11: =IF(X11=0,0,1) -> 0 | AA11: =IF(Y11+Z11=2,"Korrekt","") -> 
A12: 3 | B12: ='Wettkampf 1'!B12 -> Krömer, Monika | C12: ='Wettkampf 1'!C12 -> Börger II | F12: 0.0 | G12: 0 | H12: 1 | I12: 0 | J12: 0 | K12: 0 | L12: 0 | M12: 0 | N12: 0 | O12: 0 | P12: 0 | Q12: 0 | R12: 0 | X12: 0.0 | Y12: 1 | Z12: 0
A13: 4 | B13: ='Wettkampf 1'!B13 -> Pohlgeers, Margret | C13: ='Wettkampf 1'!C13 -> Börger II | F13: 0.0 | G13: 0 | H13: 1 | I13: 0 | J13: 0 | K13: 0 | L13: 0 | M13: 0 | N13: 0 | O13: 0 | P13: 0 | Q13: 0 | R13: 0 | X13: 0.0 | Y13: 1 | Z13: 0
A14: 5 | B14: ='Wettkampf 1'!B14 -> Pohlgeers, Silvia | C14: ='Wettkampf 1'!C14 -> Börger II | E14: x | F14: 0 | G14: 0 | H14: 0 | I14: 0 | J14: 0 | K14: 0 | L14: 0 | M14: 0 | N14: 0 | O14: 0 | P14: 0 | Q14: 0 | R14: 0 | X14: 0.0 | Y14: 1 | Z14: 0
A15: 6 | B15: ='Wettkampf 1'!B15 -> Schwarte, Annette | C15: ='Wettkampf 1'!C15 -> Börger II | E15: x | F15: 0 | G15: 0 | H15: 0 | I15: 0 | J15: 0 | K15: 0 | L15: 0 | M15: 0 | N15: 0 | O15: 0 | P15: 0 | Q15: 0 | R15: 0 | X15: 0.0 | Y15: 1 | Z15: 0
A16: 7 | B16: ='Wettkampf 1'!B16 -> Lindemann, Kerstin | C16: ='Wettkampf 1'!C16 -> Esterwegen V | F16: 0.0 | G16: 0 | H16: 0 | I16: 0 | J16: 1 | K16: 0 | L16: 0 | M16: 0 | N16: 0 | O16: 0 | P16: 0 | Q16: 0 | R16: 0 | X16: 0.0 | Y16: 1 | Z16: 0
A17: 8 | B17: ='Wettkampf 1'!B17 -> Schlarmann, Lena | C17: ='Wettkampf 1'!C17 -> Esterwegen V | F17: 0.0 | G17: 0 | H17: 0 | I17: 0 | J17: 1 | K17: 0 | L17: 0 | M17: 0 | N17: 0 | O17: 0 | P17: 0 | Q17: 0 | R17: 0 | X17: 0.0 | Y17: 1 | Z17: 0
A18: 9 | B18: ='Wettkampf 1'!B18 -> Lindemann, Stefanie | C18: ='Wettkampf 1'!C18 -> Esterwegen V | F18: 0.0 | G18: 0 | H18: 0 | I18: 0 | J18: 1 | K18: 0 | L18: 0 | M18: 0 | N18: 0 | O18: 0 | P18: 0 | Q18: 0 | R18: 0 | X18: 0.0 | Y18: 1 | Z18: 0
A19: 10 | B19: ='Wettkampf 1'!B19 -> Lindemann, Rita | C19: ='Wettkampf 1'!C19 -> Esterwegen V | F19: 0.0 | G19: 0 | H19: 0 | I19: 0 | J19: 1 | K19: 0 | L19: 0 | M19: 0 | N19: 0 | O19: 0 | P19: 0 | Q19: 0 | R19: 0 | X19: 0.0 | Y19: 1 | Z19: 0
A20: 11 | B20: ='Wettkampf 1'!B20 -> Büter, Daniela | C20: ='Wettkampf 1'!C20 -> Esterwegen V | E20: x | F20: 0 | G20: 0 | H20: 0 | I20: 0 | J20: 0 | K20: 0 | L20: 0 | M20: 0 | N20: 0 | O20: 0 | P20: 0 | Q20: 0 | R20: 0 | X20: 0.0 | Y20: 1 | Z20: 0
A21: 12 | B21: ='Wettkampf 1'!B21 -> Lindemann, Annemarie | C21: ='Wettkampf 1'!C21 -> Esterwegen V | E21: x | F21: 0 | G21: 0 | H21: 0 | I21: 0 | J21: 0 | K21: 0 | L21: 0 | M21: 0 | N21: 0 | O21: 0 | P21: 0 | Q21: 0 | R21: 0 | X21: 0.0 | Y21: 1 | Z21: 0
A22: 13 | B22: ='Wettkampf 1'!B22 -> Preut, Susanne | C22: ='Wettkampf 1'!C22 -> Neuvrees II | F22: 0.0 | G22: 0 | H22: 0 | I22: 0 | J22: 0 | K22: 0 | L22: 1 | M22: 0 | N22: 0 | O22: 0 | P22: 0 | Q22: 0 | R22: 0 | X22: 0.0 | Y22: 1 | Z22: 0
A23: 14 | B23: ='Wettkampf 1'!B23 -> Thunert, Silvia | C23: ='Wettkampf 1'!C23 -> Neuvrees II | F23: 0.0 | G23: 0 | H23: 0 | I23: 0 | J23: 0 | K23: 0 | L23: 1 | M23: 0 | N23: 0 | O23: 0 | P23: 0 | Q23: 0 | R23: 0 | X23: 0.0 | Y23: 1 | Z23: 0
A24: 15 | B24: ='Wettkampf 1'!B24 -> Pohlmann, Margret | C24: ='Wettkampf 1'!C24 -> Neuvrees II | F24: 0.0 | G24: 0 | H24: 0 | I24: 0 | J24: 0 | K24: 0 | L24: 1 | M24: 0 | N24: 0 | O24: 0 | P24: 0 | Q24: 0 | R24: 0 | X24: 0.0 | Y24: 1 | Z24: 0
A25: 16 | B25: ='Wettkampf 1'!B25 -> Eilermann, Saskia | C25: ='Wettkampf 1'!C25 -> Neuvrees II | F25: 0.0 | G25: 0 | H25: 0 | I25: 0 | J25: 0 | K25: 0 | L25: 1 | M25: 0 | N25: 0 | O25: 0 | P25: 0 | Q25: 0 | R25: 0 | X25: 0.0 | Y25: 1 | Z25: 0
A26: 17 | B26: ='Wettkampf 1'!B26 -> Junge, Silvia | C26: ='Wettkampf 1'!C26 -> Neuvrees II | E26: x | F26: 0 | G26: 0 | H26: 0 | I26: 0 | J26: 0 | K26: 0 | L26: 0 | M26: 0 | N26: 0 | O26: 0 | P26: 0 | Q26: 0 | R26: 0 | X26: 0.0 | Y26: 1 | Z26: 0
A27: 18 | B27: ='Wettkampf 1'!B27 -> Evers, Claudia | C27: ='Wettkampf 1'!C27 -> Neuvrees II | E27: x | F27: 0 | G27: 0 | H27: 0 | I27: 0 | J27: 0 | K27: 0 | L27: 0 | M27: 0 | N27: 0 | O27: 0 | P27: 0 | Q27: 0 | R27: 0 | X27: 0.0 | Y27: 1 | Z27: 0
A28: 19 | B28: ='Wettkampf 1'!B28 -> Schulte, Christina | C28: ='Wettkampf 1'!C28 -> Neuvrees II | F28: 0.0 | G28: 0 | H28: 0 | I28: 0 | J28: 0 | K28: 0 | L28: 1 | M28: 0 | N28: 0 | O28: 0 | P28: 0 | Q28: 0 | R28: 0 | X28: 0.0 | Y28: 1 | Z28: 0
A29: 20 | B29: ='Wettkampf 1'!B29 -> Reinelt, Michaela | C29: ='Wettkampf 1'!C29 -> Lahn IV | F29: 0.0 | G29: 0 | H29: 0 | I29: 0 | J29: 0 | K29: 0 | L29: 0 | M29: 0 | N29: 1 | O29: 0 | P29: 0 | Q29: 0 | R29: 0 | X29: 0.0 | Y29: 1 | Z29: 0
A30: 21 | B30: ='Wettkampf 1'!B30 -> Thien, Marita | C30: ='Wettkampf 1'!C30 -> Lahn IV | F30: 0.0 | G30: 0 | H30: 0 | I30: 0 | J30: 0 | K30: 0 | L30: 0 | M30: 0 | N30: 1 | O30: 0 | P30: 0 | Q30: 0 | R30: 0 | X30: 0.0 | Y30: 1 | Z30: 0
A31: 22 | B31: ='Wettkampf 1'!B31 -> Robben, Anja | C31: ='Wettkampf 1'!C31 -> Lahn IV | F31: 0.0 | G31: 0 | H31: 0 | I31: 0 | J31: 0 | K31: 0 | L31: 0 | M31: 0 | N31: 1 | O31: 0 | P31: 0 | Q31: 0 | R31: 0 | X31: 0.0 | Y31: 1 | Z31: 0
A32: 23 | B32: ='Wettkampf 1'!B32 -> Oldopp, Maria | C32: ='Wettkampf 1'!C32 -> Lahn IV | E32: x | F32: 0 | G32: 0 | H32: 0 | I32: 0 | J32: 0 | K32: 0 | L32: 0 | M32: 0 | N32: 0 | O32: 0 | P32: 0 | Q32: 0 | R32: 0 | X32: 0.0 | Y32: 1 | Z32: 0
A33: 24 | B33: ='Wettkampf 1'!B33 -> Hanneken, Doris | C33: ='Wettkampf 1'!C33 -> Lahn IV | E33: x | F33: 0 | G33: 0 | H33: 0 | I33: 0 | J33: 0 | K33: 0 | L33: 0 | M33: 0 | N33: 0 | O33: 0 | P33: 0 | Q33: 0 | R33: 0 | X33: 0.0 | Y33: 1 | Z33: 0
A34: 25 | B34: ='Wettkampf 1'!B34 -> Kuchta, Gertrud | C34: ='Wettkampf 1'!C34 -> Börger III | F34: 0.0 | G34: 0 | H34: 0 | I34: 0 | J34: 0 | K34: 0 | L34: 0 | M34: 0 | N34: 0 | O34: 0 | P34: 1 | Q34: 0 | R34: 0 | X34: 0.0 | Y34: 1 | Z34: 0
A35: 26 | B35: ='Wettkampf 1'!B35 -> Jungsthöfel, Sabine | C35: ='Wettkampf 1'!C35 -> Börger III | F35: 0.0 | G35: 0 | H35: 0 | I35: 0 | J35: 0 | K35: 0 | L35: 0 | M35: 0 | N35: 0 | O35: 0 | P35: 1 | Q35: 0 | R35: 0 | X35: 0.0 | Y35: 1 | Z35: 0
A36: 27 | B36: ='Wettkampf 1'!B36 -> Schwarte, Gundula | C36: ='Wettkampf 1'!C36 -> Börger III | F36: 0.0 | G36: 0 | H36: 0 | I36: 0 | J36: 0 | K36: 0 | L36: 0 | M36: 0 | N36: 0 | O36: 0 | P36: 1 | Q36: 0 | R36: 0 | X36: 0.0 | Y36: 1 | Z36: 0
A37: 28 | B37: ='Wettkampf 1'!B37 -> Geers, Christa | C37: ='Wettkampf 1'!C37 -> Börger III | F37: 0.0 | G37: 0 | H37: 0 | I37: 0 | J37: 0 | K37: 0 | L37: 0 | M37: 0 | N37: 0 | O37: 0 | P37: 1 | Q37: 0 | R37: 0 | X37: 0.0 | Y37: 1 | Z37: 0
A38: 29 | B38: ='Wettkampf 1'!B38 -> Remmers, Tanja | C38: ='Wettkampf 1'!C38 -> Börger III | E38: x | F38: 0 | G38: 0 | H38: 0 | I38: 0 | J38: 0 | K38: 0 | L38: 0 | M38: 0 | N38: 0 | O38: 0 | P38: 0 | Q38: 0 | R38: 0 | X38: 0.0 | Y38: 1 | Z38: 0
A39: 30 | B39: ='Wettkampf 1'!B39 -> Terhalle, Johanna | C39: ='Wettkampf 1'!C39 -> Börger III | E39: x | F39: 0 | G39: 0 | H39: 0 | I39: 0 | J39: 0 | K39: 0 | L39: 0 | M39: 0 | N39: 0 | O39: 0 | P39: 0 | Q39: 0 | R39: 0 | X39: 0.0 | Y39: 1 | Z39: 0
A40: 31 | B40: ='Wettkampf 1'!B40 -> Hackstette, Lena | C40: ='Wettkampf 1'!C40 -> Lahn III | F40: 0.0 | G40: 0 | H40: 0 | I40: 0 | J40: 0 | K40: 0 | L40: 0 | M40: 0 | N40: 0 | O40: 0 | P40: 0 | Q40: 0 | R40: 1 | X40: 0.0 | Y40: 1 | Z40: 0
A41: 32 | B41: ='Wettkampf 1'!B41 -> Thyen, Christel | C41: ='Wettkampf 1'!C41 -> Lahn III | F41: 0.0 | G41: 0 | H41: 0 | I41: 0 | J41: 0 | K41: 0 | L41: 0 | M41: 0 | N41: 0 | O41: 0 | P41: 0 | Q41: 0 | R41: 1 | X41: 0.0 | Y41: 1 | Z41: 0
A42: 33 | B42: ='Wettkampf 1'!B42 -> Ostermann, Hildegard | C42: ='Wettkampf 1'!C42 -> Lahn III | F42: 0.0 | G42: 0 | H42: 0 | I42: 0 | J42: 0 | K42: 0 | L42: 0 | M42: 0 | N42: 0 | O42: 0 | P42: 0 | Q42: 0 | R42: 1 | X42: 0.0 | Y42: 1 | Z42: 0
A43: 34 | B43: ='Wettkampf 1'!B43 -> Willoh, Henrika | C43: ='Wettkampf 1'!C43 -> Lahn III | F43: 0.0 | G43: 0 | H43: 0 | I43: 0 | J43: 0 | K43: 0 | L43: 0 | M43: 0 | N43: 0 | O43: 0 | P43: 0 | Q43: 0 | R43: 1 | X43: 0.0 | Y43: 1 | Z43: 0
A44: 35 | B44: ='Wettkampf 1'!B44 -> Müller, Anita | C44: ='Wettkampf 1'!C44 -> Lahn III | E44: x | F44: 0 | G44: 0 | H44: 0 | I44: 0 | J44: 0 | K44: 0 | L44: 0 | M44: 0 | N44: 0 | O44: 0 | P44: 0 | Q44: 0 | R44: 0 | X44: 0.0 | Y44: 1 | Z44: 0
A45: 36 | B45: ='Wettkampf 1'!B45 -> Wilken, Elena | C45: ='Wettkampf 1'!C45 -> Lahn III | E45: x | F45: 0 | G45: 0 | H45: 0 | I45: 0 | J45: 0 | K45: 0 | L45: 0 | M45: 0 | N45: 0 | O45: 0 | P45: 0 | Q45: 0 | R45: 0 | X45: 0.0 | Y45: 1 | Z45: 0
G46: =LARGE(G10:G45,1)+LARGE(G10:G45,2)+LARGE(G10:G45,3) -> 0 | H46: =SUM(H10:H45) -> 4 | I46: =LARGE(I10:I45,1)+LARGE(I10:I45,2)+LARGE(I10:I45,3) -> 0 | J46: =SUM(J10:J45) -> 4 | K46: =LARGE(K10:K45,1)+LARGE(K10:K45,2)+LARGE(K10:K45,3) -> 0 | L46: =SUM(L10:L45) -> 5 | M46: =LARGE(M10:M45,1)+LARGE(M10:M45,2)+LARGE(M10:M45,3) -> 0 | N46: =SUM(N10:N45) -> 3 | O46: =LARGE(O10:O45,1)+LARGE(O10:O45,2)+LARGE(O10:O45,3) -> 0 | P46: =SUM(P10:P45) -> 4 | Q46: =LARGE(Q10:Q45,1)+LARGE(Q10:Q45,2)+LARGE(Q10:Q45,3) -> 0 | R46: =SUM(R10:S45) -> 4
C47: per Email an: sk-huemmling@gmx.de

Sheet Ausdruck
B1: Verein / Gruppe | C1: Ergebnisse | D1: =Übersicht!K1 -> 2019/2020 | X1: Austragungsort:
A2: 1 | B2: ='Wettkampf 1'!B2 -> Börger II | D2: Klasse: | X2: Wettkampftag:
A3: 2 | B3: ='Wettkampf 1'!B3 -> Esterwegen V | D3: =Übersicht!M1 -> 2. Kreisklasse
A4: 3 | B4: ='Wettkampf 1'!B4 -> Neuvrees II | D4: =Übersicht!P1 -> Damen | Z4: Ansprechpartner für Rückfragen:
A5: 4 | B5: ='Wettkampf 1'!B5 -> Lahn IV | X5: Name:
A6: 5 | B6: ='Wettkampf 1'!B6 -> Börger III | X6: Tel:
A7: 6 | B7: ='Wettkampf 1'!B7 -> Lahn III | X7: Standaufsicht:
B9: Name Schütze | C9: Verein/Gruppe | D9: Ergebnis | E9: AW? | G9: Verein 1 | I9: Verein 2 | K9: Verein 3 | M9: Verein 4 | O9: Verein 5 | Q9: Verein 6 | U9: Geburts-datum | W9: Proberechnung bei Streifen:
A10: 1 | B10: ='Wettkampf 1'!B10 -> Kossenjans, Annegret | C10: ='Wettkampf 1'!C10 -> Börger II | F10: =IF(E10="x","0",D10) -> 0 | G10: =IF(C10=$B$2,F10,0) -> 0 | H10: =(IF(AND($E10="",$C10=$B$2),1,0)) -> 1 | I10: =IF($C10=$B$3,F10,0) -> 0 | J10: =(IF(AND($E10="",$C10=$B$3),1,0)) -> 0 | K10: =IF($C10=$B$4,F10,0) -> 0 | L10: =(IF(AND($E10="",$C10=$B$4),1,0)) -> 0 | M10: =IF($C10=$B$5,F10,0) -> 0 | N10: =(IF(AND($E10="",$C10=$B$5),1,0)) -> 0 | O10: =IF($C10=$B$6,F10,0) -> 0 | P10: =(IF(AND($E10="",$C10=$B$6),1,0)) -> 0 | Q10: =IF($C10=$B$7,F10,0) -> 0 | R10: =(IF(AND($E10="",$C10=$B$7),1,0)) -> 0 | AA10: =IF(Z10=D10,1,0) -> 1 | AB10: =IF(Z10=0,0,1) -> 0 | AC10: =IF(AA10+AB10=2,"Korrekt","") -> 
A11: 2 | B11: ='Wettkampf 1'!B11 -> Jansen, Elisabeth | C11: ='Wettkampf 1'!C11 -> Börger II | F11: =IF(E11="x","0",D11) -> 0 | G11: =IF(C11=$B$2,F11,0) -> 0 | H11: =(IF(AND($E11="",$C11=$B$2),1,0)) -> 1 | I11: =IF($C11=$B$3,F11,0) -> 0 | J11: =(IF(AND($E11="",$C11=$B$3),1,0)) -> 0 | K11: =IF($C11=$B$4,F11,0) -> 0 | L11: =(IF(AND($E11="",$C11=$B$4),1,0)) -> 0 | M11: =IF($C11=$B$5,F11,0) -> 0 | N11: =(IF(AND($E11="",$C11=$B$5),1,0)) -> 0 | O11: =IF($C11=$B$6,F11,0) -> 0 | P11: =(IF(AND($E11="",$C11=$B$6),1,0)) -> 0 | Q11: =IF($C11=$B$7,F11,0) -> 0 | R11: =(IF(AND($E11="",$C11=$B$7),1,0)) -> 0 | AA11: =IF(Z11=D11,1,0) -> 1 | AB11: =IF(Z11=0,0,1) -> 0 | AC11: =IF(AA11+AB11=2,"Korrekt","") -> 
A12: 3 | B12: ='Wettkampf 1'!B12 -> Krömer, Monika | C12: ='Wettkampf 1'!C12 -> Börger II | F12: 0 | G12: 0 | H12: 1 | I12: 0 | J12: 0 | K12: 0 | L12: 0 | M12: 0 | N12: 0 | O12: 0 | P12: 0 | Q12: 0 | R12: 0 | AA12: 1 | AB12: 0
A13: 4 | B13: ='Wettkampf 1'!B13 -> Pohlgeers, Margret | C13: ='Wettkampf 1'!C13 -> Börger II | F13: 0 | G13: 0 | H13: 1 | I13: 0 | J13: 0 | K13: 0 | L13: 0 | M13: 0 | N13: 0 | O13: 0 | P13: 0 | Q13: 0 | R13: 0 | AA13: 1 | AB13: 0
A14: 5 | B14: ='Wettkampf 1'!B14 -> Pohlgeers, Silvia | C14: ='Wettkampf 1'!C14 -> Börger II | F14: 0 | G14: 0 | H14: 1 | I14: 0 | J14: 0 | K14: 0 | L14: 0 | M14: 0 | N14: 0 | O14: 0 | P14: 0 | Q14: 0 | R14: 0 | AA14: 1 | AB14: 0
A15: 6 | B15: ='Wettkampf 1'!B15 -> Schwarte, Annette | C15: ='Wettkampf 1'!C15 -> Börger II | F15: 0 | G15: 0 | H15: 1 | I15: 0 | J15: 0 | K15: 0 | L15: 0 | M15: 0 | N15: 0 | O15: 0 | P15: 0 | Q15: 0 | R15: 0 | AA15: 1 | AB15: 0
A16: 7 | B16: ='Wettkampf 1'!B16 -> Lindemann, Kerstin | C16: ='Wettkampf 1'!C16 -> Esterwegen V | F16: 0 | G16: 0 | H16: 0 | I16: 0 | J16: 1 | K16: 0 | L16: 0 | M16: 0 | N16: 0 | O16: 0 | P16: 0 | Q16: 0 | R16: 0 | AA16: 1 | AB16: 0
A17: 8 | B17: ='Wettkampf 1'!B17 -> Schlarmann, Lena | C17: ='Wettkampf 1'!C17 -> Esterwegen V | F17: 0 | G17: 0 | H17: 0 | I17: 0 | J17: 1 | K17: 0 | L17: 0 | M17: 0 | N17: 0 | O17: 0 | P17: 0 | Q17: 0 | R17: 0 | AA17: 1 | AB17: 0
A18: 9 | B18: ='Wettkampf 1'!B18 -> Lindemann, Stefanie | C18: ='Wettkampf 1'!C18 -> Esterwegen V | F18: 0 | G18: 0 | H18: 0 | I18: 0 | J18: 1 | K18: 0 | L18: 0 | M18: 0 | N18: 0 | O18: 0 | P18: 0 | Q18: 0 | R18: 0 | AA18: 1 | AB18: 0
A19: 10 | B19: ='Wettkampf 1'!B19 -> Lindemann, Rita | C19: ='Wettkampf 1'!C19 -> Esterwegen V | F19: 0 | G19: 0 | H19: 0 | I19: 0 | J19: 1 | K19: 0 | L19: 0 | M19: 0 | N19: 0 | O19: 0 | P19: 0 | Q19: 0 | R19: 0 | AA19: 1 | AB19: 0
A20: 11 | B20: ='Wettkampf 1'!B20 -> Büter, Daniela | C20: ='Wettkampf 1'!C20 -> Esterwegen V | F20: 0 | G20: 0 | H20: 0 | I20: 0 | J20: 1 | K20: 0 | L20: 0 | M20: 0 | N20: 0 | O20: 0 | P20: 0 | Q20: 0 | R20: 0 | AA20: 1 | AB20: 0
A21: 12 | B21: ='Wettkampf 1'!B21 -> Lindemann, Annemarie | C21: ='Wettkampf 1'!C21 -> Esterwegen V | F21: 0 | G21: 0 | H21: 0 | I21: 0 | J21: 1 | K21: 0 | L21: 0 | M21: 0 | N21: 0 | O21: 0 | P21: 0 | Q21: 0 | R21: 0 | AA21: 1 | AB21: 0
A22: 13 | B22: ='Wettkampf 1'!B22 -> Preut, Susanne | C22: ='Wettkampf 1'!C22 -> Neuvrees II | F22: 0 | G22: 0 | H22: 0 | I22: 0 | J22: 0 | K22: 0 | L22: 1 | M22: 0 | N22: 0 | O22: 0 | P22: 0 | Q22: 0 | R22: 0 | AA22: 1 | AB22: 0
A23: 14 | B23: ='Wettkampf 1'!B23 -> Thunert, Silvia | C23: ='Wettkampf 1'!C23 -> Neuvrees II | F23: 0 | G23: 0 | H23: 0 | I23: 0 | J23: 0 | K23: 0 | L23: 1 | M23: 0 | N23: 0 | O23: 0 | P23: 0 | Q23: 0 | R23: 0 | AA23: 1 | AB23: 0
A24: 15 | B24: ='Wettkampf 1'!B24 -> Pohlmann, Margret | C24: ='Wettkampf 1'!C24 -> Neuvrees II | F24: 0 | G24: 0 | H24: 0 | I24: 0 | J24: 0 | K24: 0 | L24: 1 | M24: 0 | N24: 0 | O24: 0 | P24: 0 | Q24: 0 | R24: 0 | AA24: 1 | AB24: 0
A25: 16 | B25: ='Wettkampf 1'!B25 -> Eilermann, Saskia | C25: ='Wettkampf 1'!C25 -> Neuvrees II | F25: 0 | G25: 0 | H25: 0 | I25: 0 | J25: 0 | K25: 0 | L25: 1 | M25: 0 | N25: 0 | O25: 0 | P25: 0 | Q25: 0 | R25: 0 | AA25: 1 | AB25: 0
A26: 17 | B26: ='Wettkampf 1'!B26 -> Junge, Silvia | C26: ='Wettkampf 1'!C26 -> Neuvrees II | F26: 0 | G26: 0 | H26: 0 | I26: 0 | J26: 0 | K26: 0 | L26: 1 | M26: 0 | N26: 0 | O26: 0 | P26: 0 | Q26: 0 | R26: 0 | AA26: 1 | AB26: 0
A27: 18 | B27: ='Wettkampf 1'!B27 -> Evers, Claudia | C27: ='Wettkampf 1'!C27 -> Neuvrees II | F27: 0 | G27: 0 | H27: 0 | I27: 0 | J27: 0 | K27: 0 | L27: 1 | M27: 0 | N27: 0 | O27: 0 | P27: 0 | Q27: 0 | R27: 0 | AA27: 1 | AB27: 0
A28: 19 | B28: ='Wettkampf 1'!B28 -> Schulte, Christina | C28: ='Wettkampf 1'!C28 -> Neuvrees II | F28: 0 | G28: 0 | H28: 0 | I28: 0 | J28: 0 | K28: 0 | L28: 1 | M28: 0 | N28: 0 | O28: 0 | P28: 0 | Q28: 0 | R28: 0 | AA28: 1 | AB28: 0
A29: 20 | B29: ='Wettkampf 1'!B29 -> Reinelt, Michaela | C29: ='Wettkampf 1'!C29 -> Lahn IV | F29: 0 | G29: 0 | H29: 0 | I29: 0 | J29: 0 | K29: 0 | L29: 0 | M29: 0 | N29: 1 | O29: 0 | P29: 0 | Q29: 0 | R29: 0 | AA29: 1 | AB29: 0
A30: 21 | B30: ='Wettkampf 1'!B30 -> Thien, Marita | C30: ='Wettkampf 1'!C30 -> Lahn IV | F30: 0 | G30: 0 | H30: 0 | I30: 0 | J30: 0 | K30: 0 | L30: 0 | M30: 0 | N30: 1 | O30: 0 | P30: 0 | Q30: 0 | R30: 0 | AA30: 1 | AB30: 0
A31: 22 | B31: ='Wettkampf 1'!B31 -> Robben, Anja | C31: ='Wettkampf 1'!C31 -> Lahn IV | F31: 0 | G31: 0 | H31: 0 | I31: 0 | J31: 0 | K31: 0 | L31: 0 | M31: 0 | N31: 1 | O31: 0 | P31: 0 | Q31: 0 | R31: 0 | AA31: 1 | AB31: 0
A32: 23 | B32: ='Wettkampf 1'!B32 -> Oldopp, Maria | C32: ='Wettkampf 1'!C32 -> Lahn IV | F32: 0 | G32: 0 | H32: 0 | I32: 0 | J32: 0 | K32: 0 | L32: 0 | M32: 0 | N32: 1 | O32: 0 | P32: 0 | Q32: 0 | R32: 0 | AA32: 1 | AB32: 0
A33: 24 | B33: ='Wettkampf 1'!B33 -> Hanneken, Doris | C33: ='Wettkampf 1'!C33 -> Lahn IV | F33: 0 | G33: 0 | H33: 0 | I33: 0 | J33: 0 | K33: 0 | L33: 0 | M33: 0 | N33: 1 | O33: 0 | P33: 0 | Q33: 0 | R33: 0 | AA33: 1 | AB33: 0
A34: 25 | B34: ='Wettkampf 1'!B34 -> Kuchta, Gertrud | C34: ='Wettkampf 1'!C34 -> Börger III | F34: 0 | G34: 0 | H34: 0 | I34: 0 | J34: 0 | K34: 0 | L34: 0 | M34: 0 | N34: 0 | O34: 0 | P34: 1 | Q34: 0 | R34: 0 | AA34: 1 | AB34: 0
A35: 26 | B35: ='Wettkampf 1'!B35 -> Jungsthöfel, Sabine | C35: ='Wettkampf 1'!C35 -> Börger III | F35: 0 | G35: 0 | H35: 0 | I35: 0 | J35: 0 | K35: 0 | L35: 0 | M35: 0 | N35: 0 | O35: 0 | P35: 1 | Q35: 0 | R35: 0 | AA35: 1 | AB35: 0
A36: 27 | B36: ='Wettkampf 1'!B36 -> Schwarte, Gundula | C36: ='Wettkampf 1'!C36 -> Börger III | F36: 0 | G36: 0 | H36: 0 | I36: 0 | J36: 0 | K36: 0 | L36: 0 | M36: 0 | N36: 0 | O36: 0 | P36: 1 | Q36: 0 | R36: 0 | AA36: 1 | AB36: 0
A37: 28 | B37: ='Wettkampf 1'!B37 -> Geers, Christa | C37: ='Wettkampf 1'!C37 -> Börger III | F37: 0 | G37: 0 | H37: 0 | I37: 0 | J37: 0 | K37: 0 | L37: 0 | M37: 0 | N37: 0 | O37: 0 | P37: 1 | Q37: 0 | R37: 0 | AA37: 1 | AB37: 0
A38: 29 | B38: ='Wettkampf 1'!B38 -> Remmers, Tanja | C38: ='Wettkampf 1'!C38 -> Börger III | F38: 0 | G38: 0 | H38: 0 | I38: 0 | J38: 0 | K38: 0 | L38: 0 | M38: 0 | N38: 0 | O38: 0 | P38: 1 | Q38: 0 | R38: 0 | AA38: 1 | AB38: 0
A39: 30 | B39: ='Wettkampf 1'!B39 -> Terhalle, Johanna | C39: ='Wettkampf 1'!C39 -> Börger III | F39: 0 | G39: 0 | H39: 0 | I39: 0 | J39: 0 | K39: 0 | L39: 0 | M39: 0 | N39: 0 | O39: 0 | P39: 1 | Q39: 0 | R39: 0 | AA39: 1 | AB39: 0
A40: 31 | B40: ='Wettkampf 1'!B40 -> Hackstette, Lena | C40: ='Wettkampf 1'!C40 -> Lahn III | F40: 0 | G40: 0 | H40: 0 | I40: 0 | J40: 0 | K40: 0 | L40: 0 | M40: 0 | N40: 0 | O40: 0 | P40: 0 | Q40: 0 | R40: 1 | AA40: 1 | AB40: 0
A41: 32 | B41: ='Wettkampf 1'!B41 -> Thyen, Christel | C41: ='Wettkampf 1'!C41 -> Lahn III | F41: 0 | G41: 0 | H41: 0 | I41: 0 | J41: 0 | K41: 0 | L41: 0 | M41: 0 | N41: 0 | O41: 0 | P41: 0 | Q41: 0 | R41: 1 | AA41: 1 | AB41: 0
A42: 33 | B42: ='Wettkampf 1'!B42 -> Ostermann, Hildegard | C42: ='Wettkampf 1'!C42 -> Lahn III | F42: 0 | G42: 0 | H42: 0 | I42: 0 | J42: 0 | K42: 0 | L42: 0 | M42: 0 | N42: 0 | O42: 0 | P42: 0 | Q42: 0 | R42: 1 | AA42: 1 | AB42: 0
A43: 34 | B43: ='Wettkampf 1'!B43 -> Willoh, Henrika | C43: ='Wettkampf 1'!C43 -> Lahn III | F43: 0 | G43: 0 | H43: 0 | I43: 0 | J43: 0 | K43: 0 | L43: 0 | M43: 0 | N43: 0 | O43: 0 | P43: 0 | Q43: 0 | R43: 1 | AA43: 1 | AB43: 0
A44: 35 | B44: ='Wettkampf 1'!B44 -> Müller, Anita | C44: ='Wettkampf 1'!C44 -> Lahn III | F44: 0 | G44: 0 | H44: 0 | I44: 0 | J44: 0 | K44: 0 | L44: 0 | M44: 0 | N44: 0 | O44: 0 | P44: 0 | Q44: 0 | R44: 1 | AA44: 1 | AB44: 0
A45: 36 | B45: ='Wettkampf 1'!B45 -> Wilken, Elena | C45: ='Wettkampf 1'!C45 -> Lahn III | F45: 0 | G45: 0 | H45: 0 | I45: 0 | J45: 0 | K45: 0 | L45: 0 | M45: 0 | N45: 0 | O45: 0 | P45: 0 | Q45: 0 | R45: 1 | AA45: 1 | AB45: 0
G46: =LARGE(G10:G45,1)+LARGE(G10:G45,2)+LARGE(G10:G45,3) -> 0 | H46: =SUM(H10:H45) -> 6 | I46: =LARGE(I10:I45,1)+LARGE(I10:I45,2)+LARGE(I10:I45,3) -> 0 | J46: =SUM(J10:J45) -> 6 | K46: =LARGE(K10:K45,1)+LARGE(K10:K45,2)+LARGE(K10:K45,3) -> 0 | L46: =SUM(L10:L45) -> 7 | M46: =LARGE(M10:M45,1)+LARGE(M10:M45,2)+LARGE(M10:M45,3) -> 0 | N46: =SUM(N10:N45) -> 5 | O46: =LARGE(O10:O45,1)+LARGE(O10:O45,2)+LARGE(O10:O45,3) -> 0 | P46: =SUM(P10:P45) -> 6 | Q46: =LARGE(Q10:Q45,1)+LARGE(Q10:Q45,2)+LARGE(Q10:Q45,3) -> 0 | R46: =SUM(R10:S45) -> 6
B48: Bitte beachtet, dass die Standaufsicht benannt werden muss

Sheet Ausdruck blank
B1: Verein / Gruppe | C1: Ergebnisse | D1: =Übersicht!K1 -> 2019/2020 | X1: Austragungsort:
A2: 1 | D2: Klasse: | X2: Wettkampftag:
A3: 2
A4: 3 | Z4: Ansprechpartner für Rückfragen:
A5: 4 | X5: Name:
A6: 5 | X6: Tel:
A7: 6 | X7: Standaufsicht:
B9: Name Schütze | C9: Verein/Gruppe | D9: Ergebnis | E9: AW? | G9: Verein 1 | I9: Verein 2 | K9: Verein 3 | M9: Verein 4 | O9: Verein 5 | Q9: Verein 6 | U9: Geburts-datum | W9: Proberechnung bei Streifen:
A10: 1 | F10: =IF(E10="x","0",D10) -> 0 | G10: =IF(C10=$B$2,F10,0) -> 0 | H10: =(IF(AND($E10="",$C10=$B$2),1,0)) -> 1 | I10: =IF($C10=$B$3,F10,0) -> 0 | J10: =(IF(AND($E10="",$C10=$B$3),1,0)) -> 1 | K10: =IF($C10=$B$4,F10,0) -> 0 | L10: =(IF(AND($E10="",$C10=$B$4),1,0)) -> 1 | M10: =IF($C10=$B$5,F10,0) -> 0 | N10: =(IF(AND($E10="",$C10=$B$5),1,0)) -> 1 | O10: =IF($C10=$B$6,F10,0) -> 0 | P10: =(IF(AND($E10="",$C10=$B$6),1,0)) -> 1 | Q10: =IF($C10=$B$7,F10,0) -> 0 | R10: =(IF(AND($E10="",$C10=$B$7),1,0)) -> 1 | AA10: =IF(Z10=D10,1,0) -> 1 | AB10: =IF(Z10=0,0,1) -> 0 | AC10: =IF(AA10+AB10=2,"Korrekt","") -> 
A11: 2 | F11: =IF(E11="x","0",D11) -> 0 | G11: =IF(C11=$B$2,F11,0) -> 0 | H11: =(IF(AND($E11="",$C11=$B$2),1,0)) -> 1 | I11: =IF($C11=$B$3,F11,0) -> 0 | J11: =(IF(AND($E11="",$C11=$B$3),1,0)) -> 1 | K11: =IF($C11=$B$4,F11,0) -> 0 | L11: =(IF(AND($E11="",$C11=$B$4),1,0)) -> 1 | M11: =IF($C11=$B$5,F11,0) -> 0 | N11: =(IF(AND($E11="",$C11=$B$5),1,0)) -> 1 | O11: =IF($C11=$B$6,F11,0) -> 0 | P11: =(IF(AND($E11="",$C11=$B$6),1,0)) -> 1 | Q11: =IF($C11=$B$7,F11,0) -> 0 | R11: =(IF(AND($E11="",$C11=$B$7),1,0)) -> 1 | AA11: =IF(Z11=D11,1,0) -> 1 | AB11: =IF(Z11=0,0,1) -> 0 | AC11: =IF(AA11+AB11=2,"Korrekt","") -> 
A12: 3 | F12: 0 | G12: 0 | H12: 1 | I12: 0 | J12: 1 | K12: 0 | L12: 1 | M12: 0 | N12: 1 | O12: 0 | P12: 1 | Q12: 0 | R12: 1 | AA12: 1 | AB12: 0
A13: 4 | F13: 0 | G13: 0 | H13: 1 | I13: 0 | J13: 1 | K13: 0 | L13: 1 | M13: 0 | N13: 1 | O13: 0 | P13: 1 | Q13: 0 | R13: 1 | AA13: 1 | AB13: 0
A14: 5 | F14: 0 | G14: 0 | H14: 1 | I14: 0 | J14: 1 | K14: 0 | L14: 1 | M14: 0 | N14: 1 | O14: 0 | P14: 1 | Q14: 0 | R14: 1 | AA14: 1 | AB14: 0
A15: 6 | F15: 0 | G15: 0 | H15: 1 | I15: 0 | J15: 1 | K15: 0 | L15: 1 | M15: 0 | N15: 1 | O15: 0 | P15: 1 | Q15: 0 | R15: 1 | AA15: 1 | AB15: 0
A16: 7 | F16: 0 | G16: 0 | H16: 1 | I16: 0 | J16: 1 | K16: 0 | L16: 1 | M16: 0 | N16: 1 | O16: 0 | P16: 1 | Q16: 0 | R16: 1 | AA16: 1 | AB16: 0
A17: 8 | F17: 0 | G17: 0 | H17: 1 | I17: 0 | J17: 1 | K17: 0 | L17: 1 | M17: 0 | N17: 1 | O17: 0 | P17: 1 | Q17: 0 | R17: 1 | AA17: 1 | AB17: 0
A18: 9 | F18: 0 | G18: 0 | H18: 1 | I18: 0 | J18: 1 | K18: 0 | L18: 1 | M18: 0 | N18: 1 | O18: 0 | P18: 1 | Q18: 0 | R18: 1 | AA18: 1 | AB18: 0
A19: 10 | F19: 0 | G19: 0 | H19: 1 | I19: 0 | J19: 1 | K19: 0 | L19: 1 | M19: 0 | N19: 1 | O19: 0 | P19: 1 | Q19: 0 | R19: 1 | AA19: 1 | AB19: 0
A20: 11 | F20: 0 | G20: 0 | H20: 1 | I20: 0 | J20: 1 | K20: 0 | L20: 1 | M20: 0 | N20: 1 | O20: 0 | P20: 1 | Q20: 0 | R20: 1 | AA20: 1 | AB20: 0
A21: 12 | F21: 0 | G21: 0 | H21: 1 | I21: 0 | J21: 1 | K21: 0 | L21: 1 | M21: 0 | N21: 1 | O21: 0 | P21: 1 | Q21: 0 | R21: 1 | AA21: 1 | AB21: 0
A22: 13 | F22: 0 | G22: 0 | H22: 1 | I22: 0 | J22: 1 | K22: 0 | L22: 1 | M22: 0 | N22: 1 | O22: 0 | P22: 1 | Q22: 0 | R22: 1 | AA22: 1 | AB22: 0
A23: 14 | F23: 0 | G23: 0 | H23: 1 | I23: 0 | J23: 1 | K23: 0 | L23: 1 | M23: 0 | N23: 1 | O23: 0 | P23: 1 | Q23: 0 | R23: 1 | AA23: 1 | AB23: 0
A24: 15 | F24: 0 | G24: 0 | H24: 1 | I24: 0 | J24: 1 | K24: 0 | L24: 1 | M24: 0 | N24: 1 | O24: 0 | P24: 1 | Q24: 0 | R24: 1 | AA24: 1 | AB24: 0
A25: 16 | F25: 0 | G25: 0 | H25: 1 | I25: 0 | J25: 1 | K25: 0 | L25: 1 | M25: 0 | N25: 1 | O25: 0 | P25: 1 | Q25: 0 | R25: 1 | AA25: 1 | AB25: 0
A26: 17 | F26: 0 | G26: 0 | H26: 1 | I26: 0 | J26: 1 | K26: 0 | L26: 1 | M26: 0 | N26: 1 | O26: 0 | P26: 1 | Q26: 0 | R26: 1 | AA26: 1 | AB26: 0
A27: 18 | F27: 0 | G27: 0 | H27: 1 | I27: 0 | J27: 1 | K27: 0 | L27: 1 | M27: 0 | N27: 1 | O27: 0 | P27: 1 | Q27: 0 | R27: 1 | AA27: 1 | AB27: 0
A28: 19 | F28: 0 | G28: 0 | H28: 1 | I28: 0 | J28: 1 | K28: 0 | L28: 1 | M28: 0 | N28: 1 | O28: 0 | P28: 1 | Q28: 0 | R28: 1 | AA28: 1 | AB28: 0
A29: 20 | F29: 0 | G29: 0 | H29: 1 | I29: 0 | J29: 1 | K29: 0 | L29: 1 | M29: 0 | N29: 1 | O29: 0 | P29: 1 | Q29: 0 | R29: 1 | AA29: 1 | AB29: 0
A30: 21 | F30: 0 | G30: 0 | H30: 1 | I30: 0 | J30: 1 | K30: 0 | L30: 1 | M30: 0 | N30: 1 | O30: 0 | P30: 1 | Q30: 0 | R30: 1 | AA30: 1 | AB30: 0
A31: 22 | F31: 0 | G31: 0 | H31: 1 | I31: 0 | J31: 1 | K31: 0 | L31: 1 | M31: 0 | N31: 1 | O31: 0 | P31: 1 | Q31: 0 | R31: 1 | AA31: 1 | AB31: 0
A32: 23 | F32: 0 | G32: 0 | H32: 1 | I32: 0 | J32: 1 | K32: 0 | L32: 1 | M32: 0 | N32: 1 | O32: 0 | P32: 1 | Q32: 0 | R32: 1 | AA32: 1 | AB32: 0
A33: 24 | F33: 0 | G33: 0 | H33: 1 | I33: 0 | J33: 1 | K33: 0 | L33: 1 | M33: 0 | N33: 1 | O33: 0 | P33: 1 | Q33: 0 | R33: 1 | AA33: 1 | AB33: 0
A34: 25 | F34: 0 | G34: 0 | H34: 1 | I34: 0 | J34: 1 | K34: 0 | L34: 1 | M34: 0 | N34: 1 | O34: 0 | P34: 1 | Q34: 0 | R34: 1 | AA34: 1 | AB34: 0
A35: 26 | F35: 0 | G35: 0 | H35: 1 | I35: 0 | J35: 1 | K35: 0 | L35: 1 | M35: 0 | N35: 1 | O35: 0 | P35: 1 | Q35: 0 | R35: 1 | AA35: 1 | AB35: 0
A36: 27 | F36: 0 | G36: 0 | H36: 1 | I36: 0 | J36: 1 | K36: 0 | L36: 1 | M36: 0 | N36: 1 | O36: 0 | P36: 1 | Q36: 0 | R36: 1 | AA36: 1 | AB36: 0
A37: 28 | F37: 0 | G37: 0 | H37: 1 | I37: 0 | J37: 1 | K37: 0 | L37: 1 | M37: 0 | N37: 1 | O37: 0 | P37: 1 | Q37: 0 | R37: 1 | AA37: 1 | AB37: 0
A38: 29 | F38: 0 | G38: 0 | H38: 1 | I38: 0 | J38: 1 | K38: 0 | L38: 1 | M38: 0 | N38: 1 | O38: 0 | P38: 1 | Q38: 0 | R38: 1 | AA38: 1 | AB38: 0
A39: 30 | F39: 0 | G39: 0 | H39: 1 | I39: 0 | J39: 1 | K39: 0 | L39: 1 | M39: 0 | N39: 1 | O39: 0 | P39: 1 | Q39: 0 | R39: 1 | AA39: 1 | AB39: 0
A40: 31 | F40: 0 | G40: 0 | H40: 1 | I40: 0 | J40: 1 | K40: 0 | L40: 1 | M40: 0 | N40: 1 | O40: 0 | P40: 1 | Q40: 0 | R40: 1 | AA40: 1 | AB40: 0
A41: 32 | F41: 0 | G41: 0 | H41: 1 | I41: 0 | J41: 1 | K41: 0 | L41: 1 | M41: 0 | N41: 1 | O41: 0 | P41: 1 | Q41: 0 | R41: 1 | AA41: 1 | AB41: 0
A42: 33 | F42: 0 | G42: 0 | H42: 1 | I42: 0 | J42: 1 | K42: 0 | L42: 1 | M42: 0 | N42: 1 | O42: 0 | P42: 1 | Q42: 0 | R42: 1 | AA42: 1 | AB42: 0
A43: 34 | F43: 0 | G43: 0 | H43: 1 | I43: 0 | J43: 1 | K43: 0 | L43: 1 | M43: 0 | N43: 1 | O43: 0 | P43: 1 | Q43: 0 | R43: 1 | AA43: 1 | AB43: 0
A44: 35 | F44: 0 | G44: 0 | H44: 1 | I44: 0 | J44: 1 | K44: 0 | L44: 1 | M44: 0 | N44: 1 | O44: 0 | P44: 1 | Q44: 0 | R44: 1 | AA44: 1 | AB44: 0
A45: 36 | F45: 0 | G45: 0 | H45: 1 | I45: 0 | J45: 1 | K45: 0 | L45: 1 | M45: 0 | N45: 1 | O45: 0 | P45: 1 | Q45: 0 | R45: 1 | AA45: 1 | AB45: 0
G46: =LARGE(G10:G45,1)+LARGE(G10:G45,2)+LARGE(G10:G45,3) -> 0 | H46: =SUM(H10:H45) -> 36 | I46: =LARGE(I10:I45,1)+LARGE(I10:I45,2)+LARGE(I10:I45,3) -> 0 | J46: =SUM(J10:J45) -> 36 | K46: =LARGE(K10:K45,1)+LARGE(K10:K45,2)+LARGE(K10:K45,3) -> 0 | L46: =SUM(L10:L45) -> 36 | M46: =LARGE(M10:M45,1)+LARGE(M10:M45,2)+LARGE(M10:M45,3) -> 0 | N46: =SUM(N10:N45) -> 36 | O46: =LARGE(O10:O45,1)+LARGE(O10:O45,2)+LARGE(O10:O45,3) -> 0 | P46: =SUM(P10:P45) -> 36 | Q46: =LARGE(Q10:Q45,1)+LARGE(Q10:Q45,2)+LARGE(Q10:Q45,3) -> 0 | R46: =SUM(R10:S45) -> 36
B48: Bitte beachtet, dass die Standaufsicht benannt werden muss

Sheet Übersicht Schützen (hidden)
C1: 1.0 | D1: 2.0 | E1: 3.0 | F1: 4.0 | G1: 5.0 | H1: 6.0 | L1: 7.0 | M1: 8.0 | N1: 9.0 | O1: 10.0 | P1: 11.0 | Q1: 12.0
A2: Lindemann, Rita | B2: =VLOOKUP(A2,'Wettkampf 1'!$B$10:$C$45,2,FALSE) -> Esterwegen V | C2: =VLOOKUP(A2,'Wettkampf 1'!$B$10:$D$45,3,FALSE) -> 313.4 | D2: =VLOOKUP($A2,'2'!$B$10:$D$45,3,FALSE) -> 317.5 | E2: =VLOOKUP($A2,'3'!$B$10:$D$45,3,FALSE) -> 314.5 | F2: =VLOOKUP($A2,'4'!$B$10:$D$45,3,FALSE) -> 315.0 | G2: =VLOOKUP($A2,'5'!$B$10:$D$45,3,FALSE) -> 316.6 | H2: =VLOOKUP($A2,'6'!$B$10:$D$45,3,FALSE) -> 315.6 | I2: =K2/J2 -> 315.4 | J2: =VLOOKUP(A2,Formelhilfe!$A$9:$H$44,8,FALSE) -> 6.0 | K2: =SUM(C2:H2) -> 1,892.6 | L2: =VLOOKUP($A2,'7'!$B$10:$D$45,3,FALSE) -> 316.1 | M2: =VLOOKUP($A2,'8'!$B$10:$D$45,3,FALSE) -> 315.0 | N2: =VLOOKUP($A2,'9'!$B$10:$D$45,3,FALSE) -> 317.2 | O2: =VLOOKUP($A2,'10'!$B$10:$D$45,3,FALSE) -> 313.7 | P2: =VLOOKUP($A2,'11'!$B$10:$D$45,3,FALSE) -> 316.8 | Q2: =VLOOKUP($A2,'12'!$B$10:$D$45,3,FALSE) -> 0.0 | R2: =T2/S2 -> 315.8 | S2: =VLOOKUP(A2,Formelhilfe!$A$9:$O$44,15,FALSE) -> 5.0 | T2: =SUM(L2:Q2) -> 1,578.8 | U2: =W2/V2 -> 315.6 | V2: =VLOOKUP(A2,Formelhilfe!$A$9:$P$44,16,FALSE) -> 11.0 | W2: =SUM(C2:H2,L2:Q2) -> 3,471.4
A3: Schlarmann, Lena | B3: =VLOOKUP(A3,'Wettkampf 1'!$B$10:$C$45,2,FALSE) -> Esterwegen V | C3: =VLOOKUP(A3,'Wettkampf 1'!$B$10:$D$45,3,FALSE) -> 311.4 | D3: =VLOOKUP($A3,'2'!$B$10:$D$45,3,FALSE) -> 312.0 | E3: =VLOOKUP($A3,'3'!$B$10:$D$45,3,FALSE) -> 309.8 | F3: =VLOOKUP($A3,'4'!$B$10:$D$45,3,FALSE) -> 310.0 | G3: =VLOOKUP($A3,'5'!$B$10:$D$45,3,FALSE) -> 311.3 | H3: =VLOOKUP($A3,'6'!$B$10:$D$45,3,FALSE) -> 311.0 | I3: =K3/J3 -> 310.9 | J3: =VLOOKUP(A3,Formelhilfe!$A$9:$H$44,8,FALSE) -> 6.0 | K3: =SUM(C3:H3) -> 1,865.5 | L3: =VLOOKUP($A3,'7'!$B$10:$D$45,3,FALSE) -> 311.5 | M3: =VLOOKUP($A3,'8'!$B$10:$D$45,3,FALSE) -> 312.6 | N3: =VLOOKUP($A3,'9'!$B$10:$D$45,3,FALSE) -> 304.5 | O3: =VLOOKUP($A3,'10'!$B$10:$D$45,3,FALSE) -> 312.6 | P3: =VLOOKUP($A3,'11'!$B$10:$D$45,3,FALSE) -> 309.2 | Q3: =VLOOKUP($A3,'12'!$B$10:$D$45,3,FALSE) -> 0.0 | R3: =T3/S3 -> 310.1 | S3: =VLOOKUP(A3,Formelhilfe!$A$9:$O$44,15,FALSE) -> 5.0 | T3: =SUM(L3:Q3) -> 1,550.4 | U3: =W3/V3 -> 310.5 | V3: =VLOOKUP(A3,Formelhilfe!$A$9:$P$44,16,FALSE) -> 11.0 | W3: =SUM(C3:H3,L3:Q3) -> 3,415.9
A4: Thien, Marita | B4: =VLOOKUP(A4,'Wettkampf 1'!$B$10:$C$45,2,FALSE) -> Lahn IV | C4: =VLOOKUP(A4,'Wettkampf 1'!$B$10:$D$45,3,FALSE) -> 308.6 | D4: =VLOOKUP($A4,'2'!$B$10:$D$45,3,FALSE) -> 306.7 | E4: =VLOOKUP($A4,'3'!$B$10:$D$45,3,FALSE) -> 306.4 | F4: =VLOOKUP($A4,'4'!$B$10:$D$45,3,FALSE) -> 309.0 | G4: =VLOOKUP($A4,'5'!$B$10:$D$45,3,FALSE) -> 311.7 | H4: =VLOOKUP($A4,'6'!$B$10:$D$45,3,FALSE) -> 309.5 | I4: =K4/J4 -> 308.7 | J4: =VLOOKUP(A4,Formelhilfe!$A$9:$H$44,8,FALSE) -> 6.0 | K4: =SUM(C4:H4) -> 1,851.9 | L4: =VLOOKUP($A4,'7'!$B$10:$D$45,3,FALSE) -> 311.2 | M4: =VLOOKUP($A4,'8'!$B$10:$D$45,3,FALSE) -> 312.3 | N4: =VLOOKUP($A4,'9'!$B$10:$D$45,3,FALSE) -> 310.3 | O4: =VLOOKUP($A4,'10'!$B$10:$D$45,3,FALSE) -> 311.7 | P4: =VLOOKUP($A4,'11'!$B$10:$D$45,3,FALSE) -> 312.0 | Q4: =VLOOKUP($A4,'12'!$B$10:$D$45,3,FALSE) -> 0.0 | R4: =T4/S4 -> 311.5 | S4: =VLOOKUP(A4,Formelhilfe!$A$9:$O$44,15,FALSE) -> 5.0 | T4: =SUM(L4:Q4) -> 1,557.5 | U4: =W4/V4 -> 309.9 | V4: =VLOOKUP(A4,Formelhilfe!$A$9:$P$44,16,FALSE) -> 11.0 | W4: =SUM(C4:H4,L4:Q4) -> 3,409.4
A5: Willoh, Henrika | B5: =VLOOKUP(A5,'Wettkampf 1'!$B$10:$C$45,2,FALSE) -> Lahn III | C5: =VLOOKUP(A5,'Wettkampf 1'!$B$10:$D$45,3,FALSE) -> 309.3 | D5: =VLOOKUP($A5,'2'!$B$10:$D$45,3,FALSE) -> 309.3 | E5: =VLOOKUP($A5,'3'!$B$10:$D$45,3,FALSE) -> 308.1 | F5: =VLOOKUP($A5,'4'!$B$10:$D$45,3,FALSE) -> 310.7 | G5: =VLOOKUP($A5,'5'!$B$10:$D$45,3,FALSE) -> 310.3 | H5: =VLOOKUP($A5,'6'!$B$10:$D$45,3,FALSE) -> 309.2 | I5: =K5/J5 -> 309.5 | J5: =VLOOKUP(A5,Formelhilfe!$A$9:$H$44,8,FALSE) -> 6.0 | K5: =SUM(C5:H5) -> 1,856.9 | L5: =VLOOKUP($A5,'7'!$B$10:$D$45,3,FALSE) -> 306.4 | M5: =VLOOKUP($A5,'8'!$B$10:$D$45,3,FALSE) -> 309.8 | N5: =VLOOKUP($A5,'9'!$B$10:$D$45,3,FALSE) -> 310.4 | O5: =VLOOKUP($A5,'10'!$B$10:$D$45,3,FALSE) -> 312.2 | P5: =VLOOKUP($A5,'11'!$B$10:$D$45,3,FALSE) -> 311.1 | Q5: =VLOOKUP($A5,'12'!$B$10:$D$45,3,FALSE) -> 0.0 | R5: =T5/S5 -> 310.0 | S5: =VLOOKUP(A5,Formelhilfe!$A$9:$O$44,15,FALSE) -> 5.0 | T5: =SUM(L5:Q5) -> 1,549.9 | U5: =W5/V5 -> 309.7 | V5: =VLOOKUP(A5,Formelhilfe!$A$9:$P$44,16,FALSE) -> 11.0 | W5: =SUM(C5:H5,L5:Q5) -> 3,406.8
A6: Terhalle, Johanna | B6: =VLOOKUP(A6,'Wettkampf 1'!$B$10:$C$45,2,FALSE) -> Börger III | C6: =VLOOKUP(A6,'Wettkampf 1'!$B$10:$D$45,3,FALSE) -> 311.4 | D6: =VLOOKUP($A6,'2'!$B$10:$D$45,3,FALSE) -> 308.8 | E6: =VLOOKUP($A6,'3'!$B$10:$D$45,3,FALSE) -> 305.2 | F6: =VLOOKUP($A6,'4'!$B$10:$D$45,3,FALSE) -> 309.4 | G6: =VLOOKUP($A6,'5'!$B$10:$D$45,3,FALSE) -> 311.4 | H6: =VLOOKUP($A6,'6'!$B$10:$D$45,3,FALSE) -> 309.0 | I6: =K6/J6 -> 309.2 | J6: =VLOOKUP(A6,Formelhilfe!$A$9:$H$44,8,FALSE) -> 6.0 | K6: =SUM(C6:H6) -> 1,855.2 | L6: =VLOOKUP($A6,'7'!$B$10:$D$45,3,FALSE) -> 311.9 | M6: =VLOOKUP($A6,'8'!$B$10:$D$45,3,FALSE) -> 309.3 | N6: =VLOOKUP($A6,'9'!$B$10:$D$45,3,FALSE) -> 309.1 | O6: =VLOOKUP($A6,'10'!$B$10:$D$45,3,FALSE) -> 304.5 | P6: =VLOOKUP($A6,'11'!$B$10:$D$45,3,FALSE) -> 309.4 | Q6: =VLOOKUP($A6,'12'!$B$10:$D$45,3,FALSE) -> 0.0 | R6: =T6/S6 -> 308.8 | S6: =VLOOKUP(A6,Formelhilfe!$A$9:$O$44,15,FALSE) -> 5.0 | T6: =SUM(L6:Q6) -> 1,544.2 | U6: =W6/V6 -> 309.0 | V6: =VLOOKUP(A6,Formelhilfe!$A$9:$P$44,16,FALSE) -> 11.0 | W6: =SUM(C6:H6,L6:Q6) -> 3,399.4
A7: Pohlgeers, Margret | B7: =VLOOKUP(A7,'Wettkampf 1'!$B$10:$C$45,2,FALSE) -> Börger II | C7: =VLOOKUP(A7,'Wettkampf 1'!$B$10:$D$45,3,FALSE) -> 307.4 | D7: =VLOOKUP($A7,'2'!$B$10:$D$45,3,FALSE) -> 307.7 | E7: =VLOOKUP($A7,'3'!$B$10:$D$45,3,FALSE) -> 308.1 | F7: =VLOOKUP($A7,'4'!$B$10:$D$45,3,FALSE) -> 307.5 | G7: =VLOOKUP($A7,'5'!$B$10:$D$45,3,FALSE) -> 309.3 | H7: =VLOOKUP($A7,'6'!$B$10:$D$45,3,FALSE) -> 312.4 | I7: =K7/J7 -> 308.7 | J7: =VLOOKUP(A7,Formelhilfe!$A$9:$H$44,8,FALSE) -> 6.0 | K7: =SUM(C7:H7) -> 1,852.4 | L7: =VLOOKUP($A7,'7'!$B$10:$D$45,3,FALSE) -> 308.6 | M7: =VLOOKUP($A7,'8'!$B$10:$D$45,3,FALSE) -> 308.7 | N7: =VLOOKUP($A7,'9'!$B$10:$D$45,3,FALSE) -> 309.0 | O7: =VLOOKUP($A7,'10'!$B$10:$D$45,3,FALSE) -> 309.2 | P7: =VLOOKUP($A7,'11'!$B$10:$D$45,3,FALSE) -> 311.4 | Q7: =VLOOKUP($A7,'12'!$B$10:$D$45,3,FALSE) -> 0.0 | R7: =T7/S7 -> 309.4 | S7: =VLOOKUP(A7,Formelhilfe!$A$9:$O$44,15,FALSE) -> 5.0 | T7: =SUM(L7:Q7) -> 1,546.9 | U7: =W7/V7 -> 309.0 | V7: =VLOOKUP(A7,Formelhilfe!$A$9:$P$44,16,FALSE) -> 11.0 | W7: =SUM(C7:H7,L7:Q7) -> 3,399.3
A8: Thunert, Silvia | B8: =VLOOKUP(A8,'Wettkampf 1'!$B$10:$C$45,2,FALSE) -> Neuvrees II | C8: =VLOOKUP(A8,'Wettkampf 1'!$B$10:$D$45,3,FALSE) -> 310.8 | D8: =VLOOKUP($A8,'2'!$B$10:$D$45,3,FALSE) -> 307.4 | E8: =VLOOKUP($A8,'3'!$B$10:$D$45,3,FALSE) -> 310.9 | F8: =VLOOKUP($A8,'4'!$B$10:$D$45,3,FALSE) -> 308.4 | G8: =VLOOKUP($A8,'5'!$B$10:$D$45,3,FALSE) -> 308.3 | H8: =VLOOKUP($A8,'6'!$B$10:$D$45,3,FALSE) -> 306.7 | I8: =K8/J8 -> 308.8 | J8: =VLOOKUP(A8,Formelhilfe!$A$9:$H$44,8,FALSE) -> 6.0 | K8: =SUM(C8:H8) -> 1,852.5 | L8: =VLOOKUP($A8,'7'!$B$10:$D$45,3,FALSE) -> 309.5 | M8: =VLOOKUP($A8,'8'!$B$10:$D$45,3,FALSE) -> 306.6 | N8: =VLOOKUP($A8,'9'!$B$10:$D$45,3,FALSE) -> 306.9 | O8: =VLOOKUP($A8,'10'!$B$10:$D$45,3,FALSE) -> 307.9 | P8: =VLOOKUP($A8,'11'!$B$10:$D$45,3,FALSE) -> 313.9 | Q8: =VLOOKUP($A8,'12'!$B$10:$D$45,3,FALSE) -> 0.0 | R8: =T8/S8 -> 309.0 | S8: =VLOOKUP(A8,Formelhilfe!$A$9:$O$44,15,FALSE) -> 5.0 | T8: =SUM(L8:Q8) -> 1,544.8 | U8: =W8/V8 -> 308.8 | V8: =VLOOKUP(A8,Formelhilfe!$A$9:$P$44,16,FALSE) -> 11.0 | W8: =SUM(C8:H8,L8:Q8) -> 3,397.3
A9: Lindemann, Kerstin | B9: =VLOOKUP(A9,'Wettkampf 1'!$B$10:$C$45,2,FALSE) -> Esterwegen V | C9: =VLOOKUP(A9,'Wettkampf 1'!$B$10:$D$45,3,FALSE) -> 306.3 | D9: =VLOOKUP($A9,'2'!$B$10:$D$45,3,FALSE) -> 310.6 | E9: =VLOOKUP($A9,'3'!$B$10:$D$45,3,FALSE) -> 310.4 | F9: =VLOOKUP($A9,'4'!$B$10:$D$45,3,FALSE) -> 309.0 | G9: =VLOOKUP($A9,'5'!$B$10:$D$45,3,FALSE) -> 307.9 | H9: =VLOOKUP($A9,'6'!$B$10:$D$45,3,FALSE) -> 306.6 | I9: =K9/J9 -> 308.5 | J9: =VLOOKUP(A9,Formelhilfe!$A$9:$H$44,8,FALSE) -> 6.0 | K9: =SUM(C9:H9) -> 1,850.8 | L9: =VLOOKUP($A9,'7'!$B$10:$D$45,3,FALSE) -> 310.5 | M9: =VLOOKUP($A9,'8'!$B$10:$D$45,3,FALSE) -> 309.3 | N9: =VLOOKUP($A9,'9'!$B$10:$D$45,3,FALSE) -> 307.5 | O9: =VLOOKUP($A9,'10'!$B$10:$D$45,3,FALSE) -> 311.5 | P9: =VLOOKUP($A9,'11'!$B$10:$D$45,3,FALSE) -> 305.7 | Q9: =VLOOKUP($A9,'12'!$B$10:$D$45,3,FALSE) -> 0.0 | R9: =T9/S9 -> 308.9 | S9: =VLOOKUP(A9,Formelhilfe!$A$9:$O$44,15,FALSE) -> 5.0 | T9: =SUM(L9:Q9) -> 1,544.5 | U9: =W9/V9 -> 308.7 | V9: =VLOOKUP(A9,Formelhilfe!$A$9:$P$44,16,FALSE) -> 11.0 | W9: =SUM(C9:H9,L9:Q9) -> 3,395.3
A10: Reinelt, Michaela | B10: =VLOOKUP(A10,'Wettkampf 1'!$B$10:$C$45,2,FALSE) -> Lahn IV | C10: =VLOOKUP(A10,'Wettkampf 1'!$B$10:$D$45,3,FALSE) -> 310.8 | D10: =VLOOKUP($A10,'2'!$B$10:$D$45,3,FALSE) -> 303.6 | E10: =VLOOKUP($A10,'3'!$B$10:$D$45,3,FALSE) -> 307.4 | F10: =VLOOKUP($A10,'4'!$B$10:$D$45,3,FALSE) -> 309.1 | G10: =VLOOKUP($A10,'5'!$B$10:$D$45,3,FALSE) -> 310.8 | H10: =VLOOKUP($A10,'6'!$B$10:$D$45,3,FALSE) -> 310.3 | I10: =K10/J10 -> 308.7 | J10: =VLOOKUP(A10,Formelhilfe!$A$9:$H$44,8,FALSE) -> 6.0 | K10: =SUM(C10:H10) -> 1,852.0 | L10: =VLOOKUP($A10,'7'!$B$10:$D$45,3,FALSE) -> 308.2 | M10: =VLOOKUP($A10,'8'!$B$10:$D$45,3,FALSE) -> 307.7 | N10: =VLOOKUP($A10,'9'!$B$10:$D$45,3,FALSE) -> 310.2 | O10: =VLOOKUP($A10,'10'!$B$10:$D$45,3,FALSE) -> 308.8 | P10: =VLOOKUP($A10,'11'!$B$10:$D$45,3,FALSE) -> 308.2 | Q10: =VLOOKUP($A10,'12'!$B$10:$D$45,3,FALSE) -> 0.0 | R10: =T10/S10 -> 308.6 | S10: =VLOOKUP(A10,Formelhilfe!$A$9:$O$44,15,FALSE) -> 5.0 | T10: =SUM(L10:Q10) -> 1,543.1 | U10: =W10/V10 -> 308.6 | V10: =VLOOKUP(A10,Formelhilfe!$A$9:$P$44,16,FALSE) -> 11.0 | W10: =SUM(C10:H10,L10:Q10) -> 3,395.1
A11: Thyen, Christel | B11: =VLOOKUP(A11,'Wettkampf 1'!$B$10:$C$45,2,FALSE) -> Lahn III | C11: =VLOOKUP(A11,'Wettkampf 1'!$B$10:$D$45,3,FALSE) -> 309.9 | D11: =VLOOKUP($A11,'2'!$B$10:$D$45,3,FALSE) -> 299.0 | E11: =VLOOKUP($A11,'3'!$B$10:$D$45,3,FALSE) -> 307.2 | F11: =VLOOKUP($A11,'4'!$B$10:$D$45,3,FALSE) -> 313.0 | G11: =VLOOKUP($A11,'5'!$B$10:$D$45,3,FALSE) -> 314.8 | H11: =VLOOKUP($A11,'6'!$B$10:$D$45,3,FALSE) -> 308.1 | I11: =K11/J11 -> 308.7 | J11: =VLOOKUP(A11,Formelhilfe!$A$9:$H$44,8,FALSE) -> 6.0 | K11: =SUM(C11:H11) -> 1,852.0 | L11: =VLOOKUP($A11,'7'!$B$10:$D$45,3,FALSE) -> 313.4 | M11: =VLOOKUP($A11,'8'!$B$10:$D$45,3,FALSE) -> 306.1 | N11: =VLOOKUP($A11,'9'!$B$10:$D$45,3,FALSE) -> 305.7 | O11: =VLOOKUP($A11,'10'!$B$10:$D$45,3,FALSE) -> 308.8 | P11: =VLOOKUP($A11,'11'!$B$10:$D$45,3,FALSE) -> 305.8 | Q11: =VLOOKUP($A11,'12'!$B$10:$D$45,3,FALSE) -> 0.0 | R11: =T11/S11 -> 308.0 | S11: =VLOOKUP(A11,Formelhilfe!$A$9:$O$44,15,FALSE) -> 5.0 | T11: =SUM(L11:Q11) -> 1,539.8 | U11: =W11/V11 -> 308.3 | V11: =VLOOKUP(A11,Formelhilfe!$A$9:$P$44,16,FALSE) -> 11.0 | W11: =SUM(C11:H11,L11:Q11) -> 3,391.8
A12: Robben, Anja | B12: =VLOOKUP(A12,'Wettkampf 1'!$B$10:$C$45,2,FALSE) -> Lahn IV | C12: =VLOOKUP(A12,'Wettkampf 1'!$B$10:$D$45,3,FALSE) -> 308.9 | D12: =VLOOKUP($A12,'2'!$B$10:$D$45,3,FALSE) -> 307.7 | E12: =VLOOKUP($A12,'3'!$B$10:$D$45,3,FALSE) -> 306.3 | F12: =VLOOKUP($A12,'4'!$B$10:$D$45,3,FALSE) -> 307.3 | G12: =VLOOKUP($A12,'5'!$B$10:$D$45,3,FALSE) -> 308.0 | H12: =VLOOKUP($A12,'6'!$B$10:$D$45,3,FALSE) -> 309.0 | I12: =K12/J12 -> 307.9 | J12: =VLOOKUP(A12,Formelhilfe!$A$9:$H$44,8,FALSE) -> 6.0 | K12: =SUM(C12:H12) -> 1,847.2 | L12: =VLOOKUP($A12,'7'!$B$10:$D$45,3,FALSE) -> 306.2 | M12: =VLOOKUP($A12,'8'!$B$10:$D$45,3,FALSE) -> 304.4 | N12: =VLOOKUP($A12,'9'!$B$10:$D$45,3,FALSE) -> 307.9 | O12: =VLOOKUP($A12,'10'!$B$10:$D$45,3,FALSE) -> 314.5 | P12: =VLOOKUP($A12,'11'!$B$10:$D$45,3,FALSE) -> 304.8 | Q12: =VLOOKUP($A12,'12'!$B$10:$D$45,3,FALSE) -> 0.0 | R12: =T12/S12 -> 307.6 | S12: =VLOOKUP(A12,Formelhilfe!$A$9:$O$44,15,FALSE) -> 5.0 | T12: =SUM(L12:Q12) -> 1,537.8 | U12: =W12/V12 -> 307.7 | V12: =VLOOKUP(A12,Formelhilfe!$A$9:$P$44,16,FALSE) -> 11.0 | W12: =SUM(C12:H12,L12:Q12) -> 3,385.0
A13: Jansen, Elisabeth | B13: =VLOOKUP(A13,'Wettkampf 1'!$B$10:$C$45,2,FALSE) -> Börger II | C13: =VLOOKUP(A13,'Wettkampf 1'!$B$10:$D$45,3,FALSE) -> 308.4 | D13: =VLOOKUP($A13,'2'!$B$10:$D$45,3,FALSE) -> 303.7 | E13: =VLOOKUP($A13,'3'!$B$10:$D$45,3,FALSE) -> 301.8 | F13: =VLOOKUP($A13,'4'!$B$10:$D$45,3,FALSE) -> 307.5 | G13: =VLOOKUP($A13,'5'!$B$10:$D$45,3,FALSE) -> 306.7 | H13: =VLOOKUP($A13,'6'!$B$10:$D$45,3,FALSE) -> 311.6 | I13: =K13/J13 -> 306.6 | J13: =VLOOKUP(A13,Formelhilfe!$A$9:$H$44,8,FALSE) -> 6.0 | K13: =SUM(C13:H13) -> 1,839.7 | L13: =VLOOKUP($A13,'7'!$B$10:$D$45,3,FALSE) -> 306.6 | M13: =VLOOKUP($A13,'8'!$B$10:$D$45,3,FALSE) -> 308.9 | N13: =VLOOKUP($A13,'9'!$B$10:$D$45,3,FALSE) -> 307.3 | O13: =VLOOKUP($A13,'10'!$B$10:$D$45,3,FALSE) -> 306.6 | P13: =VLOOKUP($A13,'11'!$B$10:$D$45,3,FALSE) -> 306.7 | Q13: =VLOOKUP($A13,'12'!$B$10:$D$45,3,FALSE) -> 0.0 | R13: =T13/S13 -> 307.2 | S13: =VLOOKUP(A13,Formelhilfe!$A$9:$O$44,15,FALSE) -> 5.0 | T13: =SUM(L13:Q13) -> 1,536.1 | U13: =W13/V13 -> 306.9 | V13: =VLOOKUP(A13,Formelhilfe!$A$9:$P$44,16,FALSE) -> 11.0 | W13: =SUM(C13:H13,L13:Q13) -> 3,375.8
A14: Kuchta, Gertrud | B14: =VLOOKUP(A14,'Wettkampf 1'!$B$10:$C$45,2,FALSE) -> Börger III | C14: =VLOOKUP(A14,'Wettkampf 1'!$B$10:$D$45,3,FALSE) -> 311.3 | D14: =VLOOKUP($A14,'2'!$B$10:$D$45,3,FALSE) -> 308.9 | E14: =VLOOKUP($A14,'3'!$B$10:$D$45,3,FALSE) -> 305.0 | F14: =VLOOKUP($A14,'4'!$B$10:$D$45,3,FALSE) -> 299.6 | G14: =VLOOKUP($A14,'5'!$B$10:$D$45,3,FALSE) -> 306.5 | H14: =VLOOKUP($A14,'6'!$B$10:$D$45,3,FALSE) -> 304.3 | I14: =K14/J14 -> 305.9 | J14: =VLOOKUP(A14,Formelhilfe!$A$9:$H$44,8,FALSE) -> 6.0 | K14: =SUM(C14:H14) -> 1,835.6 | L14: =VLOOKUP($A14,'7'!$B$10:$D$45,3,FALSE) -> 306.7 | M14: =VLOOKUP($A14,'8'!$B$10:$D$45,3,FALSE) -> 303.4 | N14: =VLOOKUP($A14,'9'!$B$10:$D$45,3,FALSE) -> 311.1 | O14: =VLOOKUP($A14,'10'!$B$10:$D$45,3,FALSE) -> 307.0 | P14: =VLOOKUP($A14,'11'!$B$10:$D$45,3,FALSE) -> 308.4 | Q14: =VLOOKUP($A14,'12'!$B$10:$D$45,3,FALSE) -> 0.0 | R14: =T14/S14 -> 307.3 | S14: =VLOOKUP(A14,Formelhilfe!$A$9:$O$44,15,FALSE) -> 5.0 | T14: =SUM(L14:Q14) -> 1,536.6 | U14: =W14/V14 -> 306.6 | V14: =VLOOKUP(A14,Formelhilfe!$A$9:$P$44,16,FALSE) -> 11.0 | W14: =SUM(C14:H14,L14:Q14) -> 3,372.2
A15: Wilken, Elena | B15: =VLOOKUP(A15,'Wettkampf 1'!$B$10:$C$45,2,FALSE) -> Lahn III | C15: =VLOOKUP(A15,'Wettkampf 1'!$B$10:$D$45,3,FALSE) -> 310.9 | D15: =VLOOKUP($A15,'2'!$B$10:$D$45,3,FALSE) -> 304.6 | E15: =VLOOKUP($A15,'3'!$B$10:$D$45,3,FALSE) -> 302.2 | F15: =VLOOKUP($A15,'4'!$B$10:$D$45,3,FALSE) -> 309.7 | G15: =VLOOKUP($A15,'5'!$B$10:$D$45,3,FALSE) -> 306.8 | H15: =VLOOKUP($A15,'6'!$B$10:$D$45,3,FALSE) -> 304.1 | I15: =K15/J15 -> 306.4 | J15: =VLOOKUP(A15,Formelhilfe!$A$9:$H$44,8,FALSE) -> 6.0 | K15: =SUM(C15:H15) -> 1,838.3 | L15: =VLOOKUP($A15,'7'!$B$10:$D$45,3,FALSE) -> 311.7 | M15: =VLOOKUP($A15,'8'!$B$10:$D$45,3,FALSE) -> 305.0 | N15: =VLOOKUP($A15,'9'!$B$10:$D$45,3,FALSE) -> 308.5 | O15: =VLOOKUP($A15,'10'!$B$10:$D$45,3,FALSE) -> 301.4 | P15: =VLOOKUP($A15,'11'!$B$10:$D$45,3,FALSE) -> 307.0 | Q15: =VLOOKUP($A15,'12'!$B$10:$D$45,3,FALSE) -> 0.0 | R15: =T15/S15 -> 306.7 | S15: =VLOOKUP(A15,Formelhilfe!$A$9:$O$44,15,FALSE) -> 5.0 | T15: =SUM(L15:Q15) -> 1,533.6 | U15: =W15/V15 -> 306.5 | V15: =VLOOKUP(A15,Formelhilfe!$A$9:$P$44,16,FALSE) -> 11.0 | W15: =SUM(C15:H15,L15:Q15) -> 3,371.9
A16: Pohlgeers, Silvia | B16: =VLOOKUP(A16,'Wettkampf 1'!$B$10:$C$45,2,FALSE) -> Börger II | C16: =VLOOKUP(A16,'Wettkampf 1'!$B$10:$D$45,3,FALSE) -> 302.3 | D16: =VLOOKUP($A16,'2'!$B$10:$D$45,3,FALSE) -> 305.9 | E16: =VLOOKUP($A16,'3'!$B$10:$D$45,3,FALSE) -> 302.6 | F16: =VLOOKUP($A16,'4'!$B$10:$D$45,3,FALSE) -> 310.9 | G16: =VLOOKUP($A16,'5'!$B$10:$D$45,3,FALSE) -> 308.4 | H16: =VLOOKUP($A16,'6'!$B$10:$D$45,3,FALSE) -> 306.4 | I16: =K16/J16 -> 306.1 | J16: =VLOOKUP(A16,Formelhilfe!$A$9:$H$44,8,FALSE) -> 6.0 | K16: =SUM(C16:H16) -> 1,836.5 | L16: =VLOOKUP($A16,'7'!$B$10:$D$45,3,FALSE) -> 308.4 | M16: =VLOOKUP($A16,'8'!$B$10:$D$45,3,FALSE) -> 305.6 | N16: =VLOOKUP($A16,'9'!$B$10:$D$45,3,FALSE) -> 303.3 | O16: =VLOOKUP($A16,'10'!$B$10:$D$45,3,FALSE) -> 306.3 | P16: =VLOOKUP($A16,'11'!$B$10:$D$45,3,FALSE) -> 311.3 | Q16: =VLOOKUP($A16,'12'!$B$10:$D$45,3,FALSE) -> 0.0 | R16: =T16/S16 -> 307.0 | S16: =VLOOKUP(A16,Formelhilfe!$A$9:$O$44,15,FALSE) -> 5.0 | T16: =SUM(L16:Q16) -> 1,534.9 | U16: =W16/V16 -> 306.5 | V16: =VLOOKUP(A16,Formelhilfe!$A$9:$P$44,16,FALSE) -> 11.0 | W16: =SUM(C16:H16,L16:Q16) -> 3,371.4
A17: Hackstette, Lena | B17: =VLOOKUP(A17,'Wettkampf 1'!$B$10:$C$45,2,FALSE) -> Lahn III | C17: =VLOOKUP(A17,'Wettkampf 1'!$B$10:$D$45,3,FALSE) -> 308.9 | D17: =VLOOKUP($A17,'2'!$B$10:$D$45,3,FALSE) -> 303.8 | E17: =VLOOKUP($A17,'3'!$B$10:$D$45,3,FALSE) -> 310.2 | F17: =VLOOKUP($A17,'4'!$B$10:$D$45,3,FALSE) -> 301.9 | G17: =VLOOKUP($A17,'5'!$B$10:$D$45,3,FALSE) -> 307.4 | H17: =VLOOKUP($A17,'6'!$B$10:$D$45,3,FALSE) -> 306.0 | I17: =K17/J17 -> 306.4 | J17: =VLOOKUP(A17,Formelhilfe!$A$9:$H$44,8,FALSE) -> 6.0 | K17: =SUM(C17:H17) -> 1,838.2 | L17: =VLOOKUP($A17,'7'!$B$10:$D$45,3,FALSE) -> 301.9 | M17: =VLOOKUP($A17,'8'!$B$10:$D$45,3,FALSE) -> 309.4 | N17: =VLOOKUP($A17,'9'!$B$10:$D$45,3,FALSE) -> 305.6 | O17: =VLOOKUP($A17,'10'!$B$10:$D$45,3,FALSE) -> 307.8 | P17: =VLOOKUP($A17,'11'!$B$10:$D$45,3,FALSE) -> 304.6 | Q17: =VLOOKUP($A17,'12'!$B$10:$D$45,3,FALSE) -> 0.0 | R17: =T17/S17 -> 305.9 | S17: =VLOOKUP(A17,Formelhilfe!$A$9:$O$44,15,FALSE) -> 5.0 | T17: =SUM(L17:Q17) -> 1,529.3 | U17: =W17/V17 -> 306.1 | V17: =VLOOKUP(A17,Formelhilfe!$A$9:$P$44,16,FALSE) -> 11.0 | W17: =SUM(C17:H17,L17:Q17) -> 3,367.5
A18: Pohlmann, Margret | B18: =VLOOKUP(A18,'Wettkampf 1'!$B$10:$C$45,2,FALSE) -> Neuvrees II | C18: =VLOOKUP(A18,'Wettkampf 1'!$B$10:$D$45,3,FALSE) -> 297.0 | D18: =VLOOKUP($A18,'2'!$B$10:$D$45,3,FALSE) -> 305.5 | E18: =VLOOKUP($A18,'3'!$B$10:$D$45,3,FALSE) -> 303.5 | F18: =VLOOKUP($A18,'4'!$B$10:$D$45,3,FALSE) -> 307.8 | G18: =VLOOKUP($A18,'5'!$B$10:$D$45,3,FALSE) -> 309.1 | H18: =VLOOKUP($A18,'6'!$B$10:$D$45,3,FALSE) -> 303.0 | I18: =K18/J18 -> 304.3 | J18: =VLOOKUP(A18,Formelhilfe!$A$9:$H$44,8,FALSE) -> 6.0 | K18: =SUM(C18:H18) -> 1,825.9 | L18: =VLOOKUP($A18,'7'!$B$10:$D$45,3,FALSE) -> 309.9 | M18: =VLOOKUP($A18,'8'!$B$10:$D$45,3,FALSE) -> 305.1 | N18: =VLOOKUP($A18,'9'!$B$10:$D$45,3,FALSE) -> 308.4 | O18: =VLOOKUP($A18,'10'!$B$10:$D$45,3,FALSE) -> 308.6 | P18: =VLOOKUP($A18,'11'!$B$10:$D$45,3,FALSE) -> 306.4 | Q18: =VLOOKUP($A18,'12'!$B$10:$D$45,3,FALSE) -> 0.0 | R18: =T18/S18 -> 307.7 | S18: =VLOOKUP(A18,Formelhilfe!$A$9:$O$44,15,FALSE) -> 5.0 | T18: =SUM(L18:Q18) -> 1,538.4 | U18: =W18/V18 -> 305.8 | V18: =VLOOKUP(A18,Formelhilfe!$A$9:$P$44,16,FALSE) -> 11.0 | W18: =SUM(C18:H18,L18:Q18) -> 3,364.3
A19: Ostermann, Hildegard | B19: =VLOOKUP(A19,'Wettkampf 1'!$B$10:$C$45,2,FALSE) -> Lahn III | C19: =VLOOKUP(A19,'Wettkampf 1'!$B$10:$D$45,3,FALSE) -> 309.3 | D19: =VLOOKUP($A19,'2'!$B$10:$D$45,3,FALSE) -> 305.1 | E19: =VLOOKUP($A19,'3'!$B$10:$D$45,3,FALSE) -> 307.4 | F19: =VLOOKUP($A19,'4'!$B$10:$D$45,3,FALSE) -> 309.7 | G19: =VLOOKUP($A19,'5'!$B$10:$D$45,3,FALSE) -> 312.1 | H19: =VLOOKUP($A19,'6'!$B$10:$D$45,3,FALSE) -> 306.3 | I19: =K19/J19 -> 308.3 | J19: =VLOOKUP(A19,Formelhilfe!$A$9:$H$44,8,FALSE) -> 6.0 | K19: =SUM(C19:H19) -> 1,849.9 | L19: =VLOOKUP($A19,'7'!$B$10:$D$45,3,FALSE) -> 299.3 | M19: =VLOOKUP($A19,'8'!$B$10:$D$45,3,FALSE) -> 306.1 | N19: =VLOOKUP($A19,'9'!$B$10:$D$45,3,FALSE) -> 301.4 | O19: =VLOOKUP($A19,'10'!$B$10:$D$45,3,FALSE) -> 302.8 | P19: =VLOOKUP($A19,'11'!$B$10:$D$45,3,FALSE) -> 302.7 | Q19: =VLOOKUP($A19,'12'!$B$10:$D$45,3,FALSE) -> 0.0 | R19: =T19/S19 -> 302.5 | S19: =VLOOKUP(A19,Formelhilfe!$A$9:$O$44,15,FALSE) -> 5.0 | T19: =SUM(L19:Q19) -> 1,512.3 | U19: =W19/V19 -> 305.7 | V19: =VLOOKUP(A19,Formelhilfe!$A$9:$P$44,16,FALSE) -> 11.0 | W19: =SUM(C19:H19,L19:Q19) -> 3,362.2
A20: Hanneken, Doris | B20: =VLOOKUP(A20,'Wettkampf 1'!$B$10:$C$45,2,FALSE) -> Lahn IV | C20: =VLOOKUP(A20,'Wettkampf 1'!$B$10:$D$45,3,FALSE) -> 305.2 | D20: =VLOOKUP($A20,'2'!$B$10:$D$45,3,FALSE) -> 304.8 | E20: =VLOOKUP($A20,'3'!$B$10:$D$45,3,FALSE) -> 305.7 | F20: =VLOOKUP($A20,'4'!$B$10:$D$45,3,FALSE) -> 307.0 | G20: =VLOOKUP($A20,'5'!$B$10:$D$45,3,FALSE) -> 307.5 | H20: =VLOOKUP($A20,'6'!$B$10:$D$45,3,FALSE) -> 309.8 | I20: =K20/J20 -> 306.7 | J20: =VLOOKUP(A20,Formelhilfe!$A$9:$H$44,8,FALSE) -> 6.0 | K20: =SUM(C20:H20) -> 1,840.0 | L20: =VLOOKUP($A20,'7'!$B$10:$D$45,3,FALSE) -> 300.0 | M20: =VLOOKUP($A20,'8'!$B$10:$D$45,3,FALSE) -> 302.8 | N20: =VLOOKUP($A20,'9'!$B$10:$D$45,3,FALSE) -> 303.9 | O20: =VLOOKUP($A20,'10'!$B$10:$D$45,3,FALSE) -> 296.9 | P20: =VLOOKUP($A20,'11'!$B$10:$D$45,3,FALSE) -> 303.4 | Q20: =VLOOKUP($A20,'12'!$B$10:$D$45,3,FALSE) -> 0.0 | R20: =T20/S20 -> 301.4 | S20: =VLOOKUP(A20,Formelhilfe!$A$9:$O$44,15,FALSE) -> 5.0 | T20: =SUM(L20:Q20) -> 1,507.0 | U20: =W20/V20 -> 304.3 | V20: =VLOOKUP(A20,Formelhilfe!$A$9:$P$44,16,FALSE) -> 11.0 | W20: =SUM(C20:H20,L20:Q20) -> 3,347.0
A21: Müller, Anita | B21: =VLOOKUP(A21,'Wettkampf 1'!$B$10:$C$45,2,FALSE) -> Lahn III | C21: =VLOOKUP(A21,'Wettkampf 1'!$B$10:$D$45,3,FALSE) -> 306.6 | D21: =VLOOKUP($A21,'2'!$B$10:$D$45,3,FALSE) -> 298.5 | E21: =VLOOKUP($A21,'3'!$B$10:$D$45,3,FALSE) -> 299.5 | F21: =VLOOKUP($A21,'4'!$B$10:$D$45,3,FALSE) -> 305.3 | G21: =VLOOKUP($A21,'5'!$B$10:$D$45,3,FALSE) -> 305.4 | H21: =VLOOKUP($A21,'6'!$B$10:$D$45,3,FALSE) -> 304.0 | I21: =K21/J21 -> 303.2 | J21: =VLOOKUP(A21,Formelhilfe!$A$9:$H$44,8,FALSE) -> 6.0 | K21: =SUM(C21:H21) -> 1,819.3 | L21: =VLOOKUP($A21,'7'!$B$10:$D$45,3,FALSE) -> 301.3 | M21: =VLOOKUP($A21,'8'!$B$10:$D$45,3,FALSE) -> 306.6 | N21: =VLOOKUP($A21,'9'!$B$10:$D$45,3,FALSE) -> 304.0 | O21: =VLOOKUP($A21,'10'!$B$10:$D$45,3,FALSE) -> 305.1 | P21: =VLOOKUP($A21,'11'!$B$10:$D$45,3,FALSE) -> 305.7 | Q21: =VLOOKUP($A21,'12'!$B$10:$D$45,3,FALSE) -> 0.0 | R21: =T21/S21 -> 304.5 | S21: =VLOOKUP(A21,Formelhilfe!$A$9:$O$44,15,FALSE) -> 5.0 | T21: =SUM(L21:Q21) -> 1,522.7 | U21: =W21/V21 -> 303.8 | V21: =VLOOKUP(A21,Formelhilfe!$A$9:$P$44,16,FALSE) -> 11.0 | W21: =SUM(C21:H21,L21:Q21) -> 3,342.0
A22: Büter, Daniela | B22: =VLOOKUP(A22,'Wettkampf 1'!$B$10:$C$45,2,FALSE) -> Esterwegen V | C22: =VLOOKUP(A22,'Wettkampf 1'!$B$10:$D$45,3,FALSE) -> 297.2 | D22: =VLOOKUP($A22,'2'!$B$10:$D$45,3,FALSE) -> 302.8 | E22: =VLOOKUP($A22,'3'!$B$10:$D$45,3,FALSE) -> 303.4 | F22: =VLOOKUP($A22,'4'!$B$10:$D$45,3,FALSE) -> 309.3 | G22: =VLOOKUP($A22,'5'!$B$10:$D$45,3,FALSE) -> 306.5 | H22: =VLOOKUP($A22,'6'!$B$10:$D$45,3,FALSE) -> 300.6 | I22: =K22/J22 -> 303.3 | J22: =VLOOKUP(A22,Formelhilfe!$A$9:$H$44,8,FALSE) -> 6.0 | K22: =SUM(C22:H22) -> 1,819.8 | L22: =VLOOKUP($A22,'7'!$B$10:$D$45,3,FALSE) -> 303.6 | M22: =VLOOKUP($A22,'8'!$B$10:$D$45,3,FALSE) -> 308.5 | N22: =VLOOKUP($A22,'9'!$B$10:$D$45,3,FALSE) -> 295.8 | O22: =VLOOKUP($A22,'10'!$B$10:$D$45,3,FALSE) -> 304.4 | P22: =VLOOKUP($A22,'11'!$B$10:$D$45,3,FALSE) -> 308.2 | Q22: =VLOOKUP($A22,'12'!$B$10:$D$45,3,FALSE) -> 0.0 | R22: =T22/S22 -> 304.1 | S22: =VLOOKUP(A22,Formelhilfe!$A$9:$O$44,15,FALSE) -> 5.0 | T22: =SUM(L22:Q22) -> 1,520.5 | U22: =W22/V22 -> 303.7 | V22: =VLOOKUP(A22,Formelhilfe!$A$9:$P$44,16,FALSE) -> 11.0 | W22: =SUM(C22:H22,L22:Q22) -> 3,340.3
A23: Geers, Christa | B23: =VLOOKUP(A23,'Wettkampf 1'!$B$10:$C$45,2,FALSE) -> Börger III | C23: =VLOOKUP(A23,'Wettkampf 1'!$B$10:$D$45,3,FALSE) -> 304.5 | D23: =VLOOKUP($A23,'2'!$B$10:$D$45,3,FALSE) -> 297.1 | E23: =VLOOKUP($A23,'3'!$B$10:$D$45,3,FALSE) -> 302.1 | F23: =VLOOKUP($A23,'4'!$B$10:$D$45,3,FALSE) -> 311.0 | G23: =VLOOKUP($A23,'5'!$B$10:$D$45,3,FALSE) -> 307.3 | H23: =VLOOKUP($A23,'6'!$B$10:$D$45,3,FALSE) -> 303.7 | I23: =K23/J23 -> 304.3 | J23: =VLOOKUP(A23,Formelhilfe!$A$9:$H$44,8,FALSE) -> 6.0 | K23: =SUM(C23:H23) -> 1,825.7 | L23: =VLOOKUP($A23,'7'!$B$10:$D$45,3,FALSE) -> 306.2 | M23: =VLOOKUP($A23,'8'!$B$10:$D$45,3,FALSE) -> 299.1 | N23: =VLOOKUP($A23,'9'!$B$10:$D$45,3,FALSE) -> 305.2 | O23: =VLOOKUP($A23,'10'!$B$10:$D$45,3,FALSE) -> 296.4 | P23: =VLOOKUP($A23,'11'!$B$10:$D$45,3,FALSE) -> 301.9 | Q23: =VLOOKUP($A23,'12'!$B$10:$D$45,3,FALSE) -> 0.0 | R23: =T23/S23 -> 301.8 | S23: =VLOOKUP(A23,Formelhilfe!$A$9:$O$44,15,FALSE) -> 5.0 | T23: =SUM(L23:Q23) -> 1,508.8 | U23: =W23/V23 -> 303.1 | V23: =VLOOKUP(A23,Formelhilfe!$A$9:$P$44,16,FALSE) -> 11.0 | W23: =SUM(C23:H23,L23:Q23) -> 3,334.5
A24: Jungsthöfel, Sabine | B24: =VLOOKUP(A24,'Wettkampf 1'!$B$10:$C$45,2,FALSE) -> Börger III | C24: =VLOOKUP(A24,'Wettkampf 1'!$B$10:$D$45,3,FALSE) -> 306.7 | D24: =VLOOKUP($A24,'2'!$B$10:$D$45,3,FALSE) -> 306.3 | E24: =VLOOKUP($A24,'3'!$B$10:$D$45,3,FALSE) -> 300.4 | F24: =VLOOKUP($A24,'4'!$B$10:$D$45,3,FALSE) -> 299.9 | G24: =VLOOKUP($A24,'5'!$B$10:$D$45,3,FALSE) -> 304.8 | H24: =VLOOKUP($A24,'6'!$B$10:$D$45,3,FALSE) -> 299.2 | I24: =K24/J24 -> 302.9 | J24: =VLOOKUP(A24,Formelhilfe!$A$9:$H$44,8,FALSE) -> 6.0 | K24: =SUM(C24:H24) -> 1,817.3 | L24: =VLOOKUP($A24,'7'!$B$10:$D$45,3,FALSE) -> 307.4 | M24: =VLOOKUP($A24,'8'!$B$10:$D$45,3,FALSE) -> 300.4 | N24: =VLOOKUP($A24,'9'!$B$10:$D$45,3,FALSE) -> 298.1 | O24: =VLOOKUP($A24,'10'!$B$10:$D$45,3,FALSE) -> 303.7 | P24: =VLOOKUP($A24,'11'!$B$10:$D$45,3,FALSE) -> 296.4 | Q24: =VLOOKUP($A24,'12'!$B$10:$D$45,3,FALSE) -> 0.0 | R24: =T24/S24 -> 301.2 | S24: =VLOOKUP(A24,Formelhilfe!$A$9:$O$44,15,FALSE) -> 5.0 | T24: =SUM(L24:Q24) -> 1,506.0 | U24: =W24/V24 -> 302.1 | V24: =VLOOKUP(A24,Formelhilfe!$A$9:$P$44,16,FALSE) -> 11.0 | W24: =SUM(C24:H24,L24:Q24) -> 3,323.3
A25: Evers, Claudia | B25: =VLOOKUP(A25,'Wettkampf 1'!$B$10:$C$45,2,FALSE) -> Neuvrees II | C25: =VLOOKUP(A25,'Wettkampf 1'!$B$10:$D$45,3,FALSE) -> 300.8 | D25: =VLOOKUP($A25,'2'!$B$10:$D$45,3,FALSE) -> 306.3 | E25: =VLOOKUP($A25,'3'!$B$10:$D$45,3,FALSE) -> 303.3 | F25: =VLOOKUP($A25,'4'!$B$10:$D$45,3,FALSE) -> 299.9 | G25: =VLOOKUP($A25,'5'!$B$10:$D$45,3,FALSE) -> 303.2 | H25: =VLOOKUP($A25,'6'!$B$10:$D$45,3,FALSE) -> 300.9 | I25: =K25/J25 -> 302.4 | J25: =VLOOKUP(A25,Formelhilfe!$A$9:$H$44,8,FALSE) -> 6.0 | K25: =SUM(C25:H25) -> 1,814.4 | L25: =VLOOKUP($A25,'7'!$B$10:$D$45,3,FALSE) -> 301.3 | M25: =VLOOKUP($A25,'8'!$B$10:$D$45,3,FALSE) -> 297.9 | N25: =VLOOKUP($A25,'9'!$B$10:$D$45,3,FALSE) -> 302.6 | O25: =VLOOKUP($A25,'10'!$B$10:$D$45,3,FALSE) -> 301.2 | P25: =VLOOKUP($A25,'11'!$B$10:$D$45,3,FALSE) -> 303.7 | Q25: =VLOOKUP($A25,'12'!$B$10:$D$45,3,FALSE) -> 0.0 | R25: =T25/S25 -> 301.3 | S25: =VLOOKUP(A25,Formelhilfe!$A$9:$O$44,15,FALSE) -> 5.0 | T25: =SUM(L25:Q25) -> 1,506.7 | U25: =W25/V25 -> 301.9 | V25: =VLOOKUP(A25,Formelhilfe!$A$9:$P$44,16,FALSE) -> 11.0 | W25: =SUM(C25:H25,L25:Q25) -> 3,321.1
A26: Oldopp, Maria | B26: =VLOOKUP(A26,'Wettkampf 1'!$B$10:$C$45,2,FALSE) -> Lahn IV | C26: =VLOOKUP(A26,'Wettkampf 1'!$B$10:$D$45,3,FALSE) -> 298.6 | D26: =VLOOKUP($A26,'2'!$B$10:$D$45,3,FALSE) -> 301.0 | E26: =VLOOKUP($A26,'3'!$B$10:$D$45,3,FALSE) -> 301.2 | F26: =VLOOKUP($A26,'4'!$B$10:$D$45,3,FALSE) -> 299.6 | G26: =VLOOKUP($A26,'5'!$B$10:$D$45,3,FALSE) -> 297.2 | H26: =VLOOKUP($A26,'6'!$B$10:$D$45,3,FALSE) -> 299.0 | I26: =K26/J26 -> 299.4 | J26: =VLOOKUP(A26,Formelhilfe!$A$9:$H$44,8,FALSE) -> 6.0 | K26: =SUM(C26:H26) -> 1,796.6 | L26: =VLOOKUP($A26,'7'!$B$10:$D$45,3,FALSE) -> 300.2 | M26: =VLOOKUP($A26,'8'!$B$10:$D$45,3,FALSE) -> 299.1 | N26: =VLOOKUP($A26,'9'!$B$10:$D$45,3,FALSE) -> 302.0 | O26: =VLOOKUP($A26,'10'!$B$10:$D$45,3,FALSE) -> 300.7 | P26: =VLOOKUP($A26,'11'!$B$10:$D$45,3,FALSE) -> 298.2 | Q26: =VLOOKUP($A26,'12'!$B$10:$D$45,3,FALSE) -> 0.0 | R26: =T26/S26 -> 300.0 | S26: =VLOOKUP(A26,Formelhilfe!$A$9:$O$44,15,FALSE) -> 5.0 | T26: =SUM(L26:Q26) -> 1,500.2 | U26: =W26/V26 -> 299.7 | V26: =VLOOKUP(A26,Formelhilfe!$A$9:$P$44,16,FALSE) -> 11.0 | W26: =SUM(C26:H26,L26:Q26) -> 3,296.8
A27: Krömer, Monika | B27: =VLOOKUP(A27,'Wettkampf 1'!$B$10:$C$45,2,FALSE) -> Börger II | C27: =VLOOKUP(A27,'Wettkampf 1'!$B$10:$D$45,3,FALSE) -> 302.4 | D27: =VLOOKUP($A27,'2'!$B$10:$D$45,3,FALSE) -> 302.2 | E27: =VLOOKUP($A27,'3'!$B$10:$D$45,3,FALSE) -> 301.8 | F27: =VLOOKUP($A27,'4'!$B$10:$D$45,3,FALSE) -> 297.8 | G27: =VLOOKUP($A27,'5'!$B$10:$D$45,3,FALSE) -> 294.7 | H27: =VLOOKUP($A27,'6'!$B$10:$D$45,3,FALSE) -> 301.0 | I27: =K27/J27 -> 300.0 | J27: =VLOOKUP(A27,Formelhilfe!$A$9:$H$44,8,FALSE) -> 6.0 | K27: =SUM(C27:H27) -> 1,799.9 | L27: =VLOOKUP($A27,'7'!$B$10:$D$45,3,FALSE) -> 299.7 | M27: =VLOOKUP($A27,'8'!$B$10:$D$45,3,FALSE) -> 292.8 | N27: =VLOOKUP($A27,'9'!$B$10:$D$45,3,FALSE) -> 290.4 | O27: =VLOOKUP($A27,'10'!$B$10:$D$45,3,FALSE) -> 292.8 | P27: =VLOOKUP($A27,'11'!$B$10:$D$45,3,FALSE) -> 298.7 | Q27: =VLOOKUP($A27,'12'!$B$10:$D$45,3,FALSE) -> 0.0 | R27: =T27/S27 -> 294.9 | S27: =VLOOKUP(A27,Formelhilfe!$A$9:$O$44,15,FALSE) -> 5.0 | T27: =SUM(L27:Q27) -> 1,474.4 | U27: =W27/V27 -> 297.7 | V27: =VLOOKUP(A27,Formelhilfe!$A$9:$P$44,16,FALSE) -> 11.0 | W27: =SUM(C27:H27,L27:Q27) -> 3,274.3
A28: Junge, Silvia | B28: =VLOOKUP(A28,'Wettkampf 1'!$B$10:$C$45,2,FALSE) -> Neuvrees II | C28: =VLOOKUP(A28,'Wettkampf 1'!$B$10:$D$45,3,FALSE) -> 290.6 | D28: =VLOOKUP($A28,'2'!$B$10:$D$45,3,FALSE) -> 302.2 | E28: =VLOOKUP($A28,'3'!$B$10:$D$45,3,FALSE) -> 295.7 | F28: =VLOOKUP($A28,'4'!$B$10:$D$45,3,FALSE) -> 279.3 | G28: =VLOOKUP($A28,'5'!$B$10:$D$45,3,FALSE) -> 295.1 | H28: =VLOOKUP($A28,'6'!$B$10:$D$45,3,FALSE) -> 298.9 | I28: =K28/J28 -> 293.6 | J28: =VLOOKUP(A28,Formelhilfe!$A$9:$H$44,8,FALSE) -> 6.0 | K28: =SUM(C28:H28) -> 1,761.8 | L28: =VLOOKUP($A28,'7'!$B$10:$D$45,3,FALSE) -> 292.8 | M28: =VLOOKUP($A28,'8'!$B$10:$D$45,3,FALSE) -> 287.4 | N28: =VLOOKUP($A28,'9'!$B$10:$D$45,3,FALSE) -> 305.4 | O28: =VLOOKUP($A28,'10'!$B$10:$D$45,3,FALSE) -> 287.2 | P28: =VLOOKUP($A28,'11'!$B$10:$D$45,3,FALSE) -> 292.0 | Q28: =VLOOKUP($A28,'12'!$B$10:$D$45,3,FALSE) -> 0.0 | R28: =T28/S28 -> 293.0 | S28: =VLOOKUP(A28,Formelhilfe!$A$9:$O$44,15,FALSE) -> 5.0 | T28: =SUM(L28:Q28) -> 1,464.8 | U28: =W28/V28 -> 293.3 | V28: =VLOOKUP(A28,Formelhilfe!$A$9:$P$44,16,FALSE) -> 11.0 | W28: =SUM(C28:H28,L28:Q28) -> 3,226.6
A29: Lindemann, Stefanie | B29: =VLOOKUP(A29,'Wettkampf 1'!$B$10:$C$45,2,FALSE) -> Esterwegen V | C29: =VLOOKUP(A29,'Wettkampf 1'!$B$10:$D$45,3,FALSE) -> 306.1 | D29: =VLOOKUP($A29,'2'!$B$10:$D$45,3,FALSE) -> 305.3 | E29: =VLOOKUP($A29,'3'!$B$10:$D$45,3,FALSE) -> 308.4 | F29: =VLOOKUP($A29,'4'!$B$10:$D$45,3,FALSE) -> 298.4 | G29: =VLOOKUP($A29,'5'!$B$10:$D$45,3,FALSE) -> 303.1 | H29: =VLOOKUP($A29,'6'!$B$10:$D$45,3,FALSE) -> 306.8 | I29: =K29/J29 -> 304.7 | J29: =VLOOKUP(A29,Formelhilfe!$A$9:$H$44,8,FALSE) -> 6.0 | K29: =SUM(C29:H29) -> 1,828.1 | L29: =VLOOKUP($A29,'7'!$B$10:$D$45,3,FALSE) -> 306.6 | M29: =VLOOKUP($A29,'8'!$B$10:$D$45,3,FALSE) -> 310.6 | N29: =VLOOKUP($A29,'9'!$B$10:$D$45,3,FALSE) -> 307.7 | O29: =VLOOKUP($A29,'10'!$B$10:$D$45,3,FALSE) -> 300.9 | P29: =VLOOKUP($A29,'11'!$B$10:$D$45,3,FALSE) -> 0.0 | Q29: =VLOOKUP($A29,'12'!$B$10:$D$45,3,FALSE) -> 0.0 | R29: =T29/S29 -> 306.5 | S29: =VLOOKUP(A29,Formelhilfe!$A$9:$O$44,15,FALSE) -> 4.0 | T29: =SUM(L29:Q29) -> 1,225.8 | U29: =W29/V29 -> 305.4 | V29: =VLOOKUP(A29,Formelhilfe!$A$9:$P$44,16,FALSE) -> 10.0 | W29: =SUM(C29:H29,L29:Q29) -> 3,053.9
A30: Schwarte, Gundula | B30: =VLOOKUP(A30,'Wettkampf 1'!$B$10:$C$45,2,FALSE) -> Börger III | C30: =VLOOKUP(A30,'Wettkampf 1'!$B$10:$D$45,3,FALSE) -> 306.8 | D30: =VLOOKUP($A30,'2'!$B$10:$D$45,3,FALSE) -> 304.3 | E30: =VLOOKUP($A30,'3'!$B$10:$D$45,3,FALSE) -> 299.7 | F30: =VLOOKUP($A30,'4'!$B$10:$D$45,3,FALSE) -> 0.0 | G30: =VLOOKUP($A30,'5'!$B$10:$D$45,3,FALSE) -> 300.8 | H30: =VLOOKUP($A30,'6'!$B$10:$D$45,3,FALSE) -> 302.4 | I30: =K30/J30 -> 302.8 | J30: =VLOOKUP(A30,Formelhilfe!$A$9:$H$44,8,FALSE) -> 5.0 | K30: =SUM(C30:H30) -> 1,514.0 | L30: =VLOOKUP($A30,'7'!$B$10:$D$45,3,FALSE) -> 300.6 | M30: =VLOOKUP($A30,'8'!$B$10:$D$45,3,FALSE) -> 306.5 | N30: =VLOOKUP($A30,'9'!$B$10:$D$45,3,FALSE) -> 301.9 | O30: =VLOOKUP($A30,'10'!$B$10:$D$45,3,FALSE) -> 299.4 | P30: =VLOOKUP($A30,'11'!$B$10:$D$45,3,FALSE) -> 303.8 | Q30: =VLOOKUP($A30,'12'!$B$10:$D$45,3,FALSE) -> 0.0 | R30: =T30/S30 -> 302.4 | S30: =VLOOKUP(A30,Formelhilfe!$A$9:$O$44,15,FALSE) -> 5.0 | T30: =SUM(L30:Q30) -> 1,512.2 | U30: =W30/V30 -> 302.6 | V30: =VLOOKUP(A30,Formelhilfe!$A$9:$P$44,16,FALSE) -> 10.0 | W30: =SUM(C30:H30,L30:Q30) -> 3,026.2
A31: Remmers, Tanja | B31: =VLOOKUP(A31,'Wettkampf 1'!$B$10:$C$45,2,FALSE) -> Börger III | C31: =VLOOKUP(A31,'Wettkampf 1'!$B$10:$D$45,3,FALSE) -> 292.9 | D31: =VLOOKUP($A31,'2'!$B$10:$D$45,3,FALSE) -> 294.5 | E31: =VLOOKUP($A31,'3'!$B$10:$D$45,3,FALSE) -> 275.8 | F31: =VLOOKUP($A31,'4'!$B$10:$D$45,3,FALSE) -> 290.6 | G31: =VLOOKUP($A31,'5'!$B$10:$D$45,3,FALSE) -> 289.2 | H31: =VLOOKUP($A31,'6'!$B$10:$D$45,3,FALSE) -> 0.0 | I31: =K31/J31 -> 288.6 | J31: =VLOOKUP(A31,Formelhilfe!$A$9:$H$44,8,FALSE) -> 5.0 | K31: =SUM(C31:H31) -> 1,443.0 | L31: =VLOOKUP($A31,'7'!$B$10:$D$45,3,FALSE) -> 290.7 | M31: =VLOOKUP($A31,'8'!$B$10:$D$45,3,FALSE) -> 286.0 | N31: =VLOOKUP($A31,'9'!$B$10:$D$45,3,FALSE) -> 301.8 | O31: =VLOOKUP($A31,'10'!$B$10:$D$45,3,FALSE) -> 297.0 | P31: =VLOOKUP($A31,'11'!$B$10:$D$45,3,FALSE) -> 297.2 | Q31: =VLOOKUP($A31,'12'!$B$10:$D$45,3,FALSE) -> 0.0 | R31: =T31/S31 -> 294.5 | S31: =VLOOKUP(A31,Formelhilfe!$A$9:$O$44,15,FALSE) -> 5.0 | T31: =SUM(L31:Q31) -> 1,472.7 | U31: =W31/V31 -> 291.6 | V31: =VLOOKUP(A31,Formelhilfe!$A$9:$P$44,16,FALSE) -> 10.0 | W31: =SUM(C31:H31,L31:Q31) -> 2,915.7
A32: Preut, Susanne | B32: =VLOOKUP(A32,'Wettkampf 1'!$B$10:$C$45,2,FALSE) -> Neuvrees II | C32: =VLOOKUP(A32,'Wettkampf 1'!$B$10:$D$45,3,FALSE) -> 299.3 | D32: =VLOOKUP($A32,'2'!$B$10:$D$45,3,FALSE) -> 304.9 | E32: =VLOOKUP($A32,'3'!$B$10:$D$45,3,FALSE) -> 304.5 | F32: =VLOOKUP($A32,'4'!$B$10:$D$45,3,FALSE) -> 308.4 | G32: =VLOOKUP($A32,'5'!$B$10:$D$45,3,FALSE) -> 0.0 | H32: =VLOOKUP($A32,'6'!$B$10:$D$45,3,FALSE) -> 300.4 | I32: =K32/J32 -> 303.5 | J32: =VLOOKUP(A32,Formelhilfe!$A$9:$H$44,8,FALSE) -> 5.0 | K32: =SUM(C32:H32) -> 1,517.5 | L32: =VLOOKUP($A32,'7'!$B$10:$D$45,3,FALSE) -> 303.2 | M32: =VLOOKUP($A32,'8'!$B$10:$D$45,3,FALSE) -> 304.6 | N32: =VLOOKUP($A32,'9'!$B$10:$D$45,3,FALSE) -> 0.0 | O32: =VLOOKUP($A32,'10'!$B$10:$D$45,3,FALSE) -> 307.9 | P32: =VLOOKUP($A32,'11'!$B$10:$D$45,3,FALSE) -> 297.8 | Q32: =VLOOKUP($A32,'12'!$B$10:$D$45,3,FALSE) -> 0.0 | R32: =T32/S32 -> 303.4 | S32: =VLOOKUP(A32,Formelhilfe!$A$9:$O$44,15,FALSE) -> 4.0 | T32: =SUM(L32:Q32) -> 1,213.5 | U32: =W32/V32 -> 303.4 | V32: =VLOOKUP(A32,Formelhilfe!$A$9:$P$44,16,FALSE) -> 9.0 | W32: =SUM(C32:H32,L32:Q32) -> 2,731.0
A33: Eilermann, Saskia | B33: =VLOOKUP(A33,'Wettkampf 1'!$B$10:$C$45,2,FALSE) -> Neuvrees II | C33: =VLOOKUP(A33,'Wettkampf 1'!$B$10:$D$45,3,FALSE) -> 309.2 | D33: =VLOOKUP($A33,'2'!$B$10:$D$45,3,FALSE) -> 310.2 | E33: =VLOOKUP($A33,'3'!$B$10:$D$45,3,FALSE) -> 309.7 | F33: =VLOOKUP($A33,'4'!$B$10:$D$45,3,FALSE) -> 0.0 | G33: =VLOOKUP($A33,'5'!$B$10:$D$45,3,FALSE) -> 0.0 | H33: =VLOOKUP($A33,'6'!$B$10:$D$45,3,FALSE) -> 311.2 | I33: =K33/J33 -> 310.1 | J33: =VLOOKUP(A33,Formelhilfe!$A$9:$H$44,8,FALSE) -> 4.0 | K33: =SUM(C33:H33) -> 1,240.3 | L33: =VLOOKUP($A33,'7'!$B$10:$D$45,3,FALSE) -> 0.0 | M33: =VLOOKUP($A33,'8'!$B$10:$D$45,3,FALSE) -> 0.0 | N33: =VLOOKUP($A33,'9'!$B$10:$D$45,3,FALSE) -> 310.3 | O33: =VLOOKUP($A33,'10'!$B$10:$D$45,3,FALSE) -> 0.0 | P33: =VLOOKUP($A33,'11'!$B$10:$D$45,3,FALSE) -> 312.5 | Q33: =VLOOKUP($A33,'12'!$B$10:$D$45,3,FALSE) -> 0.0 | R33: =T33/S33 -> 311.4 | S33: =VLOOKUP(A33,Formelhilfe!$A$9:$O$44,15,FALSE) -> 2.0 | T33: =SUM(L33:Q33) -> 622.8 | U33: =W33/V33 -> 310.5 | V33: =VLOOKUP(A33,Formelhilfe!$A$9:$P$44,16,FALSE) -> 6.0 | W33: =SUM(C33:H33,L33:Q33) -> 1,863.1
A34: Schulte, Christina | B34: =VLOOKUP(A34,'Wettkampf 1'!$B$10:$C$45,2,FALSE) -> Neuvrees II | C34: =VLOOKUP(A34,'Wettkampf 1'!$B$10:$D$45,3,FALSE) -> 310.4 | D34: =VLOOKUP($A34,'2'!$B$10:$D$45,3,FALSE) -> 305.7 | E34: =VLOOKUP($A34,'3'!$B$10:$D$45,3,FALSE) -> 304.3 | F34: =VLOOKUP($A34,'4'!$B$10:$D$45,3,FALSE) -> 308.4 | G34: =VLOOKUP($A34,'5'!$B$10:$D$45,3,FALSE) -> 305.8 | H34: =VLOOKUP($A34,'6'!$B$10:$D$45,3,FALSE) -> 0.0 | I34: =K34/J34 -> 306.9 | J34: =VLOOKUP(A34,Formelhilfe!$A$9:$H$44,8,FALSE) -> 5.0 | K34: =SUM(C34:H34) -> 1,534.6 | L34: =VLOOKUP($A34,'7'!$B$10:$D$45,3,FALSE) -> 303.1 | M34: =VLOOKUP($A34,'8'!$B$10:$D$45,3,FALSE) -> 0.0 | N34: =VLOOKUP($A34,'9'!$B$10:$D$45,3,FALSE) -> 0.0 | O34: =VLOOKUP($A34,'10'!$B$10:$D$45,3,FALSE) -> 0.0 | P34: =VLOOKUP($A34,'11'!$B$10:$D$45,3,FALSE) -> 0.0 | Q34: =VLOOKUP($A34,'12'!$B$10:$D$45,3,FALSE) -> 0.0 | R34: =T34/S34 -> 303.1 | S34: =VLOOKUP(A34,Formelhilfe!$A$9:$O$44,15,FALSE) -> 1.0 | T34: =SUM(L34:Q34) -> 303.1 | U34: =W34/V34 -> 306.3 | V34: =VLOOKUP(A34,Formelhilfe!$A$9:$P$44,16,FALSE) -> 6.0 | W34: =SUM(C34:H34,L34:Q34) -> 1,837.7
A35: Kossenjans, Annegret | B35: =VLOOKUP(A35,'Wettkampf 1'!$B$10:$C$45,2,FALSE) -> Börger II | C35: =VLOOKUP(A35,'Wettkampf 1'!$B$10:$D$45,3,FALSE) -> 310.2 | D35: =VLOOKUP($A35,'2'!$B$10:$D$45,3,FALSE) -> 304.8 | E35: =VLOOKUP($A35,'3'!$B$10:$D$45,3,FALSE) -> 298.6 | F35: =VLOOKUP($A35,'4'!$B$10:$D$45,3,FALSE) -> 307.4 | G35: =VLOOKUP($A35,'5'!$B$10:$D$45,3,FALSE) -> 307.8 | H35: =VLOOKUP($A35,'6'!$B$10:$D$45,3,FALSE) -> 301.9 | I35: =K35/J35 -> 305.1 | J35: =VLOOKUP(A35,Formelhilfe!$A$9:$H$44,8,FALSE) -> 6.0 | K35: =SUM(C35:H35) -> 1,830.7 | L35: =VLOOKUP($A35,'7'!$B$10:$D$45,3,FALSE) -> 0.0 | M35: =VLOOKUP($A35,'8'!$B$10:$D$45,3,FALSE) -> 0.0 | N35: =VLOOKUP($A35,'9'!$B$10:$D$45,3,FALSE) -> 0.0 | O35: =VLOOKUP($A35,'10'!$B$10:$D$45,3,FALSE) -> 0.0 | P35: =VLOOKUP($A35,'11'!$B$10:$D$45,3,FALSE) -> 0.0 | Q35: =VLOOKUP($A35,'12'!$B$10:$D$45,3,FALSE) -> 0.0 | R35: =T35/S35 ->  | S35: =VLOOKUP(A35,Formelhilfe!$A$9:$O$44,15,FALSE) -> 0.0 | T35: =SUM(L35:Q35) -> 0.0 | U35: =W35/V35 -> 305.1 | V35: =VLOOKUP(A35,Formelhilfe!$A$9:$P$44,16,FALSE) -> 6.0 | W35: =SUM(C35:H35,L35:Q35) -> 1,830.7
A36: Lindemann, Annemarie | B36: =VLOOKUP(A36,'Wettkampf 1'!$B$10:$C$45,2,FALSE) -> Esterwegen V | C36: =VLOOKUP(A36,'Wettkampf 1'!$B$10:$D$45,3,FALSE) -> 297.9 | D36: =VLOOKUP($A36,'2'!$B$10:$D$45,3,FALSE) -> 302.8 | E36: =VLOOKUP($A36,'3'!$B$10:$D$45,3,FALSE) -> 302.7 | F36: =VLOOKUP($A36,'4'!$B$10:$D$45,3,FALSE) -> 305.5 | G36: =VLOOKUP($A36,'5'!$B$10:$D$45,3,FALSE) -> 306.3 | H36: =VLOOKUP($A36,'6'!$B$10:$D$45,3,FALSE) -> 0.0 | I36: =K36/J36 -> 303.0 | J36: =VLOOKUP(A36,Formelhilfe!$A$9:$H$44,8,FALSE) -> 5.0 | K36: =SUM(C36:H36) -> 1,515.2 | L36: =VLOOKUP($A36,'7'!$B$10:$D$45,3,FALSE) -> 0.0 | M36: =VLOOKUP($A36,'8'!$B$10:$D$45,3,FALSE) -> 0.0 | N36: =VLOOKUP($A36,'9'!$B$10:$D$45,3,FALSE) -> 0.0 | O36: =VLOOKUP($A36,'10'!$B$10:$D$45,3,FALSE) -> 0.0 | P36: =VLOOKUP($A36,'11'!$B$10:$D$45,3,FALSE) -> 0.0 | Q36: =VLOOKUP($A36,'12'!$B$10:$D$45,3,FALSE) -> 0.0 | R36: =T36/S36 ->  | S36: =VLOOKUP(A36,Formelhilfe!$A$9:$O$44,15,FALSE) -> 0.0 | T36: =SUM(L36:Q36) -> 0.0 | U36: =W36/V36 -> 303.0 | V36: =VLOOKUP(A36,Formelhilfe!$A$9:$P$44,16,FALSE) -> 5.0 | W36: =SUM(C36:H36,L36:Q36) -> 1,515.2
A37: Schwarte, Annette | B37: =VLOOKUP(A37,'Wettkampf 1'!$B$10:$C$45,2,FALSE) -> Börger II | C37: =VLOOKUP(A37,'Wettkampf 1'!$B$10:$D$45,3,FALSE) -> 0.0 | D37: =VLOOKUP($A37,'2'!$B$10:$D$45,3,FALSE) -> 0.0 | E37: =VLOOKUP($A37,'3'!$B$10:$D$45,3,FALSE) -> 0.0 | F37: =VLOOKUP($A37,'4'!$B$10:$D$45,3,FALSE) -> 0.0 | G37: =VLOOKUP($A37,'5'!$B$10:$D$45,3,FALSE) -> 0.0 | H37: =VLOOKUP($A37,'6'!$B$10:$D$45,3,FALSE) -> 0.0 | I37: =K37/J37 ->  | J37: =VLOOKUP(A37,Formelhilfe!$A$9:$H$44,8,FALSE) -> 0.0 | K37: =SUM(C37:H37) -> 0.0 | L37: =VLOOKUP($A37,'7'!$B$10:$D$45,3,FALSE) -> 0.0 | M37: =VLOOKUP($A37,'8'!$B$10:$D$45,3,FALSE) -> 0.0 | N37: =VLOOKUP($A37,'9'!$B$10:$D$45,3,FALSE) -> 0.0 | O37: =VLOOKUP($A37,'10'!$B$10:$D$45,3,FALSE) -> 0.0 | P37: =VLOOKUP($A37,'11'!$B$10:$D$45,3,FALSE) -> 0.0 | Q37: =VLOOKUP($A37,'12'!$B$10:$D$45,3,FALSE) -> 0.0 | R37: =T37/S37 ->  | S37: =VLOOKUP(A37,Formelhilfe!$A$9:$O$44,15,FALSE) -> 0.0 | T37: =SUM(L37:Q37) -> 0.0 | U37: =W37/V37 ->  | V37: =VLOOKUP(A37,Formelhilfe!$A$9:$P$44,16,FALSE) -> 0.0 | W37: =SUM(C37:H37,L37:Q37) -> 0.0

Sheet Formelhilfe (hidden)
B1: 1 | C1: 2 | D1: 3 | E1: 4 | F1: 5 | G1: 6 | H1: Hinrunde Schnitt | I1: 7 | J1: 8 | K1: 9 | L1: 10 | M1: 11 | N1: 12 | O1: Rückrunde Schnitt | P1: Gesamt Schnitt | S1: Kreisoberliga | T1: Schützen | U1: 2019/2020
A2: ='Wettkampf 1'!B2 -> Börger II | B2: =IF('Wettkampf 1'!D2>0,1,0) -> 1 | C2: =IF('2'!$D2>0,1,0) -> 1 | D2: =IF('3'!$D2>0,1,0) -> 1 | E2: =IF('4'!$D2>0,1,0) -> 1 | F2: =IF('5'!$D2>0,1,0) -> 1 | G2: =IF('6'!$D2>0,1,0) -> 1 | H2: =B2+C2+D2+E2+F2+G2 -> 6 | I2: =IF('7'!$D2>0,1,0) -> 1 | J2: =IF('8'!$D2>0,1,0) -> 1 | K2: =IF('9'!$D2>0,1,0) -> 1 | L2: =IF('10'!$D2>0,1,0) -> 1 | M2: =IF('11'!$D2>0,1,0) -> 1 | N2: =IF('12'!$D2>0,1,0) -> 0 | O2: =I2+J2+K2+L2+M2+N2 -> 5 | P2: =O2+H2 -> 11 | S2: 1. Kreisliga | T2: Damen | U2: 2020/2021
A3: ='Wettkampf 1'!B3 -> Esterwegen V | B3: =IF('Wettkampf 1'!D3>0,1,0) -> 1 | C3: =IF('2'!$D3>0,1,0) -> 1 | D3: =IF('3'!$D3>0,1,0) -> 1 | E3: =IF('4'!$D3>0,1,0) -> 1 | F3: =IF('5'!$D3>0,1,0) -> 1 | G3: =IF('6'!$D3>0,1,0) -> 1 | H3: 6 | I3: =IF('7'!$D3>0,1,0) -> 1 | J3: =IF('8'!$D3>0,1,0) -> 1 | K3: =IF('9'!$D3>0,1,0) -> 1 | L3: =IF('10'!$D3>0,1,0) -> 1 | M3: =IF('11'!$D3>0,1,0) -> 1 | N3: =IF('12'!$D3>0,1,0) -> 0 | O3: 5 | P3: 11 | S3: 2. Kreisliga | T3: Altersgruppe | U3: 2021/2022
A4: ='Wettkampf 1'!B4 -> Neuvrees II | B4: =IF('Wettkampf 1'!D4>0,1,0) -> 1 | C4: =IF('2'!$D4>0,1,0) -> 1 | D4: =IF('3'!$D4>0,1,0) -> 1 | E4: =IF('4'!$D4>0,1,0) -> 1 | F4: =IF('5'!$D4>0,1,0) -> 1 | G4: =IF('6'!$D4>0,1,0) -> 1 | H4: 6 | I4: =IF('7'!$D4>0,1,0) -> 1 | J4: =IF('8'!$D4>0,1,0) -> 1 | K4: =IF('9'!$D4>0,1,0) -> 1 | L4: =IF('10'!$D4>0,1,0) -> 1 | M4: =IF('11'!$D4>0,1,0) -> 1 | N4: =IF('12'!$D4>0,1,0) -> 0 | O4: 5 | P4: 11 | S4: 1. Kreisklasse | T4: Senioren | U4: 2022/2023
A5: ='Wettkampf 1'!B5 -> Lahn IV | B5: =IF('Wettkampf 1'!D5>0,1,0) -> 1 | C5: =IF('2'!$D5>0,1,0) -> 1 | D5: =IF('3'!$D5>0,1,0) -> 1 | E5: =IF('4'!$D5>0,1,0) -> 1 | F5: =IF('5'!$D5>0,1,0) -> 1 | G5: =IF('6'!$D5>0,1,0) -> 1 | H5: 6 | I5: =IF('7'!$D5>0,1,0) -> 1 | J5: =IF('8'!$D5>0,1,0) -> 1 | K5: =IF('9'!$D5>0,1,0) -> 1 | L5: =IF('10'!$D5>0,1,0) -> 1 | M5: =IF('11'!$D5>0,1,0) -> 1 | N5: =IF('12'!$D5>0,1,0) -> 0 | O5: 5 | P5: 11 | S5: 2. Kreisklasse | U5: 2023/2024
A6: ='Wettkampf 1'!B6 -> Börger III | B6: =IF('Wettkampf 1'!D6>0,1,0) -> 1 | C6: =IF('2'!$D6>0,1,0) -> 1 | D6: =IF('3'!$D6>0,1,0) -> 1 | E6: =IF('4'!$D6>0,1,0) -> 1 | F6: =IF('5'!$D6>0,1,0) -> 1 | G6: =IF('6'!$D6>0,1,0) -> 1 | H6: 6 | I6: =IF('7'!$D6>0,1,0) -> 1 | J6: =IF('8'!$D6>0,1,0) -> 1 | K6: =IF('9'!$D6>0,1,0) -> 1 | L6: =IF('10'!$D6>0,1,0) -> 1 | M6: =IF('11'!$D6>0,1,0) -> 1 | N6: =IF('12'!$D6>0,1,0) -> 0 | O6: 5 | P6: 11 | S6: 3. Kreisklasse
A7: ='Wettkampf 1'!B7 -> Lahn III | B7: =IF('Wettkampf 1'!D7>0,1,0) -> 1 | C7: =IF('2'!$D7>0,1,0) -> 1 | D7: =IF('3'!$D7>0,1,0) -> 1 | E7: =IF('4'!$D7>0,1,0) -> 1 | F7: =IF('5'!$D7>0,1,0) -> 1 | G7: =IF('6'!$D7>0,1,0) -> 1 | H7: 6 | I7: =IF('7'!$D7>0,1,0) -> 1 | J7: =IF('8'!$D7>0,1,0) -> 1 | K7: =IF('9'!$D7>0,1,0) -> 1 | L7: =IF('10'!$D7>0,1,0) -> 1 | M7: =IF('11'!$D7>0,1,0) -> 1 | N7: =IF('12'!$D7>0,1,0) -> 0 | O7: 5 | P7: 11 | S7: 4. Kreisklasse
S8: 5. Kreisklasse
A9: Kossenjans, Annegret | B9: =IF('Wettkampf 1'!D10>0,1,0) -> 1 | C9: =IF('2'!$D10>0,1,0) -> 1 | D9: =IF('3'!$D10>0,1,0) -> 1 | E9: =IF('4'!$D10>0,1,0) -> 1 | F9: =IF('5'!$D10>0,1,0) -> 1 | G9: =IF('6'!$D10>0,1,0) -> 1 | H9: =B9+C9+D9+E9+F9+G9 -> 6 | I9: =IF('7'!$D10>0,1,0) -> 0 | J9: =IF('8'!$D10>0,1,0) -> 0 | K9: =IF('9'!$D10>0,1,0) -> 0 | L9: =IF('10'!$D10>0,1,0) -> 0 | M9: =IF('11'!$D10>0,1,0) -> 0 | N9: =IF('12'!$D10>0,1,0) -> 0 | O9: =I9+J9+K9+L9+M9+N9 -> 0 | P9: =O9+H9 -> 6 | S9: 6. Kreisklasse
A10: Jansen, Elisabeth | B10: =IF('Wettkampf 1'!D11>0,1,0) -> 1 | C10: =IF('2'!$D11>0,1,0) -> 1 | D10: =IF('3'!$D11>0,1,0) -> 1 | E10: =IF('4'!$D11>0,1,0) -> 1 | F10: =IF('5'!$D11>0,1,0) -> 1 | G10: =IF('6'!$D11>0,1,0) -> 1 | H10: =B10+C10+D10+E10+F10+G10 -> 6 | I10: =IF('7'!$D11>0,1,0) -> 1 | J10: =IF('8'!$D11>0,1,0) -> 1 | K10: =IF('9'!$D11>0,1,0) -> 1 | L10: =IF('10'!$D11>0,1,0) -> 1 | M10: =IF('11'!$D11>0,1,0) -> 1 | N10: =IF('12'!$D11>0,1,0) -> 0 | O10: =I10+J10+K10+L10+M10+N10 -> 5 | P10: =O10+H10 -> 11 | S10: 7. Kreisklasse
A11: Krömer, Monika | B11: =IF('Wettkampf 1'!D12>0,1,0) -> 1 | C11: =IF('2'!$D12>0,1,0) -> 1 | D11: =IF('3'!$D12>0,1,0) -> 1 | E11: =IF('4'!$D12>0,1,0) -> 1 | F11: =IF('5'!$D12>0,1,0) -> 1 | G11: =IF('6'!$D12>0,1,0) -> 1 | H11: 6 | I11: =IF('7'!$D12>0,1,0) -> 1 | J11: =IF('8'!$D12>0,1,0) -> 1 | K11: =IF('9'!$D12>0,1,0) -> 1 | L11: =IF('10'!$D12>0,1,0) -> 1 | M11: =IF('11'!$D12>0,1,0) -> 1 | N11: =IF('12'!$D12>0,1,0) -> 0 | O11: 5 | P11: 11
A12: Pohlgeers, Margret | B12: =IF('Wettkampf 1'!D13>0,1,0) -> 1 | C12: =IF('2'!$D13>0,1,0) -> 1 | D12: =IF('3'!$D13>0,1,0) -> 1 | E12: =IF('4'!$D13>0,1,0) -> 1 | F12: =IF('5'!$D13>0,1,0) -> 1 | G12: =IF('6'!$D13>0,1,0) -> 1 | H12: 6 | I12: =IF('7'!$D13>0,1,0) -> 1 | J12: =IF('8'!$D13>0,1,0) -> 1 | K12: =IF('9'!$D13>0,1,0) -> 1 | L12: =IF('10'!$D13>0,1,0) -> 1 | M12: =IF('11'!$D13>0,1,0) -> 1 | N12: =IF('12'!$D13>0,1,0) -> 0 | O12: 5 | P12: 11
A13: Pohlgeers, Silvia | B13: =IF('Wettkampf 1'!D14>0,1,0) -> 1 | C13: =IF('2'!$D14>0,1,0) -> 1 | D13: =IF('3'!$D14>0,1,0) -> 1 | E13: =IF('4'!$D14>0,1,0) -> 1 | F13: =IF('5'!$D14>0,1,0) -> 1 | G13: =IF('6'!$D14>0,1,0) -> 1 | H13: 6 | I13: =IF('7'!$D14>0,1,0) -> 1 | J13: =IF('8'!$D14>0,1,0) -> 1 | K13: =IF('9'!$D14>0,1,0) -> 1 | L13: =IF('10'!$D14>0,1,0) -> 1 | M13: =IF('11'!$D14>0,1,0) -> 1 | N13: =IF('12'!$D14>0,1,0) -> 0 | O13: 5 | P13: 11
A14: Schwarte, Annette | B14: =IF('Wettkampf 1'!D15>0,1,0) -> 0 | C14: =IF('2'!$D15>0,1,0) -> 0 | D14: =IF('3'!$D15>0,1,0) -> 0 | E14: =IF('4'!$D15>0,1,0) -> 0 | F14: =IF('5'!$D15>0,1,0) -> 0 | G14: =IF('6'!$D15>0,1,0) -> 0 | H14: 0 | I14: =IF('7'!$D15>0,1,0) -> 0 | J14: =IF('8'!$D15>0,1,0) -> 0 | K14: =IF('9'!$D15>0,1,0) -> 0 | L14: =IF('10'!$D15>0,1,0) -> 0 | M14: =IF('11'!$D15>0,1,0) -> 0 | N14: =IF('12'!$D15>0,1,0) -> 0 | O14: 0 | P14: 0
A15: Lindemann, Kerstin | B15: =IF('Wettkampf 1'!D16>0,1,0) -> 1 | C15: =IF('2'!$D16>0,1,0) -> 1 | D15: =IF('3'!$D16>0,1,0) -> 1 | E15: =IF('4'!$D16>0,1,0) -> 1 | F15: =IF('5'!$D16>0,1,0) -> 1 | G15: =IF('6'!$D16>0,1,0) -> 1 | H15: 6 | I15: =IF('7'!$D16>0,1,0) -> 1 | J15: =IF('8'!$D16>0,1,0) -> 1 | K15: =IF('9'!$D16>0,1,0) -> 1 | L15: =IF('10'!$D16>0,1,0) -> 1 | M15: =IF('11'!$D16>0,1,0) -> 1 | N15: =IF('12'!$D16>0,1,0) -> 0 | O15: 5 | P15: 11
A16: Schlarmann, Lena | B16: =IF('Wettkampf 1'!D17>0,1,0) -> 1 | C16: =IF('2'!$D17>0,1,0) -> 1 | D16: =IF('3'!$D17>0,1,0) -> 1 | E16: =IF('4'!$D17>0,1,0) -> 1 | F16: =IF('5'!$D17>0,1,0) -> 1 | G16: =IF('6'!$D17>0,1,0) -> 1 | H16: 6 | I16: =IF('7'!$D17>0,1,0) -> 1 | J16: =IF('8'!$D17>0,1,0) -> 1 | K16: =IF('9'!$D17>0,1,0) -> 1 | L16: =IF('10'!$D17>0,1,0) -> 1 | M16: =IF('11'!$D17>0,1,0) -> 1 | N16: =IF('12'!$D17>0,1,0) -> 0 | O16: 5 | P16: 11
A17: Lindemann, Stefanie | B17: =IF('Wettkampf 1'!D18>0,1,0) -> 1 | C17: =IF('2'!$D18>0,1,0) -> 1 | D17: =IF('3'!$D18>0,1,0) -> 1 | E17: =IF('4'!$D18>0,1,0) -> 1 | F17: =IF('5'!$D18>0,1,0) -> 1 | G17: =IF('6'!$D18>0,1,0) -> 1 | H17: 6 | I17: =IF('7'!$D18>0,1,0) -> 1 | J17: =IF('8'!$D18>0,1,0) -> 1 | K17: =IF('9'!$D18>0,1,0) -> 1 | L17: =IF('10'!$D18>0,1,0) -> 1 | M17: =IF('11'!$D18>0,1,0) -> 0 | N17: =IF('12'!$D18>0,1,0) -> 0 | O17: 4 | P17: 10
A18: Lindemann, Rita | B18: =IF('Wettkampf 1'!D19>0,1,0) -> 1 | C18: =IF('2'!$D19>0,1,0) -> 1 | D18: =IF('3'!$D19>0,1,0) -> 1 | E18: =IF('4'!$D19>0,1,0) -> 1 | F18: =IF('5'!$D19>0,1,0) -> 1 | G18: =IF('6'!$D19>0,1,0) -> 1 | H18: 6 | I18: =IF('7'!$D19>0,1,0) -> 1 | J18: =IF('8'!$D19>0,1,0) -> 1 | K18: =IF('9'!$D19>0,1,0) -> 1 | L18: =IF('10'!$D19>0,1,0) -> 1 | M18: =IF('11'!$D19>0,1,0) -> 1 | N18: =IF('12'!$D19>0,1,0) -> 0 | O18: 5 | P18: 11
A19: Büter, Daniela | B19: =IF('Wettkampf 1'!D20>0,1,0) -> 1 | C19: =IF('2'!$D20>0,1,0) -> 1 | D19: =IF('3'!$D20>0,1,0) -> 1 | E19: =IF('4'!$D20>0,1,0) -> 1 | F19: =IF('5'!$D20>0,1,0) -> 1 | G19: =IF('6'!$D20>0,1,0) -> 1 | H19: 6 | I19: =IF('7'!$D20>0,1,0) -> 1 | J19: =IF('8'!$D20>0,1,0) -> 1 | K19: =IF('9'!$D20>0,1,0) -> 1 | L19: =IF('10'!$D20>0,1,0) -> 1 | M19: =IF('11'!$D20>0,1,0) -> 1 | N19: =IF('12'!$D20>0,1,0) -> 0 | O19: 5 | P19: 11
A20: Lindemann, Annemarie | B20: =IF('Wettkampf 1'!D21>0,1,0) -> 1 | C20: =IF('2'!$D21>0,1,0) -> 1 | D20: =IF('3'!$D21>0,1,0) -> 1 | E20: =IF('4'!$D21>0,1,0) -> 1 | F20: =IF('5'!$D21>0,1,0) -> 1 | G20: =IF('6'!$D21>0,1,0) -> 0 | H20: 5 | I20: =IF('7'!$D21>0,1,0) -> 0 | J20: =IF('8'!$D21>0,1,0) -> 0 | K20: =IF('9'!$D21>0,1,0) -> 0 | L20: =IF('10'!$D21>0,1,0) -> 0 | M20: =IF('11'!$D21>0,1,0) -> 0 | N20: =IF('12'!$D21>0,1,0) -> 0 | O20: 0 | P20: 5
A21: Preut, Susanne | B21: =IF('Wettkampf 1'!D22>0,1,0) -> 1 | C21: =IF('2'!$D22>0,1,0) -> 1 | D21: =IF('3'!$D22>0,1,0) -> 1 | E21: =IF('4'!$D22>0,1,0) -> 1 | F21: =IF('5'!$D22>0,1,0) -> 0 | G21: =IF('6'!$D22>0,1,0) -> 1 | H21: 5 | I21: =IF('7'!$D22>0,1,0) -> 1 | J21: =IF('8'!$D22>0,1,0) -> 1 | K21: =IF('9'!$D22>0,1,0) -> 0 | L21: =IF('10'!$D22>0,1,0) -> 1 | M21: =IF('11'!$D22>0,1,0) -> 1 | N21: =IF('12'!$D22>0,1,0) -> 0 | O21: 4 | P21: 9
A22: Thunert, Silvia | B22: =IF('Wettkampf 1'!D23>0,1,0) -> 1 | C22: =IF('2'!$D23>0,1,0) -> 1 | D22: =IF('3'!$D23>0,1,0) -> 1 | E22: =IF('4'!$D23>0,1,0) -> 1 | F22: =IF('5'!$D23>0,1,0) -> 1 | G22: =IF('6'!$D23>0,1,0) -> 1 | H22: 6 | I22: =IF('7'!$D23>0,1,0) -> 1 | J22: =IF('8'!$D23>0,1,0) -> 1 | K22: =IF('9'!$D23>0,1,0) -> 1 | L22: =IF('10'!$D23>0,1,0) -> 1 | M22: =IF('11'!$D23>0,1,0) -> 1 | N22: =IF('12'!$D23>0,1,0) -> 0 | O22: 5 | P22: 11
A23: Pohlmann, Margret | B23: =IF('Wettkampf 1'!D24>0,1,0) -> 1 | C23: =IF('2'!$D24>0,1,0) -> 1 | D23: =IF('3'!$D24>0,1,0) -> 1 | E23: =IF('4'!$D24>0,1,0) -> 1 | F23: =IF('5'!$D24>0,1,0) -> 1 | G23: =IF('6'!$D24>0,1,0) -> 1 | H23: 6 | I23: =IF('7'!$D24>0,1,0) -> 1 | J23: =IF('8'!$D24>0,1,0) -> 1 | K23: =IF('9'!$D24>0,1,0) -> 1 | L23: =IF('10'!$D24>0,1,0) -> 1 | M23: =IF('11'!$D24>0,1,0) -> 1 | N23: =IF('12'!$D24>0,1,0) -> 0 | O23: 5 | P23: 11
A24: Eilermann, Saskia | B24: =IF('Wettkampf 1'!D25>0,1,0) -> 1 | C24: =IF('2'!$D25>0,1,0) -> 1 | D24: =IF('3'!$D25>0,1,0) -> 1 | E24: =IF('4'!$D25>0,1,0) -> 0 | F24: =IF('5'!$D25>0,1,0) -> 0 | G24: =IF('6'!$D25>0,1,0) -> 1 | H24: 4 | I24: =IF('7'!$D25>0,1,0) -> 0 | J24: =IF('8'!$D25>0,1,0) -> 0 | K24: =IF('9'!$D25>0,1,0) -> 1 | L24: =IF('10'!$D25>0,1,0) -> 0 | M24: =IF('11'!$D25>0,1,0) -> 1 | N24: =IF('12'!$D25>0,1,0) -> 0 | O24: 2 | P24: 6
A25: Junge, Silvia | B25: =IF('Wettkampf 1'!D26>0,1,0) -> 1 | C25: =IF('2'!$D26>0,1,0) -> 1 | D25: =IF('3'!$D26>0,1,0) -> 1 | E25: =IF('4'!$D26>0,1,0) -> 1 | F25: =IF('5'!$D26>0,1,0) -> 1 | G25: =IF('6'!$D26>0,1,0) -> 1 | H25: 6 | I25: =IF('7'!$D26>0,1,0) -> 1 | J25: =IF('8'!$D26>0,1,0) -> 1 | K25: =IF('9'!$D26>0,1,0) -> 1 | L25: =IF('10'!$D26>0,1,0) -> 1 | M25: =IF('11'!$D26>0,1,0) -> 1 | N25: =IF('12'!$D26>0,1,0) -> 0 | O25: 5 | P25: 11
A26: Evers, Claudia | B26: =IF('Wettkampf 1'!D27>0,1,0) -> 1 | C26: =IF('2'!$D27>0,1,0) -> 1 | D26: =IF('3'!$D27>0,1,0) -> 1 | E26: =IF('4'!$D27>0,1,0) -> 1 | F26: =IF('5'!$D27>0,1,0) -> 1 | G26: =IF('6'!$D27>0,1,0) -> 1 | H26: 6 | I26: =IF('7'!$D27>0,1,0) -> 1 | J26: =IF('8'!$D27>0,1,0) -> 1 | K26: =IF('9'!$D27>0,1,0) -> 1 | L26: =IF('10'!$D27>0,1,0) -> 1 | M26: =IF('11'!$D27>0,1,0) -> 1 | N26: =IF('12'!$D27>0,1,0) -> 0 | O26: 5 | P26: 11
A27: Schulte, Christina | B27: =IF('Wettkampf 1'!D28>0,1,0) -> 1 | C27: =IF('2'!$D28>0,1,0) -> 1 | D27: =IF('3'!$D28>0,1,0) -> 1 | E27: =IF('4'!$D28>0,1,0) -> 1 | F27: =IF('5'!$D28>0,1,0) -> 1 | G27: =IF('6'!$D28>0,1,0) -> 0 | H27: 5 | I27: =IF('7'!$D28>0,1,0) -> 1 | J27: =IF('8'!$D28>0,1,0) -> 0 | K27: =IF('9'!$D28>0,1,0) -> 0 | L27: =IF('10'!$D28>0,1,0) -> 0 | M27: =IF('11'!$D28>0,1,0) -> 0 | N27: =IF('12'!$D28>0,1,0) -> 0 | O27: 1 | P27: 6
A28: Reinelt, Michaela | B28: =IF('Wettkampf 1'!D29>0,1,0) -> 1 | C28: =IF('2'!$D29>0,1,0) -> 1 | D28: =IF('3'!$D29>0,1,0) -> 1 | E28: =IF('4'!$D29>0,1,0) -> 1 | F28: =IF('5'!$D29>0,1,0) -> 1 | G28: =IF('6'!$D29>0,1,0) -> 1 | H28: 6 | I28: =IF('7'!$D29>0,1,0) -> 1 | J28: =IF('8'!$D29>0,1,0) -> 1 | K28: =IF('9'!$D29>0,1,0) -> 1 | L28: =IF('10'!$D29>0,1,0) -> 1 | M28: =IF('11'!$D29>0,1,0) -> 1 | N28: =IF('12'!$D29>0,1,0) -> 0 | O28: 5 | P28: 11
A29: Thien, Marita | B29: =IF('Wettkampf 1'!D30>0,1,0) -> 1 | C29: =IF('2'!$D30>0,1,0) -> 1 | D29: =IF('3'!$D30>0,1,0) -> 1 | E29: =IF('4'!$D30>0,1,0) -> 1 | F29: =IF('5'!$D30>0,1,0) -> 1 | G29: =IF('6'!$D30>0,1,0) -> 1 | H29: 6 | I29: =IF('7'!$D30>0,1,0) -> 1 | J29: =IF('8'!$D30>0,1,0) -> 1 | K29: =IF('9'!$D30>0,1,0) -> 1 | L29: =IF('10'!$D30>0,1,0) -> 1 | M29: =IF('11'!$D30>0,1,0) -> 1 | N29: =IF('12'!$D30>0,1,0) -> 0 | O29: 5 | P29: 11
A30: Robben, Anja | B30: =IF('Wettkampf 1'!D31>0,1,0) -> 1 | C30: =IF('2'!$D31>0,1,0) -> 1 | D30: =IF('3'!$D31>0,1,0) -> 1 | E30: =IF('4'!$D31>0,1,0) -> 1 | F30: =IF('5'!$D31>0,1,0) -> 1 | G30: =IF('6'!$D31>0,1,0) -> 1 | H30: 6 | I30: =IF('7'!$D31>0,1,0) -> 1 | J30: =IF('8'!$D31>0,1,0) -> 1 | K30: =IF('9'!$D31>0,1,0) -> 1 | L30: =IF('10'!$D31>0,1,0) -> 1 | M30: =IF('11'!$D31>0,1,0) -> 1 | N30: =IF('12'!$D31>0,1,0) -> 0 | O30: 5 | P30: 11
A31: Oldopp, Maria | B31: =IF('Wettkampf 1'!D32>0,1,0) -> 1 | C31: =IF('2'!$D32>0,1,0) -> 1 | D31: =IF('3'!$D32>0,1,0) -> 1 | E31: =IF('4'!$D32>0,1,0) -> 1 | F31: =IF('5'!$D32>0,1,0) -> 1 | G31: =IF('6'!$D32>0,1,0) -> 1 | H31: 6 | I31: =IF('7'!$D32>0,1,0) -> 1 | J31: =IF('8'!$D32>0,1,0) -> 1 | K31: =IF('9'!$D32>0,1,0) -> 1 | L31: =IF('10'!$D32>0,1,0) -> 1 | M31: =IF('11'!$D32>0,1,0) -> 1 | N31: =IF('12'!$D32>0,1,0) -> 0 | O31: 5 | P31: 11
A32: Hanneken, Doris | B32: =IF('Wettkampf 1'!D33>0,1,0) -> 1 | C32: =IF('2'!$D33>0,1,0) -> 1 | D32: =IF('3'!$D33>0,1,0) -> 1 | E32: =IF('4'!$D33>0,1,0) -> 1 | F32: =IF('5'!$D33>0,1,0) -> 1 | G32: =IF('6'!$D33>0,1,0) -> 1 | H32: 6 | I32: =IF('7'!$D33>0,1,0) -> 1 | J32: =IF('8'!$D33>0,1,0) -> 1 | K32: =IF('9'!$D33>0,1,0) -> 1 | L32: =IF('10'!$D33>0,1,0) -> 1 | M32: =IF('11'!$D33>0,1,0) -> 1 | N32: =IF('12'!$D33>0,1,0) -> 0 | O32: 5 | P32: 11
A33: Kuchta, Gertrud | B33: =IF('Wettkampf 1'!D34>0,1,0) -> 1 | C33: =IF('2'!$D34>0,1,0) -> 1 | D33: =IF('3'!$D34>0,1,0) -> 1 | E33: =IF('4'!$D34>0,1,0) -> 1 | F33: =IF('5'!$D34>0,1,0) -> 1 | G33: =IF('6'!$D34>0,1,0) -> 1 | H33: 6 | I33: =IF('7'!$D34>0,1,0) -> 1 | J33: =IF('8'!$D34>0,1,0) -> 1 | K33: =IF('9'!$D34>0,1,0) -> 1 | L33: =IF('10'!$D34>0,1,0) -> 1 | M33: =IF('11'!$D34>0,1,0) -> 1 | N33: =IF('12'!$D34>0,1,0) -> 0 | O33: 5 | P33: 11
A34: Jungsthöfel, Sabine | B34: =IF('Wettkampf 1'!D35>0,1,0) -> 1 | C34: =IF('2'!$D35>0,1,0) -> 1 | D34: =IF('3'!$D35>0,1,0) -> 1 | E34: =IF('4'!$D35>0,1,0) -> 1 | F34: =IF('5'!$D35>0,1,0) -> 1 | G34: =IF('6'!$D35>0,1,0) -> 1 | H34: 6 | I34: =IF('7'!$D35>0,1,0) -> 1 | J34: =IF('8'!$D35>0,1,0) -> 1 | K34: =IF('9'!$D35>0,1,0) -> 1 | L34: =IF('10'!$D35>0,1,0) -> 1 | M34: =IF('11'!$D35>0,1,0) -> 1 | N34: =IF('12'!$D35>0,1,0) -> 0 | O34: 5 | P34: 11
A35: Schwarte, Gundula | B35: =IF('Wettkampf 1'!D36>0,1,0) -> 1 | C35: =IF('2'!$D36>0,1,0) -> 1 | D35: =IF('3'!$D36>0,1,0) -> 1 | E35: =IF('4'!$D36>0,1,0) -> 0 | F35: =IF('5'!$D36>0,1,0) -> 1 | G35: =IF('6'!$D36>0,1,0) -> 1 | H35: 5 | I35: =IF('7'!$D36>0,1,0) -> 1 | J35: =IF('8'!$D36>0,1,0) -> 1 | K35: =IF('9'!$D36>0,1,0) -> 1 | L35: =IF('10'!$D36>0,1,0) -> 1 | M35: =IF('11'!$D36>0,1,0) -> 1 | N35: =IF('12'!$D36>0,1,0) -> 0 | O35: 5 | P35: 10
A36: Geers, Christa | B36: =IF('Wettkampf 1'!D37>0,1,0) -> 1 | C36: =IF('2'!$D37>0,1,0) -> 1 | D36: =IF('3'!$D37>0,1,0) -> 1 | E36: =IF('4'!$D37>0,1,0) -> 1 | F36: =IF('5'!$D37>0,1,0) -> 1 | G36: =IF('6'!$D37>0,1,0) -> 1 | H36: 6 | I36: =IF('7'!$D37>0,1,0) -> 1 | J36: =IF('8'!$D37>0,1,0) -> 1 | K36: =IF('9'!$D37>0,1,0) -> 1 | L36: =IF('10'!$D37>0,1,0) -> 1 | M36: =IF('11'!$D37>0,1,0) -> 1 | N36: =IF('12'!$D37>0,1,0) -> 0 | O36: 5 | P36: 11
A37: Remmers, Tanja | B37: =IF('Wettkampf 1'!D38>0,1,0) -> 1 | C37: =IF('2'!$D38>0,1,0) -> 1 | D37: =IF('3'!$D38>0,1,0) -> 1 | E37: =IF('4'!$D38>0,1,0) -> 1 | F37: =IF('5'!$D38>0,1,0) -> 1 | G37: =IF('6'!$D38>0,1,0) -> 0 | H37: 5 | I37: =IF('7'!$D38>0,1,0) -> 1 | J37: =IF('8'!$D38>0,1,0) -> 1 | K37: =IF('9'!$D38>0,1,0) -> 1 | L37: =IF('10'!$D38>0,1,0) -> 1 | M37: =IF('11'!$D38>0,1,0) -> 1 | N37: =IF('12'!$D38>0,1,0) -> 0 | O37: 5 | P37: 10
A38: Terhalle, Johanna | B38: =IF('Wettkampf 1'!D39>0,1,0) -> 1 | C38: =IF('2'!$D39>0,1,0) -> 1 | D38: =IF('3'!$D39>0,1,0) -> 1 | E38: =IF('4'!$D39>0,1,0) -> 1 | F38: =IF('5'!$D39>0,1,0) -> 1 | G38: =IF('6'!$D39>0,1,0) -> 1 | H38: 6 | I38: =IF('7'!$D39>0,1,0) -> 1 | J38: =IF('8'!$D39>0,1,0) -> 1 | K38: =IF('9'!$D39>0,1,0) -> 1 | L38: =IF('10'!$D39>0,1,0) -> 1 | M38: =IF('11'!$D39>0,1,0) -> 1 | N38: =IF('12'!$D39>0,1,0) -> 0 | O38: 5 | P38: 11
A39: Hackstette, Lena | B39: =IF('Wettkampf 1'!D40>0,1,0) -> 1 | C39: =IF('2'!$D40>0,1,0) -> 1 | D39: =IF('3'!$D40>0,1,0) -> 1 | E39: =IF('4'!$D40>0,1,0) -> 1 | F39: =IF('5'!$D40>0,1,0) -> 1 | G39: =IF('6'!$D40>0,1,0) -> 1 | H39: =B39+C39+D39+E39+F39+G39 -> 6 | I39: =IF('7'!$D40>0,1,0) -> 1 | J39: =IF('8'!$D40>0,1,0) -> 1 | K39: =IF('9'!$D40>0,1,0) -> 1 | L39: =IF('10'!$D40>0,1,0) -> 1 | M39: =IF('11'!$D40>0,1,0) -> 1 | N39: =IF('12'!$D40>0,1,0) -> 0 | O39: =I39+J39+K39+L39+M39+N39 -> 5 | P39: =O39+H39 -> 11
A40: Thyen, Christel | B40: =IF('Wettkampf 1'!D41>0,1,0) -> 1 | C40: =IF('2'!$D41>0,1,0) -> 1 | D40: =IF('3'!$D41>0,1,0) -> 1 | E40: =IF('4'!$D41>0,1,0) -> 1 | F40: =IF('5'!$D41>0,1,0) -> 1 | G40: =IF('6'!$D41>0,1,0) -> 1 | H40: 6 | I40: =IF('7'!$D41>0,1,0) -> 1 | J40: =IF('8'!$D41>0,1,0) -> 1 | K40: =IF('9'!$D41>0,1,0) -> 1 | L40: =IF('10'!$D41>0,1,0) -> 1 | M40: =IF('11'!$D41>0,1,0) -> 1 | N40: =IF('12'!$D41>0,1,0) -> 0 | O40: 5 | P40: 11
A41: Ostermann, Hildegard | B41: =IF('Wettkampf 1'!D42>0,1,0) -> 1 | C41: =IF('2'!$D42>0,1,0) -> 1 | D41: =IF('3'!$D42>0,1,0) -> 1 | E41: =IF('4'!$D42>0,1,0) -> 1 | F41: =IF('5'!$D42>0,1,0) -> 1 | G41: =IF('6'!$D42>0,1,0) -> 1 | H41: 6 | I41: =IF('7'!$D42>0,1,0) -> 1 | J41: =IF('8'!$D42>0,1,0) -> 1 | K41: =IF('9'!$D42>0,1,0) -> 1 | L41: =IF('10'!$D42>0,1,0) -> 1 | M41: =IF('11'!$D42>0,1,0) -> 1 | N41: =IF('12'!$D42>0,1,0) -> 0 | O41: 5 | P41: 11
A42: Willoh, Henrika | B42: =IF('Wettkampf 1'!D43>0,1,0) -> 1 | C42: =IF('2'!$D43>0,1,0) -> 1 | D42: =IF('3'!$D43>0,1,0) -> 1 | E42: =IF('4'!$D43>0,1,0) -> 1 | F42: =IF('5'!$D43>0,1,0) -> 1 | G42: =IF('6'!$D43>0,1,0) -> 1 | H42: 6 | I42: =IF('7'!$D43>0,1,0) -> 1 | J42: =IF('8'!$D43>0,1,0) -> 1 | K42: =IF('9'!$D43>0,1,0) -> 1 | L42: =IF('10'!$D43>0,1,0) -> 1 | M42: =IF('11'!$D43>0,1,0) -> 1 | N42: =IF('12'!$D43>0,1,0) -> 0 | O42: 5 | P42: 11
A43: Müller, Anita | B43: =IF('Wettkampf 1'!D44>0,1,0) -> 1 | C43: =IF('2'!$D44>0,1,0) -> 1 | D43: =IF('3'!$D44>0,1,0) -> 1 | E43: =IF('4'!$D44>0,1,0) -> 1 | F43: =IF('5'!$D44>0,1,0) -> 1 | G43: =IF('6'!$D44>0,1,0) -> 1 | H43: 6 | I43: =IF('7'!$D44>0,1,0) -> 1 | J43: =IF('8'!$D44>0,1,0) -> 1 | K43: =IF('9'!$D44>0,1,0) -> 1 | L43: =IF('10'!$D44>0,1,0) -> 1 | M43: =IF('11'!$D44>0,1,0) -> 1 | N43: =IF('12'!$D44>0,1,0) -> 0 | O43: 5 | P43: 11
A44: Wilken, Elena | B44: =IF('Wettkampf 1'!D45>0,1,0) -> 1 | C44: =IF('2'!$D45>0,1,0) -> 1 | D44: =IF('3'!$D45>0,1,0) -> 1 | E44: =IF('4'!$D45>0,1,0) -> 1 | F44: =IF('5'!$D45>0,1,0) -> 1 | G44: =IF('6'!$D45>0,1,0) -> 1 | H44: 6 | I44: =IF('7'!$D45>0,1,0) -> 1 | J44: =IF('8'!$D45>0,1,0) -> 1 | K44: =IF('9'!$D45>0,1,0) -> 1 | L44: =IF('10'!$D45>0,1,0) -> 1 | M44: =IF('11'!$D45>0,1,0) -> 1 | N44: =IF('12'!$D45>0,1,0) -> 0 | O44: 5 | P44: 11
B45: =SUM(B9:B44) -> 35.00 | C45: =SUM(C9:C44) -> 35.00 | D45: 35.00 | E45: 33.00 | F45: 33.00 | G45: 32.00 | H45: =SUM(H9:H38) -> 167.00 | I45: =SUM(I9:I44) -> 32.00 | J45: =SUM(J9:J44) -> 31.00 | K45: 31.00 | L45: 31.00 | M45: 31.00 | N45: 0.00 | O45: =SUM(O9:O44) -> 156.00 | P45: =SUM(P9:P44) -> 359.00

Sheet Übersicht Gruppen (hidden)
B2: Esterwegen V | C2: =VLOOKUP($B$2:$B$7,'Wettkampf 1'!$B$2:$D$7,3,FALSE) -> 931.1 | D2: =VLOOKUP($B$2:$B$7,'2'!$B$2:$D$7,3,FALSE) -> 940.1 | E2: =VLOOKUP($B$2:$B$7,'3'!$B$2:$D$7,3,FALSE) -> 934.7 | F2: =VLOOKUP($B$2:$B$7,'4'!$B$2:$D$7,3,FALSE) -> 934.0 | G2: =VLOOKUP($B$2:$B$7,'5'!$B$2:$D$7,3,FALSE) -> 935.8 | H2: =VLOOKUP($B$2:$B$7,'6'!$B$2:$D$7,3,FALSE) -> 933.2 | I2: =J2/Formelhilfe!H6 -> 934.8 | J2: =SUM(C2:H2) -> 5,608.9 | K2: =VLOOKUP($B$2:$B$7,'7'!$B$2:$D$7,3,FALSE) -> 938.1 | L2: =VLOOKUP($B$2:$B$7,'8'!$B$2:$D$7,3,FALSE) -> 938.2 | M2: =VLOOKUP($B$2:$B$7,'9'!$B$2:$D$7,3,FALSE) -> 932.4 | N2: =VLOOKUP($B$2:$B$7,'10'!$B$2:$D$7,3,FALSE) -> 937.8 | O2: =VLOOKUP($B$2:$B$7,'11'!$B$2:$D$7,3,FALSE) -> 934.2 | P2: =VLOOKUP($B$2:$B$7,'12'!$B$2:$D$7,3,FALSE) -> 0.0 | Q2: =R2/Formelhilfe!O6 -> 936.1 | R2: =SUM(K2:P2) -> 4,680.7 | S2: =T2/Formelhilfe!P6 -> 935.4 | T2: =SUM(C2:H2,K2:P2) -> 10,289.6
B3: Lahn III | C3: =VLOOKUP($B$2:$B$7,'Wettkampf 1'!$B$2:$D$7,3,FALSE) -> 928.5 | D3: =VLOOKUP($B$2:$B$7,'2'!$B$2:$D$7,3,FALSE) -> 919.0 | E3: =VLOOKUP($B$2:$B$7,'3'!$B$2:$D$7,3,FALSE) -> 922.7 | F3: =VLOOKUP($B$2:$B$7,'4'!$B$2:$D$7,3,FALSE) -> 933.4 | G3: =VLOOKUP($B$2:$B$7,'5'!$B$2:$D$7,3,FALSE) -> 937.2 | H3: =VLOOKUP($B$2:$B$7,'6'!$B$2:$D$7,3,FALSE) -> 923.6 | I3: =J3/Formelhilfe!H2 -> 927.4 | J3: =SUM(C3:H3) -> 5,564.4 | K3: =VLOOKUP($B$2:$B$7,'7'!$B$2:$D$7,3,FALSE) -> 931.5 | L3: =VLOOKUP($B$2:$B$7,'8'!$B$2:$D$7,3,FALSE) -> 922.0 | M3: =VLOOKUP($B$2:$B$7,'9'!$B$2:$D$7,3,FALSE) -> 921.7 | N3: =VLOOKUP($B$2:$B$7,'10'!$B$2:$D$7,3,FALSE) -> 928.8 | O3: =VLOOKUP($B$2:$B$7,'11'!$B$2:$D$7,3,FALSE) -> 923.9 | P3: =VLOOKUP($B$2:$B$7,'12'!$B$2:$D$7,3,FALSE) -> 0.0 | Q3: =R3/Formelhilfe!O2 -> 925.6 | R3: =SUM(K3:P3) -> 4,627.9 | S3: =T3/Formelhilfe!P2 -> 926.6 | T3: =SUM(C3:H3,K3:P3) -> 10,192.3
B4: Lahn IV | C4: =VLOOKUP($B$2:$B$7,'Wettkampf 1'!$B$2:$D$7,3,FALSE) -> 922.7 | D4: =VLOOKUP($B$2:$B$7,'2'!$B$2:$D$7,3,FALSE) -> 919.2 | E4: =VLOOKUP($B$2:$B$7,'3'!$B$2:$D$7,3,FALSE) -> 920.1 | F4: =VLOOKUP($B$2:$B$7,'4'!$B$2:$D$7,3,FALSE) -> 925.4 | G4: =VLOOKUP($B$2:$B$7,'5'!$B$2:$D$7,3,FALSE) -> 930.5 | H4: =VLOOKUP($B$2:$B$7,'6'!$B$2:$D$7,3,FALSE) -> 929.6 | I4: =J4/Formelhilfe!H3 -> 924.6 | J4: =SUM(C4:H4) -> 5,547.5 | K4: =VLOOKUP($B$2:$B$7,'7'!$B$2:$D$7,3,FALSE) -> 925.6 | L4: =VLOOKUP($B$2:$B$7,'8'!$B$2:$D$7,3,FALSE) -> 924.4 | M4: =VLOOKUP($B$2:$B$7,'9'!$B$2:$D$7,3,FALSE) -> 928.4 | N4: =VLOOKUP($B$2:$B$7,'10'!$B$2:$D$7,3,FALSE) -> 935.0 | O4: =VLOOKUP($B$2:$B$7,'11'!$B$2:$D$7,3,FALSE) -> 925.0 | P4: =VLOOKUP($B$2:$B$7,'12'!$B$2:$D$7,3,FALSE) -> 0.0 | Q4: =R4/Formelhilfe!O3 -> 927.7 | R4: =SUM(K4:P4) -> 4,638.4 | S4: =T4/Formelhilfe!P3 -> 926.0 | T4: =SUM(C4:H4,K4:P4) -> 10,185.9
B5: Neuvrees II | C5: =VLOOKUP($B$2:$B$7,'Wettkampf 1'!$B$2:$D$7,3,FALSE) -> 919.3 | D5: =VLOOKUP($B$2:$B$7,'2'!$B$2:$D$7,3,FALSE) -> 923.3 | E5: =VLOOKUP($B$2:$B$7,'3'!$B$2:$D$7,3,FALSE) -> 925.1 | F5: =VLOOKUP($B$2:$B$7,'4'!$B$2:$D$7,3,FALSE) -> 925.2 | G5: =VLOOKUP($B$2:$B$7,'5'!$B$2:$D$7,3,FALSE) -> 923.2 | H5: =VLOOKUP($B$2:$B$7,'6'!$B$2:$D$7,3,FALSE) -> 920.9 | I5: =J5/Formelhilfe!H4 -> 922.8 | J5: =SUM(C5:H5) -> 5,537.0 | K5: =VLOOKUP($B$2:$B$7,'7'!$B$2:$D$7,3,FALSE) -> 922.6 | L5: =VLOOKUP($B$2:$B$7,'8'!$B$2:$D$7,3,FALSE) -> 916.3 | M5: =VLOOKUP($B$2:$B$7,'9'!$B$2:$D$7,3,FALSE) -> 925.6 | N5: =VLOOKUP($B$2:$B$7,'10'!$B$2:$D$7,3,FALSE) -> 924.4 | O5: =VLOOKUP($B$2:$B$7,'11'!$B$2:$D$7,3,FALSE) -> 932.8 | P5: =VLOOKUP($B$2:$B$7,'12'!$B$2:$D$7,3,FALSE) -> 0.0 | Q5: =R5/Formelhilfe!O4 -> 924.3 | R5: =SUM(K5:P5) -> 4,621.7 | S5: =T5/Formelhilfe!P4 -> 923.5 | T5: =SUM(C5:H5,K5:P5) -> 10,158.7
B6: Börger II | C6: =VLOOKUP($B$2:$B$7,'Wettkampf 1'!$B$2:$D$7,3,FALSE) -> 926.0 | D6: =VLOOKUP($B$2:$B$7,'2'!$B$2:$D$7,3,FALSE) -> 916.2 | E6: =VLOOKUP($B$2:$B$7,'3'!$B$2:$D$7,3,FALSE) -> 911.7 | F6: =VLOOKUP($B$2:$B$7,'4'!$B$2:$D$7,3,FALSE) -> 922.4 | G6: =VLOOKUP($B$2:$B$7,'5'!$B$2:$D$7,3,FALSE) -> 925.5 | H6: =VLOOKUP($B$2:$B$7,'6'!$B$2:$D$7,3,FALSE) -> 930.4 | I6: =J6/Formelhilfe!H5 -> 922.0 | J6: =SUM(C6:H6) -> 5,532.2 | K6: =VLOOKUP($B$2:$B$7,'7'!$B$2:$D$7,3,FALSE) -> 923.6 | L6: =VLOOKUP($B$2:$B$7,'8'!$B$2:$D$7,3,FALSE) -> 923.2 | M6: =VLOOKUP($B$2:$B$7,'9'!$B$2:$D$7,3,FALSE) -> 919.6 | N6: =VLOOKUP($B$2:$B$7,'10'!$B$2:$D$7,3,FALSE) -> 922.1 | O6: =VLOOKUP($B$2:$B$7,'11'!$B$2:$D$7,3,FALSE) -> 929.4 | P6: =VLOOKUP($B$2:$B$7,'12'!$B$2:$D$7,3,FALSE) -> 0.0 | Q6: =R6/Formelhilfe!O5 -> 923.6 | R6: =SUM(K6:P6) -> 4,617.9 | S6: =T6/Formelhilfe!P5 -> 922.7 | T6: =SUM(C6:H6,K6:P6) -> 10,150.1
B7: Börger III | C7: =VLOOKUP($B$2:$B$7,'Wettkampf 1'!$B$2:$D$7,3,FALSE) -> 924.8 | D7: =VLOOKUP($B$2:$B$7,'2'!$B$2:$D$7,3,FALSE) -> 924.0 | E7: =VLOOKUP($B$2:$B$7,'3'!$B$2:$D$7,3,FALSE) -> 910.6 | F7: =VLOOKUP($B$2:$B$7,'4'!$B$2:$D$7,3,FALSE) -> 920.3 | G7: =VLOOKUP($B$2:$B$7,'5'!$B$2:$D$7,3,FALSE) -> 925.2 | H7: =VLOOKUP($B$2:$B$7,'6'!$B$2:$D$7,3,FALSE) -> 917.0 | I7: =J7/Formelhilfe!H7 -> 920.3 | J7: =SUM(C7:H7) -> 5,521.9 | K7: =VLOOKUP($B$2:$B$7,'7'!$B$2:$D$7,3,FALSE) -> 924.8 | L7: =VLOOKUP($B$2:$B$7,'8'!$B$2:$D$7,3,FALSE) -> 913.1 | M7: =VLOOKUP($B$2:$B$7,'9'!$B$2:$D$7,3,FALSE) -> 925.4 | N7: =VLOOKUP($B$2:$B$7,'10'!$B$2:$D$7,3,FALSE) -> 915.2 | O7: =VLOOKUP($B$2:$B$7,'11'!$B$2:$D$7,3,FALSE) -> 919.7 | P7: =VLOOKUP($B$2:$B$7,'12'!$B$2:$D$7,3,FALSE) -> 0.0 | Q7: =R7/Formelhilfe!O7 -> 919.6 | R7: =SUM(K7:P7) -> 4,598.2 | S7: =T7/Formelhilfe!P7 -> 920.0 | T7: =SUM(C7:H7,K7:P7) -> 10,120.1
